Workbook

Sheet TOC
A1: Table of Contents
A3: 1 | B3: Base Data
A4: 2 | B4: PF_Rates
A5: 3 | B5: Nat_Gas_Mkt_Prices
A6: 4 | B6: Tiered_Rates
A7: 5 | B7: OSS & PurPwr Forecast
A8: 6 | B8: Above-RHWM Base Calc
A9: 7 | B9: Above-RHWM Esc
A10: 8 | B10: NLSL Base New Calc
A11: 9 | B11: NLSL Esc
A12: 10 | B12: Total & Functionalization
A13: 11 | B13: Prod & Tran
A14: 12 | B14: Rate Period Total & Funct
A15: 13 | B15: Load Forecast
A16: 14 | B16: Inputs
A17: 15 | B17: Inputs Monthly
A18: 16 | B18: New Resources
A19: 17 | B19: ASCs

Sheet Base Data
A1: BONNEVILLE POWER ADMINISTRATION
A2: RESIDENTIAL PURCHASE AND SALE AGREEMENT | M2: 7 | N2: 8 | O2: 9 | P2: 10
A3: 2008 Average System Cost Methodology | N3: [ | O3: ]
A5: TOC | D5: UTILITY NAME: | E5: =INDIRECT(ADDRESS(5,5,,,$N$3&$L$10&$O$3&$L5)) -> PUGET SOUND ENERGY | L5: Sch 1- Rate Base | M5: 4
D6: End of Year Report Period: | E6: 2023
D7: ASC Filing Date: | E7: =INDIRECT(ADDRESS(7,5,,,$N$3&$L$10&$O$3&$L5)) -> 2024-07-01
C9: Schedule 1: Plant Investment / Rate Base | L9: Enter Excel File Name Below
H10: =E6 -> 2023 | I10: End-of-Year - 2021 | L10: PSE Appendix 1 Redacted.xlsx
S11: 0
B12: Account Description | C12: Form 1 | E12: Functionalization/ Escalation | G12: Total | H12: Production | I12: Transmission
C13: Page | D13: Account | J13: Distribution/
C14: Number | D14: Numbers | E14: Method | F14: Code | J14: Other
A15: Intangible Plant: | T15: Snohomish_Appendix_1_2026-2028_Final v2 TRM Updated ASC Adj.xlsx
B16: Intangible Plant - Organization | C16: 204-207 | D16: 301 | E16: =INDIRECT(ADDRESS($M16,5,,,$N$3&$L$10&$O$3&$L16)) -> DIST | F16: CONSTANT | G16: =INDIRECT(ADDRESS($M16,M$2,,,$N$3&$L$10&$O$3&$L16)) -> 114202 | H16: =INDIRECT(ADDRESS($M16,N$2,,,$N$3&$L$10&$O$3&$L16)) -> 0 | I16: 0 | J16: 114202 | L16: Sch 1- Rate Base | M16: 16
B17: Intangible Plant - Franchises and Consents | C17: 204-207 | D17: 302 | E17: =INDIRECT(ADDRESS($M17,5,,,$N$3&$L$10&$O$3&$L17)) -> DIRECT | F17: CONSTANT | G17: =INDIRECT(ADDRESS($M17,M$2,,,$N$3&$L$10&$O$3&$L17)) -> 80196650 | H17: 55817303.48 | I17: 0 | J17: 24379345.72 | L17: Sch 1- Rate Base | M17: 17 | T17: ClarkPUD_Appendix_1_2026-2028ah_ASC adj TRM update.xlsx
B18: Intangible Plant - Miscellaneous | C18: 204-207 | D18: 303 | E18: =INDIRECT(ADDRESS($M18,5,,,$N$3&$L$10&$O$3&$L18)) -> DIRECT | F18: CONSTANT | G18: =INDIRECT(ADDRESS($M18,M$2,,,$N$3&$L$10&$O$3&$L18)) -> 75530269 | H18: =INDIRECT(ADDRESS($M18,N$2,,,$N$3&$L$10&$O$3&$L18)) -> 10321488.57 | I18: 0 | J18: 65208779 | L18: Sch 1- Rate Base | M18: 18
A19: Total Intangible Plant | G19: =SUM(G16:G18) -> 155841121 | H19: =SUM(H16:H18) -> 66138792.05 | I19: =SUM(I16:I18) -> 0 | J19: =SUM(J16:J18) -> 89702326.72
A21: Production Plant:
B22: Steam Production | C22: 204-207 | D22: 310-316 | E22: =INDIRECT(ADDRESS($M22,5,,,$N$3&$L$10&$O$3&$L22)) -> PROD | F22: CONSTANT | G22: =INDIRECT(ADDRESS($M22,M$2,,,$N$3&$L$10&$O$3&$L22)) -> 1034308926 | H22: 1034308926 | I22: 0 | J22: 0 | L22: Sch 1- Rate Base | M22: 22
B23: Nuclear Production | C23: 204-207 | D23: 320-325 | E23: =INDIRECT(ADDRESS($M23,5,,,$N$3&$L$10&$O$3&$L23)) -> PROD | F23: CONSTANT | G23: 0 | H23: 0 | I23: 0 | J23: 0 | L23: Sch 1- Rate Base | M23: 23
B24: Hydraulic Production | C24: 204-207 | D24: 330-336 | E24: =INDIRECT(ADDRESS($M24,5,,,$N$3&$L$10&$O$3&$L24)) -> PROD | F24: CONSTANT | G24: 788941762 | H24: 788941762 | I24: 0 | J24: 0 | L24: Sch 1- Rate Base | M24: 24
B25: Other Production | C25: 204-207 | D25: 340-346 | E25: =INDIRECT(ADDRESS($M25,5,,,$N$3&$L$10&$O$3&$L25)) -> PROD | F25: CONSTANT | G25: 2079134143 | H25: 2079134143 | I25: 0 | J25: 0 | L25: Sch 1- Rate Base | M25: 25
A26: Total Production Plant | G26: =SUM(G22:G25) -> 3902384831 | H26: =SUM(H22:H25) -> 3902384831 | I26: =SUM(I22:I25) -> 0 | J26: =SUM(J22:J25) -> 0
A28: Transmission Plant: (i)
B29: Transmission Plant | C29: 204-207 | D29: 350-359 | E29: =INDIRECT(ADDRESS($M29,5,,,$N$3&$L$10&$O$3&$L29)) -> TRANS | F29: CONSTANT | G29: =INDIRECT(ADDRESS($M29,M$2,,,$N$3&$L$10&$O$3&$L29)) -> 1992381238 | H29: =INDIRECT(ADDRESS($M29,N$2,,,$N$3&$L$10&$O$3&$L29)) -> 0 | I29: =INDIRECT(ADDRESS($M29,O$2,,,$N$3&$L$10&$O$3&$L29)) -> 0 | J29: =INDIRECT(ADDRESS($M29,P$2,,,$N$3&$L$10&$O$3&$L29)) -> 1992381238 | L29: Sch 1- Rate Base | M29: 29
A30: Total Transmission Plant | G30: =SUM(G29) -> 1992381238 | H30: =SUM(H29) -> 0 | I30: =SUM(I29) -> 0 | J30: =SUM(J29) -> 1992381238
A32: Distribution Plant:
B33: Distribution Plant | C33: 204-207 | D33: 360-373 | E33: =INDIRECT(ADDRESS($M33,5,,,$N$3&$L$10&$O$3&$L33)) -> DIST | F33: CD | G33: =INDIRECT(ADDRESS($M33,M$2,,,$N$3&$L$10&$O$3&$L33)) -> 5283922742 | H33: =INDIRECT(ADDRESS($M33,N$2,,,$N$3&$L$10&$O$3&$L33)) -> 0 | I33: =INDIRECT(ADDRESS($M33,O$2,,,$N$3&$L$10&$O$3&$L33)) -> 0 | J33: =INDIRECT(ADDRESS($M33,P$2,,,$N$3&$L$10&$O$3&$L33)) -> 5283922742 | L33: Sch 1- Rate Base | M33: 33
A34: Total Distribution Plant | G34: =SUM(G33) -> 5283922742 | H34: =SUM(H33) -> 0 | I34: =SUM(I33) -> 0 | J34: =SUM(J33) -> 5283922742
A36: General Plant:
B37: Land and Land Rights | C37: 204-207 | D37: 389 | E37: =INDIRECT(ADDRESS($M37,5,,,$N$3&$L$10&$O$3&$L37)) -> PTD | F37: CONSTANT | G37: =INDIRECT(ADDRESS($M37,M$2,,,$N$3&$L$10&$O$3&$L37)) -> 5100521 | H37: 1780548.338 | I37: 0 | J37: 3319972.662 | L37: Sch 1- Rate Base | M37: 37
B38: Structures and Improvements | C38: 204-207 | D38: 390 | E38: PTD | F38: CONSTANT | G38: 126721170 | H38: 44237278.62 | I38: 0 | J38: 82483891.38 | L38: Sch 1- Rate Base | M38: 38
B39: Furniture and Equipment | C39: 204-207 | D39: 391 | E39: LABOR | F39: CONSTANT | G39: 31597697 | H39: 10737849.56 | I39: 0 | J39: 20859847.44 | L39: Sch 1- Rate Base | M39: 39
B40: Transportation Equipment | C40: 204-207 | D40: 392 | E40: TD | F40: CONSTANT | G40: 3994065 | H40: 0 | I40: 0 | J40: 3994065 | L40: Sch 1- Rate Base | M40: 40
B41: Stores Equipment | C41: 204-207 | D41: 393 | E41: PTD | F41: CONSTANT | G41: 1969191 | H41: 687427.767 | I41: 0 | J41: 1281763.233 | L41: Sch 1- Rate Base | M41: 41
B42: Tools and Garage Equipment | C42: 204-207 | D42: 394 | E42: PTD | F42: CONSTANT | G42: 32372182 | H42: 11300852.37 | I42: 0 | J42: 21071329.63 | L42: Sch 1- Rate Base | M42: 42
B43: Laboratory Equipment | C43: 204-207 | D43: 395 | E43: PTD | F43: CONSTANT | G43: 5973622 | H43: 2085340.443 | I43: 0 | J43: 3888281.557 | L43: Sch 1- Rate Base | M43: 43
B44: Power Operated Equipment | C44: 204-207 | D44: 396 | E44: TD | F44: CONSTANT | G44: 2715513 | H44: 0 | I44: 0 | J44: 2715513 | L44: Sch 1- Rate Base | M44: 44
B45: Communication Equipment | C45: 204-207 | D45: 397 | E45: PTD | F45: CONSTANT | G45: 105832047 | H45: 36945064.12 | I45: 0 | J45: 68886982.88 | L45: Sch 1- Rate Base | M45: 45
B46: Miscellaneous Equipment | C46: 204-207 | D46: 398 | E46: PTD | F46: CONSTANT | G46: 381575 | H46: 133204.575 | I46: 0 | J46: 248370.425 | L46: Sch 1- Rate Base | M46: 46
B47: Other Tangible Property | C47: 204-207 | D47: 399 | E47: DIRECT | F47: CONSTANT | G47: 0 | H47: 0 | I47: 0 | J47: 0 | L47: Sch 1- Rate Base | M47: 47
B48: Asset Retirement Costs for General Plant | C48: 204-208 | D48: 399.1 | E48: PTD | F48: CONSTANT | G48: 0 | H48: 0 | I48: 0 | J48: 0 | L48: Sch 1- Rate Base | M48: 48
A50: Total General Plant | G50: =SUM(G37:G49) -> 316657583 | H50: =SUM(H37:H49) -> 107907565.8 | I50: =SUM(I37:I49) -> 0 | J50: =SUM(J37:J49) -> 208750017.2
A52: Total Electric Plant In-Service | G52: =G19+G26+G30+G34+G50 -> 11651187515 | H52: =H19+H26+H30+H34+H50 -> 4076431189 | I52: =I19+I26+I30+I34+I50 -> 0 | J52: =J19+J26+J30+J34+J50 -> 7574756324
A53: (Total Intangible + Total Production + Total Transmission + Total Distribution + Total General)
A55: LESS:
A56: Depreciation Reserve
B57: Steam Production Plant | C57: 219 | D57: 108 | E57: =INDIRECT(ADDRESS($M57,5,,,$N$3&$L$10&$O$3&$L57)) -> PROD | F57: CONSTANT | G57: =INDIRECT(ADDRESS($M57,M$2,,,$N$3&$L$10&$O$3&$L57)) -> 953504602 | H57: 953504602 | I57: 0 | J57: 0 | L57: Sch 1- Rate Base | M57: 57
B58: Nuclear Production Plant | C58: 219 | D58: 108 | E58: PROD | F58: CONSTANT | G58: 0 | H58: 0 | I58: 0 | J58: 0 | L58: Sch 1- Rate Base | M58: 58
B59: Hydraulic Production Plant | C59: 219 | D59: 108 | E59: PROD | F59: CONSTANT | G59: 270525277 | H59: 270525277 | I59: 0 | J59: 0 | L59: Sch 1- Rate Base | M59: 59
B60: Other Production Plant | C60: 219 | D60: 108 | E60: PROD | F60: CONSTANT | G60: 1084449271 | H60: 1084449271 | I60: 0 | J60: 0 | L60: Sch 1- Rate Base | M60: 60
B61: Transmission Plant (i) | C61: 219 | D61: 108 | E61: TRANS | F61: CONSTANT | G61: 663408032 | H61: 0 | I61: 0 | J61: 663408032 | L61: Sch 1- Rate Base | M61: 61
B62: Distribution Plant | C62: 219 | D62: 108 | E62: DIST | F62: CONSTANT | G62: 2008273620 | H62: 0 | I62: 0 | J62: 2008273620 | L62: Sch 1- Rate Base | M62: 62
B63: General Plant | C63: 219 | D63: 108 | E63: GP | F63: CONSTANT | G63: 199145541 | H63: 67862927.41 | I63: 0 | J63: 131282613.6 | L63: Sch 1- Rate Base | M63: 63
B64: Amortization of Intangible Plant - Account 301 | C64: 219 | D64: 111 | E64: DIST | F64: CONSTANT | G64: 0 | H64: 0 | I64: 0 | J64: 0 | L64: Sch 1- Rate Base | M64: 64
B65: Amortization of Intangible Plant - Account 302 | C65: 219 | D65: 111 | E65: DIRECT | F65: CONSTANT | G65: 30864423.83 | H65: 19280613.83 | I65: 0 | J65: 11583810 | L65: Sch 1- Rate Base | M65: 65
B66: Amortization of Intangible Plant - Account 303 | C66: 219 | D66: 111 | E66: DIRECT | F66: CONSTANT | G66: 18084328.43 | H66: 3441408.318 | I66: 0 | J66: 14642920.11 | L66: Sch 1- Rate Base | M66: 66
B67: Mining Plant Depreciation | C67: 219 | D67: 108 | E67: PROD | F67: CONSTANT | G67: 0 | H67: 0 | I67: 0 | J67: 0 | L67: Sch 1- Rate Base | M67: 67
B68: Amortization of Plant Held for Future Use | C68: 219 | D68: 111 | E68: TRANS | F68: CONSTANT | G68: 162425 | H68: 0 | I68: 0 | J68: 162425 | L68: Sch 1- Rate Base | M68: 68
B69: Capital Lease - Common Plant | C69: 219 | D69: 108 | E69: DIRECT | F69: CONSTANT | G69: 0 | H69: 0 | I69: 0 | J69: 0 | L69: Sch 1- Rate Base | M69: 69
B70: Leasehold Improvements | C70: 200-201 | D70: 108 | E70: DIRECT | F70: CONSTANT | G70: 0 | H70: 0 | I70: 0 | J70: 0 | L70: Sch 1- Rate Base | M70: 70
B71: In-Service: Depreciation of Common Plant (a) | C71: 200-201 | D71: 108 | E71: DIRECT | F71: CONSTANT | G71: 86358710.08 | H71: 23510847.89 | I71: 0 | J71: 62847862.19 | L71: Sch 1- Rate Base | M71: 71
B72: Amortization of Other Utility Plant (a) | C72: 200-201 | D72: 108 | E72: DIRECT | F72: CONSTANT | G72: 90080742.53 | H72: 28133789.97 | I72: 0 | J72: 61946952.23 | L72: Sch 1- Rate Base | M72: 72
B73: Amortization of Acquisition Adjustments | C73: 200-201 | D73: 115 | E73: DIRECT | F73: CONSTANT | G73: 177057826 | H73: 175809295.4 | I73: 0 | J73: 1248530.26 | L73: Sch 1- Rate Base | M73: 73
A75: Depreciation and Amortization Reserve (Other) | E75: =INDIRECT(ADDRESS($M75,5,,,$N$3&$L$10&$O$3&$L75)) -> DIRECT | F75: CONSTANT | G75: =INDIRECT(ADDRESS($M75,M$2,,,$N$3&$L$10&$O$3&$L75)) -> 0 | H75: =INDIRECT(ADDRESS($M75,N$2,,,$N$3&$L$10&$O$3&$L75)) -> 0 | I75: =INDIRECT(ADDRESS($M75,O$2,,,$N$3&$L$10&$O$3&$L75)) -> 0 | J75: =INDIRECT(ADDRESS($M75,P$2,,,$N$3&$L$10&$O$3&$L75)) -> 0 | L75: Sch 1- Rate Base | M75: 75
A77: Total Depreciation and Amortization Reserve | G77: =SUM(G57:G75) -> 5581914799 | H77: =SUM(H57:H75) -> 2626518033 | I77: =SUM(I57:I75) -> 0 | J77: =SUM(J57:J75) -> 2955396765
A79: Total Net Plant | G79: =G52-G77 -> 6069272716 | H79: =H52-H77 -> 1449913156 | I79: =I52-I77 -> 0 | J79: =J52-J77 -> 4619359559
A80: (Total Electric Plant In-Service) - (Total Depreciation & Amortization)
A82: Assets and Other Debits (Comparative Balance Sheet)
A84: Cash Working Capital (f) | C84: Calculation | E84: =INDIRECT(ADDRESS($M84,5,,,$N$3&$L$10&$O$3&$L84)) -> 0 | F84: CONSTANT | G84: =INDIRECT(ADDRESS($M84,M$2,,,$N$3&$L$10&$O$3&$L84)) -> 108180025.5 | H84: =INDIRECT(ADDRESS($M84,N$2,,,$N$3&$L$10&$O$3&$L84)) -> 61843517.36 | I84: =INDIRECT(ADDRESS($M84,O$2,,,$N$3&$L$10&$O$3&$L84)) -> 0 | J84: =INDIRECT(ADDRESS($M84,P$2,,,$N$3&$L$10&$O$3&$L84)) -> 46336508.19 | L84: Sch 1- Rate Base | M84: 84
B85: Account 557 Disallowed Amounts | G85: =INDIRECT(ADDRESS($M85,M$2,,,$N$3&$L$10&$O$3&$L85)) -> 24948345 | H85: =INDIRECT(ADDRESS($M85,N$2,,,$N$3&$L$10&$O$3&$L85)) -> 24948345 | L85: Sch 1A - Cash Working Capital | M85: 30
A86: Utility Plant
B87: (Utility Plant) Held For Future Use | C87: 200-201 | D87: 105 | E87: =INDIRECT(ADDRESS($M87,5,,,$N$3&$L$10&$O$3&$L87)) -> DIST | F87: CONSTANT | G87: =INDIRECT(ADDRESS($M87,M$2,,,$N$3&$L$10&$O$3&$L87)) -> 49315001 | H87: 0 | I87: 0 | J87: 49315001 | L87: Sch 1- Rate Base | M87: 87
B88: (Utility Plant) Completed Construction - Not Classified | C88: 200-201 | D88: 106 | E88: PTD | F88: CONSTANT | G88: 0 | H88: 0 | I88: 0 | J88: 0 | L88: Sch 1- Rate Base | M88: 88
B89: Nuclear Fuel | D89: 120.1-120.6 | E89: PROD | F89: NFUEL | G89: 0 | H89: 0 | I89: 0 | J89: 0 | L89: Sch 1- Rate Base | M89: 89
B90: Construction Work in Progress (CWIP) | C90: 200-201 | D90: 107 & 120.1 | E90: DIST | F90: CONSTANT | G90: 1060266765 | H90: 0 | I90: 0 | J90: 1060266765 | L90: Sch 1- Rate Base | M90: 90
B91: Common Plant | C91: 356 & 356.1 | E91: DIRECT | F91: CONSTANT | G91: 800158907.5 | H91: 263365769.2 | I91: 0 | J91: 536793138.2 | L91: Sch 1- Rate Base | M91: 91
B92: Acquisition Adjustments (Electric) | C92: 200-201 | D92: 114 | E92: DIRECT | F92: CONSTANT | G92: 282791675 | H92: 281543144.6 | I92: 0 | J92: 1248530.26 | L92: Sch 1- Rate Base | M92: 92
B93: Total | G93: =SUM(G87:G92) -> 2192532348 | H93: =SUM(H87:H92) -> 544908913.9 | I93: =SUM(I87:I92) -> 0 | J93: =SUM(J87:J92) -> 1647623435
A95: Other Property and Investments
B96: Investment in Associated Companies | C96: 110-111 | D96: 123 | E96: =INDIRECT(ADDRESS($M96,5,,,$N$3&$L$10&$O$3&$L96)) -> DIRECT | F96: CONSTANT | G96: =INDIRECT(ADDRESS($M96,M$2,,,$N$3&$L$10&$O$3&$L96)) -> 0 | H96: 0 | I96: 0 | J96: 0 | L96: Sch 1- Rate Base | M96: 96
B97: Other Investment | C97: 110-111 | D97: 124 | E97: =INDIRECT(ADDRESS($M97,5,,,$N$3&$L$10&$O$3&$L97)) -> DIST | F97: CONSTANT | G97: 29310581.84 | H97: 0 | I97: 0 | J97: 29310581.84 | L97: Sch 1- Rate Base | M97: 97
B98: Long-Term Portion of Derivative Assets | C98: 110-111 | D98: 175 | E98: =INDIRECT(ADDRESS($M98,5,,,$N$3&$L$10&$O$3&$L98)) -> DIST | F98: CONSTANT | G98: 30098821.84 | H98: 0 | I98: 0 | J98: 30098821.84 | L98: Sch 1- Rate Base | M98: 98
B99: Long-Term Portion of Derivative Assets - Hedges | C99: 110-111 | D99: 176 | E99: =INDIRECT(ADDRESS($M99,5,,,$N$3&$L$10&$O$3&$L99)) -> DIST | F99: CONSTANT | G99: 0 | H99: 0 | I99: 0 | J99: 0 | L99: Sch 1- Rate Base | M99: 99
B100: Total | G100: =SUM(G96:G99) -> 59409403.68 | H100: =SUM(H96:H99) -> 0 | I100: =SUM(I96:I99) -> 0 | J100: =SUM(J96:J99) -> 59409403.68
A102: Current and Accrued Assets
B103: Fuel Stock | C103: 110-111 | D103: 151 | E103: =INDIRECT(ADDRESS($M103,5,,,$N$3&$L$10&$O$3&$L103)) -> PROD | F103: COAL | G103: =INDIRECT(ADDRESS($M103,M$2,,,$N$3&$L$10&$O$3&$L103)) -> 32051446.33 | H103: 32051446.33 | I103: 0 | J103: 0 | L103: Sch 1- Rate Base | M103: 103
B104: Fuel Stock Expenses Undistributed | C104: 110-111 | D104: 152 | E104: PROD | F104: CONSTANT | G104: 0 | H104: 0 | I104: 0 | J104: 0 | L104: Sch 1- Rate Base | M104: 104
B105: Plant Materials and Operating Supplies | C105: 110-111 | D105: 154 | E105: PTD | F105: INF | G105: 147763213.3 | H105: 51582876.29 | I105: 0 | J105: 96180336.98 | L105: Sch 1- Rate Base | M105: 105
B106: Merchandise (Major Only) | C106: 110-112 | D106: 155 | E106: DIST | F106: INF | G106: 0 | H106: 0 | I106: 0 | J106: 0 | L106: Sch 1- Rate Base | M106: 106
B107: Other Materials and Supplies (Major only) | C107: 110-111 | D107: 156 | E107: DIST | F107: INF | G107: 0 | H107: 0 | I107: 0 | J107: 0 | L107: Sch 1- Rate Base | M107: 107
B108: EPA Allowance Inventory | C108: 110-112 | D108: 158.1 | E108: PROD | F108: CONSTANT | G108: -93977950.77 | H108: -93977950.77 | I108: 0 | J108: 0 | L108: Sch 1- Rate Base | M108: 108
B109: EPA Allowances Withheld | C109: 110-112 | D109: 158.2 | E109: PROD | F109: CONSTANT | G109: -0.2300000042 | H109: -0.2300000042 | I109: 0 | J109: 0 | L109: Sch 1- Rate Base | M109: 109
B110: Stores Expense Undistributed | C110: 110-111 | D110: 163 | E110: PTD | F110: INF | G110: -861822.1403 | H110: -300854.7518 | I110: 0 | J110: -560967.3885 | L110: Sch 1- Rate Base | M110: 110
B111: Prepayments | C111: 110-111 | D111: 165 | E111: PTD | F111: CONSTANT | G111: 57629356.75 | H111: 20117916.46 | I111: 0 | J111: 37511440.3 | L111: Sch 1- Rate Base | M111: 111
B112: Derivative Instrument Assets | C112: 110-111 | D112: 175 | E112: DIST | F112: CONSTANT | G112: 3021644.13 | H112: 0 | I112: 0 | J112: 3021644.13 | L112: Sch 1- Rate Base | M112: 112
B113: Less: Long-Term Portion of Derivative Assets | C113: 110-112 | D113: 175 | E113: DIST | F113: CONSTANT | G113: 30098821.84 | H113: 0 | I113: 0 | J113: 30098821.84 | L113: Sch 1- Rate Base | M113: 113
B114: Derivative Instrument Assets - Hedges | C114: 110-111 | D114: 176 | E114: DIST | F114: CONSTANT | G114: 0 | H114: 0 | I114: 0 | J114: 0 | L114: Sch 1- Rate Base | M114: 114
B115: Less: Long-Term Portion of Derivative Assets - Hedges | C115: 110-112 | D115: 176 | E115: DIST | F115: CONSTANT | G115: 0 | H115: 0 | I115: 0 | J115: 0 | L115: Sch 1- Rate Base | M115: 115
B116: Total | G116: =SUM(G103:G112,G114)-G113-G115 -> 115527065.5 | H116: =SUM(H103:H112,H114)-H113-H115 -> 9473433.331 | I116: =SUM(I103:I112,I114)-I113-I115 -> 0 | J116: =SUM(J103:J112,J114)-J113-J115 -> 106053632.2
A118: Deferred Debits
B119: Unamortized Debt Expenses | C119: 110-111 | D119: 181 | E119: =INDIRECT(ADDRESS($M119,5,,,$N$3&$L$10&$O$3&$L119)) -> PTDG | F119: CONSTANT | G119: =INDIRECT(ADDRESS($M119,M$2,,,$N$3&$L$10&$O$3&$L119)) -> 15369566.28 | H119: 5377390.011 | I119: 0 | J119: 9992176.27 | L119: Sch 1- Rate Base | M119: 119
B120: Extraordinary Property Losses | C120: 110-111 | D120: 182.1 | E120: DIRECT | F120: CONSTANT | G120: 95753809.86 | H120: 0 | I120: 0 | J120: 95753809.86 | L120: Sch 1- Rate Base | M120: 120
B121: Unrecovered Plant and Regulatory Study Costs | C121: 110-111 | D121: 182.2 | E121: DIRECT | F121: CONSTANT | G121: 0 | H121: 0 | I121: 0 | J121: 0 | L121: Sch 1- Rate Base | M121: 121
B122: Other Regulatory Assets | C122: 110-111 | D122: 182.3 | E122: DIRECT | F122: CONSTANT | G122: 591927572.4 | H122: 307143997.9 | I122: 0 | J122: 284783574.5 | L122: Sch 1- Rate Base | M122: 122
B123: Prelim. Survey and Investigation Charges (Electric) | C123: 110-111 | D123: 183 | E123: DIST | F123: CONSTANT | G123: 779621.88 | H123: 0 | I123: 0 | J123: 779621.88 | L123: Sch 1- Rate Base | M123: 123
B124: Preliminary Natural Gas Survey and Investigation Charges | C124: 110-111 | D124: 183.1 | E124: DIST | F124: CONSTANT | G124: 0 | H124: 0 | I124: 0 | J124: 0 | L124: Sch 1- Rate Base | M124: 124
B125: Other Preliminary Survey and Investigation Charges | C125: 110-111 | D125: 183.2 | E125: DIST | F125: CONSTANT | G125: 0 | H125: 0 | I125: 0 | J125: 0 | L125: Sch 1- Rate Base | M125: 125
B126: Clearing Accounts | C126: 110-111 | D126: 184 | E126: DIST | F126: CONSTANT | G126: 0 | H126: 0 | I126: 0 | J126: 0 | L126: Sch 1- Rate Base | M126: 126
B127: Temporary Facilities | C127: 110-111 | D127: 185 | E127: PTDG | F127: CONSTANT | G127: 120988.1239 | H127: 42330.42864 | I127: 0 | J127: 78657.69522 | L127: Sch 1- Rate Base | M127: 127
B128: Miscellaneous Deferred Debits | C128: 110-111 | D128: 186 | E128: DIRECT | F128: CONSTANT | G128: 110048027 | H128: -94452622.5 | I128: 0 | J128: 204500649.5 | L128: Sch 1- Rate Base | M128: 128
B129: Deferred Losses from Disposition of Utility Plant | C129: 110-111 | D129: 187 | E129: DIRECT | F129: CONSTANT | G129: 11494.21 | H129: 0 | I129: 0 | J129: 11494.21 | L129: Sch 1- Rate Base | M129: 129
B130: Research, Development, and Demonstration Expenditures | C130: 110-111 | D130: 188 | E130: DIST | F130: CONSTANT | G130: 0 | H130: 0 | I130: 0 | J130: 0 | L130: Sch 1- Rate Base | M130: 130
B131: Unamortized Loss on Reacquired Debt | C131: 110-111 | D131: 189 | E131: PTDG | F131: CONSTANT | G131: 20765305.09 | H131: 7265211.137 | I131: 0 | J131: 13500093.94 | L131: Sch 1- Rate Base | M131: 131
B132: Accumulated Deferred Income Taxes | C132: 110-111 | D132: 190 | E132: DIST | F132: CONSTANT | G132: 232865758.8 | H132: 0 | I132: 0 | J132: 232865758.8 | L132: Sch 1- Rate Base | M132: 132
B133: Total | G133: =SUM(G119:G132) -> 1067642144 | H133: =SUM(H119:H132) -> 225376307 | I133: =SUM(I119:I132) -> 0 | J133: =SUM(J119:J132) -> 842265836.7
A135: Total Assets and Other Debits | G135: =+G84+G93+G100+G116+G133 -> 3543290987 | H135: =+H84+H93+H100+H116+H133 -> 841602171.5 | I135: =+I84+I93+I100+I116+I133 -> 0 | J135: =+J84+J93+J100+J116+J133 -> 2701688815
A137: Liabilities and Other Credits (Comparative Balance Sheet)
B138: CURRENT AND ACCRUED LIABILITIES
B139: Derivative Instrument Liabilities | C139: 112-113 | D139: 244 | E139: =INDIRECT(ADDRESS($M139,5,,,$N$3&$L$10&$O$3&$L139)) -> DIST | F139: CONSTANT | G139: =INDIRECT(ADDRESS($M139,M$2,,,$N$3&$L$10&$O$3&$L139)) -> 126938815.9 | H139: 0 | I139: 0 | J139: 126938815.9 | L139: Sch 1- Rate Base | M139: 139
B140: (less) Long-Term Portion of Derivative Instrument Liabilities | C140: 112-114 | D140: 244 | E140: =INDIRECT(ADDRESS($M140,5,,,$N$3&$L$10&$O$3&$L140)) -> DIST | F140: CONSTANT | G140: 19744163.19 | H140: 0 | I140: 0 | J140: 19744163.19 | L140: Sch 1- Rate Base | M140: 140
B141: Derivative Instrument Liabilities - Hedges | C141: 112-115 | D141: 245 | E141: =INDIRECT(ADDRESS($M141,5,,,$N$3&$L$10&$O$3&$L141)) -> DIST | F141: CONSTANT | G141: 0 | H141: 0 | I141: 0 | J141: 0 | L141: Sch 1- Rate Base | M141: 141
B142: (less) Long-Term Portion of Derivative Instrument Liabilities - Hedges | C142: 112-114 | D142: 245 | E142: =INDIRECT(ADDRESS($M142,5,,,$N$3&$L$10&$O$3&$L142)) -> DIST | F142: CONSTANT | G142: 0 | H142: 0 | I142: 0 | J142: 0 | L142: Sch 1- Rate Base | M142: 142
B143: Total | G143: =G139-G140+G141-G142 -> 107194652.7 | H143: =H139-H140+H141-H142 -> 0 | I143: =I139-I140+I141-I142 -> 0 | J143: =J139-J140+J141-J142 -> 107194652.7
B144: DEFERRED CREDITS
B145: Long-Term Portion of Derivative Instrument Liabilities | C145: 112-113 | D145: 244 | E145: =INDIRECT(ADDRESS($M145,5,,,$N$3&$L$10&$O$3&$L145)) -> DIST | F145: CONSTANT | G145: 0 | H145: 0 | I145: 0 | J145: 0 | L145: Sch 1- Rate Base | M145: 145
B146: Long-Term Portion of Derivative Instrument Liabilities - Hedges | C146: 112-114 | D146: 245 | E146: DIST | F146: CONSTANT | G146: 0 | H146: 0 | I146: 0 | J146: 0 | L146: Sch 1- Rate Base | M146: 146
B147: Customer Advances for Construction | C147: 112-113 | D147: 252 | E147: DIST | F147: CONSTANT | G147: =INDIRECT(ADDRESS($M147,M$2,,,$N$3&$L$10&$O$3&$L147)) -> 141549489.4 | H147: 0 | I147: 0 | J147: 141549489.4 | L147: Sch 1- Rate Base | M147: 147
B148: Other Deferred Credits | C148: 112-113 | D148: 253 | E148: DIRECT | F148: CONSTANT | G148: 240685828.2 | H148: 74029658.96 | I148: 0 | J148: 166656169.2 | L148: Sch 1- Rate Base | M148: 148
B149: Other Regulatory Liabilities | C149: 112-113 | D149: 254 | E149: DIRECT | F149: CONSTANT | G149: 529787017.7 | H149: 317891.18 | I149: 0 | J149: 529469126.5 | L149: Sch 1- Rate Base | M149: 149
B150: Accumulated Deferred Investment Tax Credits | C150: 112-113 | D150: 255 | E150: DIST | F150: CONSTANT | G150: 0 | H150: 0 | I150: 0 | J150: 0 | L150: Sch 1- Rate Base | M150: 150
B151: Deferred Gains from Disposition of Utility Plant | C151: 112-113 | D151: 256 | E151: DIRECT | F151: CONSTANT | G151: 1353224.8 | H151: 0 | I151: 0 | J151: 1353224.8 | L151: Sch 1- Rate Base | M151: 151
B152: Unamortized Gain on Reacquired Debt | C152: 112-113 | D152: 257 | E152: PTDG | F152: CONSTANT | G152: 0 | H152: 0 | I152: 0 | J152: 0 | L152: Sch 1- Rate Base | M152: 152
B153: Accumulated Deferred Income Taxes-Accel. Amort. | C153: 112-113 | D153: 281 | E153: DIST | F153: CONSTANT | G153: 0 | H153: 0 | I153: 0 | J153: 0 | L153: Sch 1- Rate Base | M153: 153
B154: Accumulated Deferred Income Taxes-Property | C154: 112-113 | D154: 282 | E154: DIST | F154: CONSTANT | G154: 763011479.1 | H154: 0 | I154: 0 | J154: 763011479.1 | L154: Sch 1- Rate Base | M154: 154
B155: Accumulated Deferred Income Taxes-Other | C155: 112-113 | D155: 283 | E155: DIST | F155: CONSTANT | G155: 226461605.1 | H155: 0 | I155: 0 | J155: 226461605.1 | L155: Sch 1- Rate Base | M155: 155
B156: Total | G156: =SUM(G147:G155) -> 1902848644 | H156: =SUM(H147:H155) -> 74347550.14 | I156: =SUM(I147:I155) -> 0 | J156: =SUM(J147:J155) -> 1828501094
A158: Total Liabilities and Other Credits | G158: =+G156+G143 -> 2010043297 | H158: =+H156+H143 -> 74347550.14 | I158: =+I156+I143 -> 0 | J158: =+J156+J143 -> 1935695747
A161: Total Rate Base | G161: =G79+G135-G158 -> 7602520406 | H161: =H79+H135-H158 -> 2217167777 | I161: =I79+I135-I158 -> 0 | J161: =J79+J135-J158 -> 5385352627
A162: (Total Net Plant + Debits - Credits)
A165: Federal Income Tax Adjusted Weighted Cost of Capital | G165: =INDIRECT(ADDRESS($M165,N$165,,,$N$3&$L$10&$O$3&$L165)) -> 0.08380379747 | H165: =G165 -> 0.08380379747 | I165: =H165 -> 0.08380379747 | J165: =I165 -> 0.08380379747 | L165: Sch 2 -Rate of Return | M165: 14 | N165: 5
A167: Federal Income Tax Adjusted Return on Rate Base | G167: =G161*G165 -> 637120080.4 | H167: =H161*H165 -> 185807079.4 | I167: =I161*I165 -> 0 | J167: =J161*J165 -> 451313000.8
A170: Schedule 3: Expenses
B171: Account Description | C171: Form 1 | E171: Functionalization | G171: Total | H171: Production | I171: Transmission
C172: Page | D172: Account | J172: Distribution/
C173: Number | D173: Numbers | E173: Method | F173: Code | J173: Other
A174: Power Production Expenses:
B175: Steam Power Generation
B176: Steam Power - Fuel | C176: 320-323 | D176: 501 | E176: =INDIRECT(ADDRESS($M176,5,,,$N$3&$L$10&$O$3&$L176)) -> PROD | F176: COAL | G176: =INDIRECT(ADDRESS($M176,M$2,,,$N$3&$L$10&$O$3&$L176)) -> 60636604 | H176: 60636604 | I176: 0 | J176: 0 | L176: Sch 3 - Expenses | M176: 16
B177: Steam Power - Operations (Excluding 501 - Fuel) | C177: 320-323 | D177: 500-509 | E177: =INDIRECT(ADDRESS($M177,5,,,$N$3&$L$10&$O$3&$L177)) -> PROD | F177: SOPS | G177: 20123737 | H177: 20123737 | I177: 0 | J177: 0 | L177: Sch 3 - Expenses | M177: 17
B178: Steam Power - Maintenance | C178: 320-323 | D178: 510-515 | E178: =INDIRECT(ADDRESS($M178,5,,,$N$3&$L$10&$O$3&$L178)) -> PROD | F178: SMN | G178: 23219450 | H178: 23219450 | I178: 0 | J178: 0 | L178: Sch 3 - Expenses | M178: 18
B179: Nuclear Power Generation | M179: 19
B180: Nuclear - Fuel | C180: 320-323 | D180: 518 | E180: =INDIRECT(ADDRESS($M180,5,,,$N$3&$L$10&$O$3&$L180)) -> PROD | F180: NFUEL | G180: =INDIRECT(ADDRESS($M180,M$2,,,$N$3&$L$10&$O$3&$L180)) -> 0 | H180: 0 | I180: 0 | J180: 0 | L180: Sch 3 - Expenses | M180: 20
B181: Nuclear - Operation ( Excluding 518 - Fuel) | C181: 320-323 | D181: 517-525 | E181: =INDIRECT(ADDRESS($M181,5,,,$N$3&$L$10&$O$3&$L181)) -> PROD | F181: NOPS | G181: 0 | H181: 0 | I181: 0 | J181: 0 | L181: Sch 3 - Expenses | M181: 21
B182: Nuclear - Maintenance | C182: 320-323 | D182: 528-532 | E182: =INDIRECT(ADDRESS($M182,5,,,$N$3&$L$10&$O$3&$L182)) -> PROD | F182: NMN | G182: 0 | H182: 0 | I182: 0 | J182: 0 | L182: Sch 3 - Expenses | M182: 22
B183: Hydraulic Power Generation | M183: 23
B184: Hydraulic - Operation | C184: 320-323 | D184: 535-540.1 | E184: =INDIRECT(ADDRESS($M184,5,,,$N$3&$L$10&$O$3&$L184)) -> PROD | F184: HOPS | G184: =INDIRECT(ADDRESS($M184,M$2,,,$N$3&$L$10&$O$3&$L184)) -> 7020837 | H184: 7020837 | I184: 0 | J184: 0 | L184: Sch 3 - Expenses | M184: 24
B185: Hydraulic - Maintenance | C185: 320-323 | D185: 541-545.1 | E185: =INDIRECT(ADDRESS($M185,5,,,$N$3&$L$10&$O$3&$L185)) -> PROD | F185: HMN | G185: 6951788 | H185: 6951788 | I185: 0 | J185: 0 | L185: Sch 3 - Expenses | M185: 25
B186: Other Power Generation | M186: 26
B187: Other Power - Fuel | C187: 320-323 | D187: 547 | E187: =INDIRECT(ADDRESS($M187,5,,,$N$3&$L$10&$O$3&$L187)) -> PROD | F187: NATGAS | G187: =INDIRECT(ADDRESS($M187,M$2,,,$N$3&$L$10&$O$3&$L187)) -> 396650165 | H187: 396650165 | I187: 0 | J187: 0 | L187: Sch 3 - Expenses | M187: 27
B188: Other Power - Operations (Excluding 547 - Fuel) | C188: 320-323 | D188: 546-550.1 | E188: =INDIRECT(ADDRESS($M188,5,,,$N$3&$L$10&$O$3&$L188)) -> PROD | F188: OOPS | G188: 33443518 | H188: 33443518 | I188: 0 | J188: 0 | L188: Sch 3 - Expenses | M188: 28
B189: Other Power - Maintenance | C189: 320-323 | D189: 551-554.1 | E189: =INDIRECT(ADDRESS($M189,5,,,$N$3&$L$10&$O$3&$L189)) -> PROD | F189: OMN | G189: 27656590 | H189: 27656590 | I189: 0 | J189: 0 | L189: Sch 3 - Expenses | M189: 29
B190: Other Power Supply Expenses | M190: 30
B191: Purchased Power (Excluding REP Reversal) | C191: 320-323 | D191: 555 | E191: =INDIRECT(ADDRESS($M191,5,,,$N$3&$L$10&$O$3&$L191)) -> PROD | F191: CONSTANT | G191: =INDIRECT(ADDRESS($M191,M$2,,,$N$3&$L$10&$O$3&$L191)) -> 1085637524 | H191: 1085637524 | I191: 0 | J191: 0 | L191: Sch 3 - Expenses | M191: 31
B192: System Control and Load Dispatching | C192: 320-323 | D192: 556 | E192: =INDIRECT(ADDRESS($M192,5,,,$N$3&$L$10&$O$3&$L192)) -> PROD | F192: CONSTANT | G192: 28612 | H192: 28612 | I192: 0 | J192: 0 | L192: Sch 3 - Expenses | M192: 32
B193: Other Expenses | C193: 320-323 | D193: 557 | E193: =INDIRECT(ADDRESS($M193,5,,,$N$3&$L$10&$O$3&$L193)) -> PROD | F193: CONSTANT | G193: 94142017 | H193: 94142017 | I193: 0 | J193: 0 | L193: Sch 3 - Expenses | M193: 33
B194: BPA REP Reversal | C194: 327 | D194: 555 | E194: =INDIRECT(ADDRESS($M194,5,,,$N$3&$L$10&$O$3&$L194)) -> PROD | F194: CONSTANT | G194: 0 | H194: 0 | I194: 0 | J194: 0 | L194: Sch 3 - Expenses | M194: 34
B195: Public Purpose Charges (h) | E195: =INDIRECT(ADDRESS($M195,5,,,$N$3&$L$10&$O$3&$L195)) -> DIRECT | F195: CONSTANT | G195: 0 | H195: 0 | I195: 0 | J195: 0 | L195: Sch 3 - Expenses | M195: 35
A196: Total Production Expense | G196: =SUM(G176:G195) -> 1755510842 | H196: =SUM(H176:H195) -> 1755510842 | I196: =SUM(I176:I195) -> 0 | J196: =SUM(J176:J195) -> 0
A198: Transmission Expenses: (i)
B199: Transmission of Electricity by Others (Wheeling) | C199: 320-323 | D199: 565 | E199: =INDIRECT(ADDRESS($M199,5,,,$N$3&$L$10&$O$3&$L199)) -> prod | F199: INF | G199: =INDIRECT(ADDRESS($M199,M$2,,,$N$3&$L$10&$O$3&$L199)) -> 162583424 | H199: 162583424 | I199: 0 | J199: 0 | L199: Sch 3 - Expenses | M199: 39
B200: Total Operations less Wheeling | C200: 320-323 | D200: 560-567.1 | E200: =INDIRECT(ADDRESS($M200,5,,,$N$3&$L$10&$O$3&$L200)) -> TRANS | F200: TOPS | G200: 14310154 | H200: 0 | I200: 0 | J200: 14310154 | L200: Sch 3 - Expenses | M200: 40
B201: Total Maintenance | C201: 320-323 | D201: 568-574 | E201: =INDIRECT(ADDRESS($M201,5,,,$N$3&$L$10&$O$3&$L201)) -> TRANS | F201: TMN | G201: 11909901 | H201: 0 | I201: 0 | J201: 11909901 | L201: Sch 3 - Expenses | M201: 41
A202: Total Transmission Expense | G202: =SUM(G199:G201) -> 188803479 | H202: =SUM(H199:H201) -> 162583424 | I202: =SUM(I199:I201) -> 0 | J202: =SUM(J199:J201) -> 26220055
A204: Distribution Expense:
B205: Total Operations | C205: 320-323 | D205: 580-589 | E205: =INDIRECT(ADDRESS($M205,5,,,$N$3&$L$10&$O$3&$L205)) -> DIST | F205: DOPS | G205: =INDIRECT(ADDRESS($M205,M$2,,,$N$3&$L$10&$O$3&$L205)) -> 44589259 | H205: 0 | I205: 0 | J205: 44589259 | L205: Sch 3 - Expenses | M205: 45
B206: Total Maintenance | C206: 320-323 | D206: 590-598 | E206: =INDIRECT(ADDRESS($M206,5,,,$N$3&$L$10&$O$3&$L206)) -> DIST | F206: DMN | G206: 64057473 | H206: 0 | I206: 0 | J206: 64057473 | L206: Sch 3 - Expenses | M206: 46
A207: Total Distribution Expense | G207: =SUM(G205:G206) -> 108646732 | H207: =SUM(H205:H206) -> 0 | I207: =SUM(I205:I206) -> 0 | J207: =SUM(J205:J206) -> 108646732
A209: Customer and Sales Expenses:
B210: Total Customer Accounts | C210: 320-323 | D210: 901-905 | E210: =INDIRECT(ADDRESS($M210,5,,,$N$3&$L$10&$O$3&$L210)) -> DIST | F210: CACNT | G210: =INDIRECT(ADDRESS($M210,M$2,,,$N$3&$L$10&$O$3&$L210)) -> 59970042 | H210: 0 | I210: 0 | J210: 59970042 | L210: Sch 3 - Expenses | M210: 50
B211: Customer Service and Information | C211: 320-323 | D211: 906-907 | E211: =INDIRECT(ADDRESS($M211,5,,,$N$3&$L$10&$O$3&$L211)) -> DIST | F211: CSERV | G211: 0 | H211: 0 | I211: 0 | J211: 0 | L211: Sch 3 - Expenses | M211: 51
B212: Customer assistance expenses (Major only) | C212: 320-323 | D212: 908 | E212: =INDIRECT(ADDRESS($M212,5,,,$N$3&$L$10&$O$3&$L212)) -> DIRECT | F212: CSERV | G212: 144569269 | H212: 97941405.33 | I212: 0 | J212: 46627864.05 | L212: Sch 3 - Expenses | M212: 52
B213: Customer Service and Information | C213: 320-323 | D213: 909-910 | E213: =INDIRECT(ADDRESS($M213,5,,,$N$3&$L$10&$O$3&$L213)) -> DIST | F213: CSALES | G213: 2499626 | H213: 0 | I213: 0 | J213: 2499626 | L213: Sch 3 - Expenses | M213: 53
B214: Total Sales Expense | C214: 320-323 | D214: 911-917 | E214: =INDIRECT(ADDRESS($M214,5,,,$N$3&$L$10&$O$3&$L214)) -> DIST | F214: CSALES | G214: 1231798 | H214: 0 | I214: 0 | J214: 1231798 | L214: Sch 3 - Expenses | M214: 54
A215: Total Customer and Sales Expenses | G215: =SUM(G210:G214) -> 208270735 | H215: =SUM(H210:H214) -> 97941405.33 | I215: =SUM(I210:I214) -> 0 | J215: =SUM(J210:J214) -> 110329330
A217: Administration and General Expense:
B218: Operation
B219: Administration and General Salaries | C219: 320-323 | D219: 920 | E219: =INDIRECT(ADDRESS($M219,5,,,$N$3&$L$10&$O$3&$L219)) -> LABOR | F219: A&G | G219: =INDIRECT(ADDRESS($M219,M$2,,,$N$3&$L$10&$O$3&$L219)) -> 78570677 | H219: 26700683.58 | I219: 0 | J219: 51869993.42 | L219: Sch 3 - Expenses | M219: 59
B220: Office Supplies & Expenses | C220: 320-323 | D220: 921 | E220: LABOR | F220: A&G | G220: 7463412 | H220: 2536292.289 | I220: 0 | J220: 4927119.711 | L220: Sch 3 - Expenses | M220: 60
B221: (Less) Administration Expenses Transferred - Credit | C221: 320-323 | D221: 922 | E221: LABOR | F221: A&G | G221: =ABS(INDIRECT(ADDRESS($M221,M$2,,,$N$3&$L$10&$O$3&$L221))) -> 32365661 | H221: 10998826.87 | I221: 0 | J221: 21366834.13 | L221: Sch 3 - Expenses | M221: 61
B222: Outside Services Employed | C222: 320-323 | D222: 923 | E222: LABOR | F222: A&G | G222: 20765085 | H222: 7056601.587 | I222: 0 | J222: 13708483.41 | L222: Sch 3 - Expenses | M222: 62
B223: Property Insurance | C223: 320-323 | D223: 924 | E223: PTDG | F223: A&G | G223: 6318020 | H223: 2210502.041 | I223: 0 | J223: 4107517.958 | L223: Sch 3 - Expenses | M223: 63
B224: Injuries and Damages | C224: 320-323 | D224: 925 | E224: Labor | F224: A&G | G224: 8919311 | H224: 3031050.639 | I224: 0 | J224: 5888260.361 | L224: Sch 3 - Expenses | M224: 64
B225: Employee Pensions & Benefits | C225: 320-323 | D225: 926 | E225: LABOR | F225: A&G | G225: 28392494 | H225: 9648624.998 | I225: 0 | J225: 18743869 | L225: Sch 3 - Expenses | M225: 65
B226: Franchise Requirements | C226: 320-323 | D226: 927 | E226: DIST | F226: A&G | G226: 0 | H226: 0 | I226: 0 | J226: 0 | L226: Sch 3 - Expenses | M226: 66
B227: Regulatory Commission Expenses | C227: 320-323 | D227: 928 | E227: DIST | F227: A&G | G227: 16043545 | H227: 0 | I227: 0 | J227: 16043545 | L227: Sch 3 - Expenses | M227: 67
B228: (Less) Duplicate Charges - Credit | C228: 320-323 | D228: 929 | E228: PTDG | F228: A&G | G228: 0 | H228: 0 | I228: 0 | J228: 0 | L228: Sch 3 - Expenses | M228: 68
B229: General Advertising Expenses | C229: 320-323 | D229: 930.1 | E229: DIST | F229: A&G | G229: 56129 | H229: 0 | I229: 0 | J229: 56129 | L229: Sch 3 - Expenses | M229: 69
B230: Miscellaneous General Expenses | C230: 320-323 | D230: 930.2 | E230: DIST | F230: A&G | G230: 9187393 | H230: 0 | I230: 0 | J230: 9187393 | L230: Sch 3 - Expenses | M230: 70
B231: Rents | C231: 320-323 | D231: 931 | E231: DIST | F231: A&G | G231: 10338554 | H231: 0 | I231: 0 | J231: 10338554 | L231: Sch 3 - Expenses | M231: 71
... 120 more rows

Sheet PF_Rates
A2: End of Year Report Period: | B2: =DATE('Base Data'!E6,12,31) -> 2023-12-31
A14: FY | B14: 2023 | C14: =B14+1 -> 2024 | D14: =C14+1 -> 2025 | E14: 2026 | F14: 2027 | G14: 2028
A18: Composite Customer Rate - $/Percentage | B18: 24273000 | C18: 26434000 | D18: 27797000 | E18: 25952441 | F18: 25952441 | G18: 25952441
A20: Non-Slice Customer Rate - $/Percentage | B20: -4168000 | C20: -4349000 | D20: -4147000 | E20: -4147095 | F20: -4147095 | G20: -4147095
A22: Slice Customer Rate - $/Percentage | B22: 0 | C22: 0 | D22: 0 | E22: 0 | F22: 0 | G22: 0
A24: Irrigation Discount - Rate | B24: 12.08 | C24: 12.08 | D24: 12.08 | E24: 12 | F24: 12 | G24: 12
A26: Total Refund Amount
A31: Load Shaping Rates - $/MWh
A33: HLH | B33: =B14 -> 2023 | C33: 2024 | D33: 2025 | E33: =E14 -> 2026 | F33: 2027 | G33: =G14 -> 2028
A34: Oct | B34: 29.92 | C34: 47.71 | D34: 47.71 | E34: 50.63 | F34: 50.63 | G34: 50.63
A35: Nov | B35: 31.71 | C35: 40.3 | D35: 40.3 | E35: 39.53 | F35: 39.53 | G35: 39.53
A36: Dec | B36: 38.76 | C36: 61.63 | D36: 61.63 | E36: 47.63 | F36: 47.63 | G36: 47.63
A37: Jan | B37: 34.29 | C37: 49.88 | D37: 49.88 | E37: 43.56 | F37: 43.56 | G37: 43.56
A38: Feb | B38: 34.79 | C38: 50.32 | D38: 50.32 | E38: 45.43 | F38: 45.43 | G38: 45.43
A39: Mar | B39: 27.57 | C39: 35.07 | D39: 35.07 | E39: 29.19 | F39: 29.19 | G39: 29.19
A40: Apr | B40: 20.71 | C40: 20.42 | D40: 20.42 | E40: 22.33 | F40: 22.33 | G40: 22.33
A41: May | B41: 16.28 | C41: 18.21 | D41: 18.21 | E41: 8.6 | F41: 8.6 | G41: 8.6
A42: Jun | B42: 17.15 | C42: 17.87 | D42: 17.87 | E42: 15.1 | F42: 15.1 | G42: 15.1
A43: Jul | B43: 36.83 | C43: 55.6 | D43: 55.6 | E43: 50.98 | F43: 50.98 | G43: 50.98
A44: Aug | B44: 35.87 | C44: 71.52 | D44: 71.52 | E44: 53.8 | F44: 53.8 | G44: 53.8
A45: Sep | B45: 28.15 | C45: 58.7 | D45: 58.7 | E45: 60.51 | F45: 60.51 | G45: 60.51
A48: LLH
A49: Oct | B49: 28.27 | C49: 32.91 | D49: 32.91 | E49: 48.85 | F49: 48.85 | G49: 48.85
A50: Nov | B50: 29.14 | C50: 31.39 | D50: 31.39 | E50: 41.64 | F50: 41.64 | G50: 41.64
A51: Dec | B51: 32.05 | C51: 52.69 | D51: 52.69 | E51: 48.79 | F51: 48.79 | G51: 48.79
A52: Jan | B52: 25.85 | C52: 36.73 | D52: 36.73 | E52: 43.8 | F52: 43.8 | G52: 43.8
A53: Feb | B53: 28.29 | C53: 42.01 | D53: 42.01 | E53: 49.18 | F53: 49.18 | G53: 49.18
A54: Mar | B54: 28.44 | C54: 35.84 | D54: 35.84 | E54: 34.54 | F54: 34.54 | G54: 34.54
A55: Apr | B55: 25.66 | C55: 21.67 | D55: 21.67 | E55: 27.09 | F55: 27.09 | G55: 27.09
A56: May | B56: 16.3 | C56: 16.34 | D56: 16.34 | E56: 12.73 | F56: 12.73 | G56: 12.73
A57: Jun | B57: 10.62 | C57: 10.33 | D57: 10.33 | E57: 16.08 | F57: 16.08 | G57: 16.08
A58: Jul | B58: 21.36 | C58: 36.92 | D58: 36.92 | E58: 48.06 | F58: 48.06 | G58: 48.06
A59: Aug | B59: 26.85 | C59: 48.93 | D59: 48.93 | E59: 50.32 | F59: 50.32 | G59: 50.32
A60: Sep | B60: 28.95 | C60: 44.18 | D60: 44.18 | E60: 59.06 | F60: 59.06 | G60: 59.06
A64: Demand Rate - $/KW-mo
A66: Oct | B66: 9.87 | C66: 10.37 | D66: 10.37 | E66: 13.81 | F66: 13.81 | G66: 13.81
A67: Nov | B67: 10.46 | C67: 8.75 | D67: 8.75 | E67: 10.78 | F67: 10.78 | G67: 10.78
A68: Dec | B68: 12.78 | C68: 13.39 | D68: 13.39 | E68: 12.99 | F68: 12.99 | G68: 12.99
A69: Jan | B69: 11.31 | C69: 10.84 | D69: 10.84 | E69: 11.88 | F69: 11.88 | G69: 11.88
A70: Feb | B70: 11.47 | C70: 10.93 | D70: 10.93 | E70: 12.39 | F70: 12.39 | G70: 12.39
A71: Mar | B71: 9.09 | C71: 7.62 | D71: 7.62 | E71: 7.97 | F71: 7.97 | G71: 7.97
A72: Apr | B72: 6.83 | C72: 4.43 | D72: 4.43 | E72: 6.09 | F72: 6.09 | G72: 6.09
A73: May | B73: 5.36 | C73: 3.95 | D73: 3.95 | E73: 2.35 | F73: 2.35 | G73: 2.35
A74: Jun | B74: 5.65 | C74: 3.88 | D74: 3.88 | E74: 4.12 | F74: 4.12 | G74: 4.12
A75: Jul | B75: 12.14 | C75: 12.08 | D75: 12.08 | E75: 13.91 | F75: 13.91 | G75: 13.91
A76: Aug | B76: 11.83 | C76: 15.54 | D76: 15.54 | E76: 14.67 | F76: 14.67 | G76: 14.67
A77: Sep | B77: 9.29 | C77: 12.75 | D77: 12.75 | E77: 16.51 | F77: 16.51 | G77: 16.51

Sheet Nat_Gas_Mkt_Prices (hidden)
A4: Natural Gas and Market Price Forecast | B4: 2024 | C4: =RIGHT(B4,4)+1 -> 2025 | D4: =RIGHT(C4,4)+1 -> 2026 | E4: 2027 | F4: 2028 | G4: 2029 | H4: 2030 | I4: 2031
A6: Gas Nominal $/MMBtu--CY 2021 - CY 2025 | B6: 6.838053955 | C6: 2.286068665 | D6: 3.144287732 | E6: 5.130150325 | F6: 4.18914285 | G6: 3.968868746 | H6: 4.782934624 | I6: 4.310971857
A7: Nat Gas Escalator | B7: 0 | C7: =C6/B6-1 -> -0.665684319 | D7: 0.3754126375 | E7: 0.6315778842 | F7: -0.1834268814 | G7: -0.05258214195 | H7: =H6/G6-1 -> 0.2051128244 | I7: =I6/H6-1 -> -0.09867639935
A8: Market Price Energy--CY 2021, FY 2022 - FY 2025 | B8: 93.607 | C8: 58.239 | D8: 39.801 | E8: 40.947 | F8: 49.809 | G8: 55.799 | H8: 66.928 | I8: 71.259

Sheet Tiered Rates
A1: ='Base Data'!$N$3&'Base Data'!$L$10&'Base Data'!$O$3 & "Tiered Rates" -> [PSE Appendix 1 Redacted.xlsx]Tiered Rates
A2: End of Year Report Period: | B2: =DATE('Base Data'!E6,12,31) -> 2023-12-31
A4: FY | B4: =YEAR($B$2) -> 2023 | C4: =B4+1 -> 2024 | D4: =C4+1 -> 2025 | E4: 2026 | F4: 2027 | G4: 2028
A6: TIER 1 Load (MWh) | B6: =INDIRECT(ADDRESS(ROW(),COLUMN(),,,$A$1))*8760 -> 0 | C6: =INDIRECT(ADDRESS(ROW(),COLUMN(),,,$A$1))*8760 -> 0 | D6: 0 | E6: =INDIRECT(ADDRESS(ROW(),COLUMN(),,,$A$1))*8784 -> 0 | F6: 0 | G6: 0
A7: Slice Surplus (MWh) | B7: 0 | C7: =INDIRECT(ADDRESS(ROW(),COLUMN(),,,$A$1))*8760 -> 0 | D7: 0 | E7: =INDIRECT(ADDRESS(ROW(),COLUMN(),,,$A$1))*8784 -> 0 | F7: 0 | G7: 0
A8: Existing Resources (MWh) | B8: 0 | C8: =INDIRECT(ADDRESS(ROW(),COLUMN(),,,$A$1))*8760 -> 0 | D8: 0 | E8: =INDIRECT(ADDRESS(ROW(),COLUMN(),,,$A$1))*8784 -> 0 | F8: 0 | G8: 0
A10: Above-RHWM Load (MWh) | B10: =INDIRECT(ADDRESS(ROW(),COLUMN(),,,$A$1))*8760 -> 0 | C10: =INDIRECT(ADDRESS(ROW(),COLUMN(),,,$A$1))*8760 -> 0 | D10: =INDIRECT(ADDRESS(ROW(),COLUMN(),,,$A$1))*8760 -> 0 | E10: =INDIRECT(ADDRESS(ROW(),COLUMN(),,,$A$1))*8784 -> 0 | F10: =INDIRECT(ADDRESS(ROW(),COLUMN(),,,$A$1))*8760 -> 0 | G10: =INDIRECT(ADDRESS(ROW(),COLUMN(),,,$A$1))*8760 -> 0
A12: New Large Single Load (MWh) | B12: =INDIRECT(ADDRESS(ROW(),COLUMN(),,,$A$1))*8760 -> 0 | C12: =INDIRECT(ADDRESS(ROW(),COLUMN(),,,$A$1))*8760 -> 0 | D12: =INDIRECT(ADDRESS(ROW(),COLUMN(),,,$A$1))*8760 -> 0 | E12: =INDIRECT(ADDRESS(ROW(),COLUMN(),,,$A$1))*8784 -> 0 | F12: =INDIRECT(ADDRESS(ROW(),COLUMN(),,,$A$1))*8760 -> 0 | G12: =INDIRECT(ADDRESS(ROW(),COLUMN(),,,$A$1))*8760 -> 0
A14: Total Retail Load (MWh) | B14: =INDIRECT(ADDRESS(ROW(),COLUMN(),,,$A$1))*8760 -> 0 | C14: =INDIRECT(ADDRESS(ROW(),COLUMN(),,,$A$1))*8760 -> 0 | D14: =INDIRECT(ADDRESS(ROW(),COLUMN(),,,$A$1))*8760 -> 0 | E14: =INDIRECT(ADDRESS(ROW(),COLUMN(),,,$A$1))*8784 -> 0 | F14: =INDIRECT(ADDRESS(ROW(),COLUMN(),,,$A$1))*8760 -> 0 | G14: =INDIRECT(ADDRESS(ROW(),COLUMN(),,,$A$1))*8760 -> 0 | I14: FY | J14: =B4 -> 2023 | K14: 2024 | L14: 2025 | M14: 2026 | N14: 2027 | O14: 2028 | Q14: FY | R14: =B4 -> 2023 | S14: 2024 | T14: 2025 | U14: 2026 | V14: 2027 | W14: 2028
A16: Low Density Discount - Percentage | B16: =INDIRECT(ADDRESS(ROW(),COLUMN(),,,$A$1)) -> 0 | C16: 0 | D16: 0 | E16: 0 | F16: 0 | G16: 0 | I16: Low Density Discount - Percentage | J16: =B16 -> 0 | Q16: Low Density Discount - Percentage | R16: =B16 -> 0
A18: TOCA - Percentage | B18: =INDIRECT(ADDRESS(ROW(),COLUMN(),,,$A$1)) -> 0 | C18: 0 | D18: 0 | E18: 0 | F18: 0 | G18: 0 | I18: Composite Customer Rate - $/Percentage | J18: =PF_Rates!B18 -> 24273000 | K18: =PF_Rates!C18 -> 26434000 | L18: =PF_Rates!D18 -> 27797000 | M18: =PF_Rates!E18 -> 25952441 | N18: =PF_Rates!F18 -> 25952441 | O18: =PF_Rates!G18 -> 25952441 | Q18: Composite Customer Charge | R18: =B18*J18*100*(1-$R$16) -> 0 | S18: =C18*K18*100*(1-$R$16) -> 0 | T18: 0 | U18: =E18*M18*100*(1-$R$16) -> 0 | V18: 0 | W18: 0
A20: Non-Slice TOCA - Percentage | B20: =INDIRECT(ADDRESS(ROW(),COLUMN(),,,$A$1)) -> 0 | C20: 0 | D20: 0 | E20: 0 | F20: 0 | G20: 0 | I20: Non-Slice Customer Rate - $/Percentage | J20: =PF_Rates!B20 -> -4168000 | K20: =PF_Rates!C20 -> -4349000 | L20: =PF_Rates!D20 -> -4147000 | M20: =PF_Rates!E20 -> -4147095 | N20: =PF_Rates!F20 -> -4147095 | O20: =PF_Rates!G20 -> -4147095 | Q20: Non-Slice Customer Charge | R20: =B20*J20*100*(1-$R$16) -> 0 | S20: =C20*K20*100*(1-$R$16) -> 0 | T20: 0 | U20: =E20*M20*100*(1-$R$16) -> 0 | V20: 0 | W20: 0
A22: Slice Percentage | B22: =INDIRECT(ADDRESS(ROW(),COLUMN(),,,$A$1)) -> 0 | C22: 0 | D22: 0 | E22: 0 | F22: 0 | G22: 0 | I22: Slice Customer Rate - $/Percentage | J22: =PF_Rates!B22 -> 0 | K22: =PF_Rates!C22 -> 0 | L22: =PF_Rates!D22 -> 0 | M22: =PF_Rates!E22 -> 0 | N22: =PF_Rates!F22 -> 0 | O22: =PF_Rates!G22 -> 0 | Q22: Slice Customer Charge | R22: =B22*J22*100*(1-$R$16) -> 0 | S22: 0 | T22: 0 | U22: 0 | V22: 0 | W22: 0
A24: Eligible Irrigation Load | B24: =INDIRECT(ADDRESS(ROW(),COLUMN(),,,$A$1)) -> 0 | C24: 0 | D24: 0 | E24: 0 | F24: 0 | G24: 0 | I24: Irrigation Discount - Rate | J24: =PF_Rates!B24 -> 12.08 | K24: =PF_Rates!C24 -> 12.08 | L24: =PF_Rates!D24 -> 12.08 | M24: 11.76 | N24: 11.76 | O24: 11.76 | Q24: Irrigation Discount Credit | R24: =B24*J24 -> 0 | S24: 0 | T24: 0 | U24: 0 | V24: 0 | W24: 0
A26: PF-02 Refund | B26: =INDIRECT(ADDRESS(ROW(),COLUMN(),,,$A$1)) -> 0 | C26: 0 | D26: 0 | E26: 0 | F26: 0 | G26: 0 | I26: PF-02 Refund | J26: =B26 -> 0 | K26: 0 | L26: 0 | M26: 0 | N26: 0 | O26: 0 | Q26: Refund Amount | R26: =J28 -> 0 | S26: 0 | T26: 0 | U26: 0 | V26: 0 | W26: 0
A27: TOCA Refund | B27: 0 | C27: 0 | D27: 0 | E27: 0 | F27: 0 | G27: 0 | I27: TOCA Refund | J27: =B27 -> 0 | K27: =C27 -> 0 | L27: 0 | M27: 0 | N27: 0 | O27: 0
A28: Total Refund | B28: 0 | C28: 0 | D28: 0 | E28: 0 | F28: 0 | G28: 0 | I28: Total Refund | J28: 0 | K28: 0 | L28: 0 | M28: 0 | N28: 0 | O28: 0 | Q28: TOTAL | R28: =R18+R20+R22-R24-R26 -> 0 | S28: 0 | T28: 0 | U28: 0 | V28: 0 | W28: =W18+W20+W22-W24-W26 -> 0
A29: Tier 1 Percentage | B29: =INDIRECT(ADDRESS(ROW(),COLUMN(),,,$A$1)) ->  | C29: =INDIRECT(ADDRESS(ROW(),COLUMN(),,,$A$1)) -> 
A31: Load Shaping Bill Det. | I31: Load Shaping Rates - $/MWh | Q31: Load Shaping Charge
A33: HLH | I33: HLH | J33: =J14 -> 2023 | K33: 2024 | L33: 2025 | M33: 2026 | N33: 2027 | O33: =O14 -> 2028 | Q33: HLH
A34: Oct | B34: =INDIRECT(ADDRESS(ROW(),COLUMN(),,,$A$1)) -> 0 | C34: =INDIRECT(ADDRESS(ROW(),COLUMN(),,,$A$1)) -> 0 | D34: 0 | E34: 0 | F34: 0 | G34: 0 | I34: Oct | J34: =PF_Rates!B34 -> 29.92 | K34: =PF_Rates!C34 -> 47.71 | L34: =PF_Rates!D34 -> 47.71 | M34: =PF_Rates!E34 -> 50.63 | N34: =PF_Rates!F34 -> 50.63 | O34: =PF_Rates!G34 -> 50.63 | Q34: Oct | R34: =B34*J34 -> 0 | S34: =C34*K34 -> 0 | T34: =D34*L34 -> 0 | U34: =E34*M34 -> 0 | V34: =F34*N34 -> 0 | W34: =G34*O34 -> 0
A35: Nov | B35: =INDIRECT(ADDRESS(ROW(),COLUMN(),,,$A$1)) -> 0 | C35: 0 | D35: 0 | E35: 0 | F35: 0 | G35: 0 | I35: Nov | J35: =PF_Rates!B35 -> 31.71 | K35: =PF_Rates!C35 -> 40.3 | L35: =PF_Rates!D35 -> 40.3 | M35: =PF_Rates!E35 -> 39.53 | N35: =PF_Rates!F35 -> 39.53 | O35: =PF_Rates!G35 -> 39.53 | Q35: Nov | R35: 0 | S35: 0 | T35: 0 | U35: 0 | V35: 0 | W35: 0
A36: Dec | B36: 0 | C36: 0 | D36: 0 | E36: 0 | F36: 0 | G36: 0 | I36: Dec | J36: =PF_Rates!B36 -> 38.76 | K36: =PF_Rates!C36 -> 61.63 | L36: =PF_Rates!D36 -> 61.63 | M36: =PF_Rates!E36 -> 47.63 | N36: =PF_Rates!F36 -> 47.63 | O36: =PF_Rates!G36 -> 47.63 | Q36: Dec | R36: 0 | S36: 0 | T36: 0 | U36: 0 | V36: 0 | W36: 0
A37: Jan | B37: 0 | C37: 0 | D37: 0 | E37: 0 | F37: 0 | G37: 0 | I37: Jan | J37: =PF_Rates!B37 -> 34.29 | K37: =PF_Rates!C37 -> 49.88 | L37: =PF_Rates!D37 -> 49.88 | M37: =PF_Rates!E37 -> 43.56 | N37: =PF_Rates!F37 -> 43.56 | O37: =PF_Rates!G37 -> 43.56 | Q37: Jan | R37: 0 | S37: 0 | T37: 0 | U37: 0 | V37: 0 | W37: 0
A38: Feb | B38: 0 | C38: 0 | D38: 0 | E38: 0 | F38: 0 | G38: 0 | I38: Feb | J38: =PF_Rates!B38 -> 34.79 | K38: =PF_Rates!C38 -> 50.32 | L38: =PF_Rates!D38 -> 50.32 | M38: =PF_Rates!E38 -> 45.43 | N38: =PF_Rates!F38 -> 45.43 | O38: =PF_Rates!G38 -> 45.43 | Q38: Feb | R38: 0 | S38: 0 | T38: 0 | U38: 0 | V38: 0 | W38: 0
A39: Mar | B39: 0 | C39: 0 | D39: 0 | E39: 0 | F39: 0 | G39: 0 | I39: Mar | J39: =PF_Rates!B39 -> 27.57 | K39: =PF_Rates!C39 -> 35.07 | L39: =PF_Rates!D39 -> 35.07 | M39: =PF_Rates!E39 -> 29.19 | N39: =PF_Rates!F39 -> 29.19 | O39: =PF_Rates!G39 -> 29.19 | Q39: Mar | R39: 0 | S39: 0 | T39: 0 | U39: 0 | V39: 0 | W39: 0
A40: Apr | B40: 0 | C40: 0 | D40: 0 | E40: =INDIRECT(ADDRESS(ROW(),COLUMN(),,,$A$1)) -> 0 | F40: 0 | G40: 0 | I40: Apr | J40: =PF_Rates!B40 -> 20.71 | K40: =PF_Rates!C40 -> 20.42 | L40: =PF_Rates!D40 -> 20.42 | M40: =PF_Rates!E40 -> 22.33 | N40: =PF_Rates!F40 -> 22.33 | O40: =PF_Rates!G40 -> 22.33 | Q40: Apr | R40: 0 | S40: 0 | T40: 0 | U40: 0 | V40: 0 | W40: 0
A41: May | B41: 0 | C41: 0 | D41: 0 | E41: 0 | F41: 0 | G41: 0 | I41: May | J41: =PF_Rates!B41 -> 16.28 | K41: =PF_Rates!C41 -> 18.21 | L41: =PF_Rates!D41 -> 18.21 | M41: =PF_Rates!E41 -> 8.6 | N41: =PF_Rates!F41 -> 8.6 | O41: =PF_Rates!G41 -> 8.6 | Q41: May | R41: 0 | S41: 0 | T41: 0 | U41: 0 | V41: 0 | W41: 0
A42: Jun | B42: 0 | C42: 0 | D42: 0 | E42: 0 | F42: 0 | G42: 0 | I42: Jun | J42: =PF_Rates!B42 -> 17.15 | K42: =PF_Rates!C42 -> 17.87 | L42: =PF_Rates!D42 -> 17.87 | M42: =PF_Rates!E42 -> 15.1 | N42: =PF_Rates!F42 -> 15.1 | O42: =PF_Rates!G42 -> 15.1 | Q42: Jun | R42: 0 | S42: 0 | T42: 0 | U42: 0 | V42: 0 | W42: 0
A43: Jul | B43: 0 | C43: 0 | D43: 0 | E43: 0 | F43: 0 | G43: 0 | I43: Jul | J43: =PF_Rates!B43 -> 36.83 | K43: =PF_Rates!C43 -> 55.6 | L43: =PF_Rates!D43 -> 55.6 | M43: =PF_Rates!E43 -> 50.98 | N43: =PF_Rates!F43 -> 50.98 | O43: =PF_Rates!G43 -> 50.98 | Q43: Jul | R43: 0 | S43: 0 | T43: 0 | U43: 0 | V43: 0 | W43: 0
A44: Aug | B44: 0 | C44: 0 | D44: 0 | E44: 0 | F44: 0 | G44: 0 | I44: Aug | J44: =PF_Rates!B44 -> 35.87 | K44: =PF_Rates!C44 -> 71.52 | L44: =PF_Rates!D44 -> 71.52 | M44: =PF_Rates!E44 -> 53.8 | N44: =PF_Rates!F44 -> 53.8 | O44: =PF_Rates!G44 -> 53.8 | Q44: Aug | R44: 0 | S44: 0 | T44: 0 | U44: 0 | V44: 0 | W44: 0
A45: Sep | B45: 0 | C45: 0 | D45: 0 | E45: 0 | F45: 0 | G45: 0 | I45: Sep | J45: =PF_Rates!B45 -> 28.15 | K45: =PF_Rates!C45 -> 58.7 | L45: =PF_Rates!D45 -> 58.7 | M45: =PF_Rates!E45 -> 60.51 | N45: =PF_Rates!F45 -> 60.51 | O45: =PF_Rates!G45 -> 60.51 | Q45: Sep | R45: 0 | S45: 0 | T45: 0 | U45: 0 | V45: 0 | W45: 0
Q46: Annual Total | R46: =SUM(R34:R45) -> 0 | S46: =SUM(S34:S45) -> 0 | T46: 0 | U46: 0 | V46: 0 | W46: =SUM(W34:W45) -> 0
A48: LLH | I48: LLH | J48: =J14 -> 2023 | K48: =K14 -> 2024 | M48: 2026 | Q48: LLH
A49: Oct | B49: =INDIRECT(ADDRESS(ROW(),COLUMN(),,,$A$1)) -> 0 | C49: =INDIRECT(ADDRESS(ROW(),COLUMN(),,,$A$1)) -> 0 | D49: 0 | E49: 0 | F49: 0 | G49: 0 | I49: Oct | J49: =PF_Rates!B49 -> 28.27 | K49: =PF_Rates!C49 -> 32.91 | L49: =PF_Rates!D49 -> 32.91 | M49: =PF_Rates!E49 -> 48.85 | N49: =PF_Rates!F49 -> 48.85 | O49: =PF_Rates!G49 -> 48.85 | Q49: Oct | R49: =B49*J49 -> 0 | S49: =C49*K49 -> 0 | T49: =D49*L49 -> 0 | U49: =E49*M49 -> 0 | V49: =F49*N49 -> 0 | W49: =G49*O49 -> 0
A50: Nov | B50: =INDIRECT(ADDRESS(ROW(),COLUMN(),,,$A$1)) -> 0 | C50: 0 | D50: 0 | E50: 0 | F50: 0 | G50: 0 | I50: Nov | J50: =PF_Rates!B50 -> 29.14 | K50: =PF_Rates!C50 -> 31.39 | L50: =PF_Rates!D50 -> 31.39 | M50: =PF_Rates!E50 -> 41.64 | N50: =PF_Rates!F50 -> 41.64 | O50: =PF_Rates!G50 -> 41.64 | Q50: Nov | R50: 0 | S50: 0 | T50: 0 | U50: 0 | V50: 0 | W50: 0
A51: Dec | B51: 0 | C51: 0 | D51: 0 | E51: 0 | F51: 0 | G51: 0 | I51: Dec | J51: =PF_Rates!B51 -> 32.05 | K51: =PF_Rates!C51 -> 52.69 | L51: =PF_Rates!D51 -> 52.69 | M51: =PF_Rates!E51 -> 48.79 | N51: =PF_Rates!F51 -> 48.79 | O51: =PF_Rates!G51 -> 48.79 | Q51: Dec | R51: 0 | S51: 0 | T51: 0 | U51: 0 | V51: 0 | W51: 0
A52: Jan | B52: 0 | C52: 0 | D52: 0 | E52: 0 | F52: 0 | G52: 0 | I52: Jan | J52: =PF_Rates!B52 -> 25.85 | K52: =PF_Rates!C52 -> 36.73 | L52: =PF_Rates!D52 -> 36.73 | M52: =PF_Rates!E52 -> 43.8 | N52: =PF_Rates!F52 -> 43.8 | O52: =PF_Rates!G52 -> 43.8 | Q52: Jan | R52: 0 | S52: 0 | T52: 0 | U52: 0 | V52: 0 | W52: 0
A53: Feb | B53: 0 | C53: 0 | D53: 0 | E53: 0 | F53: 0 | G53: 0 | I53: Feb | J53: =PF_Rates!B53 -> 28.29 | K53: =PF_Rates!C53 -> 42.01 | L53: =PF_Rates!D53 -> 42.01 | M53: =PF_Rates!E53 -> 49.18 | N53: =PF_Rates!F53 -> 49.18 | O53: =PF_Rates!G53 -> 49.18 | Q53: Feb | R53: 0 | S53: 0 | T53: 0 | U53: 0 | V53: 0 | W53: 0
A54: Mar | B54: 0 | C54: 0 | D54: 0 | E54: 0 | F54: 0 | G54: 0 | I54: Mar | J54: =PF_Rates!B54 -> 28.44 | K54: =PF_Rates!C54 -> 35.84 | L54: =PF_Rates!D54 -> 35.84 | M54: =PF_Rates!E54 -> 34.54 | N54: =PF_Rates!F54 -> 34.54 | O54: =PF_Rates!G54 -> 34.54 | Q54: Mar | R54: 0 | S54: 0 | T54: 0 | U54: 0 | V54: 0 | W54: 0
A55: Apr | B55: 0 | C55: 0 | D55: 0 | E55: 0 | F55: 0 | G55: 0 | I55: Apr | J55: =PF_Rates!B55 -> 25.66 | K55: =PF_Rates!C55 -> 21.67 | L55: =PF_Rates!D55 -> 21.67 | M55: =PF_Rates!E55 -> 27.09 | N55: =PF_Rates!F55 -> 27.09 | O55: =PF_Rates!G55 -> 27.09 | Q55: Apr | R55: 0 | S55: 0 | T55: 0 | U55: 0 | V55: 0 | W55: 0
A56: May | B56: 0 | C56: 0 | D56: 0 | E56: 0 | F56: 0 | G56: 0 | I56: May | J56: =PF_Rates!B56 -> 16.3 | K56: =PF_Rates!C56 -> 16.34 | L56: =PF_Rates!D56 -> 16.34 | M56: =PF_Rates!E56 -> 12.73 | N56: =PF_Rates!F56 -> 12.73 | O56: =PF_Rates!G56 -> 12.73 | Q56: May | R56: 0 | S56: 0 | T56: 0 | U56: 0 | V56: 0 | W56: 0
A57: Jun | B57: 0 | C57: 0 | D57: 0 | E57: 0 | F57: 0 | G57: 0 | I57: Jun | J57: =PF_Rates!B57 -> 10.62 | K57: =PF_Rates!C57 -> 10.33 | L57: =PF_Rates!D57 -> 10.33 | M57: =PF_Rates!E57 -> 16.08 | N57: =PF_Rates!F57 -> 16.08 | O57: =PF_Rates!G57 -> 16.08 | Q57: Jun | R57: 0 | S57: 0 | T57: 0 | U57: 0 | V57: 0 | W57: 0
A58: Jul | B58: 0 | C58: 0 | D58: 0 | E58: 0 | F58: 0 | G58: 0 | I58: Jul | J58: =PF_Rates!B58 -> 21.36 | K58: =PF_Rates!C58 -> 36.92 | L58: =PF_Rates!D58 -> 36.92 | M58: =PF_Rates!E58 -> 48.06 | N58: =PF_Rates!F58 -> 48.06 | O58: =PF_Rates!G58 -> 48.06 | Q58: Jul | R58: 0 | S58: 0 | T58: 0 | U58: 0 | V58: 0 | W58: 0
A59: Aug | B59: 0 | C59: 0 | D59: 0 | E59: 0 | F59: 0 | G59: 0 | I59: Aug | J59: =PF_Rates!B59 -> 26.85 | K59: =PF_Rates!C59 -> 48.93 | L59: =PF_Rates!D59 -> 48.93 | M59: =PF_Rates!E59 -> 50.32 | N59: =PF_Rates!F59 -> 50.32 | O59: =PF_Rates!G59 -> 50.32 | Q59: Aug | R59: 0 | S59: 0 | T59: 0 | U59: 0 | V59: 0 | W59: 0
A60: Sep | B60: 0 | C60: 0 | D60: 0 | E60: 0 | F60: 0 | G60: 0 | I60: Sep | J60: =PF_Rates!B60 -> 28.95 | K60: =PF_Rates!C60 -> 44.18 | L60: =PF_Rates!D60 -> 44.18 | M60: =PF_Rates!E60 -> 59.06 | N60: =PF_Rates!F60 -> 59.06 | O60: =PF_Rates!G60 -> 59.06 | Q60: Sep | R60: 0 | S60: 0 | T60: 0 | U60: 0 | V60: 0 | W60: 0
Q61: Annual Total | R61: =SUM(R49:R60) -> 0 | S61: =SUM(S49:S60) -> 0 | T61: 0 | U61: 0 | V61: 0 | W61: =SUM(W49:W60) -> 0
A64: Demand Bill Det. | I64: Demand Rate - $/KW-mo | Q64: Demand Charge
A66: Oct | B66: =INDIRECT(ADDRESS(ROW(),COLUMN(),,,$A$1)) -> 0 | C66: =INDIRECT(ADDRESS(ROW(),COLUMN(),,,$A$1)) -> 0 | D66: 0 | E66: 0 | F66: 0 | G66: 0 | I66: Oct | J66: =PF_Rates!B66 -> 9.87 | K66: =PF_Rates!C66 -> 10.37 | L66: =PF_Rates!D66 -> 10.37 | M66: =PF_Rates!E66 -> 13.81 | N66: =PF_Rates!F66 -> 13.81 | O66: =PF_Rates!G66 -> 13.81 | Q66: Oct | R66: =B66*J66 -> 0 | S66: =C66*K66 -> 0 | T66: =D66*L66 -> 0 | U66: =E66*M66 -> 0 | V66: =F66*N66 -> 0 | W66: =G66*O66 -> 0
A67: Nov | B67: =INDIRECT(ADDRESS(ROW(),COLUMN(),,,$A$1)) -> 0 | C67: 0 | D67: 0 | E67: 0 | F67: 0 | G67: 0 | I67: Nov | J67: =PF_Rates!B67 -> 10.46 | K67: =PF_Rates!C67 -> 8.75 | L67: =PF_Rates!D67 -> 8.75 | M67: =PF_Rates!E67 -> 10.78 | N67: =PF_Rates!F67 -> 10.78 | O67: =PF_Rates!G67 -> 10.78 | Q67: Nov | R67: 0 | S67: 0 | T67: 0 | U67: 0 | V67: =F67*N67 -> 0 | W67: =G67*O67 -> 0
A68: Dec | B68: 0 | C68: 0 | D68: 0 | E68: 0 | F68: 0 | G68: 0 | I68: Dec | J68: =PF_Rates!B68 -> 12.78 | K68: =PF_Rates!C68 -> 13.39 | L68: =PF_Rates!D68 -> 13.39 | M68: =PF_Rates!E68 -> 12.99 | N68: =PF_Rates!F68 -> 12.99 | O68: =PF_Rates!G68 -> 12.99 | Q68: Dec | R68: 0 | S68: 0 | T68: 0 | U68: 0 | V68: 0 | W68: 0
A69: Jan | B69: 0 | C69: 0 | D69: 0 | E69: 0 | F69: 0 | G69: 0 | I69: Jan | J69: =PF_Rates!B69 -> 11.31 | K69: =PF_Rates!C69 -> 10.84 | L69: =PF_Rates!D69 -> 10.84 | M69: =PF_Rates!E69 -> 11.88 | N69: =PF_Rates!F69 -> 11.88 | O69: =PF_Rates!G69 -> 11.88 | Q69: Jan | R69: 0 | S69: 0 | T69: 0 | U69: 0 | V69: 0 | W69: 0
A70: Feb | B70: 0 | C70: 0 | D70: 0 | E70: 0 | F70: 0 | G70: 0 | I70: Feb | J70: =PF_Rates!B70 -> 11.47 | K70: =PF_Rates!C70 -> 10.93 | L70: =PF_Rates!D70 -> 10.93 | M70: =PF_Rates!E70 -> 12.39 | N70: =PF_Rates!F70 -> 12.39 | O70: =PF_Rates!G70 -> 12.39 | Q70: Feb | R70: 0 | S70: 0 | T70: 0 | U70: 0 | V70: 0 | W70: 0
A71: Mar | B71: 0 | C71: 0 | D71: 0 | E71: 0 | F71: 0 | G71: =INDIRECT(ADDRESS(ROW(),COLUMN(),,,$A$1)) -> 0 | I71: Mar | J71: =PF_Rates!B71 -> 9.09 | K71: =PF_Rates!C71 -> 7.62 | L71: =PF_Rates!D71 -> 7.62 | M71: =PF_Rates!E71 -> 7.97 | N71: =PF_Rates!F71 -> 7.97 | O71: =PF_Rates!G71 -> 7.97 | Q71: Mar | R71: 0 | S71: 0 | T71: 0 | U71: 0 | V71: 0 | W71: 0
A72: Apr | B72: 0 | C72: 0 | D72: 0 | E72: 0 | F72: 0 | G72: 0 | I72: Apr | J72: =PF_Rates!B72 -> 6.83 | K72: =PF_Rates!C72 -> 4.43 | L72: =PF_Rates!D72 -> 4.43 | M72: =PF_Rates!E72 -> 6.09 | N72: =PF_Rates!F72 -> 6.09 | O72: =PF_Rates!G72 -> 6.09 | Q72: Apr | R72: 0 | S72: 0 | T72: 0 | U72: 0 | V72: 0 | W72: 0
A73: May | B73: 0 | C73: 0 | D73: 0 | E73: 0 | F73: 0 | G73: 0 | I73: May | J73: =PF_Rates!B73 -> 5.36 | K73: =PF_Rates!C73 -> 3.95 | L73: =PF_Rates!D73 -> 3.95 | M73: =PF_Rates!E73 -> 2.35 | N73: =PF_Rates!F73 -> 2.35 | O73: =PF_Rates!G73 -> 2.35 | Q73: May | R73: 0 | S73: 0 | T73: 0 | U73: 0 | V73: 0 | W73: 0
A74: Jun | B74: 0 | C74: 0 | D74: 0 | E74: 0 | F74: 0 | G74: 0 | I74: Jun | J74: =PF_Rates!B74 -> 5.65 | K74: =PF_Rates!C74 -> 3.88 | L74: =PF_Rates!D74 -> 3.88 | M74: =PF_Rates!E74 -> 4.12 | N74: =PF_Rates!F74 -> 4.12 | O74: =PF_Rates!G74 -> 4.12 | Q74: Jun | R74: 0 | S74: 0 | T74: 0 | U74: 0 | V74: 0 | W74: 0
A75: Jul | B75: 0 | C75: 0 | D75: 0 | E75: 0 | F75: 0 | G75: 0 | I75: Jul | J75: =PF_Rates!B75 -> 12.14 | K75: =PF_Rates!C75 -> 12.08 | L75: =PF_Rates!D75 -> 12.08 | M75: =PF_Rates!E75 -> 13.91 | N75: =PF_Rates!F75 -> 13.91 | O75: =PF_Rates!G75 -> 13.91 | Q75: Jul | R75: 0 | S75: 0 | T75: 0 | U75: 0 | V75: 0 | W75: =G75*O75 -> 0
A76: Aug | B76: 0 | C76: 0 | D76: 0 | E76: 0 | F76: 0 | G76: 0 | I76: Aug | J76: =PF_Rates!B76 -> 11.83 | K76: =PF_Rates!C76 -> 15.54 | L76: =PF_Rates!D76 -> 15.54 | M76: =PF_Rates!E76 -> 14.67 | N76: =PF_Rates!F76 -> 14.67 | O76: =PF_Rates!G76 -> 14.67 | Q76: Aug | R76: 0 | S76: 0 | T76: 0 | U76: 0 | V76: 0 | W76: 0
A77: Sep | B77: 0 | C77: 0 | D77: 0 | E77: 0 | F77: 0 | G77: 0 | I77: Sep | J77: =PF_Rates!B77 -> 9.29 | K77: =PF_Rates!C77 -> 12.75 | L77: =PF_Rates!D77 -> 12.75 | M77: =PF_Rates!E77 -> 16.51 | N77: =PF_Rates!F77 -> 16.51 | O77: =PF_Rates!G77 -> 16.51 | Q77: Sep | R77: 0 | S77: 0 | T77: 0 | U77: =E77*M77 -> 0 | V77: 0 | W77: =G77*O77 -> 0
Q78: Annual Total | R78: =SUM(R66:R77) -> 0 | S78: =SUM(S66:S77) -> 0 | T78: 0 | U78: 0 | V78: =SUM(V66:V77) -> 0 | W78: =SUM(W66:W77) -> 0
R81: =B4 -> 2023 | S81: 2024 | T81: 2025 | U81: 2026 | V81: 2027 | W81: 2028 | AA81: =Z81+1 -> 1 | AB81: =AA81+1 -> 2 | AC81: =AB81+1 -> 3 | AD81: =AC81+1 -> 4 | AE81: =AD81+1 -> 5
Q82: Total Tier 1 Purchase Cost | R82: =R28+R46+R61+R78 -> 0 | S82: =S28+S46+S61+S78 -> 0 | T82: 0 | U82: 0 | V82: 0 | W82: =W28+W46+W61+W78 -> 0 | AA82: =Z82 -> 0 | AB82: =AA82 -> 0 | AC82: =AB82 -> 0 | AD82: =AC82 -> 0 | AE82: =AD82 -> 0
Q83: (Connect to OSSPP)

Sheet OSS & PurPwr Forecast (2)
D1: Notes | E1: ='Base Data'!H10 -> 2023 | F1: ='Inputs Monthly'!D104 -> 2024-01-01 | G1: ='Inputs Monthly'!E104 -> 2024-04-01 | H1: ='Inputs Monthly'!F104 -> 2024-10-01 | I1: ='Inputs Monthly'!G104 -> 2025-04-01 | J1: ='Inputs Monthly'!H104 -> 2025-10-01 | K1: ='Inputs Monthly'!I104 -> 2026-04-01 | L1: ='Inputs Monthly'!J104 -> 2027-04-01 | M1: ='Inputs Monthly'!K104 -> 2028-04-01 | N1: ='Inputs Monthly'!L104 -> 2028-10-01 | O1: ='Inputs Monthly'!M104 -> 2028-10-01 | P1: ='Inputs Monthly'!N104 -> 2029-04-01 | Q1: ='Inputs Monthly'!O104 -> 2030-04-01 | R1: ='Inputs Monthly'!P104 -> 2031-04-01 | S1: ='Inputs Monthly'!Q104 -> 2032-04-01 | T1: ='Inputs Monthly'!R104 -> 2033-04-01 | U1: ='Inputs Monthly'!S104 -> 2034-04-01 | V1: ='Inputs Monthly'!T104 -> 2035-04-01 | W1: ='Inputs Monthly'!U104 -> 2035-12-01 | X1: ='Inputs Monthly'!V104 -> 2035-12-01 | Y1: ='Inputs Monthly'!W104 -> 2035-12-01 | Z1: ='Inputs Monthly'!X104 -> 2035-12-01 | AA1: ='Inputs Monthly'!Y104 -> 2035-12-01 | AB1: ='Inputs Monthly'!Z104 -> 2035-12-01 | AC1: ='Inputs Monthly'!AA104 -> 2035-12-01 | AD1: ='Inputs Monthly'!AB104 -> 2035-12-01 | AE1: ='Inputs Monthly'!AC104 -> 2035-12-01
F2: ='Inputs Monthly'!D106 -> FALSE | G2: ='Inputs Monthly'!E106 -> FALSE | H2: ='Inputs Monthly'!F106 -> FALSE | I2: ='Inputs Monthly'!G106 -> FALSE | J2: ='Inputs Monthly'!H106 -> FALSE | K2: ='Inputs Monthly'!I106 -> FALSE | L2: ='Inputs Monthly'!J106 -> TRUE | M2: ='Inputs Monthly'!K106 -> FALSE | N2: ='Inputs Monthly'!L106 -> FALSE | O2: ='Inputs Monthly'!M106 -> FALSE | P2: ='Inputs Monthly'!N106 -> FALSE | Q2: ='Inputs Monthly'!O106 -> FALSE | R2: ='Inputs Monthly'!P106 -> FALSE | S2: ='Inputs Monthly'!Q106 -> FALSE | T2: ='Inputs Monthly'!R106 -> FALSE | U2: ='Inputs Monthly'!S106 -> FALSE | V2: ='Inputs Monthly'!T106 -> FALSE | W2: ='Inputs Monthly'!U106 -> FALSE | X2: ='Inputs Monthly'!V106 -> FALSE | Y2: ='Inputs Monthly'!W106 -> FALSE | Z2: ='Inputs Monthly'!X106 -> FALSE | AA2: ='Inputs Monthly'!Y106 -> FALSE | AB2: ='Inputs Monthly'!Z106 -> FALSE | AC2: ='Inputs Monthly'!AA106 -> FALSE | AD2: ='Inputs Monthly'!AB106 -> FALSE | AE2: ='Inputs Monthly'!AC106 -> FALSE
C3: RP | F3: =IF(F1=RatePeriod,"Mid_Pt",VLOOKUP($C3,EscTable_01,F$136,FALSE)) -> No | G3: No | H3: No | I3: No | J3: =IF(J1=RatePeriod,"Mid_Pt",VLOOKUP($C3,EscTable_01,J$136,FALSE)) -> RP_Start | K3: No | L3: Mid_Pt | M3: No | N3: RP_End | O3: No | P3: No | Q3: No | R3: No | S3: No | T3: No | U3: No | V3: No | W3: No | X3: No | Y3: No | Z3: No | AA3: No | AB3: No | AC3: No | AD3: No | AE3: No
C4: NRSW | F4: =VLOOKUP($C4,EscTable_01,F$136,FALSE) -> 0 | G4: 0 | H4: 0 | I4: 0 | J4: 0 | K4: 0 | L4: 0 | M4: 0 | N4: 0 | O4: 0 | P4: =VLOOKUP($C4,EscTable_01,P$136,FALSE) -> 0 | Q4: 0 | R4: 0 | S4: 0 | T4: 0 | U4: 0 | V4: 0 | W4: 0 | X4: 0 | Y4: 0 | Z4: =VLOOKUP($C4,EscTable_01,Z$136,FALSE) -> 0 | AA4: 0 | AB4: 0 | AC4: 0 | AD4: 0 | AE4: 0
C5: NRCOL | F5: 5 | G5: 5 | H5: 5 | I5: 5 | J5: 5 | K5: 5 | L5: 5 | M5: 5 | N5: 5 | O5: 5 | P5: 5 | Q5: 5 | R5: 5 | S5: 5 | T5: 5 | U5: 5 | V5: 5 | W5: 5 | X5: 5 | Y5: 5 | Z5: 5 | AA5: 5 | AB5: 5 | AC5: 5 | AD5: 5 | AE5: 5
A6: REVISED | C6: Fiscal Year | F6: =IF(F3="RP_End",HLOOKUP(F1,'Inputs Monthly'!$D$3:$EQ$4,2,FALSE)-1,HLOOKUP(F1,'Inputs Monthly'!$D$3:$EQ$4,2,FALSE)) -> 2024 | G6: =IF(G3="RP_End",HLOOKUP(G1,'Inputs Monthly'!$D$3:$EQ$4,2,FALSE)-1,HLOOKUP(G1,'Inputs Monthly'!$D$3:$EQ$4,2,FALSE)) -> 2024 | H6: =IF(H3="RP_End",HLOOKUP(H1,'Inputs Monthly'!$D$3:$EQ$4,2,FALSE)-1,HLOOKUP(H1,'Inputs Monthly'!$D$3:$EQ$4,2,FALSE)) -> 2025 | I6: =IF(I3="RP_End",HLOOKUP(I1,'Inputs Monthly'!$D$3:$EQ$4,2,FALSE)-1,HLOOKUP(I1,'Inputs Monthly'!$D$3:$EQ$4,2,FALSE)) -> 2025 | J6: =IF(J3="RP_End",HLOOKUP(J1,'Inputs Monthly'!$D$3:$EQ$4,2,FALSE)-1,HLOOKUP(J1,'Inputs Monthly'!$D$3:$EQ$4,2,FALSE)) -> 2026 | K6: =IF(K3="RP_End",HLOOKUP(K1,'Inputs Monthly'!$D$3:$EQ$4,2,FALSE)-1,HLOOKUP(K1,'Inputs Monthly'!$D$3:$EQ$4,2,FALSE)) -> 2026 | L6: =IF(L3="RP_End",HLOOKUP(L1,'Inputs Monthly'!$D$3:$EQ$4,2,FALSE)-1,HLOOKUP(L1,'Inputs Monthly'!$D$3:$EQ$4,2,FALSE)) -> 2027 | M6: =IF(M3="RP_End",HLOOKUP(M1,'Inputs Monthly'!$D$3:$EQ$4,2,FALSE)-1,HLOOKUP(M1,'Inputs Monthly'!$D$3:$EQ$4,2,FALSE)) -> 2028 | N6: =IF(N3="RP_End",HLOOKUP(N1,'Inputs Monthly'!$D$3:$EQ$4,2,FALSE)-1,HLOOKUP(N1,'Inputs Monthly'!$D$3:$EQ$4,2,FALSE)) -> 2028 | O6: =IF(O3="RP_End",HLOOKUP(O1,'Inputs Monthly'!$D$3:$EQ$4,2,FALSE)-1,HLOOKUP(O1,'Inputs Monthly'!$D$3:$EQ$4,2,FALSE)) -> 2029 | P6: =IF(P3="RP_End",HLOOKUP(P1,'Inputs Monthly'!$D$3:$EQ$4,2,FALSE)-1,HLOOKUP(P1,'Inputs Monthly'!$D$3:$EQ$4,2,FALSE)) -> 2029 | Q6: =IF(Q3="RP_End",HLOOKUP(Q1,'Inputs Monthly'!$D$3:$EQ$4,2,FALSE)-1,HLOOKUP(Q1,'Inputs Monthly'!$D$3:$EQ$4,2,FALSE)) -> 2030 | R6: =IF(R3="RP_End",HLOOKUP(R1,'Inputs Monthly'!$D$3:$EQ$4,2,FALSE)-1,HLOOKUP(R1,'Inputs Monthly'!$D$3:$EQ$4,2,FALSE)) -> 2031 | S6: =IF(S3="RP_End",HLOOKUP(S1,'Inputs Monthly'!$D$3:$EQ$4,2,FALSE)-1,HLOOKUP(S1,'Inputs Monthly'!$D$3:$EQ$4,2,FALSE)) -> 2032 | T6: =IF(T3="RP_End",HLOOKUP(T1,'Inputs Monthly'!$D$3:$EQ$4,2,FALSE)-1,HLOOKUP(T1,'Inputs Monthly'!$D$3:$EQ$4,2,FALSE)) -> 2033 | U6: =IF(U3="RP_End",HLOOKUP(U1,'Inputs Monthly'!$D$3:$EQ$4,2,FALSE)-1,HLOOKUP(U1,'Inputs Monthly'!$D$3:$EQ$4,2,FALSE)) -> 2034 | V6: =IF(V3="RP_End",HLOOKUP(V1,'Inputs Monthly'!$D$3:$EQ$4,2,FALSE)-1,HLOOKUP(V1,'Inputs Monthly'!$D$3:$EQ$4,2,FALSE)) -> 2035 | W6: =IF(W3="RP_End",HLOOKUP(W1,'Inputs Monthly'!$D$3:$EQ$4,2,FALSE)-1,HLOOKUP(W1,'Inputs Monthly'!$D$3:$EQ$4,2,FALSE)) -> 2036 | X6: =IF(X3="RP_End",HLOOKUP(X1,'Inputs Monthly'!$D$3:$EQ$4,2,FALSE)-1,HLOOKUP(X1,'Inputs Monthly'!$D$3:$EQ$4,2,FALSE)) -> 2036 | Y6: =IF(Y3="RP_End",HLOOKUP(Y1,'Inputs Monthly'!$D$3:$EQ$4,2,FALSE)-1,HLOOKUP(Y1,'Inputs Monthly'!$D$3:$EQ$4,2,FALSE)) -> 2036 | Z6: =IF(Z3="RP_End",HLOOKUP(Z1,'Inputs Monthly'!$D$3:$EQ$4,2,FALSE)-1,HLOOKUP(Z1,'Inputs Monthly'!$D$3:$EQ$4,2,FALSE)) -> 2036 | AA6: =IF(AA3="RP_End",HLOOKUP(AA1,'Inputs Monthly'!$D$3:$EQ$4,2,FALSE)-1,HLOOKUP(AA1,'Inputs Monthly'!$D$3:$EQ$4,2,FALSE)) -> 2036 | AB6: =IF(AB3="RP_End",HLOOKUP(AB1,'Inputs Monthly'!$D$3:$EQ$4,2,FALSE)-1,HLOOKUP(AB1,'Inputs Monthly'!$D$3:$EQ$4,2,FALSE)) -> 2036 | AC6: =IF(AC3="RP_End",HLOOKUP(AC1,'Inputs Monthly'!$D$3:$EQ$4,2,FALSE)-1,HLOOKUP(AC1,'Inputs Monthly'!$D$3:$EQ$4,2,FALSE)) -> 2036 | AD6: =IF(AD3="RP_End",HLOOKUP(AD1,'Inputs Monthly'!$D$3:$EQ$4,2,FALSE)-1,HLOOKUP(AD1,'Inputs Monthly'!$D$3:$EQ$4,2,FALSE)) -> 2036 | AE6: =IF(AE3="RP_End",HLOOKUP(AE1,'Inputs Monthly'!$D$3:$EQ$4,2,FALSE)-1,HLOOKUP(AE1,'Inputs Monthly'!$D$3:$EQ$4,2,FALSE)) -> 2036
C7: Column in Escalation Table | F7: ='Inputs Monthly'!D$105 -> 2 | G7: ='Inputs Monthly'!E$105 -> 3 | H7: ='Inputs Monthly'!F$105 -> 4 | I7: ='Inputs Monthly'!G$105 -> 5 | J7: ='Inputs Monthly'!H$105 -> 6 | K7: ='Inputs Monthly'!I$105 -> 7 | L7: ='Inputs Monthly'!J$105 -> 8 | M7: ='Inputs Monthly'!K$105 -> 9 | N7: ='Inputs Monthly'!L$105 -> 10 | O7: ='Inputs Monthly'!M$105 -> 11 | P7: ='Inputs Monthly'!N$105 -> 12 | Q7: ='Inputs Monthly'!O$105 -> 13 | R7: ='Inputs Monthly'!P$105 -> 14 | S7: ='Inputs Monthly'!Q$105 -> 15 | T7: ='Inputs Monthly'!R$105 -> 16 | U7: ='Inputs Monthly'!S$105 -> 17 | V7: ='Inputs Monthly'!T$105 -> 18 | W7: ='Inputs Monthly'!U$105 -> 19 | X7: ='Inputs Monthly'!V$105 -> 20 | Y7: ='Inputs Monthly'!W$105 -> 21 | Z7: ='Inputs Monthly'!X$105 -> 22 | AA7: ='Inputs Monthly'!Y$105 -> 23 | AB7: ='Inputs Monthly'!Z$105 -> 24 | AC7: ='Inputs Monthly'!AA$105 -> 25 | AD7: ='Inputs Monthly'!AB$105 -> 26 | AE7: ='Inputs Monthly'!AC$105 -> 27
F8: =F6 -> 2024 | G8: =G6 -> 2024 | H8: 2025 | I8: 2025 | J8: 2026 | K8: 2026 | L8: 2027 | M8: 2028 | N8: 2028 | O8: 2029 | P8: 2029 | Q8: 2030 | R8: 2031 | S8: 2032 | T8: 2033 | U8: 2034 | V8: 2035 | W8: 2036 | X8: 2036 | Y8: 2036 | Z8: 2036 | AA8: 2036 | AB8: 2036 | AC8: 2036 | AD8: 2036 | AE8: 2036
C9: Purchased Power ($) | E9: =SUM(E13:E19) -> 1085637524 | F9: =SUM(F13:F19) -> 951762927.7 | G9: =SUM(G13:G19) -> 957021075 | H9: 884426712.7 | I9: 894323889.6 | J9: 925201287.2 | K9: 934151037.2 | L9: =SUM(L13:L19) -> 949225533.4 | M9: 975187735.8 | N9: 984499544.7
C10: Total Sale for Resale Credit ($) | E10: =SUM(E31:E32) -> 640830574 | F10: =SUM(F31:F32) -> 493330888.1 | G10: 493333147.5 | H10: 277039290.6 | I10: 277043543.5 | J10: 317309606.8 | K10: 317313452.5 | L10: 304800649.9 | M10: 298198640.7 | N10: 298202642.1
B13: LT Market Purchases ($) | C13: Total LT & IT Market Purchases ($) | E13: =E143 -> 756332412 | F13: 756332412 | G13: =G143 -> 761590559.4 | H13: 772216774.7 | I13: 782113951.6 | J13: 791250425.4 | K13: 800200175.4 | L13: 818301929.8 | M13: 836041625.3 | N13: 845353434.2 | O13: 845353434.2 | P13: 850048159.8 | Q13: 850048159.8 | R13: 850048159.8 | S13: 850048159.8 | T13: 850048159.8 | U13: 850048159.8 | V13: 850048159.8 | W13: 850048159.8 | X13: 850048159.8 | Y13: 850048159.8 | Z13: 850048159.8 | AA13: 850048159.8 | AB13: 850048159.8 | AC13: 850048159.8 | AD13: 850048159.8 | AE13: 850048159.8
B14: PF Purchases ($) | C14: Total LT & IT PF Purchases ($) | E14: =E151 -> 0 | F14: =F151 -> 0 | G14: 0 | H14: 0 | I14: 0 | J14: 0 | K14: 0 | L14: 0 | M14: 0 | N14: 0 | O14: 0 | P14: 0 | Q14: 0 | R14: 0 | S14: 0 | T14: 0 | U14: 0 | V14: 0 | W14: 0 | X14: 0 | Y14: 0 | Z14: 0 | AA14: 0 | AB14: 0 | AC14: 0 | AD14: 0 | AE14: 0
B15: SLICE Purchases ($) | C15: Total LT & IT SLICE Purchases ($) | E15: =E159 -> 0 | F15: =F159 -> 0 | G15: 0 | H15: 0 | I15: 0 | J15: 0 | K15: 0 | L15: 0 | M15: 0 | N15: 0 | O15: 0 | P15: 0 | Q15: 0 | R15: 0 | S15: 0 | T15: 0 | U15: 0 | V15: 0 | W15: 0 | X15: 0 | Y15: 0 | Z15: 0 | AA15: 0 | AB15: 0 | AC15: 0 | AD15: 0 | AE15: 0
B16: Gen #1 Purchases ($) | C16: Total LT & IT Tier 1 Purchases ($) | E16: =E167 -> 0 | F16: =F167 -> 0 | G16: 0 | H16: 0 | I16: 0 | J16: 0 | K16: 0 | L16: 0 | M16: 0 | N16: 0
B17: Gen #2 Purchases ($) | C17: Total LT & IT Gen #2 Purchases ($) | E17: =E175 -> 0 | F17: =F175 -> 0 | G17: 0 | H17: 0 | I17: 0 | J17: 0 | K17: 0 | L17: 0 | M17: 0 | N17: 0 | O17: 0 | P17: 0 | Q17: 0 | R17: 0 | S17: 0 | T17: 0 | U17: 0 | V17: 0 | W17: 0 | X17: 0 | Y17: 0 | Z17: 0 | AA17: 0 | AB17: 0 | AC17: 0 | AD17: 0 | AE17: 0
B18: Gen #3 Purchases ($) | C18: Total LT & IT Gen #3 Purchases ($) | E18: =E183 -> 0 | F18: =F183 -> 0 | G18: 0 | H18: 0 | I18: 0 | J18: 0 | K18: 0 | L18: 0 | M18: 0 | N18: 0 | O18: 0 | P18: 0 | Q18: 0 | R18: 0 | S18: 0 | T18: 0 | U18: 0 | V18: 0 | W18: 0 | X18: 0 | Y18: 0 | Z18: 0 | AA18: 0 | AB18: 0 | AC18: 0 | AD18: 0 | AE18: 0
B19: ST Market Purchases ($) | C19: Total ST Purchased Power ($) | E19: =E116 -> 329305112 | F19: =F116 -> 195430515.7 | G19: 195430515.7 | H19: 112209938 | I19: 112209938 | J19: 133950861.8 | K19: 133950861.8 | L19: 130923603.6 | M19: 139146110.5 | N19: 139146110.5 | Q19: =Q116 -> 
B22: LT Market Purchases (MWh) | C22: Total LT & IT Market Purchases (MWh) | E22: =E43 -> 12349623 | F22: 12349623 | G22: 12349623 | H22: 12349623 | I22: 12349623 | J22: =J43 -> 12349623 | K22: 12349623 | L22: 12349623 | M22: 12349623 | N22: 12349623 | O22: 12349623 | P22: 12349623 | Q22: 12349623 | R22: 12349623 | S22: 12349623 | T22: 12349623 | U22: 12349623 | V22: 12349623 | W22: 12349623 | X22: 12349623 | Y22: 12349623 | Z22: 12349623 | AA22: 12349623 | AB22: 12349623 | AC22: 12349623 | AD22: 12349623 | AE22: 12349623
B23: PF Purchases (MWh) | C23: Total LT & IT PF Purchases (MWh) | E23: =E49 -> 0 | F23: 0 | G23: 0 | H23: 0 | I23: 0 | J23: =J49 -> 0 | K23: 0 | L23: 0 | M23: 0 | N23: 0 | O23: 0 | P23: 0 | Q23: 0 | R23: 0 | S23: 0 | T23: 0 | U23: 0 | V23: 0 | W23: 0 | X23: 0 | Y23: 0 | Z23: 0 | AA23: 0 | AB23: 0 | AC23: 0 | AD23: 0 | AE23: 0
B24: SLICE Purchases (MWh) | C24: Total LT & IT SLICE Purchases (MWh) | E24: =E55 -> 0 | F24: 0 | G24: 0 | H24: 0 | I24: 0 | J24: =J55 -> 0 | K24: 0 | L24: 0 | M24: 0 | N24: 0 | O24: 0 | P24: 0 | Q24: 0 | R24: 0 | S24: 0 | T24: 0 | U24: 0 | V24: 0 | W24: 0 | X24: 0 | Y24: 0 | Z24: 0 | AA24: 0 | AB24: 0 | AC24: 0 | AD24: 0 | AE24: 0
B25: Tier 1 Purchases (MWh) | C25: Total Tier 1 Purchases (MWh) | E25: =E61 -> 0 | F25: 0 | G25: 0 | H25: 0 | I25: 0 | J25: =J61 -> 0 | K25: 0 | L25: 0 | M25: 0 | N25: 0
B26: Existing Resources (MWh) | C26: Total Existing Resoources (MWh) | E26: =E67 -> 0 | F26: 0 | G26: 0 | H26: 0 | I26: 0 | J26: =J67 -> 0 | K26: 0 | L26: 0 | M26: 0 | N26: 0 | O26: 0 | P26: 0 | Q26: 0 | R26: 0 | S26: 0 | T26: 0 | U26: 0 | V26: 0 | W26: 0 | X26: 0 | Y26: 0 | Z26: 0 | AA26: 0 | AB26: 0 | AC26: 0 | AD26: 0 | AE26: 0
B27: New Resources (MWh) | C27: Total New Resource Additions & Purchases (MWh) | E27: =E73 -> 0 | F27: 0 | G27: 0 | H27: 0 | I27: 0 | J27: =J73 -> 0 | K27: 0 | L27: 0 | M27: 0 | N27: 0 | O27: 0 | P27: 0 | Q27: 0 | R27: 0 | S27: 0 | T27: 0 | U27: 0 | V27: 0 | W27: 0 | X27: 0 | Y27: 0 | Z27: 0 | AA27: 0 | AB27: 0 | AC27: 0 | AD27: 0 | AE27: 0
B28: ST Market Purchases MWh) | C28: Total ST Purchases (MWh) | E28: =E108 -> 4254131 | F28: 4220762.35 | G28: 4220762.35 | H28: 4317785.605 | I28: 4317785.605 | J28: =J108 -> 4499647.832 | K28: 4499647.832 | L28: 4664792.773 | M28: 4974386.955 | N28: 4974386.955
H29: =G28-H28 -> -97023.2544
C31: Total LT & IT Sales for Resale ($) | E31: =E193 -> 324999 | F31: 324999 | G31: 327258.4465 | H31: 331824.5729 | I31: 336077.4285 | J31: 340003.4071 | K31: 343849.1498 | L31: 351627.5445 | M31: 359250.3612 | N31: 363251.6819 | O31: 363251.6819 | P31: 365269.0239 | Q31: 365269.0239 | R31: 365269.0239 | S31: 365269.0239 | T31: 365269.0239 | U31: 365269.0239 | V31: 365269.0239 | W31: 365269.0239 | X31: 365269.0239 | Y31: 365269.0239 | Z31: 365269.0239 | AA31: 365269.0239 | AB31: 365269.0239 | AC31: 365269.0239 | AD31: 365269.0239 | AE31: 365269.0239
C32: ST Sales for Resale ($) | E32: =E126 -> 640505575 | F32: 493005889.1 | G32: 493005889.1 | H32: 276707466.1 | I32: 276707466.1 | J32: 316969603.4 | K32: 316969603.4 | L32: 304449022.3 | M32: 297839390.4 | N32: 297839390.4
C34: Total LT & IT Sales for Resale (MWh) | E34: =E91 -> 6700 | F34: 6700 | G34: 6700 | H34: 6700 | I34: 6700 | J34: 6700 | K34: 6700 | L34: 6700 | M34: 6700 | N34: 6700 | O34: 6700 | P34: 6700 | Q34: 6700 | R34: 6700 | S34: 6700 | T34: 6700 | U34: 6700 | V34: 6700 | W34: 6700 | X34: 6700 | Y34: 6700 | Z34: 6700 | AA34: 6700 | AB34: 6700 | AC34: 6700 | AD34: 6700 | AE34: 6700
C35: Totall ST Sales for Resale (MWh) | E35: =E112 -> 9026924 | F35: 9026924 | G35: 9026924 | H35: 9026924 | I35: 9026924 | J35: 9026924 | K35: 9026924 | L35: 9026924 | M35: 9026924 | N35: 9026924
B39: Market | C39: Base Period LT & IT Market Purchases (MWh) | E39: =E226+E227+E228+E230+E231-E45-E51-E57-E63-E69 -> 12349623 | F39: =E39 -> 12349623 | G39: =F39 -> 12349623 | H39: 12349623 | I39: 12349623 | J39: 12349623 | K39: 12349623 | L39: 12349623 | M39: 12349623 | N39: 12349623 | O39: 12349623 | P39: 12349623 | Q39: 12349623 | R39: 12349623 | S39: 12349623 | T39: 12349623 | U39: 12349623 | V39: 12349623 | W39: 12349623 | X39: 12349623 | Y39: 12349623 | Z39: 12349623 | AA39: 12349623 | AB39: 12349623 | AC39: 12349623 | AD39: 12349623 | AE39: 12349623
A40: 800 | C40: New Resource LT & IT Market Purchases (MWh) | F40: =VLOOKUP($A40,'New Resources'!$A$4:$Y$133,F$5,FALSE)*F$4 -> 0 | G40: =VLOOKUP($A40,'New Resources'!$A$4:$Y$133,G$5,FALSE)*G$4 -> 0 | H40: =VLOOKUP($A40,'New Resources'!$A$4:$Y$133,H$5,FALSE)*H$4 -> 0 | I40: =VLOOKUP($A40,'New Resources'!$A$4:$Y$133,I$5,FALSE)*I$4 -> 0 | J40: =VLOOKUP($A40,'New Resources'!$A$4:$Y$133,J$5,FALSE)*J$4 -> 0 | K40: =VLOOKUP($A40,'New Resources'!$A$4:$Y$133,K$5,FALSE)*K$4 -> 0 | L40: =VLOOKUP($A40,'New Resources'!$A$4:$Y$133,L$5,FALSE)*L$4 -> 0 | M40: =VLOOKUP($A40,'New Resources'!$A$4:$Y$133,M$5,FALSE)*M$4 -> 0 | N40: =VLOOKUP($A40,'New Resources'!$A$4:$Y$133,N$5,FALSE)*N$4 -> 0 | O40: =VLOOKUP($A40,'New Resources'!$A$4:$Y$133,O$5,FALSE)*O$4 -> 0 | P40: =VLOOKUP($A40,'New Resources'!$A$4:$Y$133,P$5,FALSE)*P$4 -> 0 | Q40: =VLOOKUP($A40,'New Resources'!$A$4:$Y$133,Q$5,FALSE)*Q$4 -> 0 | R40: =VLOOKUP($A40,'New Resources'!$A$4:$Y$133,R$5,FALSE)*R$4 -> 0 | S40: =VLOOKUP($A40,'New Resources'!$A$4:$Y$133,S$5,FALSE)*S$4 -> 0 | T40: =VLOOKUP($A40,'New Resources'!$A$4:$Y$133,T$5,FALSE)*T$4 -> 0 | U40: =VLOOKUP($A40,'New Resources'!$A$4:$Y$133,U$5,FALSE)*U$4 -> 0 | V40: =VLOOKUP($A40,'New Resources'!$A$4:$Y$133,V$5,FALSE)*V$4 -> 0 | W40: =VLOOKUP($A40,'New Resources'!$A$4:$Y$133,W$5,FALSE)*W$4 -> 0 | X40: =VLOOKUP($A40,'New Resources'!$A$4:$Y$133,X$5,FALSE)*X$4 -> 0 | Y40: =VLOOKUP($A40,'New Resources'!$A$4:$Y$133,Y$5,FALSE)*Y$4 -> 0 | Z40: =VLOOKUP($A40,'New Resources'!$A$4:$Y$133,Z$5,FALSE)*Z$4 -> 0 | AA40: =VLOOKUP($A40,'New Resources'!$A$4:$Y$133,AA$5,FALSE)*AA$4 -> 0 | AB40: =VLOOKUP($A40,'New Resources'!$A$4:$Y$133,AB$5,FALSE)*AB$4 -> 0 | AC40: =VLOOKUP($A40,'New Resources'!$A$4:$Y$133,AC$5,FALSE)*AC$4 -> 0 | AD40: =VLOOKUP($A40,'New Resources'!$A$4:$Y$133,AD$5,FALSE)*AD$4 -> 0 | AE40: =VLOOKUP($A40,'New Resources'!$A$4:$Y$133,AE$5,FALSE)*AE$4 -> 0
A41: 782 | C41: LT & IT Terminated Market Contracts (MWh) | F41: =VLOOKUP($A41,'New Resources'!$A$4:$Y$133,F$5,FALSE)*F$4 -> 0 | G41: =VLOOKUP($A41,'New Resources'!$A$4:$Y$133,G$5,FALSE)*G$4 -> 0 | H41: =VLOOKUP($A41,'New Resources'!$A$4:$Y$133,H$5,FALSE)*H$4 -> 0 | I41: =VLOOKUP($A41,'New Resources'!$A$4:$Y$133,I$5,FALSE)*I$4 -> 0 | J41: =VLOOKUP($A41,'New Resources'!$A$4:$Y$133,J$5,FALSE)*J$4 -> 0 | K41: =VLOOKUP($A41,'New Resources'!$A$4:$Y$133,K$5,FALSE)*K$4 -> 0 | L41: =VLOOKUP($A41,'New Resources'!$A$4:$Y$133,L$5,FALSE)*L$4 -> 0 | M41: =VLOOKUP($A41,'New Resources'!$A$4:$Y$133,M$5,FALSE)*M$4 -> 0 | N41: =VLOOKUP($A41,'New Resources'!$A$4:$Y$133,N$5,FALSE)*N$4 -> 0 | O41: =VLOOKUP($A41,'New Resources'!$A$4:$Y$133,O$5,FALSE)*O$4 -> 0 | P41: =VLOOKUP($A41,'New Resources'!$A$4:$Y$133,P$5,FALSE)*P$4 -> 0 | Q41: =VLOOKUP($A41,'New Resources'!$A$4:$Y$133,Q$5,FALSE)*Q$4 -> 0 | R41: =VLOOKUP($A41,'New Resources'!$A$4:$Y$133,R$5,FALSE)*R$4 -> 0 | S41: =VLOOKUP($A41,'New Resources'!$A$4:$Y$133,S$5,FALSE)*S$4 -> 0 | T41: =VLOOKUP($A41,'New Resources'!$A$4:$Y$133,T$5,FALSE)*T$4 -> 0 | U41: =VLOOKUP($A41,'New Resources'!$A$4:$Y$133,U$5,FALSE)*U$4 -> 0 | V41: =VLOOKUP($A41,'New Resources'!$A$4:$Y$133,V$5,FALSE)*V$4 -> 0 | W41: =VLOOKUP($A41,'New Resources'!$A$4:$Y$133,W$5,FALSE)*W$4 -> 0 | X41: =VLOOKUP($A41,'New Resources'!$A$4:$Y$133,X$5,FALSE)*X$4 -> 0 | Y41: =VLOOKUP($A41,'New Resources'!$A$4:$Y$133,Y$5,FALSE)*Y$4 -> 0 | Z41: =VLOOKUP($A41,'New Resources'!$A$4:$Y$133,Z$5,FALSE)*Z$4 -> 0 | AA41: =VLOOKUP($A41,'New Resources'!$A$4:$Y$133,AA$5,FALSE)*AA$4 -> 0 | AB41: =VLOOKUP($A41,'New Resources'!$A$4:$Y$133,AB$5,FALSE)*AB$4 -> 0 | AC41: =VLOOKUP($A41,'New Resources'!$A$4:$Y$133,AC$5,FALSE)*AC$4 -> 0 | AD41: =VLOOKUP($A41,'New Resources'!$A$4:$Y$133,AD$5,FALSE)*AD$4 -> 0 | AE41: =VLOOKUP($A41,'New Resources'!$A$4:$Y$133,AE$5,FALSE)*AE$4 -> 0
C43: Total LT & IT Market Purchases (MWh) | E43: =SUM(E39:E41) -> 12349623 | F43: =SUM(F39:F41) -> 12349623 | G43: =F43+SUM(G40:G41) -> 12349623 | H43: =G43+SUM(H40:H41) -> 12349623 | I43: 12349623 | J43: 12349623 | K43: 12349623 | L43: 12349623 | M43: 12349623 | N43: 12349623 | O43: 12349623 | P43: 12349623 | Q43: 12349623 | R43: 12349623 | S43: 12349623 | T43: 12349623 | U43: 12349623 | V43: 12349623 | W43: 12349623 | X43: 12349623 | Y43: 12349623 | Z43: 12349623 | AA43: 12349623 | AB43: 12349623 | AC43: 12349623 | AD43: 12349623 | AE43: 12349623
B45: PF | C45: Base Period LT & IT PF Purchases (MWh) | E45: =E286 -> 0
A46: 680 | C46: New Resource LT & IT PF Purchases (MWh) | F46: =VLOOKUP($A46,'New Resources'!$A$4:$Y$133,F$5,FALSE)*F$4 -> 0 | G46: =VLOOKUP($A46,'New Resources'!$A$4:$Y$133,G$5,FALSE)*G$4 -> 0 | H46: =VLOOKUP($A46,'New Resources'!$A$4:$Y$133,H$5,FALSE)*H$4 -> 0 | I46: =VLOOKUP($A46,'New Resources'!$A$4:$Y$133,I$5,FALSE)*I$4 -> 0 | J46: =VLOOKUP($A46,'New Resources'!$A$4:$Y$133,J$5,FALSE)*J$4 -> 0 | K46: =VLOOKUP($A46,'New Resources'!$A$4:$Y$133,K$5,FALSE)*K$4 -> 0 | L46: =VLOOKUP($A46,'New Resources'!$A$4:$Y$133,L$5,FALSE)*L$4 -> 0 | M46: =VLOOKUP($A46,'New Resources'!$A$4:$Y$133,M$5,FALSE)*M$4 -> 0 | N46: =VLOOKUP($A46,'New Resources'!$A$4:$Y$133,N$5,FALSE)*N$4 -> 0 | O46: =VLOOKUP($A46,'New Resources'!$A$4:$Y$133,O$5,FALSE)*O$4 -> 0 | P46: =VLOOKUP($A46,'New Resources'!$A$4:$Y$133,P$5,FALSE)*P$4 -> 0 | Q46: =VLOOKUP($A46,'New Resources'!$A$4:$Y$133,Q$5,FALSE)*Q$4 -> 0 | R46: =VLOOKUP($A46,'New Resources'!$A$4:$Y$133,R$5,FALSE)*R$4 -> 0 | S46: =VLOOKUP($A46,'New Resources'!$A$4:$Y$133,S$5,FALSE)*S$4 -> 0 | T46: =VLOOKUP($A46,'New Resources'!$A$4:$Y$133,T$5,FALSE)*T$4 -> 0 | U46: =VLOOKUP($A46,'New Resources'!$A$4:$Y$133,U$5,FALSE)*U$4 -> 0 | V46: =VLOOKUP($A46,'New Resources'!$A$4:$Y$133,V$5,FALSE)*V$4 -> 0 | W46: =VLOOKUP($A46,'New Resources'!$A$4:$Y$133,W$5,FALSE)*W$4 -> 0 | X46: =VLOOKUP($A46,'New Resources'!$A$4:$Y$133,X$5,FALSE)*X$4 -> 0 | Y46: =VLOOKUP($A46,'New Resources'!$A$4:$Y$133,Y$5,FALSE)*Y$4 -> 0 | Z46: =VLOOKUP($A46,'New Resources'!$A$4:$Y$133,Z$5,FALSE)*Z$4 -> 0 | AA46: =VLOOKUP($A46,'New Resources'!$A$4:$Y$133,AA$5,FALSE)*AA$4 -> 0 | AB46: =VLOOKUP($A46,'New Resources'!$A$4:$Y$133,AB$5,FALSE)*AB$4 -> 0 | AC46: =VLOOKUP($A46,'New Resources'!$A$4:$Y$133,AC$5,FALSE)*AC$4 -> 0 | AD46: =VLOOKUP($A46,'New Resources'!$A$4:$Y$133,AD$5,FALSE)*AD$4 -> 0 | AE46: =VLOOKUP($A46,'New Resources'!$A$4:$Y$133,AE$5,FALSE)*AE$4 -> 0
A47: 760 | C47: LT & IT Terminated PF Contracts (MWh)
C49: Total LT & IT PF Purchases (MWh) | E49: =SUM(E45:E47) -> 0 | F49: =SUM(F45:F47) -> 0 | G49: =F49+SUM(G46:G47) -> 0 | H49: 0 | I49: 0 | J49: 0 | K49: 0 | L49: 0 | M49: 0 | N49: 0 | O49: 0 | P49: 0 | Q49: 0 | R49: 0 | S49: 0 | T49: 0 | U49: 0 | V49: 0 | W49: 0 | X49: 0 | Y49: 0 | Z49: 0 | AA49: 0 | AB49: 0 | AC49: 0 | AD49: 0 | AE49: 0
B51: SLICE | C51: Base Period LT & IT SLICE Purchases (MWh) | E51: =E287 -> 0
A52: 700 | C52: New Resource LT & IT SLICE Purchases (MWh) | F52: =VLOOKUP($A52,'New Resources'!$A$4:$Y$133,F$5,FALSE)*F$4 -> 0 | G52: =VLOOKUP($A52,'New Resources'!$A$4:$Y$133,G$5,FALSE)*G$4 -> 0 | H52: =VLOOKUP($A52,'New Resources'!$A$4:$Y$133,H$5,FALSE)*H$4 -> 0 | I52: =VLOOKUP($A52,'New Resources'!$A$4:$Y$133,I$5,FALSE)*I$4 -> 0 | J52: =VLOOKUP($A52,'New Resources'!$A$4:$Y$133,J$5,FALSE)*J$4 -> 0 | K52: =VLOOKUP($A52,'New Resources'!$A$4:$Y$133,K$5,FALSE)*K$4 -> 0 | L52: =VLOOKUP($A52,'New Resources'!$A$4:$Y$133,L$5,FALSE)*L$4 -> 0 | M52: =VLOOKUP($A52,'New Resources'!$A$4:$Y$133,M$5,FALSE)*M$4 -> 0 | N52: =VLOOKUP($A52,'New Resources'!$A$4:$Y$133,N$5,FALSE)*N$4 -> 0 | O52: =VLOOKUP($A52,'New Resources'!$A$4:$Y$133,O$5,FALSE)*O$4 -> 0 | P52: =VLOOKUP($A52,'New Resources'!$A$4:$Y$133,P$5,FALSE)*P$4 -> 0 | Q52: =VLOOKUP($A52,'New Resources'!$A$4:$Y$133,Q$5,FALSE)*Q$4 -> 0 | R52: =VLOOKUP($A52,'New Resources'!$A$4:$Y$133,R$5,FALSE)*R$4 -> 0 | S52: =VLOOKUP($A52,'New Resources'!$A$4:$Y$133,S$5,FALSE)*S$4 -> 0 | T52: =VLOOKUP($A52,'New Resources'!$A$4:$Y$133,T$5,FALSE)*T$4 -> 0 | U52: =VLOOKUP($A52,'New Resources'!$A$4:$Y$133,U$5,FALSE)*U$4 -> 0 | V52: =VLOOKUP($A52,'New Resources'!$A$4:$Y$133,V$5,FALSE)*V$4 -> 0 | W52: =VLOOKUP($A52,'New Resources'!$A$4:$Y$133,W$5,FALSE)*W$4 -> 0 | X52: =VLOOKUP($A52,'New Resources'!$A$4:$Y$133,X$5,FALSE)*X$4 -> 0 | Y52: =VLOOKUP($A52,'New Resources'!$A$4:$Y$133,Y$5,FALSE)*Y$4 -> 0 | Z52: =VLOOKUP($A52,'New Resources'!$A$4:$Y$133,Z$5,FALSE)*Z$4 -> 0 | AA52: =VLOOKUP($A52,'New Resources'!$A$4:$Y$133,AA$5,FALSE)*AA$4 -> 0 | AB52: =VLOOKUP($A52,'New Resources'!$A$4:$Y$133,AB$5,FALSE)*AB$4 -> 0 | AC52: =VLOOKUP($A52,'New Resources'!$A$4:$Y$133,AC$5,FALSE)*AC$4 -> 0 | AD52: =VLOOKUP($A52,'New Resources'!$A$4:$Y$133,AD$5,FALSE)*AD$4 -> 0 | AE52: =VLOOKUP($A52,'New Resources'!$A$4:$Y$133,AE$5,FALSE)*AE$4 -> 0
A53: 660 | C53: LT & IT Terminated SLICE Contracts (MWh)
C55: Total LT & IT SLICE Purchases (MWh) | E55: =SUM(E51:E53) -> 0 | F55: =SUM(F51:F53) -> 0 | G55: =F55+SUM(G52:G53) -> 0 | H55: 0 | I55: =H55+SUM(I52:I53) -> 0 | J55: 0 | K55: 0 | L55: 0 | M55: 0 | N55: 0 | O55: 0 | P55: 0 | Q55: 0 | R55: 0 | S55: 0 | T55: 0 | U55: 0 | V55: 0 | W55: 0 | X55: 0 | Y55: 0 | Z55: 0 | AA55: 0 | AB55: 0 | AC55: 0 | AD55: 0 | AE55: 0
B57: Tier 1 Purchase | C57: Base Period LT & IT Purchased Power (MWh) | E57: =E288 -> 0
C58: New Resource LT & IT Purchased Power (MWh) | F58: =HLOOKUP(F6,'Tiered Rates'!$B$4:$G$8,3,FALSE)+HLOOKUP(F6,'Tiered Rates'!$B$4:$G$8,4,FALSE) -> 0 | G58: =HLOOKUP(G6,'Tiered Rates'!$B$4:$G$8,3,FALSE)+HLOOKUP(G6,'Tiered Rates'!$B$4:$G$8,4,FALSE) -> 0 | H58: =HLOOKUP(H6,'Tiered Rates'!$B$4:$G$8,3,FALSE)+HLOOKUP(H6,'Tiered Rates'!$B$4:$G$8,4,FALSE) -> 0 | I58: =HLOOKUP(I6,'Tiered Rates'!$B$4:$G$8,3,FALSE)+HLOOKUP(I6,'Tiered Rates'!$B$4:$G$8,4,FALSE) -> 0 | J58: =HLOOKUP(J6,'Tiered Rates'!$B$4:$G$8,3,FALSE)+HLOOKUP(J6,'Tiered Rates'!$B$4:$G$8,4,FALSE) -> 0 | K58: =HLOOKUP(K6,'Tiered Rates'!$B$4:$G$8,3,FALSE)+HLOOKUP(K6,'Tiered Rates'!$B$4:$G$8,4,FALSE) -> 0 | L58: =HLOOKUP(L6,'Tiered Rates'!$B$4:$G$8,3,FALSE)+HLOOKUP(L6,'Tiered Rates'!$B$4:$G$8,4,FALSE) -> 0 | M58: =HLOOKUP(M6,'Tiered Rates'!$B$4:$G$8,3,FALSE)+HLOOKUP(M6,'Tiered Rates'!$B$4:$G$8,4,FALSE) -> 0 | N58: =HLOOKUP(N6,'Tiered Rates'!$B$4:$G$8,3,FALSE)+HLOOKUP(N6,'Tiered Rates'!$B$4:$G$8,4,FALSE) -> 0 | O58: =HLOOKUP(O6,'Tiered Rates'!$B$4:$G$8,3,FALSE)+HLOOKUP(O6,'Tiered Rates'!$B$4:$G$8,4,FALSE) ->  | P58: =HLOOKUP(P6,'Tiered Rates'!$B$4:$G$8,3,FALSE)+HLOOKUP(P6,'Tiered Rates'!$B$4:$G$8,4,FALSE) ->  | Q58: =HLOOKUP(Q6,'Tiered Rates'!$B$4:$G$8,3,FALSE)+HLOOKUP(Q6,'Tiered Rates'!$B$4:$G$8,4,FALSE) ->  | R58: =HLOOKUP(R6,'Tiered Rates'!$B$4:$G$8,3,FALSE)+HLOOKUP(R6,'Tiered Rates'!$B$4:$G$8,4,FALSE) ->  | S58: =HLOOKUP(S6,'Tiered Rates'!$B$4:$G$8,3,FALSE)+HLOOKUP(S6,'Tiered Rates'!$B$4:$G$8,4,FALSE) ->  | T58: =HLOOKUP(T6,'Tiered Rates'!$B$4:$G$8,3,FALSE)+HLOOKUP(T6,'Tiered Rates'!$B$4:$G$8,4,FALSE) ->  | U58: =HLOOKUP(U6,'Tiered Rates'!$B$4:$G$8,3,FALSE)+HLOOKUP(U6,'Tiered Rates'!$B$4:$G$8,4,FALSE) ->  | V58: =HLOOKUP(V6,'Tiered Rates'!$B$4:$G$8,3,FALSE)+HLOOKUP(V6,'Tiered Rates'!$B$4:$G$8,4,FALSE) ->  | W58: =HLOOKUP(W6,'Tiered Rates'!$B$4:$G$8,3,FALSE)+HLOOKUP(W6,'Tiered Rates'!$B$4:$G$8,4,FALSE) ->  | X58: =HLOOKUP(X6,'Tiered Rates'!$B$4:$G$8,3,FALSE)+HLOOKUP(X6,'Tiered Rates'!$B$4:$G$8,4,FALSE) ->  | Y58: =HLOOKUP(Y6,'Tiered Rates'!$B$4:$G$8,3,FALSE)+HLOOKUP(Y6,'Tiered Rates'!$B$4:$G$8,4,FALSE) ->  | Z58: =HLOOKUP(Z6,'Tiered Rates'!$B$4:$G$8,3,FALSE)+HLOOKUP(Z6,'Tiered Rates'!$B$4:$G$8,4,FALSE) ->  | AA58: =HLOOKUP(AA6,'Tiered Rates'!$B$4:$G$8,3,FALSE)+HLOOKUP(AA6,'Tiered Rates'!$B$4:$G$8,4,FALSE) ->  | AB58: =HLOOKUP(AB6,'Tiered Rates'!$B$4:$G$8,3,FALSE)+HLOOKUP(AB6,'Tiered Rates'!$B$4:$G$8,4,FALSE) ->  | AC58: =HLOOKUP(AC6,'Tiered Rates'!$B$4:$G$8,3,FALSE)+HLOOKUP(AC6,'Tiered Rates'!$B$4:$G$8,4,FALSE) ->  | AD58: =HLOOKUP(AD6,'Tiered Rates'!$B$4:$G$8,3,FALSE)+HLOOKUP(AD6,'Tiered Rates'!$B$4:$G$8,4,FALSE) ->  | AE58: =HLOOKUP(AE6,'Tiered Rates'!$B$4:$G$8,3,FALSE)+HLOOKUP(AE6,'Tiered Rates'!$B$4:$G$8,4,FALSE) -> 
A59: 660 | C59: LT & IT Terminated Contracts (MWh) | F59: =VLOOKUP($A59,'New Resources'!$A$4:$Y$133,F$5,FALSE)*F$4 -> 0 | G59: =VLOOKUP($A59,'New Resources'!$A$4:$Y$133,G$5,FALSE)*G$4 -> 0 | H59: =VLOOKUP($A59,'New Resources'!$A$4:$Y$133,H$5,FALSE)*H$4 -> 0 | I59: =VLOOKUP($A59,'New Resources'!$A$4:$Y$133,I$5,FALSE)*I$4 -> 0 | J59: =VLOOKUP($A59,'New Resources'!$A$4:$Y$133,J$5,FALSE)*J$4 -> 0 | K59: =VLOOKUP($A59,'New Resources'!$A$4:$Y$133,K$5,FALSE)*K$4 -> 0 | L59: =VLOOKUP($A59,'New Resources'!$A$4:$Y$133,L$5,FALSE)*L$4 -> 0 | M59: =VLOOKUP($A59,'New Resources'!$A$4:$Y$133,M$5,FALSE)*M$4 -> 0 | N59: =VLOOKUP($A59,'New Resources'!$A$4:$Y$133,N$5,FALSE)*N$4 -> 0 | O59: =VLOOKUP($A59,'New Resources'!$A$4:$Y$133,O$5,FALSE)*O$4 -> 0 | P59: =VLOOKUP($A59,'New Resources'!$A$4:$Y$133,P$5,FALSE)*P$4 -> 0 | Q59: =VLOOKUP($A59,'New Resources'!$A$4:$Y$133,Q$5,FALSE)*Q$4 -> 0 | R59: =VLOOKUP($A59,'New Resources'!$A$4:$Y$133,R$5,FALSE)*R$4 -> 0 | S59: =VLOOKUP($A59,'New Resources'!$A$4:$Y$133,S$5,FALSE)*S$4 -> 0 | T59: =VLOOKUP($A59,'New Resources'!$A$4:$Y$133,T$5,FALSE)*T$4 -> 0 | U59: =VLOOKUP($A59,'New Resources'!$A$4:$Y$133,U$5,FALSE)*U$4 -> 0 | V59: =VLOOKUP($A59,'New Resources'!$A$4:$Y$133,V$5,FALSE)*V$4 -> 0 | W59: =VLOOKUP($A59,'New Resources'!$A$4:$Y$133,W$5,FALSE)*W$4 -> 0 | X59: =VLOOKUP($A59,'New Resources'!$A$4:$Y$133,X$5,FALSE)*X$4 -> 0 | Y59: =VLOOKUP($A59,'New Resources'!$A$4:$Y$133,Y$5,FALSE)*Y$4 -> 0 | Z59: =VLOOKUP($A59,'New Resources'!$A$4:$Y$133,Z$5,FALSE)*Z$4 -> 0 | AA59: =VLOOKUP($A59,'New Resources'!$A$4:$Y$133,AA$5,FALSE)*AA$4 -> 0 | AB59: =VLOOKUP($A59,'New Resources'!$A$4:$Y$133,AB$5,FALSE)*AB$4 -> 0 | AC59: =VLOOKUP($A59,'New Resources'!$A$4:$Y$133,AC$5,FALSE)*AC$4 -> 0 | AD59: =VLOOKUP($A59,'New Resources'!$A$4:$Y$133,AD$5,FALSE)*AD$4 -> 0 | AE59: =VLOOKUP($A59,'New Resources'!$A$4:$Y$133,AE$5,FALSE)*AE$4 -> 0
C61: Total LT & IT Tier 1 Purchases (MWh) | E61: =SUM(E57:E59) -> 0 | F61: =SUM(F57:F59) -> 0 | G61: 0 | H61: 0 | I61: 0 | J61: 0 | K61: 0 | L61: 0 | M61: 0 | N61: 0
B63: Tier 2 Purchase | C63: Base Period LT & IT Purchased Power (MWh) | E63: 0 | F63: =E63 -> 0 | G63: =F63 -> 0 | H63: 0 | I63: 0 | J63: 0 | K63: 0 | L63: 0 | M63: 0 | N63: 0 | O63: 0 | P63: 0 | Q63: 0 | R63: 0 | S63: 0 | T63: 0 | U63: 0 | V63: 0 | W63: 0 | X63: 0 | Y63: 0 | Z63: 0 | AA63: 0 | AB63: 0 | AC63: 0 | AD63: 0 | AE63: 0
A64: 720 | C64: New Resource LT & IT Purchased Power (MWh) | F64: =VLOOKUP($A64,'New Resources'!$A$4:$Y$133,F$5,FALSE)*F$4 -> 0 | G64: =VLOOKUP($A64,'New Resources'!$A$4:$Y$133,G$5,FALSE)*G$4 -> 0 | H64: =VLOOKUP($A64,'New Resources'!$A$4:$Y$133,H$5,FALSE)*H$4 -> 0 | I64: =VLOOKUP($A64,'New Resources'!$A$4:$Y$133,I$5,FALSE)*I$4 -> 0 | J64: =VLOOKUP($A64,'New Resources'!$A$4:$Y$133,J$5,FALSE)*J$4 -> 0 | K64: =VLOOKUP($A64,'New Resources'!$A$4:$Y$133,K$5,FALSE)*K$4 -> 0 | L64: =VLOOKUP($A64,'New Resources'!$A$4:$Y$133,L$5,FALSE)*L$4 -> 0 | M64: =VLOOKUP($A64,'New Resources'!$A$4:$Y$133,M$5,FALSE)*M$4 -> 0 | N64: =VLOOKUP($A64,'New Resources'!$A$4:$Y$133,N$5,FALSE)*N$4 -> 0 | O64: =VLOOKUP($A64,'New Resources'!$A$4:$Y$133,O$5,FALSE)*O$4 -> 0 | P64: =VLOOKUP($A64,'New Resources'!$A$4:$Y$133,P$5,FALSE)*P$4 -> 0 | Q64: =VLOOKUP($A64,'New Resources'!$A$4:$Y$133,Q$5,FALSE)*Q$4 -> 0 | R64: =VLOOKUP($A64,'New Resources'!$A$4:$Y$133,R$5,FALSE)*R$4 -> 0 | S64: =VLOOKUP($A64,'New Resources'!$A$4:$Y$133,S$5,FALSE)*S$4 -> 0 | T64: =VLOOKUP($A64,'New Resources'!$A$4:$Y$133,T$5,FALSE)*T$4 -> 0 | U64: =VLOOKUP($A64,'New Resources'!$A$4:$Y$133,U$5,FALSE)*U$4 -> 0 | V64: =VLOOKUP($A64,'New Resources'!$A$4:$Y$133,V$5,FALSE)*V$4 -> 0 | W64: =VLOOKUP($A64,'New Resources'!$A$4:$Y$133,W$5,FALSE)*W$4 -> 0 | X64: =VLOOKUP($A64,'New Resources'!$A$4:$Y$133,X$5,FALSE)*X$4 -> 0 | Y64: =VLOOKUP($A64,'New Resources'!$A$4:$Y$133,Y$5,FALSE)*Y$4 -> 0 | Z64: =VLOOKUP($A64,'New Resources'!$A$4:$Y$133,Z$5,FALSE)*Z$4 -> 0 | AA64: =VLOOKUP($A64,'New Resources'!$A$4:$Y$133,AA$5,FALSE)*AA$4 -> 0 | AB64: =VLOOKUP($A64,'New Resources'!$A$4:$Y$133,AB$5,FALSE)*AB$4 -> 0 | AC64: =VLOOKUP($A64,'New Resources'!$A$4:$Y$133,AC$5,FALSE)*AC$4 -> 0 | AD64: =VLOOKUP($A64,'New Resources'!$A$4:$Y$133,AD$5,FALSE)*AD$4 -> 0 | AE64: =VLOOKUP($A64,'New Resources'!$A$4:$Y$133,AE$5,FALSE)*AE$4 -> 0
A65: 660 | C65: LT & IT Terminated Contracts (MWh) | F65: =VLOOKUP($A65,'New Resources'!$A$4:$Y$133,F$5,FALSE)*F$4 -> 0 | G65: =VLOOKUP($A65,'New Resources'!$A$4:$Y$133,G$5,FALSE)*G$4 -> 0 | H65: =VLOOKUP($A65,'New Resources'!$A$4:$Y$133,H$5,FALSE)*H$4 -> 0 | I65: =VLOOKUP($A65,'New Resources'!$A$4:$Y$133,I$5,FALSE)*I$4 -> 0 | J65: =VLOOKUP($A65,'New Resources'!$A$4:$Y$133,J$5,FALSE)*J$4 -> 0 | K65: =VLOOKUP($A65,'New Resources'!$A$4:$Y$133,K$5,FALSE)*K$4 -> 0 | L65: =VLOOKUP($A65,'New Resources'!$A$4:$Y$133,L$5,FALSE)*L$4 -> 0 | M65: =VLOOKUP($A65,'New Resources'!$A$4:$Y$133,M$5,FALSE)*M$4 -> 0 | N65: =VLOOKUP($A65,'New Resources'!$A$4:$Y$133,N$5,FALSE)*N$4 -> 0 | O65: =VLOOKUP($A65,'New Resources'!$A$4:$Y$133,O$5,FALSE)*O$4 -> 0 | P65: =VLOOKUP($A65,'New Resources'!$A$4:$Y$133,P$5,FALSE)*P$4 -> 0 | Q65: =VLOOKUP($A65,'New Resources'!$A$4:$Y$133,Q$5,FALSE)*Q$4 -> 0 | R65: =VLOOKUP($A65,'New Resources'!$A$4:$Y$133,R$5,FALSE)*R$4 -> 0 | S65: =VLOOKUP($A65,'New Resources'!$A$4:$Y$133,S$5,FALSE)*S$4 -> 0 | T65: =VLOOKUP($A65,'New Resources'!$A$4:$Y$133,T$5,FALSE)*T$4 -> 0 | U65: =VLOOKUP($A65,'New Resources'!$A$4:$Y$133,U$5,FALSE)*U$4 -> 0 | V65: =VLOOKUP($A65,'New Resources'!$A$4:$Y$133,V$5,FALSE)*V$4 -> 0 | W65: =VLOOKUP($A65,'New Resources'!$A$4:$Y$133,W$5,FALSE)*W$4 -> 0 | X65: =VLOOKUP($A65,'New Resources'!$A$4:$Y$133,X$5,FALSE)*X$4 -> 0 | Y65: =VLOOKUP($A65,'New Resources'!$A$4:$Y$133,Y$5,FALSE)*Y$4 -> 0 | Z65: =VLOOKUP($A65,'New Resources'!$A$4:$Y$133,Z$5,FALSE)*Z$4 -> 0 | AA65: =VLOOKUP($A65,'New Resources'!$A$4:$Y$133,AA$5,FALSE)*AA$4 -> 0 | AB65: =VLOOKUP($A65,'New Resources'!$A$4:$Y$133,AB$5,FALSE)*AB$4 -> 0 | AC65: =VLOOKUP($A65,'New Resources'!$A$4:$Y$133,AC$5,FALSE)*AC$4 -> 0 | AD65: =VLOOKUP($A65,'New Resources'!$A$4:$Y$133,AD$5,FALSE)*AD$4 -> 0 | AE65: =VLOOKUP($A65,'New Resources'!$A$4:$Y$133,AE$5,FALSE)*AE$4 -> 0
C67: Total LT & IT Tier 2 Purchases (MWh) | E67: =SUM(E63:E65) -> 0 | F67: =SUM(F63:F65) -> 0 | G67: =F67+SUM(G64:G65) -> 0 | H67: 0 | I67: 0 | J67: 0 | K67: 0 | L67: 0 | M67: 0 | N67: 0 | O67: 0 | P67: 0 | Q67: 0 | R67: 0 | S67: 0 | T67: 0 | U67: 0 | V67: 0 | W67: 0 | X67: 0 | Y67: 0 | Z67: 0 | AA67: 0 | AB67: 0 | AC67: 0 | AD67: 0 | AE67: 0
B69: Other BPA Purchase | C69: Base Period LT & IT Purchased Power (MWh) | E69: 0 | F69: =E69 -> 0 | G69: =F69 -> 0 | H69: 0 | I69: 0 | J69: 0 | K69: 0 | L69: 0 | M69: 0 | N69: 0 | O69: 0 | P69: 0 | Q69: 0 | R69: 0 | S69: 0 | T69: 0 | U69: 0 | V69: 0 | W69: 0 | X69: 0 | Y69: 0 | Z69: 0 | AA69: 0 | AB69: 0 | AC69: 0 | AD69: 0 | AE69: 0
A70: 740 | C70: New Resource LT & IT Purchased Power (MWh) | F70: =VLOOKUP($A70,'New Resources'!$A$4:$Y$133,F$5,FALSE)*F$4 -> 0 | G70: =VLOOKUP($A70,'New Resources'!$A$4:$Y$133,G$5,FALSE)*G$4 -> 0 | H70: =VLOOKUP($A70,'New Resources'!$A$4:$Y$133,H$5,FALSE)*H$4 -> 0 | I70: =VLOOKUP($A70,'New Resources'!$A$4:$Y$133,I$5,FALSE)*I$4 -> 0 | J70: =VLOOKUP($A70,'New Resources'!$A$4:$Y$133,J$5,FALSE)*J$4 -> 0 | K70: =VLOOKUP($A70,'New Resources'!$A$4:$Y$133,K$5,FALSE)*K$4 -> 0 | L70: =VLOOKUP($A70,'New Resources'!$A$4:$Y$133,L$5,FALSE)*L$4 -> 0 | M70: =VLOOKUP($A70,'New Resources'!$A$4:$Y$133,M$5,FALSE)*M$4 -> 0 | N70: =VLOOKUP($A70,'New Resources'!$A$4:$Y$133,N$5,FALSE)*N$4 -> 0 | O70: =VLOOKUP($A70,'New Resources'!$A$4:$Y$133,O$5,FALSE)*O$4 -> 0 | P70: =VLOOKUP($A70,'New Resources'!$A$4:$Y$133,P$5,FALSE)*P$4 -> 0 | Q70: =VLOOKUP($A70,'New Resources'!$A$4:$Y$133,Q$5,FALSE)*Q$4 -> 0 | R70: =VLOOKUP($A70,'New Resources'!$A$4:$Y$133,R$5,FALSE)*R$4 -> 0 | S70: =VLOOKUP($A70,'New Resources'!$A$4:$Y$133,S$5,FALSE)*S$4 -> 0 | T70: =VLOOKUP($A70,'New Resources'!$A$4:$Y$133,T$5,FALSE)*T$4 -> 0 | U70: =VLOOKUP($A70,'New Resources'!$A$4:$Y$133,U$5,FALSE)*U$4 -> 0 | V70: =VLOOKUP($A70,'New Resources'!$A$4:$Y$133,V$5,FALSE)*V$4 -> 0 | W70: =VLOOKUP($A70,'New Resources'!$A$4:$Y$133,W$5,FALSE)*W$4 -> 0 | X70: =VLOOKUP($A70,'New Resources'!$A$4:$Y$133,X$5,FALSE)*X$4 -> 0 | Y70: =VLOOKUP($A70,'New Resources'!$A$4:$Y$133,Y$5,FALSE)*Y$4 -> 0 | Z70: =VLOOKUP($A70,'New Resources'!$A$4:$Y$133,Z$5,FALSE)*Z$4 -> 0 | AA70: =VLOOKUP($A70,'New Resources'!$A$4:$Y$133,AA$5,FALSE)*AA$4 -> 0 | AB70: =VLOOKUP($A70,'New Resources'!$A$4:$Y$133,AB$5,FALSE)*AB$4 -> 0 | AC70: =VLOOKUP($A70,'New Resources'!$A$4:$Y$133,AC$5,FALSE)*AC$4 -> 0 | AD70: =VLOOKUP($A70,'New Resources'!$A$4:$Y$133,AD$5,FALSE)*AD$4 -> 0 | AE70: =VLOOKUP($A70,'New Resources'!$A$4:$Y$133,AE$5,FALSE)*AE$4 -> 0
A71: 660 | C71: LT & IT Terminated Contracts (MWh) | F71: =VLOOKUP($A71,'New Resources'!$A$4:$Y$133,F$5,FALSE)*F$4 -> 0 | G71: =VLOOKUP($A71,'New Resources'!$A$4:$Y$133,G$5,FALSE)*G$4 -> 0 | H71: =VLOOKUP($A71,'New Resources'!$A$4:$Y$133,H$5,FALSE)*H$4 -> 0 | I71: =VLOOKUP($A71,'New Resources'!$A$4:$Y$133,I$5,FALSE)*I$4 -> 0 | J71: =VLOOKUP($A71,'New Resources'!$A$4:$Y$133,J$5,FALSE)*J$4 -> 0 | K71: =VLOOKUP($A71,'New Resources'!$A$4:$Y$133,K$5,FALSE)*K$4 -> 0 | L71: =VLOOKUP($A71,'New Resources'!$A$4:$Y$133,L$5,FALSE)*L$4 -> 0 | M71: =VLOOKUP($A71,'New Resources'!$A$4:$Y$133,M$5,FALSE)*M$4 -> 0 | N71: =VLOOKUP($A71,'New Resources'!$A$4:$Y$133,N$5,FALSE)*N$4 -> 0 | O71: =VLOOKUP($A71,'New Resources'!$A$4:$Y$133,O$5,FALSE)*O$4 -> 0 | P71: =VLOOKUP($A71,'New Resources'!$A$4:$Y$133,P$5,FALSE)*P$4 -> 0 | Q71: =VLOOKUP($A71,'New Resources'!$A$4:$Y$133,Q$5,FALSE)*Q$4 -> 0 | R71: =VLOOKUP($A71,'New Resources'!$A$4:$Y$133,R$5,FALSE)*R$4 -> 0 | S71: =VLOOKUP($A71,'New Resources'!$A$4:$Y$133,S$5,FALSE)*S$4 -> 0 | T71: =VLOOKUP($A71,'New Resources'!$A$4:$Y$133,T$5,FALSE)*T$4 -> 0 | U71: =VLOOKUP($A71,'New Resources'!$A$4:$Y$133,U$5,FALSE)*U$4 -> 0 | V71: =VLOOKUP($A71,'New Resources'!$A$4:$Y$133,V$5,FALSE)*V$4 -> 0 | W71: =VLOOKUP($A71,'New Resources'!$A$4:$Y$133,W$5,FALSE)*W$4 -> 0 | X71: =VLOOKUP($A71,'New Resources'!$A$4:$Y$133,X$5,FALSE)*X$4 -> 0 | Y71: =VLOOKUP($A71,'New Resources'!$A$4:$Y$133,Y$5,FALSE)*Y$4 -> 0 | Z71: =VLOOKUP($A71,'New Resources'!$A$4:$Y$133,Z$5,FALSE)*Z$4 -> 0 | AA71: =VLOOKUP($A71,'New Resources'!$A$4:$Y$133,AA$5,FALSE)*AA$4 -> 0 | AB71: =VLOOKUP($A71,'New Resources'!$A$4:$Y$133,AB$5,FALSE)*AB$4 -> 0 | AC71: =VLOOKUP($A71,'New Resources'!$A$4:$Y$133,AC$5,FALSE)*AC$4 -> 0 | AD71: =VLOOKUP($A71,'New Resources'!$A$4:$Y$133,AD$5,FALSE)*AD$4 -> 0 | AE71: =VLOOKUP($A71,'New Resources'!$A$4:$Y$133,AE$5,FALSE)*AE$4 -> 0
C73: Total LT & IT Other BPA Purchases (MWh) | E73: =SUM(E69:E71) -> 0 | F73: =SUM(F69:F71) -> 0 | G73: =F73+SUM(G70:G71) -> 0 | H73: 0 | I73: 0 | J73: 0 | K73: 0 | L73: 0 | M73: 0 | N73: 0 | O73: 0 | P73: 0 | Q73: 0 | R73: 0 | S73: 0 | T73: 0 | U73: 0 | V73: 0 | W73: 0 | X73: 0 | Y73: 0 | Z73: 0 | AA73: 0 | AB73: 0 | AC73: 0 | AD73: 0 | AE73: 0
B75: Total | C75: Total Market LT & IT Purchases (MWh) | E75: =E43 -> 12349623 | F75: =F43 -> 12349623 | G75: 12349623 | H75: 12349623 | I75: 12349623 | J75: 12349623 | K75: 12349623 | L75: 12349623 | M75: 12349623 | N75: 12349623 | O75: 12349623 | P75: 12349623 | Q75: 12349623 | R75: 12349623 | S75: 12349623 | T75: 12349623 | U75: 12349623 | V75: 12349623 | W75: 12349623 | X75: 12349623 | Y75: 12349623 | Z75: 12349623 | AA75: 12349623 | AB75: 12349623 | AC75: 12349623 | AD75: 12349623 | AE75: 12349623
C76: Total PF + SLICE Purchases (MWh) | E76: =E49+E55 -> 0 | F76: =F49+F55 -> 0 | G76: 0 | H76: 0 | I76: 0 | J76: 0 | K76: 0 | L76: 0 | M76: 0 | N76: 0 | O76: 0 | P76: 0 | Q76: 0 | R76: 0 | S76: 0 | T76: 0 | U76: 0 | V76: 0 | W76: 0 | X76: 0 | Y76: 0 | Z76: 0 | AA76: 0 | AB76: 0 | AC76: 0 | AD76: 0 | AE76: 0
C77: Total Tier 1 Purchases (MWh) | E77: =E61 -> 0 | F77: =F61 -> 0 | G77: 0 | H77: 0 | I77: 0 | J77: 0 | K77: 0 | L77: 0 | M77: 0 | N77: 0
C78: Total Tier 2 + Other BPA Purchases (MWh) | E78: =E67+E73 -> 0 | F78: =F67+F73 -> 0 | G78: 0 | H78: 0 | I78: 0 | J78: 0 | K78: 0 | L78: 0 | M78: 0 | N78: 0 | O78: 0 | P78: 0 | Q78: 0 | R78: 0 | S78: 0 | T78: 0 | U78: 0 | V78: 0 | W78: 0 | X78: 0 | Y78: 0 | Z78: 0 | AA78: 0 | AB78: 0 | AC78: 0 | AD78: 0 | AE78: 0
C79: Total LT & IT Purchases (MWh) | E79: =SUM(E75:E78) -> 12349623 | F79: =SUM(F75:F78) -> 12349623 | G79: 12349623 | H79: 12349623 | I79: 12349623 | J79: 12349623 | K79: 12349623 | L79: 12349623 | M79: 12349623 | N79: 12349623
B81: New resource
A82: 107000 | B82: Plant Adds | C82: Annual New Resource Plant Adds (MWh) | F82: =(VLOOKUP($A82,'New Resources'!$A$4:$Y$133,F$5,FALSE)*F$4) -> 0 | G82: =(VLOOKUP($A82,'New Resources'!$A$4:$Y$133,G$5,FALSE)*G$4) -> 0 | H82: =(VLOOKUP($A82,'New Resources'!$A$4:$Y$133,H$5,FALSE)*H$4) -> 0 | I82: =(VLOOKUP($A82,'New Resources'!$A$4:$Y$133,I$5,FALSE)*I$4) -> 0 | J82: =(VLOOKUP($A82,'New Resources'!$A$4:$Y$133,J$5,FALSE)*J$4) -> 0 | K82: =(VLOOKUP($A82,'New Resources'!$A$4:$Y$133,K$5,FALSE)*K$4) -> 0 | L82: =(VLOOKUP($A82,'New Resources'!$A$4:$Y$133,L$5,FALSE)*L$4) -> 0 | M82: =(VLOOKUP($A82,'New Resources'!$A$4:$Y$133,M$5,FALSE)*M$4) -> 0 | N82: =(VLOOKUP($A82,'New Resources'!$A$4:$Y$133,N$5,FALSE)*N$4) -> 0 | O82: =(VLOOKUP($A82,'New Resources'!$A$4:$Y$133,O$5,FALSE)*O$4) -> 0 | P82: =(VLOOKUP($A82,'New Resources'!$A$4:$Y$133,P$5,FALSE)*P$4) -> 0 | Q82: =(VLOOKUP($A82,'New Resources'!$A$4:$Y$133,Q$5,FALSE)*Q$4) -> 0 | R82: =(VLOOKUP($A82,'New Resources'!$A$4:$Y$133,R$5,FALSE)*R$4) -> 0 | S82: =(VLOOKUP($A82,'New Resources'!$A$4:$Y$133,S$5,FALSE)*S$4) -> 0 | T82: =(VLOOKUP($A82,'New Resources'!$A$4:$Y$133,T$5,FALSE)*T$4) -> 0 | U82: =(VLOOKUP($A82,'New Resources'!$A$4:$Y$133,U$5,FALSE)*U$4) -> 0 | V82: =(VLOOKUP($A82,'New Resources'!$A$4:$Y$133,V$5,FALSE)*V$4) -> 0 | W82: =(VLOOKUP($A82,'New Resources'!$A$4:$Y$133,W$5,FALSE)*W$4) -> 0 | X82: =(VLOOKUP($A82,'New Resources'!$A$4:$Y$133,X$5,FALSE)*X$4) -> 0 | Y82: =(VLOOKUP($A82,'New Resources'!$A$4:$Y$133,Y$5,FALSE)*Y$4) -> 0 | Z82: =(VLOOKUP($A82,'New Resources'!$A$4:$Y$133,Z$5,FALSE)*Z$4) -> 0 | AA82: =(VLOOKUP($A82,'New Resources'!$A$4:$Y$133,AA$5,FALSE)*AA$4) -> 0 | AB82: =(VLOOKUP($A82,'New Resources'!$A$4:$Y$133,AB$5,FALSE)*AB$4) -> 0 | AC82: =(VLOOKUP($A82,'New Resources'!$A$4:$Y$133,AC$5,FALSE)*AC$4) -> 0 | AD82: =(VLOOKUP($A82,'New Resources'!$A$4:$Y$133,AD$5,FALSE)*AD$4) -> 0 | AE82: =(VLOOKUP($A82,'New Resources'!$A$4:$Y$133,AE$5,FALSE)*AE$4) -> 0
C85: Cumulative New Resource Plant Adds | E85: =E82 -> 0 | F85: =F82 -> 0 | G85: =F85+G82 -> 0 | H85: =G85+H82 -> 0 | I85: 0 | J85: 0 | K85: 0 | L85: 0 | M85: 0 | N85: 0 | O85: 0 | P85: 0 | Q85: 0 | R85: 0 | S85: 0 | T85: 0 | U85: 0 | V85: 0 | W85: 0 | X85: 0 | Y85: 0 | Z85: 0 | AA85: 0 | AB85: 0 | AC85: 0 | AD85: 0 | AE85: 0
B87: Sales for | C87: Base Period LT & IT Sales for Resale (MWh) | E87: =E259+E260+E261+E263+E264 -> 6700 | F87: =E87 -> 6700 | G87: =F87 -> 6700 | H87: 6700 | I87: 6700 | J87: 6700 | K87: 6700 | L87: 6700 | M87: 6700 | N87: 6700 | O87: 6700 | P87: 6700 | Q87: 6700 | R87: 6700 | S87: 6700 | T87: 6700 | U87: 6700 | V87: 6700 | W87: 6700 | X87: 6700 | Y87: 6700 | Z87: 6700 | AA87: 6700 | AB87: 6700 | AC87: 6700 | AD87: 6700 | AE87: 6700
A88: 109000 | B88: Resale | C88: New Resource LT & IT Sales for Resale (MWh) | F88: =VLOOKUP($A88,'New Resources'!$A$4:$Y$133,F$5,FALSE)*F$4 -> 0 | G88: =VLOOKUP($A88,'New Resources'!$A$4:$Y$133,G$5,FALSE)*G$4 -> 0 | H88: =VLOOKUP($A88,'New Resources'!$A$4:$Y$133,H$5,FALSE)*H$4 -> 0 | I88: =VLOOKUP($A88,'New Resources'!$A$4:$Y$133,I$5,FALSE)*I$4 -> 0 | J88: =VLOOKUP($A88,'New Resources'!$A$4:$Y$133,J$5,FALSE)*J$4 -> 0 | K88: =VLOOKUP($A88,'New Resources'!$A$4:$Y$133,K$5,FALSE)*K$4 -> 0 | L88: =VLOOKUP($A88,'New Resources'!$A$4:$Y$133,L$5,FALSE)*L$4 -> 0 | M88: =VLOOKUP($A88,'New Resources'!$A$4:$Y$133,M$5,FALSE)*M$4 -> 0 | N88: =VLOOKUP($A88,'New Resources'!$A$4:$Y$133,N$5,FALSE)*N$4 -> 0 | O88: =VLOOKUP($A88,'New Resources'!$A$4:$Y$133,O$5,FALSE)*O$4 -> 0 | P88: =VLOOKUP($A88,'New Resources'!$A$4:$Y$133,P$5,FALSE)*P$4 -> 0 | Q88: =VLOOKUP($A88,'New Resources'!$A$4:$Y$133,Q$5,FALSE)*Q$4 -> 0 | R88: =VLOOKUP($A88,'New Resources'!$A$4:$Y$133,R$5,FALSE)*R$4 -> 0 | S88: =VLOOKUP($A88,'New Resources'!$A$4:$Y$133,S$5,FALSE)*S$4 -> 0 | T88: =VLOOKUP($A88,'New Resources'!$A$4:$Y$133,T$5,FALSE)*T$4 -> 0 | U88: =VLOOKUP($A88,'New Resources'!$A$4:$Y$133,U$5,FALSE)*U$4 -> 0 | V88: =VLOOKUP($A88,'New Resources'!$A$4:$Y$133,V$5,FALSE)*V$4 -> 0 | W88: =VLOOKUP($A88,'New Resources'!$A$4:$Y$133,W$5,FALSE)*W$4 -> 0 | X88: =VLOOKUP($A88,'New Resources'!$A$4:$Y$133,X$5,FALSE)*X$4 -> 0 | Y88: =VLOOKUP($A88,'New Resources'!$A$4:$Y$133,Y$5,FALSE)*Y$4 -> 0 | Z88: =VLOOKUP($A88,'New Resources'!$A$4:$Y$133,Z$5,FALSE)*Z$4 -> 0 | AA88: =VLOOKUP($A88,'New Resources'!$A$4:$Y$133,AA$5,FALSE)*AA$4 -> 0 | AB88: =VLOOKUP($A88,'New Resources'!$A$4:$Y$133,AB$5,FALSE)*AB$4 -> 0 | AC88: =VLOOKUP($A88,'New Resources'!$A$4:$Y$133,AC$5,FALSE)*AC$4 -> 0 | AD88: =VLOOKUP($A88,'New Resources'!$A$4:$Y$133,AD$5,FALSE)*AD$4 -> 0 | AE88: =VLOOKUP($A88,'New Resources'!$A$4:$Y$133,AE$5,FALSE)*AE$4 -> 0
A89: 112000 | C89: LT & IT Sales for Resale Terminated Contracts (MWh) | F89: =VLOOKUP($A89,'New Resources'!$A$4:$Y$133,F$5,FALSE)*F$4 -> 0 | G89: =VLOOKUP($A89,'New Resources'!$A$4:$Y$133,G$5,FALSE)*G$4 -> 0 | H89: =VLOOKUP($A89,'New Resources'!$A$4:$Y$133,H$5,FALSE)*H$4 -> 0 | I89: =VLOOKUP($A89,'New Resources'!$A$4:$Y$133,I$5,FALSE)*I$4 -> 0 | J89: =VLOOKUP($A89,'New Resources'!$A$4:$Y$133,J$5,FALSE)*J$4 -> 0 | K89: =VLOOKUP($A89,'New Resources'!$A$4:$Y$133,K$5,FALSE)*K$4 -> 0 | L89: =VLOOKUP($A89,'New Resources'!$A$4:$Y$133,L$5,FALSE)*L$4 -> 0 | M89: =VLOOKUP($A89,'New Resources'!$A$4:$Y$133,M$5,FALSE)*M$4 -> 0 | N89: =VLOOKUP($A89,'New Resources'!$A$4:$Y$133,N$5,FALSE)*N$4 -> 0 | O89: =VLOOKUP($A89,'New Resources'!$A$4:$Y$133,O$5,FALSE)*O$4 -> 0 | P89: =VLOOKUP($A89,'New Resources'!$A$4:$Y$133,P$5,FALSE)*P$4 -> 0 | Q89: =VLOOKUP($A89,'New Resources'!$A$4:$Y$133,Q$5,FALSE)*Q$4 -> 0 | R89: =VLOOKUP($A89,'New Resources'!$A$4:$Y$133,R$5,FALSE)*R$4 -> 0 | S89: =VLOOKUP($A89,'New Resources'!$A$4:$Y$133,S$5,FALSE)*S$4 -> 0 | T89: =VLOOKUP($A89,'New Resources'!$A$4:$Y$133,T$5,FALSE)*T$4 -> 0 | U89: =VLOOKUP($A89,'New Resources'!$A$4:$Y$133,U$5,FALSE)*U$4 -> 0 | V89: =VLOOKUP($A89,'New Resources'!$A$4:$Y$133,V$5,FALSE)*V$4 -> 0 | W89: =VLOOKUP($A89,'New Resources'!$A$4:$Y$133,W$5,FALSE)*W$4 -> 0 | X89: =VLOOKUP($A89,'New Resources'!$A$4:$Y$133,X$5,FALSE)*X$4 -> 0 | Y89: =VLOOKUP($A89,'New Resources'!$A$4:$Y$133,Y$5,FALSE)*Y$4 -> 0 | Z89: =VLOOKUP($A89,'New Resources'!$A$4:$Y$133,Z$5,FALSE)*Z$4 -> 0 | AA89: =VLOOKUP($A89,'New Resources'!$A$4:$Y$133,AA$5,FALSE)*AA$4 -> 0 | AB89: =VLOOKUP($A89,'New Resources'!$A$4:$Y$133,AB$5,FALSE)*AB$4 -> 0 | AC89: =VLOOKUP($A89,'New Resources'!$A$4:$Y$133,AC$5,FALSE)*AC$4 -> 0 | AD89: =VLOOKUP($A89,'New Resources'!$A$4:$Y$133,AD$5,FALSE)*AD$4 -> 0 | AE89: =VLOOKUP($A89,'New Resources'!$A$4:$Y$133,AE$5,FALSE)*AE$4 -> 0
C91: Total LT & IT Sales for Resale (MWh) | E91: =SUM(E87:E89) -> 6700 | F91: =SUM(F87:F89) -> 6700 | G91: =F91+SUM(G88:G89) -> 6700 | H91: 6700 | I91: 6700 | J91: 6700 | K91: 6700 | L91: 6700 | M91: 6700 | N91: 6700 | O91: 6700 | P91: 6700 | Q91: 6700 | R91: 6700 | S91: 6700 | T91: 6700 | U91: 6700 | V91: 6700 | W91: 6700 | X91: 6700 | Y91: 6700 | Z91: 6700 | AA91: 6700 | AB91: 6700 | AC91: 6700 | AD91: 6700 | AE91: 6700
C95: CALCULATION OF ST PURCHASED POWER MWh and ST Sales for Resale MWh
C97: Base ST Purchases (MWh) | E97: =E229+E232+E233+E234+E235 -> 4254131 | F97: =E97 -> 4254131 | G97: =F97 -> 4254131 | H97: 4254131 | I97: 4254131 | J97: 4254131 | K97: 4254131 | L97: 4254131 | M97: 4254131 | N97: 4254131 | O97: 4254131 | P97: 4254131 | Q97: 4254131 | R97: 4254131 | S97: 4254131 | T97: 4254131 | U97: 4254131 | V97: 4254131 | W97: 4254131 | X97: 4254131 | Y97: 4254131 | Z97: 4254131 | AA97: 4254131 | AB97: 4254131 | AC97: 4254131 | AD97: 4254131 | AE97: 4254131
C98: Cumulative System Load Growth | E98: =E200 -> 0 | F98: =E98+F200 -> -33368.6496 | G98: -33368.6496 | H98: 63654.6048 | I98: 63654.6048 | J98: 245516.832 | K98: 245516.832 | L98: 410661.7728 | M98: 720255.9552 | N98: 720255.9552
C99: Total Load to be met with ST Purchases and New Resource Adds | F99: =F97+F98 -> 4220762.35 | G99: =G97+G98 -> 4220762.35 | H99: 4317785.605 | I99: 4317785.605 | J99: 4499647.832 | K99: 4499647.832 | L99: 4664792.773 | M99: 4974386.955 | N99: 4974386.955
C101: Total Annual New Resource LT & IT Purchases (MWh) | F101: =F79-$E$79 -> 0 | G101: =G79-$E$79 -> 0 | H101: 0 | I101: 0 | J101: 0 | K101: 0 | L101: 0 | M101: 0 | N101: 0
C102: Annual New Resource Plant Additions (MWh) | F102: =F85 -> 0 | G102: =G85 -> 0 | H102: 0 | I102: 0 | J102: 0 | K102: 0 | L102: 0 | M102: 0 | N102: 0 | O102: 0 | P102: 0 | Q102: 0 | R102: 0 | S102: 0 | T102: 0 | U102: 0 | V102: 0 | W102: 0 | X102: 0 | Y102: 0 | Z102: 0 | AA102: 0 | AB102: 0 | AC102: 0 | AD102: 0 | AE102: 0
C103: Total Annual New LT & IT Purchases and Resource Additions | F103: =SUM(F101:F102) -> 0 | G103: =SUM(G101:G102) -> 0 | H103: 0 | I103: 0 | J103: 0 | K103: 0 | L103: 0 | M103: 0 | N103: 0
C104: Less: New Sales for Resale Contracts (MWh) | F104: =F91-$E$87 -> 0 | G104: =G91-$E$87 -> 0 | H104: 0 | I104: 0 | J104: 0 | K104: 0 | L104: 0 | M104: 0 | N104: 0 | O104: 0 | P104: 0 | Q104: 0 | R104: 0 | S104: 0 | T104: 0 | U104: 0 | V104: 0 | W104: 0 | X104: 0 | Y104: 0 | Z104: 0 | AA104: 0 | AB104: 0 | AC104: 0 | AD104: 0 | AE104: 0
C105: New Purchases and Resource Adds available to meet load | F105: =F103-F104 -> 0 | G105: 0 | H105: 0 | I105: 0 | J105: 0 | K105: 0 | L105: 0 | M105: 0 | N105: 0
C107: New resource vs ST Purchases Check | F107: =F99-F105 -> 4220762.35 | G107: =G99-G105 -> 4220762.35 | H107: 4317785.605 | I107: 4317785.605 | J107: 4499647.832 | K107: 4499647.832 | L107: 4664792.773 | M107: =M99-M105 -> 4974386.955 | N107: 4974386.955
C108: Annual ST Purchases (MWh) | E108: =E97 -> 4254131 | F108: =IF(F107>0,F107,0) -> 4220762.35 | G108: 4220762.35 | H108: 4317785.605 | I108: 4317785.605 | J108: 4499647.832 | K108: 4499647.832 | L108: 4664792.773 | M108: 4974386.955 | N108: 4974386.955
C110: Base ST Sales for Resale (MWh) | E110: =E262+E265+E266+E267+E268 -> 9026924 | F110: =E110 -> 9026924 | G110: =F110 -> 9026924 | H110: 9026924 | I110: 9026924 | J110: 9026924 | K110: 9026924 | L110: 9026924 | M110: 9026924 | N110: 9026924 | O110: 9026924 | P110: 9026924 | Q110: 9026924 | R110: 9026924 | S110: 9026924 | T110: 9026924 | U110: 9026924 | V110: 9026924 | W110: 9026924 | X110: 9026924 | Y110: 9026924 | Z110: 9026924 | AA110: 9026924 | AB110: 9026924 | AC110: 9026924 | AD110: 9026924 | AE110: 9026924
C111: ST Sales from New Resource Adds (MWh) | F111: =IF(F107>0,0,-F107) -> 0 | G111: =IF(G107>0,0,-G107) -> 0 | H111: 0 | I111: 0 | J111: 0 | K111: 0 | L111: 0 | M111: 0 | N111: 0
C112: Annual ST Sales (MWh) | E112: =SUM(E110:E111) -> 9026924 | F112: =SUM(F110:F111) -> 9026924 | G112: =SUM(G110:G111) -> 9026924 | H112: 9026924 | I112: 9026924 | J112: 9026924 | K112: 9026924 | L112: 9026924 | M112: 9026924 | N112: 9026924
C114: NLSL ST Purchase Price | E114: =IF(E122="",E117,E122) -> 77.40831488 | F114: =IF(F122="",F117,F122) -> 46.30218416 | G114: =IF(G122="",G117,G122) -> 46.30218416 | H114: =IF(H122="",H117,H122) -> 25.98784383 | I114: 25.98784383 | J114: 29.76918791 | K114: 29.76918791 | L114: 28.57208842 | M114: 27.97251435 | N114: 27.97251435
B116: P4 | C116: ST Purchased Power $ | D116: = P12 * P5 | E116: =E215+E218+E219+E220+E221 -> 329305112 | F116: =F108*F117 -> 195430515.7 | G116: =IF(G3="Mid_Pt",IF(G5=5,G123*G122,MAX(0,F116-((F119-G119)*G118))),G108*G117) -> 195430515.7 | H116: 112209938 | I116: 112209938 | J116: 133950861.8 | K116: 133950861.8 | L116: 130923603.6 | M116: =IF(M3="Mid_Pt",IF(M5=5,M123*M122,MAX(0,L116-((L119-M119)*M118))),M108*M117) -> 139146110.5 | N116: =IF(N3="Mid_Pt",IF(N5=5,N123*N122,MAX(0,M116-((M119-N119)*N118))),N108*N117) -> 139146110.5 | Q116: =IF(Q3="Mid_Pt",IF(Q5=5,Q123*Q122,MAX(0,P116-((P119-Q119)*Q118))),Q108*Q117) -> 
B117: P5 | C117: ST Purchase Power Price (This FY, $/MWh) | D117: FY Avg. Aurora Prices | E117: =E116/E97 -> 77.40831488 | F117: =HLOOKUP(F$6,Inputs!$D$55:$Q$58,2,FALSE) -> 46.30218416 | G117: =HLOOKUP(G$6,Inputs!$D$55:$Q$58,2,FALSE) -> 46.30218416 | H117: =HLOOKUP(H$6,Inputs!$D$55:$Q$58,2,FALSE) -> 25.98784383 | I117: =HLOOKUP(I$6,Inputs!$D$55:$Q$58,2,FALSE) -> 25.98784383 | J117: =HLOOKUP(J$6,Inputs!$D$55:$Q$58,2,FALSE) -> 29.76918791 | K117: =HLOOKUP(K$6,Inputs!$D$55:$Q$58,2,FALSE) -> 29.76918791 | L117: =HLOOKUP(L$6,Inputs!$D$55:$Q$58,2,FALSE) -> 27.41736914 | M117: =HLOOKUP(M$6,Inputs!$D$55:$Q$58,2,FALSE) -> 27.97251435 | N117: =HLOOKUP(N$6,Inputs!$D$55:$Q$58,2,FALSE) -> 27.97251435 | O117: =HLOOKUP(O$6,Inputs!$D$55:$Q$58,2,FALSE) ->  | P117: =HLOOKUP(P$6,Inputs!$D$55:$Q$58,2,FALSE) ->  | Q117: =HLOOKUP(Q$6,Inputs!$D$55:$Q$58,2,FALSE) ->  | R117: =HLOOKUP(R$6,Inputs!$D$55:$Q$58,2,FALSE) ->  | S117: =HLOOKUP(S$6,Inputs!$D$55:$Q$58,2,FALSE) ->  | T117: =HLOOKUP(T$6,Inputs!$D$55:$Q$58,2,FALSE) ->  | U117: =HLOOKUP(U$6,Inputs!$D$55:$Q$58,2,FALSE) ->  | V117: =HLOOKUP(V$6,Inputs!$D$55:$Q$58,2,FALSE) ->  | W117: =HLOOKUP(W$6,Inputs!$D$55:$Q$58,2,FALSE) ->  | X117: =HLOOKUP(X$6,Inputs!$D$55:$Q$58,2,FALSE) ->  | Y117: =HLOOKUP(Y$6,Inputs!$D$55:$Q$58,2,FALSE) ->  | Z117: =HLOOKUP(Z$6,Inputs!$D$55:$Q$58,2,FALSE) ->  | AA117: =HLOOKUP(AA$6,Inputs!$D$55:$Q$58,2,FALSE) ->  | AB117: =HLOOKUP(AB$6,Inputs!$D$55:$Q$58,2,FALSE) ->  | AC117: =HLOOKUP(AC$6,Inputs!$D$55:$Q$58,2,FALSE) ->  | AD117: =HLOOKUP(AD$6,Inputs!$D$55:$Q$58,2,FALSE) ->  | AE117: =HLOOKUP(AE$6,Inputs!$D$55:$Q$58,2,FALSE) -> 
C118: ST Purchase Price This FY ($/MWh) | G118: =IF(G3="Mid_Pt",HLOOKUP(G$6,Inputs!$E$55:$O$58,2,FALSE),"") ->  | H118: =IF(H3="Mid_Pt",HLOOKUP(H$6,Inputs!$E$55:$O$58,2,FALSE),"") ->  | I118: =IF(I3="Mid_Pt",HLOOKUP(I$6,Inputs!$E$55:$O$58,2,FALSE),"") ->  | J118: =IF(J3="Mid_Pt",HLOOKUP(J$6,Inputs!$E$55:$O$58,2,FALSE),"") ->  | K118: =IF(K3="Mid_Pt",HLOOKUP(K$6,Inputs!$E$55:$O$58,2,FALSE),"") ->  | L118: =IF(L3="Mid_Pt",HLOOKUP(L$6,Inputs!$E$55:$O$58,2,FALSE),"") -> 27.41736914 | M118: =IF(M3="Mid_Pt",HLOOKUP(M$6,Inputs!$E$55:$O$58,2,FALSE),"") ->  | N118: =IF(N3="Mid_Pt",HLOOKUP(N$6,Inputs!$E$55:$O$58,2,FALSE),"") ->  | O118: =IF(O3="Mid_Pt",HLOOKUP(O$6,Inputs!$E$55:$O$58,2,FALSE),"") ->  | P118: =IF(P3="Mid_Pt",HLOOKUP(P$6,Inputs!$E$55:$O$58,2,FALSE),"") ->  | Q118: =IF(Q3="Mid_Pt",HLOOKUP(Q$6,Inputs!$E$55:$O$58,2,FALSE),"") ->  | R118: =IF(R3="Mid_Pt",HLOOKUP(R$6,Inputs!$E$55:$O$58,2,FALSE),"") ->  | S118: =IF(S3="Mid_Pt",HLOOKUP(S$6,Inputs!$E$55:$O$58,2,FALSE),"") ->  | T118: =IF(T3="Mid_Pt",HLOOKUP(T$6,Inputs!$E$55:$O$58,2,FALSE),"") ->  | U118: =IF(U3="Mid_Pt",HLOOKUP(U$6,Inputs!$E$55:$O$58,2,FALSE),"") ->  | V118: =IF(V3="Mid_Pt",HLOOKUP(V$6,Inputs!$E$55:$O$58,2,FALSE),"") ->  | W118: =IF(W3="Mid_Pt",HLOOKUP(W$6,Inputs!$E$55:$O$58,2,FALSE),"") ->  | X118: =IF(X3="Mid_Pt",HLOOKUP(X$6,Inputs!$E$55:$O$58,2,FALSE),"") ->  | Y118: =IF(Y3="Mid_Pt",HLOOKUP(Y$6,Inputs!$E$55:$O$58,2,FALSE),"") ->  | Z118: =IF(Z3="Mid_Pt",HLOOKUP(Z$6,Inputs!$E$55:$O$58,2,FALSE),"") ->  | AA118: =IF(AA3="Mid_Pt",HLOOKUP(AA$6,Inputs!$E$55:$O$58,2,FALSE),"") ->  | AB118: =IF(AB3="Mid_Pt",HLOOKUP(AB$6,Inputs!$E$55:$O$58,2,FALSE),"") ->  | AC118: =IF(AC3="Mid_Pt",HLOOKUP(AC$6,Inputs!$E$55:$O$58,2,FALSE),"") ->  | AD118: =IF(AD3="Mid_Pt",HLOOKUP(AD$6,Inputs!$E$55:$O$58,2,FALSE),"") ->  | AE118: =IF(AE3="Mid_Pt",HLOOKUP(AE$6,Inputs!$E$55:$O$58,2,FALSE),"") -> 
C119: ST Purchase Amount This FY (MWh) | G119: =IF(G3="Mid_Pt",G108,"") ->  | L119: 4664792.773
C120: ST Purchase Price for Previous FY ($/MWh) | G120: =IF(G3="Mid_Pt",HLOOKUP(G$6-1,Inputs!$E$55:$O$58,2,FALSE),"") ->  | H120: =IF(H3="Mid_Pt",HLOOKUP(H$6-1,Inputs!$E$55:$O$58,2,FALSE),"") ->  | I120: =IF(I3="Mid_Pt",HLOOKUP(I$6-1,Inputs!$E$55:$O$58,2,FALSE),"") ->  | J120: =IF(J3="Mid_Pt",HLOOKUP(J$6-1,Inputs!$E$55:$O$58,2,FALSE),"") ->  | K120: =IF(K3="Mid_Pt",HLOOKUP(K$6-1,Inputs!$E$55:$O$58,2,FALSE),"") ->  | L120: =IF(L3="Mid_Pt",HLOOKUP(L$6-1,Inputs!$E$55:$O$58,2,FALSE),"") -> 29.76918791 | M120: =IF(M3="Mid_Pt",HLOOKUP(M$6-1,Inputs!$E$55:$O$58,2,FALSE),"") ->  | N120: =IF(N3="Mid_Pt",HLOOKUP(N$6-1,Inputs!$E$55:$O$58,2,FALSE),"") ->  | O120: =IF(O3="Mid_Pt",HLOOKUP(O$6-1,Inputs!$E$55:$O$58,2,FALSE),"") ->  | P120: =IF(P3="Mid_Pt",HLOOKUP(P$6-1,Inputs!$E$55:$O$58,2,FALSE),"") ->  | Q120: =IF(Q3="Mid_Pt",HLOOKUP(Q$6-1,Inputs!$E$55:$O$58,2,FALSE),"") ->  | R120: =IF(R3="Mid_Pt",HLOOKUP(R$6-1,Inputs!$E$55:$O$58,2,FALSE),"") ->  | S120: =IF(S3="Mid_Pt",HLOOKUP(S$6-1,Inputs!$E$55:$O$58,2,FALSE),"") ->  | T120: =IF(T3="Mid_Pt",HLOOKUP(T$6-1,Inputs!$E$55:$O$58,2,FALSE),"") ->  | U120: =IF(U3="Mid_Pt",HLOOKUP(U$6-1,Inputs!$E$55:$O$58,2,FALSE),"") ->  | V120: =IF(V3="Mid_Pt",HLOOKUP(V$6-1,Inputs!$E$55:$O$58,2,FALSE),"") ->  | W120: =IF(W3="Mid_Pt",HLOOKUP(W$6-1,Inputs!$E$55:$O$58,2,FALSE),"") ->  | X120: =IF(X3="Mid_Pt",HLOOKUP(X$6-1,Inputs!$E$55:$O$58,2,FALSE),"") ->  | Y120: =IF(Y3="Mid_Pt",HLOOKUP(Y$6-1,Inputs!$E$55:$O$58,2,FALSE),"") ->  | Z120: =IF(Z3="Mid_Pt",HLOOKUP(Z$6-1,Inputs!$E$55:$O$58,2,FALSE),"") ->  | AA120: =IF(AA3="Mid_Pt",HLOOKUP(AA$6-1,Inputs!$E$55:$O$58,2,FALSE),"") ->  | AB120: =IF(AB3="Mid_Pt",HLOOKUP(AB$6-1,Inputs!$E$55:$O$58,2,FALSE),"") ->  | AC120: =IF(AC3="Mid_Pt",HLOOKUP(AC$6-1,Inputs!$E$55:$O$58,2,FALSE),"") ->  | AD120: =IF(AD3="Mid_Pt",HLOOKUP(AD$6-1,Inputs!$E$55:$O$58,2,FALSE),"") ->  | AE120: =IF(AE3="Mid_Pt",HLOOKUP(AE$6-1,Inputs!$E$55:$O$58,2,FALSE),"") -> 
C121: ST Purchase Amount for Previous FY (MWh) | G121: =IF(G3="Mid_Pt",HLOOKUP("RP_Start",$F$3:$AE$134,106,FALSE),"") ->  | L121: 4499647.832
C122: Weighted Purchase Price ($/MWh) | G122: =IF(G3="Mid_Pt",IF(G5>5,F122,IF((G119+G121)=0,(G118+G120)/2,(G118*G119+G120*G121)/(G119+G121))),"") ->  | L122: 28.57208842
C123: Rate Period Average ST Purchase Amount (MWh) | G123: =IF(G3="Mid_Pt",(G119+G121)/2,"") ->  | L123: 4582220.302 | O123: =IF(O3="Mid_Pt",(O119+O121)/2,"") -> 
B126: S5 | C126: ST Sales for Resale ($) | D126: = S6 * P5 | E126: =E249+E252+E253+E254+E255 -> 640505575 | F126: =F112*F127 -> 493005889.1 | G126: =IF(G3="Mid_Pt",IF(G5=5,G133*G132,F126-((F129-G129)*G128)),G112*G127) -> 493005889.1 | H126: 276707466.1 | I126: 276707466.1 | J126: 316969603.4 | K126: 316969603.4 | L126: 304449022.3 | M126: 297839390.4 | N126: 297839390.4
C127: ST Sales Power Price ($/MWh) | D127: FY Avg. Aurora Prices | E127: =E126/E110 -> 70.95502023 | F127: =HLOOKUP(F$6,Inputs!$D55:$Q$58,4,FALSE) -> 54.61504817 | G127: =HLOOKUP(G$6,Inputs!$D55:$Q$58,4,FALSE) -> 54.61504817 | H127: =HLOOKUP(H$6,Inputs!$D55:$Q$58,4,FALSE) -> 30.65357214 | I127: =HLOOKUP(I$6,Inputs!$D55:$Q$58,4,FALSE) -> 30.65357214 | J127: =HLOOKUP(J$6,Inputs!$D55:$Q$58,4,FALSE) -> 35.11379994 | K127: =HLOOKUP(K$6,Inputs!$D55:$Q$58,4,FALSE) -> 35.11379994 | L127: =HLOOKUP(L$6,Inputs!$D55:$Q$58,4,FALSE) -> 32.33974732 | M127: =HLOOKUP(M$6,Inputs!$D55:$Q$58,4,FALSE) -> 32.99456054 | N127: =HLOOKUP(N$6,Inputs!$D55:$Q$58,4,FALSE) -> 32.99456054 | O127: =HLOOKUP(O$6,Inputs!$D55:$Q$58,4,FALSE) ->  | P127: =HLOOKUP(P$6,Inputs!$D55:$Q$58,4,FALSE) ->  | Q127: =HLOOKUP(Q$6,Inputs!$D55:$Q$58,4,FALSE) ->  | R127: =HLOOKUP(R$6,Inputs!$D55:$Q$58,4,FALSE) ->  | S127: =HLOOKUP(S$6,Inputs!$D55:$Q$58,4,FALSE) ->  | T127: =HLOOKUP(T$6,Inputs!$D55:$Q$58,4,FALSE) ->  | U127: =HLOOKUP(U$6,Inputs!$D55:$Q$58,4,FALSE) ->  | V127: =HLOOKUP(V$6,Inputs!$D55:$Q$58,4,FALSE) ->  | W127: =HLOOKUP(W$6,Inputs!$D55:$Q$58,4,FALSE) ->  | X127: =HLOOKUP(X$6,Inputs!$D55:$Q$58,4,FALSE) ->  | Y127: =HLOOKUP(Y$6,Inputs!$D55:$Q$58,4,FALSE) ->  | Z127: =HLOOKUP(Z$6,Inputs!$D55:$Q$58,4,FALSE) ->  | AA127: =HLOOKUP(AA$6,Inputs!$D55:$Q$58,4,FALSE) ->  | AB127: =HLOOKUP(AB$6,Inputs!$D55:$Q$58,4,FALSE) ->  | AC127: =HLOOKUP(AC$6,Inputs!$D55:$Q$58,4,FALSE) ->  | AD127: =HLOOKUP(AD$6,Inputs!$D55:$Q$58,4,FALSE) ->  | AE127: =HLOOKUP(AE$6,Inputs!$D55:$Q$58,4,FALSE) -> 
C128: ST Sales Price This FY ($/MWh) | G128: =IF(G3="Mid_Pt",HLOOKUP(G$6,Inputs!$E$55:$O$58,4,FALSE),"") ->  | H128: =IF(H3="Mid_Pt",HLOOKUP(H$6,Inputs!$E$55:$O$58,4,FALSE),"") ->  | I128: =IF(I3="Mid_Pt",HLOOKUP(I$6,Inputs!$E$55:$O$58,4,FALSE),"") ->  | J128: =IF(J3="Mid_Pt",HLOOKUP(J$6,Inputs!$E$55:$O$58,4,FALSE),"") ->  | K128: =IF(K3="Mid_Pt",HLOOKUP(K$6,Inputs!$E$55:$O$58,4,FALSE),"") ->  | L128: =IF(L3="Mid_Pt",HLOOKUP(L$6,Inputs!$E$55:$O$58,4,FALSE),"") -> 32.33974732 | M128: =IF(M3="Mid_Pt",HLOOKUP(M$6,Inputs!$E$55:$O$58,4,FALSE),"") ->  | N128: =IF(N3="Mid_Pt",HLOOKUP(N$6,Inputs!$E$55:$O$58,4,FALSE),"") ->  | O128: =IF(O3="Mid_Pt",HLOOKUP(O$6,Inputs!$E$55:$O$58,4,FALSE),"") ->  | P128: =IF(P3="Mid_Pt",HLOOKUP(P$6,Inputs!$E$55:$O$58,4,FALSE),"") ->  | Q128: =IF(Q3="Mid_Pt",HLOOKUP(Q$6,Inputs!$E$55:$O$58,4,FALSE),"") ->  | R128: =IF(R3="Mid_Pt",HLOOKUP(R$6,Inputs!$E$55:$O$58,4,FALSE),"") ->  | S128: =IF(S3="Mid_Pt",HLOOKUP(S$6,Inputs!$E$55:$O$58,4,FALSE),"") ->  | T128: =IF(T3="Mid_Pt",HLOOKUP(T$6,Inputs!$E$55:$O$58,4,FALSE),"") ->  | U128: =IF(U3="Mid_Pt",HLOOKUP(U$6,Inputs!$E$55:$O$58,4,FALSE),"") ->  | V128: =IF(V3="Mid_Pt",HLOOKUP(V$6,Inputs!$E$55:$O$58,4,FALSE),"") ->  | W128: =IF(W3="Mid_Pt",HLOOKUP(W$6,Inputs!$E$55:$O$58,4,FALSE),"") ->  | X128: =IF(X3="Mid_Pt",HLOOKUP(X$6,Inputs!$E$55:$O$58,4,FALSE),"") ->  | Y128: =IF(Y3="Mid_Pt",HLOOKUP(Y$6,Inputs!$E$55:$O$58,4,FALSE),"") ->  | Z128: =IF(Z3="Mid_Pt",HLOOKUP(Z$6,Inputs!$E$55:$O$58,4,FALSE),"") ->  | AA128: =IF(AA3="Mid_Pt",HLOOKUP(AA$6,Inputs!$E$55:$O$58,4,FALSE),"") ->  | AB128: =IF(AB3="Mid_Pt",HLOOKUP(AB$6,Inputs!$E$55:$O$58,4,FALSE),"") ->  | AC128: =IF(AC3="Mid_Pt",HLOOKUP(AC$6,Inputs!$E$55:$O$58,4,FALSE),"") ->  | AD128: =IF(AD3="Mid_Pt",HLOOKUP(AD$6,Inputs!$E$55:$O$58,4,FALSE),"") ->  | AE128: =IF(AE3="Mid_Pt",HLOOKUP(AE$6,Inputs!$E$55:$O$58,4,FALSE),"") -> 
C129: ST Sales Amount This FY (MWh) | G129: =IF(G3="Mid_Pt",G112,"") ->  | L129: 9026924
C130: ST Sales Price for Previous FY ($/MWh) | G130: =IF(G3="Mid_Pt",HLOOKUP(G$6-1,Inputs!$E$55:$O$58,4,FALSE),"") ->  | H130: =IF(H3="Mid_Pt",HLOOKUP(H$6-1,Inputs!$E$55:$O$58,4,FALSE),"") ->  | I130: =IF(I3="Mid_Pt",HLOOKUP(I$6-1,Inputs!$E$55:$O$58,4,FALSE),"") ->  | J130: =IF(J3="Mid_Pt",HLOOKUP(J$6-1,Inputs!$E$55:$O$58,4,FALSE),"") ->  | K130: =IF(K3="Mid_Pt",HLOOKUP(K$6-1,Inputs!$E$55:$O$58,4,FALSE),"") ->  | L130: =IF(L3="Mid_Pt",HLOOKUP(L$6-1,Inputs!$E$55:$O$58,4,FALSE),"") -> 35.11379994 | M130: =IF(M3="Mid_Pt",HLOOKUP(M$6-1,Inputs!$E$55:$O$58,4,FALSE),"") ->  | N130: =IF(N3="Mid_Pt",HLOOKUP(N$6-1,Inputs!$E$55:$O$58,4,FALSE),"") ->  | O130: =IF(O3="Mid_Pt",HLOOKUP(O$6-1,Inputs!$E$55:$O$58,4,FALSE),"") ->  | P130: =IF(P3="Mid_Pt",HLOOKUP(P$6-1,Inputs!$E$55:$O$58,4,FALSE),"") ->  | Q130: =IF(Q3="Mid_Pt",HLOOKUP(Q$6-1,Inputs!$E$55:$O$58,4,FALSE),"") ->  | R130: =IF(R3="Mid_Pt",HLOOKUP(R$6-1,Inputs!$E$55:$O$58,4,FALSE),"") ->  | S130: =IF(S3="Mid_Pt",HLOOKUP(S$6-1,Inputs!$E$55:$O$58,4,FALSE),"") ->  | T130: =IF(T3="Mid_Pt",HLOOKUP(T$6-1,Inputs!$E$55:$O$58,4,FALSE),"") ->  | U130: =IF(U3="Mid_Pt",HLOOKUP(U$6-1,Inputs!$E$55:$O$58,4,FALSE),"") ->  | V130: =IF(V3="Mid_Pt",HLOOKUP(V$6-1,Inputs!$E$55:$O$58,4,FALSE),"") ->  | W130: =IF(W3="Mid_Pt",HLOOKUP(W$6-1,Inputs!$E$55:$O$58,4,FALSE),"") ->  | X130: =IF(X3="Mid_Pt",HLOOKUP(X$6-1,Inputs!$E$55:$O$58,4,FALSE),"") ->  | Y130: =IF(Y3="Mid_Pt",HLOOKUP(Y$6-1,Inputs!$E$55:$O$58,4,FALSE),"") ->  | Z130: =IF(Z3="Mid_Pt",HLOOKUP(Z$6-1,Inputs!$E$55:$O$58,4,FALSE),"") ->  | AA130: =IF(AA3="Mid_Pt",HLOOKUP(AA$6-1,Inputs!$E$55:$O$58,4,FALSE),"") ->  | AB130: =IF(AB3="Mid_Pt",HLOOKUP(AB$6-1,Inputs!$E$55:$O$58,4,FALSE),"") ->  | AC130: =IF(AC3="Mid_Pt",HLOOKUP(AC$6-1,Inputs!$E$55:$O$58,4,FALSE),"") ->  | AD130: =IF(AD3="Mid_Pt",HLOOKUP(AD$6-1,Inputs!$E$55:$O$58,4,FALSE),"") ->  | AE130: =IF(AE3="Mid_Pt",HLOOKUP(AE$6-1,Inputs!$E$55:$O$58,4,FALSE),"") -> 
C131: ST Sales Amount for Previous FY (MWh) | G131: =IF(G3="Mid_Pt",HLOOKUP("RP_Start",$F$3:$AE$134,110,FALSE),"") ->  | L131: 9026924
C132: Weighted Sales Price ($/MWh) | G132: =IF(G3="Mid_Pt",IF(G5>5,F132,IF((G129+G131)=0,(G128+G130)/2,(G128*G129+G130*G131)/(G129+G131))),"") ->  | L132: 33.72677363
C133: Rate Period Average Sales Amount (Mwh) | G133: =IF(G3="Mid_Pt",(G129+G131)/2,"") ->  | L133: 9026924
L135: =COLUMN(RP_End) -> 6 | M135: =HLOOKUP("RP_START",F3:AE194,138,FALSE) -> 0
C136: Column in Escalation Table. | F136: 2 | G136: 3 | H136: 4 | I136: 5 | J136: 6 | K136: 7 | L136: 8 | M136: 9 | N136: 10 | O136: 11 | P136: 12 | Q136: 13 | R136: 14 | S136: 15 | T136: 16 | U136: 17 | V136: 18 | W136: 19 | X136: 20 | Y136: 21 | Z136: 22 | AA136: 23 | AB136: 24 | AC136: 25 | AD136: 26 | AE136: 27
B137: Market | C137: Inflation Factor From Start Date | F137: 1 | G137: =VLOOKUP("INF",EscTable_01,G$136,FALSE) -> 1.006952165 | H137: 1.021001827 | I137: 1.034087577 | J137: 1.046167549 | K137: 1.058000639 | L137: 1.081329549 | M137: 1.105389128 | N137: 1.117700922 | O137: 1.117700922 | P137: 1.123908147 | Q137: 1.123908147 | R137: 1.123908147 | S137: 1.123908147 | T137: 1.123908147 | U137: 1.123908147 | V137: 1.123908147 | W137: 1.123908147 | X137: 1.123908147 | Y137: 1.123908147 | Z137: 1.123908147 | AA137: 1.123908147 | AB137: 1.123908147 | AC137: 1.123908147 | AD137: 1.123908147 | AE137: 1.123908147
C138: Inflation Factor Date-to-Date | F138: 1 | G138: =G137/F137 -> 1.006952165 | H138: =H137/G137 -> 1.013952662 | I138: 1.012816578 | J138: 1.011681768 | K138: 1.011310894 | L138: 1.022049996 | M138: 1.022249996 | N138: 1.011137973 | O138: 1 | P138: 1.005553565 | Q138: 1 | R138: 1 | S138: 1 | T138: 1 | U138: 1 | V138: 1 | W138: 1 | X138: 1 | Y138: 1 | Z138: 1 | AA138: 1 | AB138: 1 | AC138: 1 | AD138: 1 | AE138: 1
C139: Base Period LT & IT Market Purchases ($) | E139: =(E212+E213+E214+E216+E217)-E147-E155-E163-E171-E179 -> 756332412 | F139: =E139 -> 756332412
A140: 790 | C140: New Resource LT & IT Market Purchases ($) | F140: =VLOOKUP($A140,'New Resources'!$A$4:$Y$133,F$5,FALSE)*F$4 -> 0 | G140: =VLOOKUP($A140,'New Resources'!$A$4:$Y$133,G$5,FALSE)*G$4 -> 0 | H140: =VLOOKUP($A140,'New Resources'!$A$4:$Y$133,H$5,FALSE)*H$4 -> 0 | I140: =VLOOKUP($A140,'New Resources'!$A$4:$Y$133,I$5,FALSE)*I$4 -> 0 | J140: =VLOOKUP($A140,'New Resources'!$A$4:$Y$133,J$5,FALSE)*J$4 -> 0 | K140: =VLOOKUP($A140,'New Resources'!$A$4:$Y$133,K$5,FALSE)*K$4 -> 0 | L140: =VLOOKUP($A140,'New Resources'!$A$4:$Y$133,L$5,FALSE)*L$4 -> 0 | M140: =VLOOKUP($A140,'New Resources'!$A$4:$Y$133,M$5,FALSE)*M$4 -> 0 | N140: =VLOOKUP($A140,'New Resources'!$A$4:$Y$133,N$5,FALSE)*N$4 -> 0 | O140: =VLOOKUP($A140,'New Resources'!$A$4:$Y$133,O$5,FALSE)*O$4 -> 0 | P140: =VLOOKUP($A140,'New Resources'!$A$4:$Y$133,P$5,FALSE)*P$4 -> 0 | Q140: =VLOOKUP($A140,'New Resources'!$A$4:$Y$133,Q$5,FALSE)*Q$4 -> 0 | R140: =VLOOKUP($A140,'New Resources'!$A$4:$Y$133,R$5,FALSE)*R$4 -> 0 | S140: =VLOOKUP($A140,'New Resources'!$A$4:$Y$133,S$5,FALSE)*S$4 -> 0 | T140: =VLOOKUP($A140,'New Resources'!$A$4:$Y$133,T$5,FALSE)*T$4 -> 0 | U140: =VLOOKUP($A140,'New Resources'!$A$4:$Y$133,U$5,FALSE)*U$4 -> 0 | V140: =VLOOKUP($A140,'New Resources'!$A$4:$Y$133,V$5,FALSE)*V$4 -> 0 | W140: =VLOOKUP($A140,'New Resources'!$A$4:$Y$133,W$5,FALSE)*W$4 -> 0 | X140: =VLOOKUP($A140,'New Resources'!$A$4:$Y$133,X$5,FALSE)*X$4 -> 0 | Y140: =VLOOKUP($A140,'New Resources'!$A$4:$Y$133,Y$5,FALSE)*Y$4 -> 0 | Z140: =VLOOKUP($A140,'New Resources'!$A$4:$Y$133,Z$5,FALSE)*Z$4 -> 0 | AA140: =VLOOKUP($A140,'New Resources'!$A$4:$Y$133,AA$5,FALSE)*AA$4 -> 0 | AB140: =VLOOKUP($A140,'New Resources'!$A$4:$Y$133,AB$5,FALSE)*AB$4 -> 0 | AC140: =VLOOKUP($A140,'New Resources'!$A$4:$Y$133,AC$5,FALSE)*AC$4 -> 0 | AD140: =VLOOKUP($A140,'New Resources'!$A$4:$Y$133,AD$5,FALSE)*AD$4 -> 0 | AE140: =VLOOKUP($A140,'New Resources'!$A$4:$Y$133,AE$5,FALSE)*AE$4 -> 0
A141: 781 | C141: LT & IT Terminated Market Contracts ($) | F141: =VLOOKUP($A141,'New Resources'!$A$4:$Y$133,F$5,FALSE)*F$4 -> 0 | G141: =VLOOKUP($A141,'New Resources'!$A$4:$Y$133,G$5,FALSE)*G$4 -> 0 | H141: =VLOOKUP($A141,'New Resources'!$A$4:$Y$133,H$5,FALSE)*H$4 -> 0 | I141: =VLOOKUP($A141,'New Resources'!$A$4:$Y$133,I$5,FALSE)*I$4 -> 0 | J141: =VLOOKUP($A141,'New Resources'!$A$4:$Y$133,J$5,FALSE)*J$4 -> 0 | K141: =VLOOKUP($A141,'New Resources'!$A$4:$Y$133,K$5,FALSE)*K$4 -> 0 | L141: =VLOOKUP($A141,'New Resources'!$A$4:$Y$133,L$5,FALSE)*L$4 -> 0 | M141: =VLOOKUP($A141,'New Resources'!$A$4:$Y$133,M$5,FALSE)*M$4 -> 0 | N141: =VLOOKUP($A141,'New Resources'!$A$4:$Y$133,N$5,FALSE)*N$4 -> 0 | O141: =VLOOKUP($A141,'New Resources'!$A$4:$Y$133,O$5,FALSE)*O$4 -> 0 | P141: =VLOOKUP($A141,'New Resources'!$A$4:$Y$133,P$5,FALSE)*P$4 -> 0 | Q141: =VLOOKUP($A141,'New Resources'!$A$4:$Y$133,Q$5,FALSE)*Q$4 -> 0 | R141: =VLOOKUP($A141,'New Resources'!$A$4:$Y$133,R$5,FALSE)*R$4 -> 0 | S141: =VLOOKUP($A141,'New Resources'!$A$4:$Y$133,S$5,FALSE)*S$4 -> 0 | T141: =VLOOKUP($A141,'New Resources'!$A$4:$Y$133,T$5,FALSE)*T$4 -> 0 | U141: =VLOOKUP($A141,'New Resources'!$A$4:$Y$133,U$5,FALSE)*U$4 -> 0 | V141: =VLOOKUP($A141,'New Resources'!$A$4:$Y$133,V$5,FALSE)*V$4 -> 0 | W141: =VLOOKUP($A141,'New Resources'!$A$4:$Y$133,W$5,FALSE)*W$4 -> 0 | X141: =VLOOKUP($A141,'New Resources'!$A$4:$Y$133,X$5,FALSE)*X$4 -> 0 | Y141: =VLOOKUP($A141,'New Resources'!$A$4:$Y$133,Y$5,FALSE)*Y$4 -> 0 | Z141: =VLOOKUP($A141,'New Resources'!$A$4:$Y$133,Z$5,FALSE)*Z$4 -> 0 | AA141: =VLOOKUP($A141,'New Resources'!$A$4:$Y$133,AA$5,FALSE)*AA$4 -> 0 | AB141: =VLOOKUP($A141,'New Resources'!$A$4:$Y$133,AB$5,FALSE)*AB$4 -> 0 | AC141: =VLOOKUP($A141,'New Resources'!$A$4:$Y$133,AC$5,FALSE)*AC$4 -> 0 | AD141: =VLOOKUP($A141,'New Resources'!$A$4:$Y$133,AD$5,FALSE)*AD$4 -> 0 | AE141: =VLOOKUP($A141,'New Resources'!$A$4:$Y$133,AE$5,FALSE)*AE$4 -> 0
C142: Total LT & IT Market Purchases ($) | F142: =SUM(F139:F141) -> 756332412 | G142: =(F142*G138)+G140+G141 -> 761590559.4 | H142: =(G142*H138)+H140+H141 -> 772216774.7 | I142: =(H142*I138)+I140+I141 -> 782113951.6 | J142: =(I142*J138)+J140+J141 -> 791250425.4 | K142: 800200175.4 | L142: 817844586.3 | M142: 836041625.3 | N142: 845353434.2 | O142: 845353434.2 | P142: 850048159.8 | Q142: 850048159.8 | R142: 850048159.8 | S142: 850048159.8 | T142: 850048159.8 | U142: 850048159.8 | V142: 850048159.8 | W142: 850048159.8 | X142: 850048159.8 | Y142: 850048159.8 | Z142: 850048159.8 | AA142: 850048159.8 | AB142: 850048159.8 | AC142: 850048159.8 | AD142: 850048159.8 | AE142: 850048159.8
C143: Total LT & IT Market Purchases with Rate Period Average ($) | E143: =E139 -> 756332412 | F143: =IF(F$3="Mid_Pt",IF(F5=5,((HLOOKUP("RP_Start",$F$3:$AE$194,140,FALSE)*(1+(HLOOKUP("RP_End",$F$3:$AE$194,135,FALSE)/HLOOKUP("RP_START",$F$3:$AE$194,135,FALSE))))/2)+F140+F141,E143+F140+F141),F142) -> 756332412 | G143: 761590559.4 | H143: 772216774.7 | I143: 782113951.6 | J143: 791250425.4 | K143: 800200175.4 | L143: 818301929.8 | M143: 836041625.3 | N143: 845353434.2 | O143: 845353434.2 | P143: 850048159.8 | Q143: 850048159.8 | R143: 850048159.8 | S143: 850048159.8 | T143: 850048159.8 | U143: 850048159.8 | V143: 850048159.8 | W143: 850048159.8 | X143: 850048159.8 | Y143: 850048159.8 | Z143: 850048159.8 | AA143: 850048159.8 | AB143: 850048159.8 | AC143: 850048159.8 | AD143: 850048159.8 | AE143: 850048159.8
B145: PF | C145: Inflation Factor From Start Date | F145: 1 | G145: 1 | H145: 1 | I145: 1 | J145: 1 | K145: 1 | L145: 1 | M145: 1 | N145: 1 | O145: 1 | P145: 1 | Q145: 1 | R145: 1 | S145: 1 | T145: 1 | U145: 1 | V145: 1 | W145: 1 | X145: 1 | Y145: 1 | Z145: 1 | AA145: 1 | AB145: 1 | AC145: 1 | AD145: 1 | AE145: 1
C146: Inflation Factor Date-to-Date | F146: 1 | G146: 1 | H146: 1 | I146: 1 | J146: 1 | K146: 1 | L146: 1 | M146: 1 | N146: 1 | O146: 1 | P146: 1 | Q146: 1 | R146: 1 | S146: 1 | T146: 1 | U146: 1 | V146: 1 | W146: 1 | X146: 1 | Y146: 1 | Z146: 1 | AA146: 1 | AB146: 1 | AC146: 1 | AD146: 1 | AE146: 1
C147: PF Purchase / Total Tier 1 Purchase Cost ($) | E147: =E277 -> 0 | F147: =IF(F$1>$E$1,0,E147*F146) -> 0 | G147: =IF(G$1>$E$1,0,F147*G146) -> 0 | H147: 0 | I147: 0 | J147: 0 | K147: 0 | L147: 0 | M147: 0 | N147: 0 | O147: 0 | P147: 0 | Q147: 0 | R147: 0 | S147: 0 | T147: 0 | U147: 0 | V147: 0 | W147: 0 | X147: 0 | Y147: 0 | Z147: 0 | AA147: 0 | AB147: 0 | AC147: 0 | AD147: 0 | AE147: 0
A148: 670 | C148: New Resource LT & IT PF Purchases ($)
A149: 750 | C149: LT & IT Terminated PF Contracts ($)
F150: =IF(F1>=RP_Start,F147,SUM(F147:F149)) -> 0 | G150: =IF(G1>=RP_Start,G147,(F150*G146)+G148+G149) -> 0 | H150: 0 | I150: 0 | J150: 0 | K150: 0 | L150: 0 | M150: 0 | N150: 0 | O150: 0 | P150: 0 | Q150: 0 | R150: 0 | S150: 0 | T150: 0 | U150: 0 | V150: 0 | W150: 0 | X150: 0 | Y150: 0 | Z150: 0 | AA150: 0 | AB150: 0 | AC150: 0 | AD150: 0 | AE150: 0
C151: Total LT & IT PF Purchase Cost ($) | E151: =E147 -> 0 | F151: =IF(F$3="Mid_Pt",(HLOOKUP("RP_Start",$F$3:$AE$194,148,FALSE)+HLOOKUP("RP_End",$F$3:$AE$194,148,FALSE))/2,F150) -> 0 | G151: 0 | H151: 0 | I151: 0 | J151: 0 | K151: 0 | L151: 0 | M151: 0 | N151: 0 | O151: 0 | P151: 0 | Q151: 0 | R151: 0 | S151: 0 | T151: 0 | U151: 0 | V151: 0 | W151: 0 | X151: 0 | Y151: 0 | Z151: 0 | AA151: 0 | AB151: 0 | AC151: 0 | AD151: 0 | AE151: 0
B153: SLICE | C153: Inflation Factor From Start Date | F153: 1 | G153: 1 | H153: 1 | I153: 1 | J153: 1 | K153: 1 | L153: 1 | M153: 1 | N153: 1 | O153: 1 | P153: 1 | Q153: 1 | R153: 1 | S153: 1 | T153: 1 | U153: 1 | V153: 1 | W153: 1 | X153: 1 | Y153: 1 | Z153: 1 | AA153: 1 | AB153: 1 | AC153: 1 | AD153: 1 | AE153: 1
C154: Inflation Factor Date-to-Date | F154: 1 | G154: 1 | H154: 1 | I154: 1 | J154: 1 | K154: 1 | L154: 1 | M154: 1 | N154: 1 | O154: 1 | P154: 1 | Q154: 1 | R154: 1 | S154: 1 | T154: 1 | U154: 1 | V154: 1 | W154: 1 | X154: 1 | Y154: 1 | Z154: 1 | AA154: 1 | AB154: 1 | AC154: 1 | AD154: 1 | AE154: 1
C155: Base Period LT & IT SLICE Purchases ($) | E155: =E278 -> 0 | F155: =IF(F$1>$E$1,0,E155*F154) -> 0 | G155: =IF(G$1>$E$1,0,F155*G154) -> 0 | H155: 0 | I155: 0 | J155: 0 | K155: 0 | L155: 0 | M155: 0 | N155: 0 | O155: 0 | P155: 0 | Q155: 0 | R155: 0 | S155: 0 | T155: 0 | U155: 0 | V155: 0 | W155: 0 | X155: 0 | Y155: 0 | Z155: 0 | AA155: 0 | AB155: 0 | AC155: 0 | AD155: 0 | AE155: 0
A156: 690 | C156: New Resource LT & IT SLICE Purchases ($) | F156: =VLOOKUP($A156,'New Resources'!$A$4:$Y$133,F$5,FALSE)*F$4 -> 0 | G156: =VLOOKUP($A156,'New Resources'!$A$4:$Y$133,G$5,FALSE)*G$4 -> 0 | H156: =VLOOKUP($A156,'New Resources'!$A$4:$Y$133,H$5,FALSE)*H$4 -> 0 | I156: =VLOOKUP($A156,'New Resources'!$A$4:$Y$133,I$5,FALSE)*I$4 -> 0 | J156: =VLOOKUP($A156,'New Resources'!$A$4:$Y$133,J$5,FALSE)*J$4 -> 0 | K156: =VLOOKUP($A156,'New Resources'!$A$4:$Y$133,K$5,FALSE)*K$4 -> 0 | L156: =VLOOKUP($A156,'New Resources'!$A$4:$Y$133,L$5,FALSE)*L$4 -> 0 | M156: =VLOOKUP($A156,'New Resources'!$A$4:$Y$133,M$5,FALSE)*M$4 -> 0 | N156: =VLOOKUP($A156,'New Resources'!$A$4:$Y$133,N$5,FALSE)*N$4 -> 0 | O156: =VLOOKUP($A156,'New Resources'!$A$4:$Y$133,O$5,FALSE)*O$4 -> 0 | P156: =VLOOKUP($A156,'New Resources'!$A$4:$Y$133,P$5,FALSE)*P$4 -> 0 | Q156: =VLOOKUP($A156,'New Resources'!$A$4:$Y$133,Q$5,FALSE)*Q$4 -> 0 | R156: =VLOOKUP($A156,'New Resources'!$A$4:$Y$133,R$5,FALSE)*R$4 -> 0 | S156: =VLOOKUP($A156,'New Resources'!$A$4:$Y$133,S$5,FALSE)*S$4 -> 0 | T156: =VLOOKUP($A156,'New Resources'!$A$4:$Y$133,T$5,FALSE)*T$4 -> 0 | U156: =VLOOKUP($A156,'New Resources'!$A$4:$Y$133,U$5,FALSE)*U$4 -> 0 | V156: =VLOOKUP($A156,'New Resources'!$A$4:$Y$133,V$5,FALSE)*V$4 -> 0 | W156: =VLOOKUP($A156,'New Resources'!$A$4:$Y$133,W$5,FALSE)*W$4 -> 0 | X156: =VLOOKUP($A156,'New Resources'!$A$4:$Y$133,X$5,FALSE)*X$4 -> 0 | Y156: =VLOOKUP($A156,'New Resources'!$A$4:$Y$133,Y$5,FALSE)*Y$4 -> 0 | Z156: =VLOOKUP($A156,'New Resources'!$A$4:$Y$133,Z$5,FALSE)*Z$4 -> 0 | AA156: =VLOOKUP($A156,'New Resources'!$A$4:$Y$133,AA$5,FALSE)*AA$4 -> 0 | AB156: =VLOOKUP($A156,'New Resources'!$A$4:$Y$133,AB$5,FALSE)*AB$4 -> 0 | AC156: =VLOOKUP($A156,'New Resources'!$A$4:$Y$133,AC$5,FALSE)*AC$4 -> 0 | AD156: =VLOOKUP($A156,'New Resources'!$A$4:$Y$133,AD$5,FALSE)*AD$4 -> 0 | AE156: =VLOOKUP($A156,'New Resources'!$A$4:$Y$133,AE$5,FALSE)*AE$4 -> 0
A157: 770 | C157: LT & IT Terminated SLICE Contracts ($) | F157: =VLOOKUP($A157,'New Resources'!$A$4:$Y$133,F$5,FALSE)*F$4 -> 0 | G157: =VLOOKUP($A157,'New Resources'!$A$4:$Y$133,G$5,FALSE)*G$4 -> 0 | H157: =VLOOKUP($A157,'New Resources'!$A$4:$Y$133,H$5,FALSE)*H$4 -> 0 | I157: =VLOOKUP($A157,'New Resources'!$A$4:$Y$133,I$5,FALSE)*I$4 -> 0 | J157: =VLOOKUP($A157,'New Resources'!$A$4:$Y$133,J$5,FALSE)*J$4 -> 0 | K157: =VLOOKUP($A157,'New Resources'!$A$4:$Y$133,K$5,FALSE)*K$4 -> 0 | L157: =VLOOKUP($A157,'New Resources'!$A$4:$Y$133,L$5,FALSE)*L$4 -> 0 | M157: =VLOOKUP($A157,'New Resources'!$A$4:$Y$133,M$5,FALSE)*M$4 -> 0 | N157: =VLOOKUP($A157,'New Resources'!$A$4:$Y$133,N$5,FALSE)*N$4 -> 0 | O157: =VLOOKUP($A157,'New Resources'!$A$4:$Y$133,O$5,FALSE)*O$4 -> 0 | P157: =VLOOKUP($A157,'New Resources'!$A$4:$Y$133,P$5,FALSE)*P$4 -> 0 | Q157: =VLOOKUP($A157,'New Resources'!$A$4:$Y$133,Q$5,FALSE)*Q$4 -> 0 | R157: =VLOOKUP($A157,'New Resources'!$A$4:$Y$133,R$5,FALSE)*R$4 -> 0 | S157: =VLOOKUP($A157,'New Resources'!$A$4:$Y$133,S$5,FALSE)*S$4 -> 0 | T157: =VLOOKUP($A157,'New Resources'!$A$4:$Y$133,T$5,FALSE)*T$4 -> 0 | U157: =VLOOKUP($A157,'New Resources'!$A$4:$Y$133,U$5,FALSE)*U$4 -> 0 | V157: =VLOOKUP($A157,'New Resources'!$A$4:$Y$133,V$5,FALSE)*V$4 -> 0 | W157: =VLOOKUP($A157,'New Resources'!$A$4:$Y$133,W$5,FALSE)*W$4 -> 0 | X157: =VLOOKUP($A157,'New Resources'!$A$4:$Y$133,X$5,FALSE)*X$4 -> 0 | Y157: =VLOOKUP($A157,'New Resources'!$A$4:$Y$133,Y$5,FALSE)*Y$4 -> 0 | Z157: =VLOOKUP($A157,'New Resources'!$A$4:$Y$133,Z$5,FALSE)*Z$4 -> 0 | AA157: =VLOOKUP($A157,'New Resources'!$A$4:$Y$133,AA$5,FALSE)*AA$4 -> 0 | AB157: =VLOOKUP($A157,'New Resources'!$A$4:$Y$133,AB$5,FALSE)*AB$4 -> 0 | AC157: =VLOOKUP($A157,'New Resources'!$A$4:$Y$133,AC$5,FALSE)*AC$4 -> 0 | AD157: =VLOOKUP($A157,'New Resources'!$A$4:$Y$133,AD$5,FALSE)*AD$4 -> 0 | AE157: =VLOOKUP($A157,'New Resources'!$A$4:$Y$133,AE$5,FALSE)*AE$4 -> 0
F158: =IF(F1>=RP_Start,F155,SUM(F155:F157)) -> 0 | G158: =IF(G1>=RP_Start,G155,(F158*G154)+G156+G157) -> 0 | H158: 0 | I158: 0 | J158: 0 | K158: 0 | L158: 0 | M158: 0 | N158: 0 | O158: 0 | P158: 0 | Q158: 0 | R158: 0 | S158: 0 | T158: 0 | U158: 0 | V158: 0 | W158: 0 | X158: 0 | Y158: 0 | Z158: 0 | AA158: 0 | AB158: 0 | AC158: 0 | AD158: 0 | AE158: 0
C159: Total LT & IT SLICE Purchase Cost ($) | E159: =E155 -> 0 | F159: =IF(F$3="Mid_Pt",(HLOOKUP("RP_Start",$F$3:$AE$194,156,FALSE)+HLOOKUP("RP_End",$F$3:$AE$194,156,FALSE))/2,F158) -> 0 | G159: 0 | H159: 0 | I159: 0 | J159: 0 | K159: 0 | L159: 0 | M159: 0 | N159: 0 | O159: 0 | P159: 0 | Q159: 0 | R159: 0 | S159: 0 | T159: 0 | U159: 0 | V159: 0 | W159: 0 | X159: 0 | Y159: 0 | Z159: 0 | AA159: 0 | AB159: 0 | AC159: 0 | AD159: 0 | AE159: 0
C160: 31
B161: Tier 1 | C161: Inflation Factor From Start Date | F161: 1 | G161: 1 | H161: 1 | I161: 1 | J161: 1 | K161: 1 | L161: 1 | M161: 1 | N161: 1 | O161: 1 | P161: 1 | Q161: 1 | R161: 1 | S161: 1 | T161: 1 | U161: 1 | V161: 1 | W161: 1 | X161: 1 | Y161: 1 | Z161: 1 | AA161: 1 | AB161: 1 | AC161: 1 | AD161: 1 | AE161: 1
C162: Inflation Factor Date-to-Date | F162: 1 | G162: 1 | H162: 1 | I162: 1 | J162: 1 | K162: 1 | L162: 1 | M162: 1 | N162: 1 | O162: 1 | P162: 1 | Q162: 1 | R162: 1 | S162: 1 | T162: 1 | U162: 1 | V162: 1 | W162: 1 | X162: 1 | Y162: 1 | Z162: 1 | AA162: 1 | AB162: 1 | AC162: 1 | AD162: 1 | AE162: 1
C163: Base Period LT & IT Tier 1 Purchases ($) | E163: =E279+E281 -> 0 | F163: =IF(F$1>$E$1,0,E163*F162) -> 0 | G163: =IF(G$1>$E$1,0,F163*G162) -> 0 | H163: 0 | I163: 0 | J163: 0 | K163: 0 | L163: 0 | M163: 0 | N163: 0 | O163: 0 | P163: 0 | Q163: 0 | R163: 0 | S163: 0 | T163: 0 | U163: 0 | V163: 0 | W163: 0 | X163: 0 | Y163: 0 | Z163: 0 | AA163: 0 | AB163: 0 | AC163: 0 | AD163: 0 | AE163: 0
A164: 710 | C164: New Resource LT & IT Tier 1 Purchases ($) | F164: =HLOOKUP(F6,'Tiered Rates'!$R$81:$Z$82,2,FALSE) -> 0 | G164: =HLOOKUP(G6,'Tiered Rates'!$R$81:$Z$82,2,FALSE) -> 0 | H164: =HLOOKUP(H6,'Tiered Rates'!$R$81:$Z$82,2,FALSE) -> 0 | I164: =HLOOKUP(I6,'Tiered Rates'!$R$81:$Z$82,2,FALSE) -> 0 | J164: =HLOOKUP(J6,'Tiered Rates'!$R$81:$Z$82,2,FALSE) -> 0 | K164: =HLOOKUP(K6,'Tiered Rates'!$R$81:$Z$82,2,FALSE) -> 0 | L164: =HLOOKUP(L6,'Tiered Rates'!$R$81:$Z$82,2,FALSE) -> 0 | M164: =HLOOKUP(M6,'Tiered Rates'!$R$81:$Z$82,2,FALSE) -> 0 | N164: =HLOOKUP(N6,'Tiered Rates'!$R$81:$Z$82,2,FALSE) -> 0 | O164: =HLOOKUP(O6,'Tiered Rates'!$R$81:$Z$82,2,FALSE) ->  | P164: =HLOOKUP(P6,'Tiered Rates'!$R$81:$Z$82,2,FALSE) ->  | Q164: =HLOOKUP(Q6,'Tiered Rates'!$R$81:$Z$82,2,FALSE) ->  | R164: =HLOOKUP(R6,'Tiered Rates'!$R$81:$Z$82,2,FALSE) ->  | S164: =HLOOKUP(S6,'Tiered Rates'!$R$81:$Z$82,2,FALSE) ->  | T164: =HLOOKUP(T6,'Tiered Rates'!$R$81:$Z$82,2,FALSE) ->  | U164: =HLOOKUP(U6,'Tiered Rates'!$R$81:$Z$82,2,FALSE) ->  | V164: =HLOOKUP(V6,'Tiered Rates'!$R$81:$Z$82,2,FALSE) ->  | W164: =HLOOKUP(W6,'Tiered Rates'!$R$81:$Z$82,2,FALSE) ->  | X164: =HLOOKUP(X6,'Tiered Rates'!$R$81:$Z$82,2,FALSE) ->  | Y164: =HLOOKUP(Y6,'Tiered Rates'!$R$81:$Z$82,2,FALSE) ->  | Z164: =HLOOKUP(Z6,'Tiered Rates'!$R$81:$Z$82,2,FALSE) ->  | AA164: =HLOOKUP(AA6,'Tiered Rates'!$R$81:$Z$82,2,FALSE) ->  | AB164: =HLOOKUP(AB6,'Tiered Rates'!$R$81:$Z$82,2,FALSE) ->  | AC164: =HLOOKUP(AC6,'Tiered Rates'!$R$81:$Z$82,2,FALSE) ->  | AD164: =HLOOKUP(AD6,'Tiered Rates'!$R$81:$Z$82,2,FALSE) ->  | AE164: =HLOOKUP(AE6,'Tiered Rates'!$R$81:$Z$82,2,FALSE) -> 
A165: 770 | C165: LT & IT Terminated Tier 1 Contracts ($)
F166: =F163+F164 -> 0 | G166: =G163+G164 -> 0 | H166: 0 | I166: 0 | J166: 0 | K166: 0 | L166: 0 | M166: 0 | N166: 0
C167: Total LT & IT Tier 1 Purchase Cost ($) | E167: =E163 -> 0 | F167: =IF(F$3="Mid_Pt",(HLOOKUP("RP_Start",$F$3:$AE$194,164,FALSE)+HLOOKUP("RP_End",$F$3:$AE$194,164,FALSE))/2,F166) -> 0 | G167: 0 | H167: 0 | I167: 0 | J167: 0 | K167: 0 | L167: 0 | M167: 0 | N167: 0
B169: Tier 2 | C169: Inflation Factor From Start Date | F169: 1 | G169: =VLOOKUP("PURCHG2",EscTable_01,G$136,FALSE) -> 1 | H169: 1 | I169: 1 | J169: 1 | K169: 1 | L169: 1 | M169: 1 | N169: 1 | O169: 1 | P169: 1 | Q169: 1 | R169: 1 | S169: 1 | T169: 1 | U169: 1 | V169: 1 | W169: 1 | X169: 1 | Y169: 1 | Z169: 1 | AA169: 1 | AB169: 1 | AC169: 1 | AD169: 1 | AE169: 1
C170: Inflation Factor Date-to-Date | F170: 1 | G170: =G169/F169 -> 1 | H170: 1 | I170: 1 | J170: 1 | K170: 1 | L170: 1 | M170: 1 | N170: 1 | O170: 1 | P170: 1 | Q170: 1 | R170: 1 | S170: 1 | T170: 1 | U170: 1 | V170: 1 | W170: 1 | X170: 1 | Y170: 1 | Z170: 1 | AA170: 1 | AB170: 1 | AC170: 1 | AD170: 1 | AE170: 1
C171: Base Period LT & IT Tier 2 Purchases ($) | F171: =E171 -> 0
A172: 710 | C172: New Resource LT & IT Tier 2 Purchases ($) | F172: =VLOOKUP($A172,'New Resources'!$A$4:$Y$133,F$5,FALSE)*F$4 -> 0 | G172: =VLOOKUP($A172,'New Resources'!$A$4:$Y$133,G$5,FALSE)*G$4 -> 0 | H172: =VLOOKUP($A172,'New Resources'!$A$4:$Y$133,H$5,FALSE)*H$4 -> 0 | I172: =VLOOKUP($A172,'New Resources'!$A$4:$Y$133,I$5,FALSE)*I$4 -> 0 | J172: =VLOOKUP($A172,'New Resources'!$A$4:$Y$133,J$5,FALSE)*J$4 -> 0 | K172: =VLOOKUP($A172,'New Resources'!$A$4:$Y$133,K$5,FALSE)*K$4 -> 0 | L172: =VLOOKUP($A172,'New Resources'!$A$4:$Y$133,L$5,FALSE)*L$4 -> 0 | M172: =VLOOKUP($A172,'New Resources'!$A$4:$Y$133,M$5,FALSE)*M$4 -> 0 | N172: =VLOOKUP($A172,'New Resources'!$A$4:$Y$133,N$5,FALSE)*N$4 -> 0 | O172: =VLOOKUP($A172,'New Resources'!$A$4:$Y$133,O$5,FALSE)*O$4 -> 0 | P172: =VLOOKUP($A172,'New Resources'!$A$4:$Y$133,P$5,FALSE)*P$4 -> 0 | Q172: =VLOOKUP($A172,'New Resources'!$A$4:$Y$133,Q$5,FALSE)*Q$4 -> 0 | R172: =VLOOKUP($A172,'New Resources'!$A$4:$Y$133,R$5,FALSE)*R$4 -> 0 | S172: =VLOOKUP($A172,'New Resources'!$A$4:$Y$133,S$5,FALSE)*S$4 -> 0 | T172: =VLOOKUP($A172,'New Resources'!$A$4:$Y$133,T$5,FALSE)*T$4 -> 0 | U172: =VLOOKUP($A172,'New Resources'!$A$4:$Y$133,U$5,FALSE)*U$4 -> 0 | V172: =VLOOKUP($A172,'New Resources'!$A$4:$Y$133,V$5,FALSE)*V$4 -> 0 | W172: =VLOOKUP($A172,'New Resources'!$A$4:$Y$133,W$5,FALSE)*W$4 -> 0 | X172: =VLOOKUP($A172,'New Resources'!$A$4:$Y$133,X$5,FALSE)*X$4 -> 0 | Y172: =VLOOKUP($A172,'New Resources'!$A$4:$Y$133,Y$5,FALSE)*Y$4 -> 0 | Z172: =VLOOKUP($A172,'New Resources'!$A$4:$Y$133,Z$5,FALSE)*Z$4 -> 0 | AA172: =VLOOKUP($A172,'New Resources'!$A$4:$Y$133,AA$5,FALSE)*AA$4 -> 0 | AB172: =VLOOKUP($A172,'New Resources'!$A$4:$Y$133,AB$5,FALSE)*AB$4 -> 0 | AC172: =VLOOKUP($A172,'New Resources'!$A$4:$Y$133,AC$5,FALSE)*AC$4 -> 0 | AD172: =VLOOKUP($A172,'New Resources'!$A$4:$Y$133,AD$5,FALSE)*AD$4 -> 0 | AE172: =VLOOKUP($A172,'New Resources'!$A$4:$Y$133,AE$5,FALSE)*AE$4 -> 0
A173: 770 | C173: LT & IT Terminated Tier 2 Contracts ($) | F173: =VLOOKUP($A173,'New Resources'!$A$4:$Y$133,F$5,FALSE)*F$4 -> 0 | G173: =VLOOKUP($A173,'New Resources'!$A$4:$Y$133,G$5,FALSE)*G$4 -> 0 | H173: =VLOOKUP($A173,'New Resources'!$A$4:$Y$133,H$5,FALSE)*H$4 -> 0 | I173: =VLOOKUP($A173,'New Resources'!$A$4:$Y$133,I$5,FALSE)*I$4 -> 0 | J173: =VLOOKUP($A173,'New Resources'!$A$4:$Y$133,J$5,FALSE)*J$4 -> 0 | K173: =VLOOKUP($A173,'New Resources'!$A$4:$Y$133,K$5,FALSE)*K$4 -> 0 | L173: =VLOOKUP($A173,'New Resources'!$A$4:$Y$133,L$5,FALSE)*L$4 -> 0 | M173: =VLOOKUP($A173,'New Resources'!$A$4:$Y$133,M$5,FALSE)*M$4 -> 0 | N173: =VLOOKUP($A173,'New Resources'!$A$4:$Y$133,N$5,FALSE)*N$4 -> 0 | O173: =VLOOKUP($A173,'New Resources'!$A$4:$Y$133,O$5,FALSE)*O$4 -> 0 | P173: =VLOOKUP($A173,'New Resources'!$A$4:$Y$133,P$5,FALSE)*P$4 -> 0 | Q173: =VLOOKUP($A173,'New Resources'!$A$4:$Y$133,Q$5,FALSE)*Q$4 -> 0 | R173: =VLOOKUP($A173,'New Resources'!$A$4:$Y$133,R$5,FALSE)*R$4 -> 0 | S173: =VLOOKUP($A173,'New Resources'!$A$4:$Y$133,S$5,FALSE)*S$4 -> 0 | T173: =VLOOKUP($A173,'New Resources'!$A$4:$Y$133,T$5,FALSE)*T$4 -> 0 | U173: =VLOOKUP($A173,'New Resources'!$A$4:$Y$133,U$5,FALSE)*U$4 -> 0 | V173: =VLOOKUP($A173,'New Resources'!$A$4:$Y$133,V$5,FALSE)*V$4 -> 0 | W173: =VLOOKUP($A173,'New Resources'!$A$4:$Y$133,W$5,FALSE)*W$4 -> 0 | X173: =VLOOKUP($A173,'New Resources'!$A$4:$Y$133,X$5,FALSE)*X$4 -> 0 | Y173: =VLOOKUP($A173,'New Resources'!$A$4:$Y$133,Y$5,FALSE)*Y$4 -> 0 | Z173: =VLOOKUP($A173,'New Resources'!$A$4:$Y$133,Z$5,FALSE)*Z$4 -> 0 | AA173: =VLOOKUP($A173,'New Resources'!$A$4:$Y$133,AA$5,FALSE)*AA$4 -> 0 | AB173: =VLOOKUP($A173,'New Resources'!$A$4:$Y$133,AB$5,FALSE)*AB$4 -> 0 | AC173: =VLOOKUP($A173,'New Resources'!$A$4:$Y$133,AC$5,FALSE)*AC$4 -> 0 | AD173: =VLOOKUP($A173,'New Resources'!$A$4:$Y$133,AD$5,FALSE)*AD$4 -> 0 | AE173: =VLOOKUP($A173,'New Resources'!$A$4:$Y$133,AE$5,FALSE)*AE$4 -> 0
F174: =SUM(F171:F173) -> 0 | G174: =(F174*G170)+G172+G173 -> 0 | H174: 0 | I174: 0 | J174: 0 | K174: 0 | L174: 0 | M174: 0 | N174: 0 | O174: 0 | P174: 0 | Q174: 0 | R174: 0 | S174: 0 | T174: 0 | U174: 0 | V174: 0 | W174: 0 | X174: 0 | Y174: 0 | Z174: 0 | AA174: 0 | AB174: 0 | AC174: 0 | AD174: 0 | AE174: 0
C175: Total LT & IT Tier 2 Purchase Cost ($) | E175: =E171 -> 0 | F175: =IF(F$3="Mid_Pt",IF(F5=5,((HLOOKUP("RP_Start",$F$3:$AE$194,172,FALSE)*(1+(HLOOKUP("RP_End",$F$3:$AE$194,167,FALSE)/HLOOKUP("RP_START",$F$3:$AE$194,167,FALSE))))/2)+F172+F173,E175+F172+F173),F174) -> 0 | G175: =IF(G$3="Mid_Pt",IF(G5=5,((HLOOKUP("RP_Start",$F$3:$AE$194,172,FALSE)*(1+(HLOOKUP("RP_End",$F$3:$AE$194,167,FALSE)/HLOOKUP("RP_START",$F$3:$AE$194,167,FALSE))))/2)+G172+G173,F175+G172+G173),G174) -> 0 | H175: 0 | I175: 0 | J175: 0 | K175: 0 | L175: 0 | M175: =IF(M$3="Mid_Pt",IF(M5=5,((HLOOKUP("RP_Start",$F$3:$AE$194,172,FALSE)*(1+(HLOOKUP("RP_End",$F$3:$AE$194,167,FALSE)/HLOOKUP("RP_START",$F$3:$AE$194,167,FALSE))))/2)+M172+M173,L175+M172+M173),M174) -> 0 | N175: =IF(N$3="Mid_Pt",IF(N5=5,((HLOOKUP("RP_Start",$F$3:$AE$194,172,FALSE)*(1+(HLOOKUP("RP_End",$F$3:$AE$194,167,FALSE)/HLOOKUP("RP_START",$F$3:$AE$194,167,FALSE))))/2)+N172+N173,M175+N172+N173),N174) -> 0 | O175: =IF(O$3="Mid_Pt",IF(O5=5,((HLOOKUP("RP_Start",$F$3:$AE$194,172,FALSE)*(1+(HLOOKUP("RP_End",$F$3:$AE$194,167,FALSE)/HLOOKUP("RP_START",$F$3:$AE$194,167,FALSE))))/2)+O172+O173,N175+O172+O173),O174) -> 0 | P175: =IF(P$3="Mid_Pt",IF(P5=5,((HLOOKUP("RP_Start",$F$3:$AE$194,172,FALSE)*(1+(HLOOKUP("RP_End",$F$3:$AE$194,167,FALSE)/HLOOKUP("RP_START",$F$3:$AE$194,167,FALSE))))/2)+P172+P173,O175+P172+P173),P174) -> 0 | Q175: =IF(Q$3="Mid_Pt",IF(Q5=5,((HLOOKUP("RP_Start",$F$3:$AE$194,172,FALSE)*(1+(HLOOKUP("RP_End",$F$3:$AE$194,167,FALSE)/HLOOKUP("RP_START",$F$3:$AE$194,167,FALSE))))/2)+Q172+Q173,P175+Q172+Q173),Q174) -> 0 | R175: =IF(R$3="Mid_Pt",IF(R5=5,((HLOOKUP("RP_Start",$F$3:$AE$194,172,FALSE)*(1+(HLOOKUP("RP_End",$F$3:$AE$194,167,FALSE)/HLOOKUP("RP_START",$F$3:$AE$194,167,FALSE))))/2)+R172+R173,Q175+R172+R173),R174) -> 0 | S175: =IF(S$3="Mid_Pt",IF(S5=5,((HLOOKUP("RP_Start",$F$3:$AE$194,172,FALSE)*(1+(HLOOKUP("RP_End",$F$3:$AE$194,167,FALSE)/HLOOKUP("RP_START",$F$3:$AE$194,167,FALSE))))/2)+S172+S173,R175+S172+S173),S174) -> 0 | T175: =IF(T$3="Mid_Pt",IF(T5=5,((HLOOKUP("RP_Start",$F$3:$AE$194,172,FALSE)*(1+(HLOOKUP("RP_End",$F$3:$AE$194,167,FALSE)/HLOOKUP("RP_START",$F$3:$AE$194,167,FALSE))))/2)+T172+T173,S175+T172+T173),T174) -> 0 | U175: =IF(U$3="Mid_Pt",IF(U5=5,((HLOOKUP("RP_Start",$F$3:$AE$194,172,FALSE)*(1+(HLOOKUP("RP_End",$F$3:$AE$194,167,FALSE)/HLOOKUP("RP_START",$F$3:$AE$194,167,FALSE))))/2)+U172+U173,T175+U172+U173),U174) -> 0 | V175: =IF(V$3="Mid_Pt",IF(V5=5,((HLOOKUP("RP_Start",$F$3:$AE$194,172,FALSE)*(1+(HLOOKUP("RP_End",$F$3:$AE$194,167,FALSE)/HLOOKUP("RP_START",$F$3:$AE$194,167,FALSE))))/2)+V172+V173,U175+V172+V173),V174) -> 0 | W175: =IF(W$3="Mid_Pt",IF(W5=5,((HLOOKUP("RP_Start",$F$3:$AE$194,172,FALSE)*(1+(HLOOKUP("RP_End",$F$3:$AE$194,167,FALSE)/HLOOKUP("RP_START",$F$3:$AE$194,167,FALSE))))/2)+W172+W173,V175+W172+W173),W174) -> 0 | X175: =IF(X$3="Mid_Pt",IF(X5=5,((HLOOKUP("RP_Start",$F$3:$AE$194,172,FALSE)*(1+(HLOOKUP("RP_End",$F$3:$AE$194,167,FALSE)/HLOOKUP("RP_START",$F$3:$AE$194,167,FALSE))))/2)+X172+X173,W175+X172+X173),X174) -> 0 | Y175: =IF(Y$3="Mid_Pt",IF(Y5=5,((HLOOKUP("RP_Start",$F$3:$AE$194,172,FALSE)*(1+(HLOOKUP("RP_End",$F$3:$AE$194,167,FALSE)/HLOOKUP("RP_START",$F$3:$AE$194,167,FALSE))))/2)+Y172+Y173,X175+Y172+Y173),Y174) -> 0 | Z175: =IF(Z$3="Mid_Pt",IF(Z5=5,((HLOOKUP("RP_Start",$F$3:$AE$194,172,FALSE)*(1+(HLOOKUP("RP_End",$F$3:$AE$194,167,FALSE)/HLOOKUP("RP_START",$F$3:$AE$194,167,FALSE))))/2)+Z172+Z173,Y175+Z172+Z173),Z174) -> 0 | AA175: =IF(AA$3="Mid_Pt",IF(AA5=5,((HLOOKUP("RP_Start",$F$3:$AE$194,172,FALSE)*(1+(HLOOKUP("RP_End",$F$3:$AE$194,167,FALSE)/HLOOKUP("RP_START",$F$3:$AE$194,167,FALSE))))/2)+AA172+AA173,Z175+AA172+AA173),AA174) -> 0 | AB175: =IF(AB$3="Mid_Pt",IF(AB5=5,((HLOOKUP("RP_Start",$F$3:$AE$194,172,FALSE)*(1+(HLOOKUP("RP_End",$F$3:$AE$194,167,FALSE)/HLOOKUP("RP_START",$F$3:$AE$194,167,FALSE))))/2)+AB172+AB173,AA175+AB172+AB173),AB174) -> 0 | AC175: =IF(AC$3="Mid_Pt",IF(AC5=5,((HLOOKUP("RP_Start",$F$3:$AE$194,172,FALSE)*(1+(HLOOKUP("RP_End",$F$3:$AE$194,167,FALSE)/HLOOKUP("RP_START",$F$3:$AE$194,167,FALSE))))/2)+AC172+AC173,AB175+AC172+AC173),AC174) -> 0 | AD175: =IF(AD$3="Mid_Pt",IF(AD5=5,((HLOOKUP("RP_Start",$F$3:$AE$194,172,FALSE)*(1+(HLOOKUP("RP_End",$F$3:$AE$194,167,FALSE)/HLOOKUP("RP_START",$F$3:$AE$194,167,FALSE))))/2)+AD172+AD173,AC175+AD172+AD173),AD174) -> 0 | AE175: =IF(AE$3="Mid_Pt",IF(AE5=5,((HLOOKUP("RP_Start",$F$3:$AE$194,172,FALSE)*(1+(HLOOKUP("RP_End",$F$3:$AE$194,167,FALSE)/HLOOKUP("RP_START",$F$3:$AE$194,167,FALSE))))/2)+AE172+AE173,AD175+AE172+AE173),AE174) -> 0
B177: Other BPA | C177: Inflation Factor From Start Date | F177: 1 | G177: =VLOOKUP("PURCHG3",EscTable_01,G$136,FALSE) -> 1 | H177: 1 | I177: 1 | J177: 1 | K177: 1 | L177: 1 | M177: 1 | N177: 1 | O177: 1 | P177: 1 | Q177: 1 | R177: 1 | S177: 1 | T177: 1 | U177: 1 | V177: 1 | W177: 1 | X177: 1 | Y177: 1 | Z177: 1 | AA177: 1 | AB177: 1 | AC177: 1 | AD177: 1 | AE177: 1
C178: Inflation Factor Date-to-Date | F178: 1 | G178: =G177/F177 -> 1 | H178: 1 | I178: 1 | J178: 1 | K178: 1 | L178: 1 | M178: 1 | N178: 1 | O178: 1 | P178: 1 | Q178: 1 | R178: 1 | S178: 1 | T178: 1 | U178: 1 | V178: 1 | W178: 1 | X178: 1 | Y178: 1 | Z178: 1 | AA178: 1 | AB178: 1 | AC178: 1 | AD178: 1 | AE178: 1
C179: Base Period LT & IT Other BPA Purchases ($) | E179: =E280 -> 0 | F179: =E179 -> 0
A180: 730 | C180: New Resource LT & IT Other BPA Purchases ($) | F180: =VLOOKUP($A180,'New Resources'!$A$4:$Y$133,F$5,FALSE)*F$4 -> 0 | G180: =VLOOKUP($A180,'New Resources'!$A$4:$Y$133,G$5,FALSE)*G$4 -> 0 | H180: =VLOOKUP($A180,'New Resources'!$A$4:$Y$133,H$5,FALSE)*H$4 -> 0 | I180: =VLOOKUP($A180,'New Resources'!$A$4:$Y$133,I$5,FALSE)*I$4 -> 0 | J180: =VLOOKUP($A180,'New Resources'!$A$4:$Y$133,J$5,FALSE)*J$4 -> 0 | K180: =VLOOKUP($A180,'New Resources'!$A$4:$Y$133,K$5,FALSE)*K$4 -> 0 | L180: =VLOOKUP($A180,'New Resources'!$A$4:$Y$133,L$5,FALSE)*L$4 -> 0 | M180: =VLOOKUP($A180,'New Resources'!$A$4:$Y$133,M$5,FALSE)*M$4 -> 0 | N180: =VLOOKUP($A180,'New Resources'!$A$4:$Y$133,N$5,FALSE)*N$4 -> 0 | O180: =VLOOKUP($A180,'New Resources'!$A$4:$Y$133,O$5,FALSE)*O$4 -> 0 | P180: =VLOOKUP($A180,'New Resources'!$A$4:$Y$133,P$5,FALSE)*P$4 -> 0 | Q180: =VLOOKUP($A180,'New Resources'!$A$4:$Y$133,Q$5,FALSE)*Q$4 -> 0 | R180: =VLOOKUP($A180,'New Resources'!$A$4:$Y$133,R$5,FALSE)*R$4 -> 0 | S180: =VLOOKUP($A180,'New Resources'!$A$4:$Y$133,S$5,FALSE)*S$4 -> 0 | T180: =VLOOKUP($A180,'New Resources'!$A$4:$Y$133,T$5,FALSE)*T$4 -> 0 | U180: =VLOOKUP($A180,'New Resources'!$A$4:$Y$133,U$5,FALSE)*U$4 -> 0 | V180: =VLOOKUP($A180,'New Resources'!$A$4:$Y$133,V$5,FALSE)*V$4 -> 0 | W180: =VLOOKUP($A180,'New Resources'!$A$4:$Y$133,W$5,FALSE)*W$4 -> 0 | X180: =VLOOKUP($A180,'New Resources'!$A$4:$Y$133,X$5,FALSE)*X$4 -> 0 | Y180: =VLOOKUP($A180,'New Resources'!$A$4:$Y$133,Y$5,FALSE)*Y$4 -> 0 | Z180: =VLOOKUP($A180,'New Resources'!$A$4:$Y$133,Z$5,FALSE)*Z$4 -> 0 | AA180: =VLOOKUP($A180,'New Resources'!$A$4:$Y$133,AA$5,FALSE)*AA$4 -> 0 | AB180: =VLOOKUP($A180,'New Resources'!$A$4:$Y$133,AB$5,FALSE)*AB$4 -> 0 | AC180: =VLOOKUP($A180,'New Resources'!$A$4:$Y$133,AC$5,FALSE)*AC$4 -> 0 | AD180: =VLOOKUP($A180,'New Resources'!$A$4:$Y$133,AD$5,FALSE)*AD$4 -> 0 | AE180: =VLOOKUP($A180,'New Resources'!$A$4:$Y$133,AE$5,FALSE)*AE$4 -> 0
A181: 770 | C181: LT & IT Terminated Other BPA Contracts ($) | F181: =VLOOKUP($A181,'New Resources'!$A$4:$Y$133,F$5,FALSE)*F$4 -> 0 | G181: =VLOOKUP($A181,'New Resources'!$A$4:$Y$133,G$5,FALSE)*G$4 -> 0 | H181: =VLOOKUP($A181,'New Resources'!$A$4:$Y$133,H$5,FALSE)*H$4 -> 0 | I181: =VLOOKUP($A181,'New Resources'!$A$4:$Y$133,I$5,FALSE)*I$4 -> 0 | J181: =VLOOKUP($A181,'New Resources'!$A$4:$Y$133,J$5,FALSE)*J$4 -> 0 | K181: =VLOOKUP($A181,'New Resources'!$A$4:$Y$133,K$5,FALSE)*K$4 -> 0 | L181: =VLOOKUP($A181,'New Resources'!$A$4:$Y$133,L$5,FALSE)*L$4 -> 0 | M181: =VLOOKUP($A181,'New Resources'!$A$4:$Y$133,M$5,FALSE)*M$4 -> 0 | N181: =VLOOKUP($A181,'New Resources'!$A$4:$Y$133,N$5,FALSE)*N$4 -> 0 | O181: =VLOOKUP($A181,'New Resources'!$A$4:$Y$133,O$5,FALSE)*O$4 -> 0 | P181: =VLOOKUP($A181,'New Resources'!$A$4:$Y$133,P$5,FALSE)*P$4 -> 0 | Q181: =VLOOKUP($A181,'New Resources'!$A$4:$Y$133,Q$5,FALSE)*Q$4 -> 0 | R181: =VLOOKUP($A181,'New Resources'!$A$4:$Y$133,R$5,FALSE)*R$4 -> 0 | S181: =VLOOKUP($A181,'New Resources'!$A$4:$Y$133,S$5,FALSE)*S$4 -> 0 | T181: =VLOOKUP($A181,'New Resources'!$A$4:$Y$133,T$5,FALSE)*T$4 -> 0 | U181: =VLOOKUP($A181,'New Resources'!$A$4:$Y$133,U$5,FALSE)*U$4 -> 0 | V181: =VLOOKUP($A181,'New Resources'!$A$4:$Y$133,V$5,FALSE)*V$4 -> 0 | W181: =VLOOKUP($A181,'New Resources'!$A$4:$Y$133,W$5,FALSE)*W$4 -> 0 | X181: =VLOOKUP($A181,'New Resources'!$A$4:$Y$133,X$5,FALSE)*X$4 -> 0 | Y181: =VLOOKUP($A181,'New Resources'!$A$4:$Y$133,Y$5,FALSE)*Y$4 -> 0 | Z181: =VLOOKUP($A181,'New Resources'!$A$4:$Y$133,Z$5,FALSE)*Z$4 -> 0 | AA181: =VLOOKUP($A181,'New Resources'!$A$4:$Y$133,AA$5,FALSE)*AA$4 -> 0 | AB181: =VLOOKUP($A181,'New Resources'!$A$4:$Y$133,AB$5,FALSE)*AB$4 -> 0 | AC181: =VLOOKUP($A181,'New Resources'!$A$4:$Y$133,AC$5,FALSE)*AC$4 -> 0 | AD181: =VLOOKUP($A181,'New Resources'!$A$4:$Y$133,AD$5,FALSE)*AD$4 -> 0 | AE181: =VLOOKUP($A181,'New Resources'!$A$4:$Y$133,AE$5,FALSE)*AE$4 -> 0
F182: =SUM(F179:F181) -> 0 | G182: =(F182*G178)+G180+G181 -> 0 | H182: 0 | I182: 0 | J182: 0 | K182: 0 | L182: 0 | M182: 0 | N182: 0 | O182: 0 | P182: 0 | Q182: 0 | R182: 0 | S182: 0 | T182: 0 | U182: 0 | V182: 0 | W182: 0 | X182: 0 | Y182: 0 | Z182: 0 | AA182: 0 | AB182: 0 | AC182: 0 | AD182: 0 | AE182: 0
C183: Total LT & IT Other BPA Purchase Cost ($) | E183: =E179 -> 0 | F183: =IF(F$3="Mid_Pt",(HLOOKUP("RP_Start",$F$3:$AE$194,180,FALSE)+HLOOKUP("RP_End",$F$3:$AE$194,180,FALSE))/2,F182) -> 0 | G183: 0 | H183: 0 | I183: 0 | J183: 0 | K183: 0 | L183: 0 | M183: 0 | N183: 0 | O183: 0 | P183: 0 | Q183: 0 | R183: 0 | S183: 0 | T183: 0 | U183: 0 | V183: 0 | W183: 0 | X183: 0 | Y183: 0 | Z183: 0 | AA183: 0 | AB183: 0 | AC183: 0 | AD183: 0 | AE183: 0
B187: LT Sales for Resale | C187: Inflation Factor From Start Date | F187: 1 | G187: =VLOOKUP("INF",EscTable_01,G$136,FALSE) -> 1.006952165 | H187: 1.021001827 | I187: 1.034087577 | J187: 1.046167549 | K187: 1.058000639 | L187: 1.081329549 | M187: 1.105389128 | N187: 1.117700922 | O187: 1.117700922 | P187: 1.123908147 | Q187: 1.123908147 | R187: 1.123908147 | S187: 1.123908147 | T187: 1.123908147 | U187: 1.123908147 | V187: 1.123908147 | W187: 1.123908147 | X187: 1.123908147 | Y187: 1.123908147 | Z187: 1.123908147 | AA187: 1.123908147 | AB187: 1.123908147 | AC187: 1.123908147 | AD187: 1.123908147 | AE187: 1.123908147
C188: Inflation Factor Date-to-Date | F188: 1 | G188: =G187/F187 -> 1.006952165 | H188: 1.013952662 | I188: 1.012816578 | J188: 1.011681768 | K188: 1.011310894 | L188: 1.022049996 | M188: 1.022249996 | N188: 1.011137973 | O188: 1 | P188: 1.005553565 | Q188: 1 | R188: 1 | S188: 1 | T188: 1 | U188: 1 | V188: 1 | W188: 1 | X188: 1 | Y188: 1 | Z188: 1 | AA188: 1 | AB188: 1 | AC188: 1 | AD188: 1 | AE188: 1
C189: Base Period LT & IT Sales for Resale ($) | E189: =E246+E247+E248+E250+E251 -> 324999 | F189: =E189 -> 324999
A190: 110000 | C190: New Resource LT & IT Sales for Resale ($) | F190: =VLOOKUP($A190,'New Resources'!$A$4:$Y$133,F$5,FALSE)*F$4 -> 0 | G190: =VLOOKUP($A190,'New Resources'!$A$4:$Y$133,G$5,FALSE)*G$4 -> 0 | H190: =VLOOKUP($A190,'New Resources'!$A$4:$Y$133,H$5,FALSE)*H$4 -> 0 | I190: =VLOOKUP($A190,'New Resources'!$A$4:$Y$133,I$5,FALSE)*I$4 -> 0 | J190: =VLOOKUP($A190,'New Resources'!$A$4:$Y$133,J$5,FALSE)*J$4 -> 0 | K190: =VLOOKUP($A190,'New Resources'!$A$4:$Y$133,K$5,FALSE)*K$4 -> 0 | L190: =VLOOKUP($A190,'New Resources'!$A$4:$Y$133,L$5,FALSE)*L$4 -> 0 | M190: =VLOOKUP($A190,'New Resources'!$A$4:$Y$133,M$5,FALSE)*M$4 -> 0 | N190: =VLOOKUP($A190,'New Resources'!$A$4:$Y$133,N$5,FALSE)*N$4 -> 0 | O190: =VLOOKUP($A190,'New Resources'!$A$4:$Y$133,O$5,FALSE)*O$4 -> 0 | P190: =VLOOKUP($A190,'New Resources'!$A$4:$Y$133,P$5,FALSE)*P$4 -> 0 | Q190: =VLOOKUP($A190,'New Resources'!$A$4:$Y$133,Q$5,FALSE)*Q$4 -> 0 | R190: =VLOOKUP($A190,'New Resources'!$A$4:$Y$133,R$5,FALSE)*R$4 -> 0 | S190: =VLOOKUP($A190,'New Resources'!$A$4:$Y$133,S$5,FALSE)*S$4 -> 0 | T190: =VLOOKUP($A190,'New Resources'!$A$4:$Y$133,T$5,FALSE)*T$4 -> 0 | U190: =VLOOKUP($A190,'New Resources'!$A$4:$Y$133,U$5,FALSE)*U$4 -> 0 | V190: =VLOOKUP($A190,'New Resources'!$A$4:$Y$133,V$5,FALSE)*V$4 -> 0 | W190: =VLOOKUP($A190,'New Resources'!$A$4:$Y$133,W$5,FALSE)*W$4 -> 0 | X190: =VLOOKUP($A190,'New Resources'!$A$4:$Y$133,X$5,FALSE)*X$4 -> 0 | Y190: =VLOOKUP($A190,'New Resources'!$A$4:$Y$133,Y$5,FALSE)*Y$4 -> 0 | Z190: =VLOOKUP($A190,'New Resources'!$A$4:$Y$133,Z$5,FALSE)*Z$4 -> 0 | AA190: =VLOOKUP($A190,'New Resources'!$A$4:$Y$133,AA$5,FALSE)*AA$4 -> 0 | AB190: =VLOOKUP($A190,'New Resources'!$A$4:$Y$133,AB$5,FALSE)*AB$4 -> 0 | AC190: =VLOOKUP($A190,'New Resources'!$A$4:$Y$133,AC$5,FALSE)*AC$4 -> 0 | AD190: =VLOOKUP($A190,'New Resources'!$A$4:$Y$133,AD$5,FALSE)*AD$4 -> 0 | AE190: =VLOOKUP($A190,'New Resources'!$A$4:$Y$133,AE$5,FALSE)*AE$4 -> 0
A191: 113000 | C191: LT & IT Terminated Sales for Resale Contracts ($) | F191: =VLOOKUP($A191,'New Resources'!$A$4:$Y$133,F$5,FALSE)*F$4 -> 0 | G191: =VLOOKUP($A191,'New Resources'!$A$4:$Y$133,G$5,FALSE)*G$4 -> 0 | H191: =VLOOKUP($A191,'New Resources'!$A$4:$Y$133,H$5,FALSE)*H$4 -> 0 | I191: =VLOOKUP($A191,'New Resources'!$A$4:$Y$133,I$5,FALSE)*I$4 -> 0 | J191: =VLOOKUP($A191,'New Resources'!$A$4:$Y$133,J$5,FALSE)*J$4 -> 0 | K191: =VLOOKUP($A191,'New Resources'!$A$4:$Y$133,K$5,FALSE)*K$4 -> 0 | L191: =VLOOKUP($A191,'New Resources'!$A$4:$Y$133,L$5,FALSE)*L$4 -> 0 | M191: =VLOOKUP($A191,'New Resources'!$A$4:$Y$133,M$5,FALSE)*M$4 -> 0 | N191: =VLOOKUP($A191,'New Resources'!$A$4:$Y$133,N$5,FALSE)*N$4 -> 0 | O191: =VLOOKUP($A191,'New Resources'!$A$4:$Y$133,O$5,FALSE)*O$4 -> 0 | P191: =VLOOKUP($A191,'New Resources'!$A$4:$Y$133,P$5,FALSE)*P$4 -> 0 | Q191: =VLOOKUP($A191,'New Resources'!$A$4:$Y$133,Q$5,FALSE)*Q$4 -> 0 | R191: =VLOOKUP($A191,'New Resources'!$A$4:$Y$133,R$5,FALSE)*R$4 -> 0 | S191: =VLOOKUP($A191,'New Resources'!$A$4:$Y$133,S$5,FALSE)*S$4 -> 0 | T191: =VLOOKUP($A191,'New Resources'!$A$4:$Y$133,T$5,FALSE)*T$4 -> 0 | U191: =VLOOKUP($A191,'New Resources'!$A$4:$Y$133,U$5,FALSE)*U$4 -> 0 | V191: =VLOOKUP($A191,'New Resources'!$A$4:$Y$133,V$5,FALSE)*V$4 -> 0 | W191: =VLOOKUP($A191,'New Resources'!$A$4:$Y$133,W$5,FALSE)*W$4 -> 0 | X191: =VLOOKUP($A191,'New Resources'!$A$4:$Y$133,X$5,FALSE)*X$4 -> 0 | Y191: =VLOOKUP($A191,'New Resources'!$A$4:$Y$133,Y$5,FALSE)*Y$4 -> 0 | Z191: =VLOOKUP($A191,'New Resources'!$A$4:$Y$133,Z$5,FALSE)*Z$4 -> 0 | AA191: =VLOOKUP($A191,'New Resources'!$A$4:$Y$133,AA$5,FALSE)*AA$4 -> 0 | AB191: =VLOOKUP($A191,'New Resources'!$A$4:$Y$133,AB$5,FALSE)*AB$4 -> 0 | AC191: =VLOOKUP($A191,'New Resources'!$A$4:$Y$133,AC$5,FALSE)*AC$4 -> 0 | AD191: =VLOOKUP($A191,'New Resources'!$A$4:$Y$133,AD$5,FALSE)*AD$4 -> 0 | AE191: =VLOOKUP($A191,'New Resources'!$A$4:$Y$133,AE$5,FALSE)*AE$4 -> 0
F192: =SUM(F189:F191) -> 324999 | G192: =(F192*G188)+G190+G191 -> 327258.4465 | H192: 331824.5729 | I192: 336077.4285 | J192: 340003.4071 | K192: 343849.1498 | L192: 351431.0222 | M192: 359250.3612 | N192: 363251.6819 | O192: 363251.6819 | P192: 365269.0239 | Q192: 365269.0239 | R192: 365269.0239 | S192: 365269.0239 | T192: 365269.0239 | U192: 365269.0239 | V192: 365269.0239 | W192: 365269.0239 | X192: 365269.0239 | Y192: 365269.0239 | Z192: 365269.0239 | AA192: 365269.0239 | AB192: 365269.0239 | AC192: 365269.0239 | AD192: 365269.0239 | AE192: 365269.0239
C193: Total LT & IT Sales for Resale ($) | E193: =E189 -> 324999 | F193: =IF(F$3="Mid_Pt",(HLOOKUP("RP_Start",$F$3:$AE$194,190,FALSE)+HLOOKUP("RP_End",$F$3:$AE$194,190,FALSE))/2,F192) -> 324999 | G193: 327258.4465 | H193: 331824.5729 | I193: 336077.4285 | J193: 340003.4071 | K193: 343849.1498 | L193: 351627.5445 | M193: 359250.3612 | N193: 363251.6819 | O193: 363251.6819 | P193: 365269.0239 | Q193: 365269.0239 | R193: 365269.0239 | S193: 365269.0239 | T193: 365269.0239 | U193: 365269.0239 | V193: 365269.0239 | W193: 365269.0239 | X193: 365269.0239 | Y193: 365269.0239 | Z193: 365269.0239 | AA193: 365269.0239 | AB193: 365269.0239 | AC193: 365269.0239 | AD193: 365269.0239 | AE193: 365269.0239
D198: Load increase | F198: =F199/$E$199 -> 0.9984933687 | G198: 0.9984933687 | H198: 1.002874076 | I198: 1.002874076 | J198: 1.011085356 | K198: 1.011085356 | L198: 1.018541832 | M198: 1.032520351 | N198: 1.032520351
C199: Contract System Load (CSL) | E199: ='Load Forecast'!B6 -> 22147853.36 | F199: =HLOOKUP(F6,'Load Forecast'!$B$3:$O$6,4,FALSE) -> 22114484.71 | G199: =HLOOKUP(G6,'Load Forecast'!$B$3:$O$6,4,FALSE) -> 22114484.71 | H199: =HLOOKUP(H6,'Load Forecast'!$B$3:$O$6,4,FALSE) -> 22211507.96 | I199: =HLOOKUP(I6,'Load Forecast'!$B$3:$O$6,4,FALSE) -> 22211507.96 | J199: =HLOOKUP(J6,'Load Forecast'!$B$3:$O$6,4,FALSE) -> 22393370.19 | K199: =HLOOKUP(K6,'Load Forecast'!$B$3:$O$6,4,FALSE) -> 22393370.19 | L199: =HLOOKUP(L6,'Load Forecast'!$B$3:$O$6,4,FALSE) -> 22558515.13 | M199: =HLOOKUP(M6,'Load Forecast'!$B$3:$O$6,4,FALSE) -> 22868109.31 | N199: =HLOOKUP(N6,'Load Forecast'!$B$3:$O$6,4,FALSE) -> 22868109.31 | O199: =HLOOKUP(O6,'Load Forecast'!$B$3:$O$6,4,FALSE) ->  | P199: =HLOOKUP(P6,'Load Forecast'!$B$3:$O$6,4,FALSE) ->  | Q199: =HLOOKUP(Q6,'Load Forecast'!$B$3:$O$6,4,FALSE) ->  | R199: =HLOOKUP(R6,'Load Forecast'!$B$3:$O$6,4,FALSE) ->  | S199: =HLOOKUP(S6,'Load Forecast'!$B$3:$O$6,4,FALSE) ->  | T199: =HLOOKUP(T6,'Load Forecast'!$B$3:$O$6,4,FALSE) ->  | U199: =HLOOKUP(U6,'Load Forecast'!$B$3:$O$6,4,FALSE) ->  | V199: =HLOOKUP(V6,'Load Forecast'!$B$3:$O$6,4,FALSE) ->  | W199: =HLOOKUP(W6,'Load Forecast'!$B$3:$O$6,4,FALSE) ->  | X199: =HLOOKUP(X6,'Load Forecast'!$B$3:$O$6,4,FALSE) ->  | Y199: =HLOOKUP(Y6,'Load Forecast'!$B$3:$O$6,4,FALSE) ->  | Z199: =HLOOKUP(Z6,'Load Forecast'!$B$3:$O$6,4,FALSE) ->  | AA199: =HLOOKUP(AA6,'Load Forecast'!$B$3:$O$6,4,FALSE) ->  | AB199: =HLOOKUP(AB6,'Load Forecast'!$B$3:$O$6,4,FALSE) ->  | AC199: =HLOOKUP(AC6,'Load Forecast'!$B$3:$O$6,4,FALSE) ->  | AD199: =HLOOKUP(AD6,'Load Forecast'!$B$3:$O$6,4,FALSE) ->  | AE199: =HLOOKUP(AE6,'Load Forecast'!$B$3:$O$6,4,FALSE) -> 
C200: Contract System Load Differential | E200: 0 | F200: =F199-E199 -> -33368.6496 | G200: 0 | H200: 97023.2544 | I200: 0 | J200: 181862.2272 | K200: 0 | L200: 165144.9408 | M200: 309594.1824 | N200: 0
D201: Aurora Prices, FY Average | F201: =HLOOKUP(F6,Inputs!$D$48:$P$50,2,FALSE) -> 63.48891606 | G201: =HLOOKUP(G6,Inputs!$D$48:$P$50,2,FALSE) -> 63.48891606 | H201: =HLOOKUP(H6,Inputs!$D$48:$P$50,2,FALSE) -> 35.63417289 | I201: =HLOOKUP(I6,Inputs!$D$48:$P$50,2,FALSE) -> 35.63417289 | J201: =HLOOKUP(J6,Inputs!$D$48:$P$50,2,FALSE) -> 40.81909971 | K201: =HLOOKUP(K6,Inputs!$D$48:$P$50,2,FALSE) -> 40.81909971 | L201: =HLOOKUP(L6,Inputs!$D$48:$P$50,2,FALSE) -> 37.59431827 | M201: =HLOOKUP(M6,Inputs!$D$48:$P$50,2,FALSE) -> 38.35552571 | N201: =HLOOKUP(N6,Inputs!$D$48:$P$50,2,FALSE) -> 38.35552571 | O201: =HLOOKUP(O6,Inputs!$D$48:$P$50,2,FALSE) ->  | P201: =HLOOKUP(P6,Inputs!$D$48:$P$50,2,FALSE) ->  | Q201: =HLOOKUP(Q6,Inputs!$D$48:$P$50,2,FALSE) ->  | R201: =HLOOKUP(R6,Inputs!$D$48:$P$50,2,FALSE) ->  | S201: =HLOOKUP(S6,Inputs!$D$48:$P$50,2,FALSE) ->  | T201: =HLOOKUP(T6,Inputs!$D$48:$P$50,2,FALSE) ->  | U201: =HLOOKUP(U6,Inputs!$D$48:$P$50,2,FALSE) ->  | V201: =HLOOKUP(V6,Inputs!$D$48:$P$50,2,FALSE) ->  | W201: =HLOOKUP(W6,Inputs!$D$48:$P$50,2,FALSE) ->  | X201: =HLOOKUP(X6,Inputs!$D$48:$P$50,2,FALSE) ->  | Y201: =HLOOKUP(Y6,Inputs!$D$48:$P$50,2,FALSE) ->  | Z201: =HLOOKUP(Z6,Inputs!$D$48:$P$50,2,FALSE) ->  | AA201: =HLOOKUP(AA6,Inputs!$D$48:$P$50,2,FALSE) ->  | AB201: =HLOOKUP(AB6,Inputs!$D$48:$P$50,2,FALSE) ->  | AC201: =HLOOKUP(AC6,Inputs!$D$48:$P$50,2,FALSE) ->  | AD201: =HLOOKUP(AD6,Inputs!$D$48:$P$50,2,FALSE) ->  | AE201: =HLOOKUP(AE6,Inputs!$D$48:$P$50,2,FALSE) -> 
C207: Price Spread (%, UTILITY SPECIFIC) | E207: =INDIRECT(ADDRESS(ROW()-132,COLUMN(),,,$C$208)) -> -0.08237308746
C208: ='Base Data'!$N$3&'Base Data'!$L$10&'Base Data'!$O$3 & "3-YEAR PP & OSS Worksheet" -> [PSE Appendix 1 Redacted.xlsx]3-YEAR PP & OSS Worksheet
C210: Purchased Power Detail
H211: 4
C212: Total $ | D212: RQ | E212: =INDIRECT(ADDRESS($H212,$H$211,,,'Base Data'!$N$3&'Base Data'!$L$10&'Base Data'!$O$3&G212)) -> 0 | G212: 3-YEAR PP & OSS Worksheet | H212: 11
D213: LF | E213: =INDIRECT(ADDRESS($H213,$H$211,,,'Base Data'!$N$3&'Base Data'!$L$10&'Base Data'!$O$3&G213)) -> 20964343 | G213: 3-YEAR PP & OSS Worksheet | H213: 12
D214: IF | E214: =INDIRECT(ADDRESS($H214,$H$211,,,'Base Data'!$N$3&'Base Data'!$L$10&'Base Data'!$O$3&G214)) -> 195413332 | G214: 3-YEAR PP & OSS Worksheet | H214: 13
D215: SF | E215: =INDIRECT(ADDRESS($H215,$H$211,,,'Base Data'!$N$3&'Base Data'!$L$10&'Base Data'!$O$3&G215)) -> 0 | G215: 3-YEAR PP & OSS Worksheet | H215: 14
D216: LU | E216: =INDIRECT(ADDRESS($H216,$H$211,,,'Base Data'!$N$3&'Base Data'!$L$10&'Base Data'!$O$3&G216)) -> 503086094 | G216: 3-YEAR PP & OSS Worksheet | H216: 15
D217: IU | E217: =INDIRECT(ADDRESS($H217,$H$211,,,'Base Data'!$N$3&'Base Data'!$L$10&'Base Data'!$O$3&G217)) -> 36868643 | G217: 3-YEAR PP & OSS Worksheet | H217: 16
D218: OS | E218: =INDIRECT(ADDRESS($H218,$H$211,,,'Base Data'!$N$3&'Base Data'!$L$10&'Base Data'!$O$3&G218)) -> 227867672 | G218: 3-YEAR PP & OSS Worksheet | H218: 17
D219: EX | E219: =INDIRECT(ADDRESS($H219,$H$211,,,'Base Data'!$N$3&'Base Data'!$L$10&'Base Data'!$O$3&G219)) -> 1141967 | G219: 3-YEAR PP & OSS Worksheet | H219: 18
D220: NA | E220: =INDIRECT(ADDRESS($H220,$H$211,,,'Base Data'!$N$3&'Base Data'!$L$10&'Base Data'!$O$3&G220)) -> 0 | G220: 3-YEAR PP & OSS Worksheet | H220: 19
D221: AD | E221: =INDIRECT(ADDRESS($H221,$H$211,,,'Base Data'!$N$3&'Base Data'!$L$10&'Base Data'!$O$3&G221)) -> 100295473 | G221: 3-YEAR PP & OSS Worksheet | H221: 20
E223: =(E212+E213+E214+E216+E217)/(E226+E227+E228+E230+E231) -> 61.24336038
E224: =IF((E229+E232+E233+E234+E235)>0,(E215+E218+E219+E220+E221)/(E229+E232+E233+E234+E235),0) -> 77.40831488
H225: 5
C226: MWh | D226: RQ | E226: =INDIRECT(ADDRESS($H226,$H$225,,,'Base Data'!$N$3&'Base Data'!$L$10&'Base Data'!$O$3&G226)) -> 0 | G226: 3-YEAR PP & OSS Worksheet | H226: 11
D227: LF | E227: =INDIRECT(ADDRESS($H227,$H$225,,,'Base Data'!$N$3&'Base Data'!$L$10&'Base Data'!$O$3&G227)) -> 243042 | G227: 3-YEAR PP & OSS Worksheet | H227: 12
D228: IF | E228: =INDIRECT(ADDRESS($H228,$H$225,,,'Base Data'!$N$3&'Base Data'!$L$10&'Base Data'!$O$3&G228)) -> 1716317 | G228: 3-YEAR PP & OSS Worksheet | H228: 13
D229: SF | E229: =INDIRECT(ADDRESS($H229,$H$225,,,'Base Data'!$N$3&'Base Data'!$L$10&'Base Data'!$O$3&G229)) -> 0 | G229: 3-YEAR PP & OSS Worksheet | H229: 14
D230: LU | E230: =INDIRECT(ADDRESS($H230,$H$225,,,'Base Data'!$N$3&'Base Data'!$L$10&'Base Data'!$O$3&G230)) -> 9891590 | G230: 3-YEAR PP & OSS Worksheet | H230: 15
D231: IU | E231: =INDIRECT(ADDRESS($H231,$H$225,,,'Base Data'!$N$3&'Base Data'!$L$10&'Base Data'!$O$3&G231)) -> 498674 | G231: 3-YEAR PP & OSS Worksheet | H231: 16
D232: OS | E232: =INDIRECT(ADDRESS($H232,$H$225,,,'Base Data'!$N$3&'Base Data'!$L$10&'Base Data'!$O$3&G232)) -> 4250173 | G232: 3-YEAR PP & OSS Worksheet | H232: 17
D233: EX | E233: =INDIRECT(ADDRESS($H233,$H$225,,,'Base Data'!$N$3&'Base Data'!$L$10&'Base Data'!$O$3&G233)) -> 0 | G233: 3-YEAR PP & OSS Worksheet | H233: 18
D234: NA | E234: =INDIRECT(ADDRESS($H234,$H$225,,,'Base Data'!$N$3&'Base Data'!$L$10&'Base Data'!$O$3&G234)) -> 0 | G234: 3-YEAR PP & OSS Worksheet | H234: 19
D235: AD | E235: =INDIRECT(ADDRESS($H235,$H$225,,,'Base Data'!$N$3&'Base Data'!$L$10&'Base Data'!$O$3&G235)) -> 3958 | G235: 3-YEAR PP & OSS Worksheet | H235: 20
D239: ST Purchases | E239: =E229+E232+E233+E234+E235 -> 4254131
E241: =E224-E257 -> 6.453294656
C244: Sales for Resale Detail
H245: =H211 -> 4
C246: Total $ | D246: RQ | E246: =INDIRECT(ADDRESS($H246,$H$245,,,'Base Data'!$N$3&'Base Data'!$L$10&'Base Data'!$O$3&G246)) -> 324999 | G246: 3-YEAR PP & OSS Worksheet | H246: 26
D247: LF | E247: =INDIRECT(ADDRESS($H247,$H$245,,,'Base Data'!$N$3&'Base Data'!$L$10&'Base Data'!$O$3&G247)) -> 0 | G247: 3-YEAR PP & OSS Worksheet | H247: 27
D248: IF | E248: =INDIRECT(ADDRESS($H248,$H$245,,,'Base Data'!$N$3&'Base Data'!$L$10&'Base Data'!$O$3&G248)) -> 0 | G248: 3-YEAR PP & OSS Worksheet | H248: 28
D249: SF | E249: =INDIRECT(ADDRESS($H249,$H$245,,,'Base Data'!$N$3&'Base Data'!$L$10&'Base Data'!$O$3&G249)) -> 0 | G249: 3-YEAR PP & OSS Worksheet | H249: 29
D250: LU | E250: =INDIRECT(ADDRESS($H250,$H$245,,,'Base Data'!$N$3&'Base Data'!$L$10&'Base Data'!$O$3&G250)) -> 0 | G250: 3-YEAR PP & OSS Worksheet | H250: 30
D251: IU | E251: =INDIRECT(ADDRESS($H251,$H$245,,,'Base Data'!$N$3&'Base Data'!$L$10&'Base Data'!$O$3&G251)) -> 0 | G251: 3-YEAR PP & OSS Worksheet | H251: 31
D252: OS | E252: =INDIRECT(ADDRESS($H252,$H$245,,,'Base Data'!$N$3&'Base Data'!$L$10&'Base Data'!$O$3&G252)) -> 640780730 | G252: 3-YEAR PP & OSS Worksheet | H252: 32
D253: EX | E253: =INDIRECT(ADDRESS($H253,$H$245,,,'Base Data'!$N$3&'Base Data'!$L$10&'Base Data'!$O$3&G253)) -> 0 | G253: 3-YEAR PP & OSS Worksheet | H253: 33
D254: NA | E254: =INDIRECT(ADDRESS($H254,$H$245,,,'Base Data'!$N$3&'Base Data'!$L$10&'Base Data'!$O$3&G254)) -> 0 | G254: 3-YEAR PP & OSS Worksheet | H254: 34
D255: AD | E255: =INDIRECT(ADDRESS($H255,$H$245,,,'Base Data'!$N$3&'Base Data'!$L$10&'Base Data'!$O$3&G255)) -> -275155 | G255: 3-YEAR PP & OSS Worksheet | H255: 35
E256: =IF((E259+E260+E261+E263+E264)>0,(E246+E247+E248+E250+E251)/(E259+E260+E261+E263+E264),0) -> 48.50731343
E257: =IF((E262+E265+E266+E267+E268)>0,(E249+E252+E253+E254+E255)/(E262+E265+E266+E267+E268),0) -> 70.95502023
H258: =H225 -> 5
C259: MWh | D259: RQ | E259: =INDIRECT(ADDRESS($H259,$H$258,,,'Base Data'!$N$3&'Base Data'!$L$10&'Base Data'!$O$3&G259)) -> 6700 | G259: 3-YEAR PP & OSS Worksheet | H259: 26
D260: LF | E260: =INDIRECT(ADDRESS($H260,$H$258,,,'Base Data'!$N$3&'Base Data'!$L$10&'Base Data'!$O$3&G260)) -> 0 | G260: 3-YEAR PP & OSS Worksheet | H260: 27
D261: IF | E261: =INDIRECT(ADDRESS($H261,$H$258,,,'Base Data'!$N$3&'Base Data'!$L$10&'Base Data'!$O$3&G261)) -> 0 | G261: 3-YEAR PP & OSS Worksheet | H261: 28
D262: SF | E262: =INDIRECT(ADDRESS($H262,$H$258,,,'Base Data'!$N$3&'Base Data'!$L$10&'Base Data'!$O$3&G262)) -> 0 | G262: 3-YEAR PP & OSS Worksheet | H262: 29
... 20 more rows

Sheet Base Data Unlock
A1: BONNEVILLE POWER ADMINISTRATION
A2: RESIDENTIAL PURCHASE AND SALE AGREEMENT | M2: 7 | N2: 8 | O2: 9 | P2: 10
A3: 2008 Average System Cost Methodology | N3: [ | O3: ]
A5: TOC | D5: UTILITY NAME: | E5: =INDIRECT(ADDRESS(5,5,,,$N$3&$L$10&$O$3&$L5)) -> PUGET SOUND ENERGY | L5: Sch 1- Rate Base | M5: 4
D6: End of Year Report Period: | E6: =INDIRECT(ADDRESS(6,5,,,$N$3&$L$10&$O$3&$L5)) -> 2023
D7: ASC Filing Date: | E7: =INDIRECT(ADDRESS(7,5,,,$N$3&$L$10&$O$3&$L5)) -> 2024-07-01
C9: Schedule 1: Plant Investment / Rate Base | L9: Enter Excel File Name Below
H10: =E6 -> 2023 | I10: End-of-Year - 2021 | L10: ='Base Data'!L10 -> PSE Appendix 1 Redacted.xlsx
B12: Account Description | C12: Form 1 | E12: Functionalization/ Escalation | G12: Total | H12: Production | I12: Transmission
C13: Page | D13: Account | J13: Distribution/
C14: Number | D14: Numbers | E14: Method | F14: Code | J14: Other
A15: Intangible Plant:
B16: Intangible Plant - Organization | C16: 204-207 | D16: 301 | E16: =INDIRECT(ADDRESS($M16,5,,,$N$3&$L$10&$O$3&$L16)) -> DIST | F16: CONSTANT | G16: =INDIRECT(ADDRESS($M16,M$2,,,$N$3&$L$10&$O$3&$L16)) -> 114202 | H16: =INDIRECT(ADDRESS($M16,N$2,,,$N$3&$L$10&$O$3&$L16)) -> 0 | I16: 0 | J16: 114202 | L16: Sch 1- Rate Base | M16: 16
B17: Intangible Plant - Franchises and Consents | C17: 204-207 | D17: 302 | E17: =INDIRECT(ADDRESS($M17,5,,,$N$3&$L$10&$O$3&$L17)) -> DIRECT | F17: CONSTANT | G17: =INDIRECT(ADDRESS($M17,M$2,,,$N$3&$L$10&$O$3&$L17)) -> 80196650 | H17: 55817303.48 | I17: 0 | J17: 24379345.72 | L17: Sch 1- Rate Base | M17: 17
B18: Intangible Plant - Miscellaneous | C18: 204-207 | D18: 303 | E18: =INDIRECT(ADDRESS($M18,5,,,$N$3&$L$10&$O$3&$L18)) -> DIRECT | F18: CONSTANT | G18: =INDIRECT(ADDRESS($M18,M$2,,,$N$3&$L$10&$O$3&$L18)) -> 75530269 | H18: =INDIRECT(ADDRESS($M18,N$2,,,$N$3&$L$10&$O$3&$L18)) -> 10321488.57 | I18: 0 | J18: 65208779 | L18: Sch 1- Rate Base | M18: 18
A19: Total Intangible Plant | G19: =SUM(G16:G18) -> 155841121 | H19: =SUM(H16:H18) -> 66138792.05 | I19: =SUM(I16:I18) -> 0 | J19: =SUM(J16:J18) -> 89702326.72
A21: Production Plant:
B22: Steam Production | C22: 204-207 | D22: 310-316 | E22: =INDIRECT(ADDRESS($M22,5,,,$N$3&$L$10&$O$3&$L22)) -> PROD | F22: CONSTANT | G22: =INDIRECT(ADDRESS($M22,M$2,,,$N$3&$L$10&$O$3&$L22)) -> 1034308926 | H22: 1034308926 | I22: 0 | J22: 0 | L22: Sch 1- Rate Base | M22: 22
B23: Nuclear Production | C23: 204-207 | D23: 320-325 | E23: =INDIRECT(ADDRESS($M23,5,,,$N$3&$L$10&$O$3&$L23)) -> PROD | F23: CONSTANT | G23: 0 | H23: 0 | I23: 0 | J23: 0 | L23: Sch 1- Rate Base | M23: 23
B24: Hydraulic Production | C24: 204-207 | D24: 330-336 | E24: =INDIRECT(ADDRESS($M24,5,,,$N$3&$L$10&$O$3&$L24)) -> PROD | F24: CONSTANT | G24: 788941762 | H24: 788941762 | I24: 0 | J24: 0 | L24: Sch 1- Rate Base | M24: 24
B25: Other Production | C25: 204-207 | D25: 340-346 | E25: =INDIRECT(ADDRESS($M25,5,,,$N$3&$L$10&$O$3&$L25)) -> PROD | F25: CONSTANT | G25: 2079134143 | H25: 2079134143 | I25: 0 | J25: 0 | L25: Sch 1- Rate Base | M25: 25
A26: Total Production Plant | G26: =SUM(G22:G25) -> 3902384831 | H26: =SUM(H22:H25) -> 3902384831 | I26: =SUM(I22:I25) -> 0 | J26: =SUM(J22:J25) -> 0
A28: Transmission Plant: (i)
B29: Transmission Plant | C29: 204-207 | D29: 350-359 | E29: =INDIRECT(ADDRESS($M29,5,,,$N$3&$L$10&$O$3&$L29)) -> TRANS | F29: CONSTANT | G29: =INDIRECT(ADDRESS($M29,M$2,,,$N$3&$L$10&$O$3&$L29)) -> 1992381238 | H29: =INDIRECT(ADDRESS($M29,N$2,,,$N$3&$L$10&$O$3&$L29)) -> 0 | I29: =INDIRECT(ADDRESS($M29,O$2,,,$N$3&$L$10&$O$3&$L29)) -> 0 | J29: =INDIRECT(ADDRESS($M29,P$2,,,$N$3&$L$10&$O$3&$L29)) -> 1992381238 | L29: Sch 1- Rate Base | M29: 29
A30: Total Transmission Plant | G30: =SUM(G29) -> 1992381238 | H30: =SUM(H29) -> 0 | I30: =SUM(I29) -> 0 | J30: =SUM(J29) -> 1992381238
A32: Distribution Plant:
B33: Distribution Plant | C33: 204-207 | D33: 360-373 | E33: =INDIRECT(ADDRESS($M33,5,,,$N$3&$L$10&$O$3&$L33)) -> DIST | F33: CD | G33: =INDIRECT(ADDRESS($M33,M$2,,,$N$3&$L$10&$O$3&$L33)) -> 5283922742 | H33: =INDIRECT(ADDRESS($M33,N$2,,,$N$3&$L$10&$O$3&$L33)) -> 0 | I33: =INDIRECT(ADDRESS($M33,O$2,,,$N$3&$L$10&$O$3&$L33)) -> 0 | J33: =INDIRECT(ADDRESS($M33,P$2,,,$N$3&$L$10&$O$3&$L33)) -> 5283922742 | L33: Sch 1- Rate Base | M33: 33
A34: Total Distribution Plant | G34: =SUM(G33) -> 5283922742 | H34: =SUM(H33) -> 0 | I34: =SUM(I33) -> 0 | J34: =SUM(J33) -> 5283922742
A36: General Plant:
B37: Land and Land Rights | C37: 204-207 | D37: 389 | E37: =INDIRECT(ADDRESS($M37,5,,,$N$3&$L$10&$O$3&$L37)) -> PTD | F37: CONSTANT | G37: =INDIRECT(ADDRESS($M37,M$2,,,$N$3&$L$10&$O$3&$L37)) -> 5100521 | H37: 1780548.338 | I37: 0 | J37: 3319972.662 | L37: Sch 1- Rate Base | M37: 37
B38: Structures and Improvements | C38: 204-207 | D38: 390 | E38: PTD | F38: CONSTANT | G38: 126721170 | H38: 44237278.62 | I38: 0 | J38: 82483891.38 | L38: Sch 1- Rate Base | M38: 38
B39: Furniture and Equipment | C39: 204-207 | D39: 391 | E39: LABOR | F39: CONSTANT | G39: 31597697 | H39: 10737849.56 | I39: 0 | J39: 20859847.44 | L39: Sch 1- Rate Base | M39: 39
B40: Transportation Equipment | C40: 204-207 | D40: 392 | E40: TD | F40: CONSTANT | G40: 3994065 | H40: 0 | I40: 0 | J40: 3994065 | L40: Sch 1- Rate Base | M40: 40
B41: Stores Equipment | C41: 204-207 | D41: 393 | E41: PTD | F41: CONSTANT | G41: 1969191 | H41: 687427.767 | I41: 0 | J41: 1281763.233 | L41: Sch 1- Rate Base | M41: 41
B42: Tools and Garage Equipment | C42: 204-207 | D42: 394 | E42: PTD | F42: CONSTANT | G42: 32372182 | H42: 11300852.37 | I42: 0 | J42: 21071329.63 | L42: Sch 1- Rate Base | M42: 42
B43: Laboratory Equipment | C43: 204-207 | D43: 395 | E43: PTD | F43: CONSTANT | G43: 5973622 | H43: 2085340.443 | I43: 0 | J43: 3888281.557 | L43: Sch 1- Rate Base | M43: 43
B44: Power Operated Equipment | C44: 204-207 | D44: 396 | E44: TD | F44: CONSTANT | G44: 2715513 | H44: 0 | I44: 0 | J44: 2715513 | L44: Sch 1- Rate Base | M44: 44
B45: Communication Equipment | C45: 204-207 | D45: 397 | E45: PTD | F45: CONSTANT | G45: 105832047 | H45: 36945064.12 | I45: 0 | J45: 68886982.88 | L45: Sch 1- Rate Base | M45: 45
B46: Miscellaneous Equipment | C46: 204-207 | D46: 398 | E46: PTD | F46: CONSTANT | G46: 381575 | H46: 133204.575 | I46: 0 | J46: 248370.425 | L46: Sch 1- Rate Base | M46: 46
B47: Other Tangible Property | C47: 204-207 | D47: 399 | E47: DIRECT | F47: CONSTANT | G47: 0 | H47: 0 | I47: 0 | J47: 0 | L47: Sch 1- Rate Base | M47: 47
B48: Asset Retirement Costs for General Plant | C48: 204-208 | D48: 399.1 | E48: PTD | F48: CONSTANT | G48: 0 | H48: 0 | I48: 0 | J48: 0 | L48: Sch 1- Rate Base | M48: 48
A50: Total General Plant | G50: =SUM(G37:G49) -> 316657583 | H50: =SUM(H37:H49) -> 107907565.8 | I50: =SUM(I37:I49) -> 0 | J50: =SUM(J37:J49) -> 208750017.2
A52: Total Electric Plant In-Service | G52: =G19+G26+G30+G34+G50 -> 11651187515 | H52: =H19+H26+H30+H34+H50 -> 4076431189 | I52: =I19+I26+I30+I34+I50 -> 0 | J52: =J19+J26+J30+J34+J50 -> 7574756324
A53: (Total Intangible + Total Production + Total Transmission + Total Distribution + Total General)
A55: LESS:
A56: Depreciation Reserve
B57: Steam Production Plant | C57: 219 | D57: 108 | E57: =INDIRECT(ADDRESS($M57,5,,,$N$3&$L$10&$O$3&$L57)) -> PROD | F57: CONSTANT | G57: =INDIRECT(ADDRESS($M57,M$2,,,$N$3&$L$10&$O$3&$L57)) -> 953504602 | H57: 953504602 | I57: 0 | J57: 0 | L57: Sch 1- Rate Base | M57: 57
B58: Nuclear Production Plant | C58: 219 | D58: 108 | E58: PROD | F58: CONSTANT | G58: 0 | H58: 0 | I58: 0 | J58: 0 | L58: Sch 1- Rate Base | M58: 58
B59: Hydraulic Production Plant | C59: 219 | D59: 108 | E59: PROD | F59: CONSTANT | G59: 270525277 | H59: 270525277 | I59: 0 | J59: 0 | L59: Sch 1- Rate Base | M59: 59
B60: Other Production Plant | C60: 219 | D60: 108 | E60: PROD | F60: CONSTANT | G60: 1084449271 | H60: 1084449271 | I60: 0 | J60: 0 | L60: Sch 1- Rate Base | M60: 60
B61: Transmission Plant (i) | C61: 219 | D61: 108 | E61: TRANS | F61: CONSTANT | G61: 663408032 | H61: 0 | I61: 0 | J61: 663408032 | L61: Sch 1- Rate Base | M61: 61
B62: Distribution Plant | C62: 219 | D62: 108 | E62: DIST | F62: CONSTANT | G62: 2008273620 | H62: 0 | I62: 0 | J62: 2008273620 | L62: Sch 1- Rate Base | M62: 62
B63: General Plant | C63: 219 | D63: 108 | E63: GP | F63: CONSTANT | G63: 199145541 | H63: 67862927.41 | I63: 0 | J63: 131282613.6 | L63: Sch 1- Rate Base | M63: 63
B64: Amortization of Intangible Plant - Account 301 | C64: 219 | D64: 111 | E64: DIST | F64: CONSTANT | G64: 0 | H64: 0 | I64: 0 | J64: 0 | L64: Sch 1- Rate Base | M64: 64
B65: Amortization of Intangible Plant - Account 302 | C65: 219 | D65: 111 | E65: DIRECT | F65: CONSTANT | G65: 30864423.83 | H65: 19280613.83 | I65: 0 | J65: 11583810 | L65: Sch 1- Rate Base | M65: 65
B66: Amortization of Intangible Plant - Account 303 | C66: 219 | D66: 111 | E66: DIRECT | F66: CONSTANT | G66: 18084328.43 | H66: 3441408.318 | I66: 0 | J66: 14642920.11 | L66: Sch 1- Rate Base | M66: 66
B67: Mining Plant Depreciation | C67: 219 | D67: 108 | E67: PROD | F67: CONSTANT | G67: 0 | H67: 0 | I67: 0 | J67: 0 | L67: Sch 1- Rate Base | M67: 67
B68: Amortization of Plant Held for Future Use | C68: 219 | D68: 111 | E68: TRANS | F68: CONSTANT | G68: 162425 | H68: 0 | I68: 0 | J68: 162425 | L68: Sch 1- Rate Base | M68: 68
B69: Capital Lease - Common Plant | C69: 219 | D69: 108 | E69: DIRECT | F69: CONSTANT | G69: 0 | H69: 0 | I69: 0 | J69: 0 | L69: Sch 1- Rate Base | M69: 69
B70: Leasehold Improvements | C70: 200-201 | D70: 108 | E70: DIRECT | F70: CONSTANT | G70: 0 | H70: 0 | I70: 0 | J70: 0 | L70: Sch 1- Rate Base | M70: 70
B71: In-Service: Depreciation of Common Plant (a) | C71: 200-201 | D71: 108 | E71: DIRECT | F71: CONSTANT | G71: 86358710.08 | H71: 23510847.89 | I71: 0 | J71: 62847862.19 | L71: Sch 1- Rate Base | M71: 71
B72: Amortization of Other Utility Plant (a) | C72: 200-201 | D72: 108 | E72: DIRECT | F72: CONSTANT | G72: 90080742.53 | H72: 28133789.97 | I72: 0 | J72: 61946952.23 | L72: Sch 1- Rate Base | M72: 72
B73: Amortization of Acquisition Adjustments | C73: 200-201 | D73: 115 | E73: DIRECT | F73: CONSTANT | G73: 177057826 | H73: 175809295.4 | I73: 0 | J73: 1248530.26 | L73: Sch 1- Rate Base | M73: 73
A75: Depreciation and Amortization Reserve (Other) | E75: =INDIRECT(ADDRESS($M75,5,,,$N$3&$L$10&$O$3&$L75)) -> DIRECT | F75: CONSTANT | G75: =INDIRECT(ADDRESS($M75,M$2,,,$N$3&$L$10&$O$3&$L75)) -> 0 | H75: =INDIRECT(ADDRESS($M75,N$2,,,$N$3&$L$10&$O$3&$L75)) -> 0 | I75: =INDIRECT(ADDRESS($M75,O$2,,,$N$3&$L$10&$O$3&$L75)) -> 0 | J75: =INDIRECT(ADDRESS($M75,P$2,,,$N$3&$L$10&$O$3&$L75)) -> 0 | L75: Sch 1- Rate Base | M75: 75
A77: Total Depreciation and Amortization Reserve | G77: =SUM(G57:G75) -> 5581914799 | H77: =SUM(H57:H75) -> 2626518033 | I77: =SUM(I57:I75) -> 0 | J77: =SUM(J57:J75) -> 2955396765
A79: Total Net Plant | G79: =G52-G77 -> 6069272716 | H79: =H52-H77 -> 1449913156 | I79: =I52-I77 -> 0 | J79: =J52-J77 -> 4619359559
A80: (Total Electric Plant In-Service) - (Total Depreciation & Amortization)
A82: Assets and Other Debits (Comparative Balance Sheet)
A84: Cash Working Capital (f) | C84: Calculation | E84: =INDIRECT(ADDRESS($M84,5,,,$N$3&$L$10&$O$3&$L84)) -> 0 | F84: CONSTANT | G84: =INDIRECT(ADDRESS($M84,M$2,,,$N$3&$L$10&$O$3&$L84)) -> 108180025.5 | H84: =INDIRECT(ADDRESS($M84,N$2,,,$N$3&$L$10&$O$3&$L84)) -> 61843517.36 | I84: =INDIRECT(ADDRESS($M84,O$2,,,$N$3&$L$10&$O$3&$L84)) -> 0 | J84: =INDIRECT(ADDRESS($M84,P$2,,,$N$3&$L$10&$O$3&$L84)) -> 46336508.19 | L84: Sch 1- Rate Base | M84: 84
B85: Account 557 Disallowed Amounts | G85: =INDIRECT(ADDRESS($M85,M$2,,,$N$3&$L$10&$O$3&$L85)) -> 24948345 | H85: =INDIRECT(ADDRESS($M85,N$2,,,$N$3&$L$10&$O$3&$L85)) -> 24948345 | L85: Sch 1A - Cash Working Capital | M85: 30
A86: Utility Plant
B87: (Utility Plant) Held For Future Use | C87: 200-201 | D87: 105 | E87: =INDIRECT(ADDRESS($M87,5,,,$N$3&$L$10&$O$3&$L87)) -> DIST | F87: CONSTANT | G87: =INDIRECT(ADDRESS($M87,M$2,,,$N$3&$L$10&$O$3&$L87)) -> 49315001 | H87: 0 | I87: 0 | J87: 49315001 | L87: Sch 1- Rate Base | M87: 87
B88: (Utility Plant) Completed Construction - Not Classified | C88: 200-201 | D88: 106 | E88: PTD | F88: CONSTANT | G88: 0 | H88: 0 | I88: 0 | J88: 0 | L88: Sch 1- Rate Base | M88: 88
B89: Nuclear Fuel | D89: 120.1-120.6 | E89: PROD | F89: NFUEL | G89: 0 | H89: 0 | I89: 0 | J89: 0 | L89: Sch 1- Rate Base | M89: 89
B90: Construction Work in Progress (CWIP) | C90: 200-201 | D90: 107 & 120.1 | E90: DIST | F90: CONSTANT | G90: 1060266765 | H90: 0 | I90: 0 | J90: 1060266765 | L90: Sch 1- Rate Base | M90: 90
B91: Common Plant | C91: 356 & 356.1 | E91: DIRECT | F91: CONSTANT | G91: 800158907.5 | H91: 263365769.2 | I91: 0 | J91: 536793138.2 | L91: Sch 1- Rate Base | M91: 91
B92: Acquisition Adjustments (Electric) | C92: 200-201 | D92: 114 | E92: DIRECT | F92: CONSTANT | G92: 282791675 | H92: 281543144.6 | I92: 0 | J92: 1248530.26 | L92: Sch 1- Rate Base | M92: 92
B93: Total | G93: =SUM(G87:G92) -> 2192532348 | H93: =SUM(H87:H92) -> 544908913.9 | I93: =SUM(I87:I92) -> 0 | J93: =SUM(J87:J92) -> 1647623435
A95: Other Property and Investments
B96: Investment in Associated Companies | C96: 110-111 | D96: 123 | E96: =INDIRECT(ADDRESS($M96,5,,,$N$3&$L$10&$O$3&$L96)) -> DIRECT | F96: CONSTANT | G96: =INDIRECT(ADDRESS($M96,M$2,,,$N$3&$L$10&$O$3&$L96)) -> 0 | H96: 0 | I96: 0 | J96: 0 | L96: Sch 1- Rate Base | M96: 96
B97: Other Investment | C97: 110-111 | D97: 124 | E97: =INDIRECT(ADDRESS($M97,5,,,$N$3&$L$10&$O$3&$L97)) -> DIST | F97: CONSTANT | G97: 29310581.84 | H97: 0 | I97: 0 | J97: 29310581.84 | L97: Sch 1- Rate Base | M97: 97
B98: Long-Term Portion of Derivative Assets | C98: 110-111 | D98: 175 | E98: =INDIRECT(ADDRESS($M98,5,,,$N$3&$L$10&$O$3&$L98)) -> DIST | F98: CONSTANT | G98: 30098821.84 | H98: 0 | I98: 0 | J98: 30098821.84 | L98: Sch 1- Rate Base | M98: 98
B99: Long-Term Portion of Derivative Assets - Hedges | C99: 110-111 | D99: 176 | E99: =INDIRECT(ADDRESS($M99,5,,,$N$3&$L$10&$O$3&$L99)) -> DIST | F99: CONSTANT | G99: 0 | H99: 0 | I99: 0 | J99: 0 | L99: Sch 1- Rate Base | M99: 99
B100: Total | G100: =SUM(G96:G99) -> 59409403.68 | H100: =SUM(H96:H99) -> 0 | I100: =SUM(I96:I99) -> 0 | J100: =SUM(J96:J99) -> 59409403.68
A102: Current and Accrued Assets
B103: Fuel Stock | C103: 110-111 | D103: 151 | E103: =INDIRECT(ADDRESS($M103,5,,,$N$3&$L$10&$O$3&$L103)) -> PROD | F103: COAL | G103: =INDIRECT(ADDRESS($M103,M$2,,,$N$3&$L$10&$O$3&$L103)) -> 32051446.33 | H103: 32051446.33 | I103: 0 | J103: 0 | L103: Sch 1- Rate Base | M103: 103
B104: Fuel Stock Expenses Undistributed | C104: 110-111 | D104: 152 | E104: PROD | F104: CONSTANT | G104: 0 | H104: 0 | I104: 0 | J104: 0 | L104: Sch 1- Rate Base | M104: 104
B105: Plant Materials and Operating Supplies | C105: 110-111 | D105: 154 | E105: PTD | F105: INF | G105: 147763213.3 | H105: 51582876.29 | I105: 0 | J105: 96180336.98 | L105: Sch 1- Rate Base | M105: 105
B106: Merchandise (Major Only) | C106: 110-112 | D106: 155 | E106: DIST | F106: INF | G106: 0 | H106: 0 | I106: 0 | J106: 0 | L106: Sch 1- Rate Base | M106: 106
B107: Other Materials and Supplies (Major only) | C107: 110-111 | D107: 156 | E107: DIST | F107: INF | G107: 0 | H107: 0 | I107: 0 | J107: 0 | L107: Sch 1- Rate Base | M107: 107
B108: EPA Allowance Inventory | C108: 110-112 | D108: 158.1 | E108: PROD | F108: CONSTANT | G108: -93977950.77 | H108: -93977950.77 | I108: 0 | J108: 0 | L108: Sch 1- Rate Base | M108: 108
B109: EPA Allowances Withheld | C109: 110-112 | D109: 158.2 | E109: PROD | F109: CONSTANT | G109: -0.2300000042 | H109: -0.2300000042 | I109: 0 | J109: 0 | L109: Sch 1- Rate Base | M109: 109
B110: Stores Expense Undistributed | C110: 110-111 | D110: 163 | E110: PTD | F110: INF | G110: -861822.1403 | H110: -300854.7518 | I110: 0 | J110: -560967.3885 | L110: Sch 1- Rate Base | M110: 110
B111: Prepayments | C111: 110-111 | D111: 165 | E111: PTD | F111: CONSTANT | G111: 57629356.75 | H111: 20117916.46 | I111: 0 | J111: 37511440.3 | L111: Sch 1- Rate Base | M111: 111
B112: Derivative Instrument Assets | C112: 110-111 | D112: 175 | E112: DIST | F112: CONSTANT | G112: 3021644.13 | H112: 0 | I112: 0 | J112: 3021644.13 | L112: Sch 1- Rate Base | M112: 112
B113: Less: Long-Term Portion of Derivative Assets | C113: 110-112 | D113: 175 | E113: DIST | F113: CONSTANT | G113: 30098821.84 | H113: 0 | I113: 0 | J113: 30098821.84 | L113: Sch 1- Rate Base | M113: 113
B114: Derivative Instrument Assets - Hedges | C114: 110-111 | D114: 176 | E114: DIST | F114: CONSTANT | G114: 0 | H114: 0 | I114: 0 | J114: 0 | L114: Sch 1- Rate Base | M114: 114
B115: Less: Long-Term Portion of Derivative Assets - Hedges | C115: 110-112 | D115: 176 | E115: DIST | F115: CONSTANT | G115: 0 | H115: 0 | I115: 0 | J115: 0 | L115: Sch 1- Rate Base | M115: 115
B116: Total | G116: =SUM(G103:G112,G114)-G113-G115 -> 115527065.5 | H116: =SUM(H103:H112,H114)-H113-H115 -> 9473433.331 | I116: =SUM(I103:I112,I114)-I113-I115 -> 0 | J116: =SUM(J103:J112,J114)-J113-J115 -> 106053632.2
A118: Deferred Debits
B119: Unamortized Debt Expenses | C119: 110-111 | D119: 181 | E119: =INDIRECT(ADDRESS($M119,5,,,$N$3&$L$10&$O$3&$L119)) -> PTDG | F119: CONSTANT | G119: =INDIRECT(ADDRESS($M119,M$2,,,$N$3&$L$10&$O$3&$L119)) -> 15369566.28 | H119: 5377390.011 | I119: 0 | J119: 9992176.27 | L119: Sch 1- Rate Base | M119: 119
B120: Extraordinary Property Losses | C120: 110-111 | D120: 182.1 | E120: DIRECT | F120: CONSTANT | G120: 95753809.86 | H120: 0 | I120: 0 | J120: 95753809.86 | L120: Sch 1- Rate Base | M120: 120
B121: Unrecovered Plant and Regulatory Study Costs | C121: 110-111 | D121: 182.2 | E121: DIRECT | F121: CONSTANT | G121: 0 | H121: 0 | I121: 0 | J121: 0 | L121: Sch 1- Rate Base | M121: 121
B122: Other Regulatory Assets | C122: 110-111 | D122: 182.3 | E122: DIRECT | F122: CONSTANT | G122: 591927572.4 | H122: 307143997.9 | I122: 0 | J122: 284783574.5 | L122: Sch 1- Rate Base | M122: 122
B123: Prelim. Survey and Investigation Charges (Electric) | C123: 110-111 | D123: 183 | E123: DIST | F123: CONSTANT | G123: 779621.88 | H123: 0 | I123: 0 | J123: 779621.88 | L123: Sch 1- Rate Base | M123: 123
B124: Preliminary Natural Gas Survey and Investigation Charges | C124: 110-111 | D124: 183.1 | E124: DIST | F124: CONSTANT | G124: 0 | H124: 0 | I124: 0 | J124: 0 | L124: Sch 1- Rate Base | M124: 124
B125: Other Preliminary Survey and Investigation Charges | C125: 110-111 | D125: 183.2 | E125: DIST | F125: CONSTANT | G125: 0 | H125: 0 | I125: 0 | J125: 0 | L125: Sch 1- Rate Base | M125: 125
B126: Clearing Accounts | C126: 110-111 | D126: 184 | E126: DIST | F126: CONSTANT | G126: 0 | H126: 0 | I126: 0 | J126: 0 | L126: Sch 1- Rate Base | M126: 126
B127: Temporary Facilities | C127: 110-111 | D127: 185 | E127: PTDG | F127: CONSTANT | G127: 120988.1239 | H127: 42330.42864 | I127: 0 | J127: 78657.69522 | L127: Sch 1- Rate Base | M127: 127
B128: Miscellaneous Deferred Debits | C128: 110-111 | D128: 186 | E128: DIRECT | F128: CONSTANT | G128: 110048027 | H128: -94452622.5 | I128: 0 | J128: 204500649.5 | L128: Sch 1- Rate Base | M128: 128
B129: Deferred Losses from Disposition of Utility Plant | C129: 110-111 | D129: 187 | E129: DIRECT | F129: CONSTANT | G129: 11494.21 | H129: 0 | I129: 0 | J129: 11494.21 | L129: Sch 1- Rate Base | M129: 129
B130: Research, Development, and Demonstration Expenditures | C130: 110-111 | D130: 188 | E130: DIST | F130: CONSTANT | G130: 0 | H130: 0 | I130: 0 | J130: 0 | L130: Sch 1- Rate Base | M130: 130
B131: Unamortized Loss on Reacquired Debt | C131: 110-111 | D131: 189 | E131: PTDG | F131: CONSTANT | G131: 20765305.09 | H131: 7265211.137 | I131: 0 | J131: 13500093.94 | L131: Sch 1- Rate Base | M131: 131
B132: Accumulated Deferred Income Taxes | C132: 110-111 | D132: 190 | E132: DIST | F132: CONSTANT | G132: 232865758.8 | H132: 0 | I132: 0 | J132: 232865758.8 | L132: Sch 1- Rate Base | M132: 132
B133: Total | G133: =SUM(G119:G132) -> 1067642144 | H133: =SUM(H119:H132) -> 225376307 | I133: =SUM(I119:I132) -> 0 | J133: =SUM(J119:J132) -> 842265836.7
A135: Total Assets and Other Debits | G135: =+G84+G93+G100+G116+G133 -> 3543290987 | H135: =+H84+H93+H100+H116+H133 -> 841602171.5 | I135: =+I84+I93+I100+I116+I133 -> 0 | J135: =+J84+J93+J100+J116+J133 -> 2701688815
A137: Liabilities and Other Credits (Comparative Balance Sheet)
B138: CURRENT AND ACCRUED LIABILITIES
B139: Derivative Instrument Liabilities | C139: 112-113 | D139: 244 | E139: =INDIRECT(ADDRESS($M139,5,,,$N$3&$L$10&$O$3&$L139)) -> DIST | F139: CONSTANT | G139: =INDIRECT(ADDRESS($M139,M$2,,,$N$3&$L$10&$O$3&$L139)) -> 126938815.9 | H139: 0 | I139: 0 | J139: 126938815.9 | L139: Sch 1- Rate Base | M139: 139
B140: (less) Long-Term Portion of Derivative Instrument Liabilities | C140: 112-114 | D140: 244 | E140: =INDIRECT(ADDRESS($M140,5,,,$N$3&$L$10&$O$3&$L140)) -> DIST | F140: CONSTANT | G140: 19744163.19 | H140: 0 | I140: 0 | J140: 19744163.19 | L140: Sch 1- Rate Base | M140: 140
B141: Derivative Instrument Liabilities - Hedges | C141: 112-115 | D141: 245 | E141: =INDIRECT(ADDRESS($M141,5,,,$N$3&$L$10&$O$3&$L141)) -> DIST | F141: CONSTANT | G141: 0 | H141: 0 | I141: 0 | J141: 0 | L141: Sch 1- Rate Base | M141: 141
B142: (less) Long-Term Portion of Derivative Instrument Liabilities - Hedges | C142: 112-114 | D142: 245 | E142: =INDIRECT(ADDRESS($M142,5,,,$N$3&$L$10&$O$3&$L142)) -> DIST | F142: CONSTANT | G142: 0 | H142: 0 | I142: 0 | J142: 0 | L142: Sch 1- Rate Base | M142: 142
B143: Total | G143: =G139-G140+G141-G142 -> 107194652.7 | H143: =H139-H140+H141-H142 -> 0 | I143: =I139-I140+I141-I142 -> 0 | J143: =J139-J140+J141-J142 -> 107194652.7
B144: DEFERRED CREDITS
B145: Long-Term Portion of Derivative Instrument Liabilities | C145: 112-113 | D145: 244 | E145: =INDIRECT(ADDRESS($M145,5,,,$N$3&$L$10&$O$3&$L145)) -> DIST | F145: CONSTANT | G145: 0 | H145: 0 | I145: 0 | J145: 0 | L145: Sch 1- Rate Base | M145: 145
B146: Long-Term Portion of Derivative Instrument Liabilities - Hedges | C146: 112-114 | D146: 245 | E146: DIST | F146: CONSTANT | G146: 0 | H146: 0 | I146: 0 | J146: 0 | L146: Sch 1- Rate Base | M146: 146
B147: Customer Advances for Construction | C147: 112-113 | D147: 252 | E147: DIST | F147: CONSTANT | G147: =INDIRECT(ADDRESS($M147,M$2,,,$N$3&$L$10&$O$3&$L147)) -> 141549489.4 | H147: 0 | I147: 0 | J147: 141549489.4 | L147: Sch 1- Rate Base | M147: 147
B148: Other Deferred Credits | C148: 112-113 | D148: 253 | E148: DIRECT | F148: CONSTANT | G148: 240685828.2 | H148: 74029658.96 | I148: 0 | J148: 166656169.2 | L148: Sch 1- Rate Base | M148: 148
B149: Other Regulatory Liabilities | C149: 112-113 | D149: 254 | E149: DIRECT | F149: CONSTANT | G149: 529787017.7 | H149: 317891.18 | I149: 0 | J149: 529469126.5 | L149: Sch 1- Rate Base | M149: 149
B150: Accumulated Deferred Investment Tax Credits | C150: 112-113 | D150: 255 | E150: DIST | F150: CONSTANT | G150: 0 | H150: 0 | I150: 0 | J150: 0 | L150: Sch 1- Rate Base | M150: 150
B151: Deferred Gains from Disposition of Utility Plant | C151: 112-113 | D151: 256 | E151: DIRECT | F151: CONSTANT | G151: 1353224.8 | H151: 0 | I151: 0 | J151: 1353224.8 | L151: Sch 1- Rate Base | M151: 151
B152: Unamortized Gain on Reacquired Debt | C152: 112-113 | D152: 257 | E152: PTDG | F152: CONSTANT | G152: 0 | H152: 0 | I152: 0 | J152: 0 | L152: Sch 1- Rate Base | M152: 152
B153: Accumulated Deferred Income Taxes-Accel. Amort. | C153: 112-113 | D153: 281 | E153: DIST | F153: CONSTANT | G153: 0 | H153: 0 | I153: 0 | J153: 0 | L153: Sch 1- Rate Base | M153: 153
B154: Accumulated Deferred Income Taxes-Property | C154: 112-113 | D154: 282 | E154: DIST | F154: CONSTANT | G154: 763011479.1 | H154: 0 | I154: 0 | J154: 763011479.1 | L154: Sch 1- Rate Base | M154: 154
B155: Accumulated Deferred Income Taxes-Other | C155: 112-113 | D155: 283 | E155: DIST | F155: CONSTANT | G155: 226461605.1 | H155: 0 | I155: 0 | J155: 226461605.1 | L155: Sch 1- Rate Base | M155: 155
B156: Total | G156: =SUM(G147:G155) -> 1902848644 | H156: =SUM(H147:H155) -> 74347550.14 | I156: =SUM(I147:I155) -> 0 | J156: =SUM(J147:J155) -> 1828501094
A158: Total Liabilities and Other Credits | G158: =+G156+G143 -> 2010043297 | H158: =+H156+H143 -> 74347550.14 | I158: =+I156+I143 -> 0 | J158: =+J156+J143 -> 1935695747
A161: Total Rate Base | G161: =G79+G135-G158 -> 7602520406 | H161: =H79+H135-H158 -> 2217167777 | I161: =I79+I135-I158 -> 0 | J161: =J79+J135-J158 -> 5385352627
A162: (Total Net Plant + Debits - Credits)
A165: Federal Income Tax Adjusted Weighted Cost of Capital | G165: =INDIRECT(ADDRESS($M165,N$165,,,$N$3&$L$10&$O$3&$L165)) -> 0.08380379747 | H165: =G165 -> 0.08380379747 | I165: =H165 -> 0.08380379747 | J165: =I165 -> 0.08380379747 | L165: Sch 2 -Rate of Return | M165: 14 | N165: 5
A167: Federal Income Tax Adjusted Return on Rate Base | G167: =G161*G165 -> 637120080.4 | H167: =H161*H165 -> 185807079.4 | I167: =I161*I165 -> 0 | J167: =J161*J165 -> 451313000.8
A170: Schedule 3: Expenses
B171: Account Description | C171: Form 1 | E171: Functionalization | G171: Total | H171: Production | I171: Transmission
C172: Page | D172: Account | J172: Distribution/
C173: Number | D173: Numbers | E173: Method | F173: Code | J173: Other
A174: Power Production Expenses:
B175: Steam Power Generation
B176: Steam Power - Fuel | C176: 320-323 | D176: 501 | E176: =INDIRECT(ADDRESS($M176,5,,,$N$3&$L$10&$O$3&$L176)) -> PROD | F176: COAL | G176: =INDIRECT(ADDRESS($M176,M$2,,,$N$3&$L$10&$O$3&$L176)) -> 60636604 | H176: 60636604 | I176: 0 | J176: 0 | L176: Sch 3 - Expenses | M176: 16
B177: Steam Power - Operations (Excluding 501 - Fuel) | C177: 320-323 | D177: 500-509 | E177: =INDIRECT(ADDRESS($M177,5,,,$N$3&$L$10&$O$3&$L177)) -> PROD | F177: SOPS | G177: 20123737 | H177: 20123737 | I177: 0 | J177: 0 | L177: Sch 3 - Expenses | M177: 17
B178: Steam Power - Maintenance | C178: 320-323 | D178: 510-515 | E178: =INDIRECT(ADDRESS($M178,5,,,$N$3&$L$10&$O$3&$L178)) -> PROD | F178: SMN | G178: 23219450 | H178: 23219450 | I178: 0 | J178: 0 | L178: Sch 3 - Expenses | M178: 18
B179: Nuclear Power Generation | M179: 19
B180: Nuclear - Fuel | C180: 320-323 | D180: 518 | E180: =INDIRECT(ADDRESS($M180,5,,,$N$3&$L$10&$O$3&$L180)) -> PROD | F180: NFUEL | G180: =INDIRECT(ADDRESS($M180,M$2,,,$N$3&$L$10&$O$3&$L180)) -> 0 | H180: 0 | I180: 0 | J180: 0 | L180: Sch 3 - Expenses | M180: 20
B181: Nuclear - Operation ( Excluding 518 - Fuel) | C181: 320-323 | D181: 517-525 | E181: =INDIRECT(ADDRESS($M181,5,,,$N$3&$L$10&$O$3&$L181)) -> PROD | F181: NOPS | G181: 0 | H181: 0 | I181: 0 | J181: 0 | L181: Sch 3 - Expenses | M181: 21
B182: Nuclear - Maintenance | C182: 320-323 | D182: 528-532 | E182: =INDIRECT(ADDRESS($M182,5,,,$N$3&$L$10&$O$3&$L182)) -> PROD | F182: NMN | G182: 0 | H182: 0 | I182: 0 | J182: 0 | L182: Sch 3 - Expenses | M182: 22
B183: Hydraulic Power Generation | M183: 23
B184: Hydraulic - Operation | C184: 320-323 | D184: 535-540.1 | E184: =INDIRECT(ADDRESS($M184,5,,,$N$3&$L$10&$O$3&$L184)) -> PROD | F184: HOPS | G184: =INDIRECT(ADDRESS($M184,M$2,,,$N$3&$L$10&$O$3&$L184)) -> 7020837 | H184: 7020837 | I184: 0 | J184: 0 | L184: Sch 3 - Expenses | M184: 24
B185: Hydraulic - Maintenance | C185: 320-323 | D185: 541-545.1 | E185: =INDIRECT(ADDRESS($M185,5,,,$N$3&$L$10&$O$3&$L185)) -> PROD | F185: HMN | G185: 6951788 | H185: 6951788 | I185: 0 | J185: 0 | L185: Sch 3 - Expenses | M185: 25
B186: Other Power Generation | M186: 26
B187: Other Power - Fuel | C187: 320-323 | D187: 547 | E187: =INDIRECT(ADDRESS($M187,5,,,$N$3&$L$10&$O$3&$L187)) -> PROD | F187: NATGAS | G187: =INDIRECT(ADDRESS($M187,M$2,,,$N$3&$L$10&$O$3&$L187)) -> 396650165 | H187: 396650165 | I187: 0 | J187: 0 | L187: Sch 3 - Expenses | M187: 27
B188: Other Power - Operations (Excluding 547 - Fuel) | C188: 320-323 | D188: 546-550.1 | E188: =INDIRECT(ADDRESS($M188,5,,,$N$3&$L$10&$O$3&$L188)) -> PROD | F188: OOPS | G188: 33443518 | H188: 33443518 | I188: 0 | J188: 0 | L188: Sch 3 - Expenses | M188: 28
B189: Other Power - Maintenance | C189: 320-323 | D189: 551-554.1 | E189: =INDIRECT(ADDRESS($M189,5,,,$N$3&$L$10&$O$3&$L189)) -> PROD | F189: OMN | G189: 27656590 | H189: 27656590 | I189: 0 | J189: 0 | L189: Sch 3 - Expenses | M189: 29
B190: Other Power Supply Expenses | M190: 30
B191: Purchased Power (Excluding REP Reversal) | C191: 320-323 | D191: 555 | E191: =INDIRECT(ADDRESS($M191,5,,,$N$3&$L$10&$O$3&$L191)) -> PROD | F191: CONSTANT | G191: =INDIRECT(ADDRESS($M191,M$2,,,$N$3&$L$10&$O$3&$L191)) -> 1085637524 | H191: 1085637524 | I191: 0 | J191: 0 | L191: Sch 3 - Expenses | M191: 31
B192: System Control and Load Dispatching | C192: 320-323 | D192: 556 | E192: =INDIRECT(ADDRESS($M192,5,,,$N$3&$L$10&$O$3&$L192)) -> PROD | F192: CONSTANT | G192: 28612 | H192: 28612 | I192: 0 | J192: 0 | L192: Sch 3 - Expenses | M192: 32
B193: Other Expenses | C193: 320-323 | D193: 557 | E193: =INDIRECT(ADDRESS($M193,5,,,$N$3&$L$10&$O$3&$L193)) -> PROD | F193: CONSTANT | G193: 94142017 | H193: 94142017 | I193: 0 | J193: 0 | L193: Sch 3 - Expenses | M193: 33
B194: BPA REP Reversal | C194: 327 | D194: 555 | E194: =INDIRECT(ADDRESS($M194,5,,,$N$3&$L$10&$O$3&$L194)) -> PROD | F194: CONSTANT | G194: 0 | H194: 0 | I194: 0 | J194: 0 | L194: Sch 3 - Expenses | M194: 34
B195: Public Purpose Charges (h) | E195: =INDIRECT(ADDRESS($M195,5,,,$N$3&$L$10&$O$3&$L195)) -> DIRECT | F195: CONSTANT | G195: 0 | H195: 0 | I195: 0 | J195: 0 | L195: Sch 3 - Expenses | M195: 35
A196: Total Production Expense | G196: =SUM(G176:G195) -> 1755510842 | H196: =SUM(H176:H195) -> 1755510842 | I196: =SUM(I176:I195) -> 0 | J196: =SUM(J176:J195) -> 0
A198: Transmission Expenses: (i)
B199: Transmission of Electricity by Others (Wheeling) | C199: 320-323 | D199: 565 | E199: =INDIRECT(ADDRESS($M199,5,,,$N$3&$L$10&$O$3&$L199)) -> prod | F199: INF | G199: =INDIRECT(ADDRESS($M199,M$2,,,$N$3&$L$10&$O$3&$L199)) -> 162583424 | H199: 162583424 | I199: 0 | J199: 0 | L199: Sch 3 - Expenses | M199: 39
B200: Total Operations less Wheeling | C200: 320-323 | D200: 560-567.1 | E200: =INDIRECT(ADDRESS($M200,5,,,$N$3&$L$10&$O$3&$L200)) -> TRANS | F200: TOPS | G200: 14310154 | H200: 0 | I200: 0 | J200: 14310154 | L200: Sch 3 - Expenses | M200: 40
B201: Total Maintenance | C201: 320-323 | D201: 568-574 | E201: =INDIRECT(ADDRESS($M201,5,,,$N$3&$L$10&$O$3&$L201)) -> TRANS | F201: TMN | G201: 11909901 | H201: 0 | I201: 0 | J201: 11909901 | L201: Sch 3 - Expenses | M201: 41
A202: Total Transmission Expense | G202: =SUM(G199:G201) -> 188803479 | H202: =SUM(H199:H201) -> 162583424 | I202: =SUM(I199:I201) -> 0 | J202: =SUM(J199:J201) -> 26220055
A204: Distribution Expense:
B205: Total Operations | C205: 320-323 | D205: 580-589 | E205: =INDIRECT(ADDRESS($M205,5,,,$N$3&$L$10&$O$3&$L205)) -> DIST | F205: DOPS | G205: =INDIRECT(ADDRESS($M205,M$2,,,$N$3&$L$10&$O$3&$L205)) -> 44589259 | H205: 0 | I205: 0 | J205: 44589259 | L205: Sch 3 - Expenses | M205: 45
B206: Total Maintenance | C206: 320-323 | D206: 590-598 | E206: =INDIRECT(ADDRESS($M206,5,,,$N$3&$L$10&$O$3&$L206)) -> DIST | F206: DMN | G206: 64057473 | H206: 0 | I206: 0 | J206: 64057473 | L206: Sch 3 - Expenses | M206: 46
A207: Total Distribution Expense | G207: =SUM(G205:G206) -> 108646732 | H207: =SUM(H205:H206) -> 0 | I207: =SUM(I205:I206) -> 0 | J207: =SUM(J205:J206) -> 108646732
A209: Customer and Sales Expenses:
B210: Total Customer Accounts | C210: 320-323 | D210: 901-905 | E210: =INDIRECT(ADDRESS($M210,5,,,$N$3&$L$10&$O$3&$L210)) -> DIST | F210: CACNT | G210: =INDIRECT(ADDRESS($M210,M$2,,,$N$3&$L$10&$O$3&$L210)) -> 59970042 | H210: 0 | I210: 0 | J210: 59970042 | L210: Sch 3 - Expenses | M210: 50
B211: Customer Service and Information | C211: 320-323 | D211: 906-907 | E211: =INDIRECT(ADDRESS($M211,5,,,$N$3&$L$10&$O$3&$L211)) -> DIST | F211: CSERV | G211: 0 | H211: 0 | I211: 0 | J211: 0 | L211: Sch 3 - Expenses | M211: 51
B212: Customer assistance expenses (Major only) | C212: 320-323 | D212: 908 | E212: =INDIRECT(ADDRESS($M212,5,,,$N$3&$L$10&$O$3&$L212)) -> DIRECT | F212: CSERV | G212: 144569269 | H212: 97941405.33 | I212: 0 | J212: 46627864.05 | L212: Sch 3 - Expenses | M212: 52
B213: Customer Service and Information | C213: 320-323 | D213: 909-910 | E213: =INDIRECT(ADDRESS($M213,5,,,$N$3&$L$10&$O$3&$L213)) -> DIST | F213: CSALES | G213: 2499626 | H213: 0 | I213: 0 | J213: 2499626 | L213: Sch 3 - Expenses | M213: 53
B214: Total Sales Expense | C214: 320-323 | D214: 911-917 | E214: =INDIRECT(ADDRESS($M214,5,,,$N$3&$L$10&$O$3&$L214)) -> DIST | F214: CSALES | G214: 1231798 | H214: 0 | I214: 0 | J214: 1231798 | L214: Sch 3 - Expenses | M214: 54
A215: Total Customer and Sales Expenses | G215: =SUM(G210:G214) -> 208270735 | H215: =SUM(H210:H214) -> 97941405.33 | I215: =SUM(I210:I214) -> 0 | J215: =SUM(J210:J214) -> 110329330
A217: Administration and General Expense:
B218: Operation
B219: Administration and General Salaries | C219: 320-323 | D219: 920 | E219: =INDIRECT(ADDRESS($M219,5,,,$N$3&$L$10&$O$3&$L219)) -> LABOR | F219: A&G | G219: =INDIRECT(ADDRESS($M219,M$2,,,$N$3&$L$10&$O$3&$L219)) -> 78570677 | H219: 26700683.58 | I219: 0 | J219: 51869993.42 | L219: Sch 3 - Expenses | M219: 59
B220: Office Supplies & Expenses | C220: 320-323 | D220: 921 | E220: LABOR | F220: A&G | G220: 7463412 | H220: 2536292.289 | I220: 0 | J220: 4927119.711 | L220: Sch 3 - Expenses | M220: 60
B221: (Less) Administration Expenses Transferred - Credit | C221: 320-323 | D221: 922 | E221: LABOR | F221: A&G | G221: 32365661 | H221: 10998826.87 | I221: 0 | J221: 21366834.13 | L221: Sch 3 - Expenses | M221: 61
B222: Outside Services Employed | C222: 320-323 | D222: 923 | E222: LABOR | F222: A&G | G222: 20765085 | H222: 7056601.587 | I222: 0 | J222: 13708483.41 | L222: Sch 3 - Expenses | M222: 62
B223: Property Insurance | C223: 320-323 | D223: 924 | E223: PTDG | F223: A&G | G223: 6318020 | H223: 2210502.041 | I223: 0 | J223: 4107517.958 | L223: Sch 3 - Expenses | M223: 63
B224: Injuries and Damages | C224: 320-323 | D224: 925 | E224: Labor | F224: A&G | G224: 8919311 | H224: 3031050.639 | I224: 0 | J224: 5888260.361 | L224: Sch 3 - Expenses | M224: 64
B225: Employee Pensions & Benefits | C225: 320-323 | D225: 926 | E225: LABOR | F225: A&G | G225: 28392494 | H225: 9648624.998 | I225: 0 | J225: 18743869 | L225: Sch 3 - Expenses | M225: 65
B226: Franchise Requirements | C226: 320-323 | D226: 927 | E226: DIST | F226: A&G | G226: 0 | H226: 0 | I226: 0 | J226: 0 | L226: Sch 3 - Expenses | M226: 66
B227: Regulatory Commission Expenses | C227: 320-323 | D227: 928 | E227: DIST | F227: A&G | G227: 16043545 | H227: 0 | I227: 0 | J227: 16043545 | L227: Sch 3 - Expenses | M227: 67
B228: (Less) Duplicate Charges - Credit | C228: 320-323 | D228: 929 | E228: PTDG | F228: A&G | G228: 0 | H228: 0 | I228: 0 | J228: 0 | L228: Sch 3 - Expenses | M228: 68
B229: General Advertising Expenses | C229: 320-323 | D229: 930.1 | E229: DIST | F229: A&G | G229: 56129 | H229: 0 | I229: 0 | J229: 56129 | L229: Sch 3 - Expenses | M229: 69
B230: Miscellaneous General Expenses | C230: 320-323 | D230: 930.2 | E230: DIST | F230: A&G | G230: 9187393 | H230: 0 | I230: 0 | J230: 9187393 | L230: Sch 3 - Expenses | M230: 70
B231: Rents | C231: 320-323 | D231: 931 | E231: DIST | F231: A&G | G231: 10338554 | H231: 0 | I231: 0 | J231: 10338554 | L231: Sch 3 - Expenses | M231: 71
B232: Transportation Expenses (Non Major) | C232: 320-324 | D232: 933 | E232: DIST | F232: A&G | G232: 0 | H232: 0 | I232: 0 | J232: 0 | L232: Sch 3 - Expenses | M232: 72
... 119 more rows

Sheet Above-RHWM_Base_Calc
A4: BONNEVILLE POWER ADMINISTRATION
A5: RESIDENTIAL PURCHASE AND SALE AGREEMENT
A6: 2008 Average System Cost Methodology
B8: ='Base Data'!H10 -> 2023
A10: ROR w/ Taxes | B10: ='Base Data'!G165 -> 0.08380379747
A11: ='Base Data'!$N$3&'Base Data'!$L$10&'Base Data'!$O$3 & "Above-RHWM_Base_Calc" -> [PSE Appendix 1 Redacted.xlsx]Above-RHWM_Base_Calc | B11: =IF(B14="Coal", 1,IF(B14="Hydro",2,IF(B14="Geo-Therm", 1, IF(B14="Natural Gas", 3,IF(B14="Wind",3,IF(B14= "Form 1 LF",4,IF(B14="Form 1 SF",5,""))))))) -> 3
B12: =INDIRECT(ADDRESS(ROW(),COLUMN(),,,$A$11)) -> 0 | C12: =INDIRECT(ADDRESS(ROW(),COLUMN(),,,$A$11)) -> 0 | D12: 0 | E12: 0 | F12: 0 | G12: 0 | H12: 0 | I12: 0 | J12: 0 | K12: 0 | L12: 0 | M12: 0 | N12: 0 | O12: 0 | P12: 0 | Q12: 0 | R12: 0 | S12: 0 | T12: 0 | U12: 0 | V12: 0 | W12: 0 | X12: 0 | Y12: 0 | Z12: 0 | AA12: Total
A13: Year in Service | B13: =INDIRECT(ADDRESS(ROW(),COLUMN(),,,$A$11)) -> 0 | C13: 0 | D13: 0 | E13: 0 | F13: 0 | G13: 0 | H13: 0 | I13: 0 | J13: 0 | K13: 0 | L13: 0 | M13: 0 | N13: 0 | O13: 0 | P13: 0 | Q13: 0 | R13: 0 | S13: 0 | T13: 0 | U13: 0 | V13: 0 | W13: 0 | X13: 0 | Y13: 0 | Z13: 0
A14: Fuel | B14: Wind | C14: 0 | D14: 0 | E14: 0 | F14: 0 | G14: 0 | H14: 0 | I14: 0 | J14: 0 | K14: 0 | L14: 0 | M14: 0 | N14: 0 | O14: 0 | P14: 0 | Q14: 0 | R14: 0 | S14: 0 | T14: 0 | U14: 0 | V14: 0 | W14: 0 | X14: 0 | Y14: 0 | Z14: 0
A15: Energy (kWh) | B15: =INDIRECT(ADDRESS(ROW(),COLUMN(),,,$A$11)) -> 525311808 | C15: 0 | D15: 0 | E15: 0 | F15: 0 | G15: 0 | H15: 0 | I15: 0 | J15: 0 | K15: 0 | L15: 0 | M15: 0 | N15: 0 | O15: 0 | P15: 0 | Q15: 0 | R15: 0 | S15: 0 | T15: 0 | U15: 0 | V15: 0 | W15: 0 | X15: 0 | Y15: 0 | Z15: 0 | AA15: =SUM(B15:Z15) -> 525311808
A17: Gross Plant in Service | B17: 454201098 | C17: 0 | D17: 0 | E17: 0 | F17: 0 | G17: 0 | H17: 0 | I17: 0 | J17: 0 | K17: 0 | L17: 0 | M17: 0 | N17: 0 | O17: 0 | P17: 0 | Q17: 0 | R17: =INDIRECT(ADDRESS(ROW(),COLUMN(),,,$A$11)) -> 0 | S17: 0 | T17: 0 | U17: 0 | V17: 0 | W17: 0 | X17: 0 | Y17: 0 | Z17: 0 | AA17: =SUM(B17:Z17) -> 454201098
A18: Accumulated Depreciation | B18: -265563357.6 | C18: 0 | D18: 0 | E18: 0 | F18: 0 | G18: 0 | H18: 0 | I18: 0 | J18: 0 | K18: 0 | L18: 0 | M18: 0 | N18: 0 | O18: 0 | P18: 0 | Q18: 0 | R18: 0 | S18: 0 | T18: 0 | U18: 0 | V18: 0 | W18: 0 | X18: 0 | Y18: 0 | Z18: 0 | AA18: =SUM(B18:Z18) -> -265563357.6
A20: Net Plant In Service | B20: =B17+B18 -> 188637740.4 | C20: =C17+C18 -> 0 | D20: 0 | E20: 0 | F20: 0 | G20: 0 | H20: 0 | I20: 0 | J20: 0 | K20: 0 | L20: 0 | M20: 0 | N20: 0 | O20: 0 | P20: 0 | Q20: 0 | R20: 0 | S20: 0 | T20: 0 | U20: 0 | V20: 0 | W20: 0 | X20: 0 | Y20: 0 | Z20: 0 | AA20: =SUM(B20:Z20) -> 188637740.4
A21: Fuel Stock | B21: =INDIRECT(ADDRESS(ROW(),COLUMN(),,,$A$11)) -> 0 | C21: 0 | D21: 0 | E21: 0 | F21: 0 | G21: 0 | H21: 0 | I21: 0 | J21: 0 | K21: 0 | L21: 0 | M21: 0 | N21: 0 | O21: 0 | P21: 0 | Q21: 0 | R21: 0 | S21: 0 | T21: 0 | U21: 0 | V21: 0 | W21: 0 | X21: 0 | Y21: 0 | Z21: 0 | AA21: =SUM(B21:Z21) -> 0
A22: Alloc. Plant Materials & Supplies | B22: Maintenance and Supplies costs included in Above-RHWM Resource costs will be calculated using Above-RHWM Functionalization Ratios. | AA22: =INDIRECT(ADDRESS(ROW(),COLUMN(),,,$A$11)) -> 6003764.381
A23: Allocated General Plant - Net | B23: General Plant costs included in Above-RHWM Resource costs will be calculated using Above-RHWM Functionalization Ratios. | AA23: =INDIRECT(ADDRESS(ROW(),COLUMN(),,,$A$11)) -> 4598281.089
A24: Total "Rate Base" | AA24: =SUM(AA20:AA23) -> 199239785.9
A25: Weighted Cost of Capital | AA25: =$B$10 -> 0.08380379747
A26: Return on Capital | AA26: =AA24*AA25 -> 16697050.66
A28: Annual Depreciation Expense
A29: Production Plant | B29: =INDIRECT(ADDRESS(ROW(),COLUMN(),,,$A$11)) -> 21282816.37 | C29: 0 | D29: 0 | E29: 0 | F29: 0 | G29: 0 | H29: 0 | I29: 0 | J29: 0 | K29: 0 | L29: 0 | M29: 0 | N29: 0 | O29: 0 | P29: 0 | Q29: 0 | R29: 0 | S29: 0 | T29: 0 | U29: 0 | V29: 0 | W29: 0 | X29: 0 | Y29: 0 | Z29: 0 | AA29: =SUM(B29:Z29) -> 21282816.37
A30: General Plant | B30: General Plant Depreciation expense included in Above-RHWM Resource costs will be calculated using Above-RHWM Functionalization Ratios. | AA30: =INDIRECT(ADDRESS(ROW(),COLUMN(),,,$A$11)) -> 611165.6981
A31: Total Annual Depreciation Expense | AA31: =AA29+AA30 -> 21893982.07
A33: Operations Expense Less Fuel | B33: =INDIRECT(ADDRESS(ROW(),COLUMN(),,,$A$11)) -> 3484224.62 | C33: 0 | D33: 0 | E33: 0 | F33: 0 | G33: 0 | H33: 0 | I33: 0 | J33: 0 | K33: 0 | L33: 0 | M33: 0 | N33: 0 | O33: 0 | P33: 0 | Q33: 0 | R33: 0 | S33: 0 | T33: 0 | U33: 0 | V33: 0 | W33: 0 | X33: 0 | Y33: 0 | Z33: 0 | AA33: =SUM(B33:Z33) -> 3484224.62
A34: Maintenance Expense | B34: =INDIRECT(ADDRESS(ROW(),COLUMN(),,,$A$11)) -> 7593964 | C34: 0 | D34: 0 | E34: 0 | F34: 0 | G34: 0 | H34: 0 | I34: 0 | J34: 0 | K34: 0 | L34: 0 | M34: 0 | N34: 0 | O34: 0 | P34: 0 | Q34: 0 | R34: 0 | S34: 0 | T34: 0 | U34: 0 | V34: 0 | W34: 0 | X34: 0 | Y34: 0 | Z34: 0 | AA34: =SUM(B34:Z34) -> 7593964
A35: Fuel | B35: =INDIRECT(ADDRESS(ROW(),COLUMN(),,,$A$11)) -> 0 | C35: 0 | D35: 0 | E35: 0 | F35: 0 | G35: 0 | H35: 0 | I35: 0 | J35: 0 | K35: 0 | L35: 0 | M35: 0 | N35: 0 | O35: 0 | P35: 0 | Q35: 0 | R35: 0 | S35: 0 | T35: 0 | U35: 0 | V35: 0 | W35: 0 | X35: 0 | Y35: 0 | Z35: 0 | AA35: =SUM(B35:Z35) -> 0
A36: Allocated A&G | B36: A & G costs included in Above-RHWM Resource costs will be calculated using Above-RHWM Functionalization Ratios. | AA36: =INDIRECT(ADDRESS(ROW(),COLUMN(),,,$A$11)) -> 4814268.731
A37: Purchased Power Expense | B37: =INDIRECT(ADDRESS(ROW(),COLUMN(),,,$A$11)) -> 0 | C37: 0 | D37: 0 | E37: 0 | F37: 0 | G37: 0 | H37: 0 | I37: 0 | J37: 0 | K37: 0 | L37: 0 | M37: 0 | N37: 0 | O37: 0 | P37: 0 | Q37: 0 | R37: 0 | S37: 0 | T37: 0 | U37: 0 | V37: 0 | W37: 0 | X37: 0 | Y37: 0 | Z37: 0 | AA37: =SUM(B37:Z37) -> 0
A38: Federal Employment Taxes | B38: Federal Employment Taxes included in Above-RHWM Resource costs will be calculated using Above-RHWM Functionalization Ratios. | AA38: =INDIRECT(ADDRESS(ROW(),COLUMN(),,,$A$11)) -> 375259.4381
A39: State Employment Taxes | B39: State Employment Taxes included in Above-RHWM Resource costs will be calculated using Above-RHWM Functionalization Ratios. | AA39: =INDIRECT(ADDRESS(ROW(),COLUMN(),,,$A$11)) -> 0
A40: Property Taxes | B40: Property Taxes included in Above-RHWM Resource costs will be calculated using Above-RHWM Functionalization Ratios. | AA40: =INDIRECT(ADDRESS(ROW(),COLUMN(),,,$A$11)) -> 1916999.34
A42: Fully Allocated Cost ($) | AA42: =SUM(AA26,AA31,AA33:AA40) -> 56775748.86
A43: Fully Allocated Cost ($/MWh) | AA43: =IF(AA15=0,0,AA42/AA15*1000) -> 108.0800926
A45: Average Cost of Post-2006 Base Load Resources | AA45: =AA43 -> 108.0800926
A46: ASC Transmission | AA46: ='Base Data'!$H$340/('Base Data'!$H$346+'Base Data'!$H$349) -> 0
A47: 2013 cost of serving Above-RHWM Loads under Endnote d | AA47: =SUM(AA45:AA46) -> 108.0800926

Sheet Above-RHWM_Essc
U1: =IF(YEAR(V3)>YEAR(N3),((12-MONTH(N3))+MONTH(V3))/12,(MONTH(V3)-MONTH(N3))/12) -> 0.25 | AC1: =IF(YEAR(AD3)>YEAR(V3),((12-MONTH(V3))+MONTH(AD3))/12,(MONTH(AD3)-MONTH(V3))/12) -> 0.5 | AK1: =IF(YEAR(AL3)>YEAR(AD3),((12-MONTH(AD3))+MONTH(AL3))/12,(MONTH(AL3)-MONTH(AD3))/12) -> 0.5 | AS1: =IF(YEAR(AT3)>YEAR(AL3),((12-MONTH(AL3))+MONTH(AT3))/12,(MONTH(AT3)-MONTH(AL3))/12) -> 0.5 | BA1: =IF(YEAR(BB3)>YEAR(AT3),((12-MONTH(AT3))+MONTH(BB3))/12,(MONTH(BB3)-MONTH(AT3))/12) -> 0.5 | BI1: =IF(YEAR(BJ3)>YEAR(BB3),((12-MONTH(BB3))+MONTH(BJ3))/12,(MONTH(BJ3)-MONTH(BB3))/12) -> 1 | BQ1: =IF(YEAR(BR3)>YEAR(BJ3),((12-MONTH(BJ3))+MONTH(BR3))/12,(MONTH(BR3)-MONTH(BJ3))/12) -> 1 | BY1: =IF(YEAR(BZ3)>YEAR(BR3),((12-MONTH(BR3))+MONTH(BZ3))/12,(MONTH(BZ3)-MONTH(BR3))/12) -> 0.5 | CG1: =IF(YEAR(CH3)>YEAR(BZ3),((12-MONTH(BZ3))+MONTH(CH3))/12,(MONTH(CH3)-MONTH(BZ3))/12) -> 0 | CO1: =IF(YEAR(CP3)>YEAR(CH3),((12-MONTH(CH3))+MONTH(CP3))/12,(MONTH(CP3)-MONTH(CH3))/12) -> 0.5 | CW1: =IF(YEAR(CX3)>YEAR(CP3),((12-MONTH(CP3))+MONTH(CX3))/12,(MONTH(CX3)-MONTH(CP3))/12) -> 1 | DE1: =IF(YEAR(DF3)>YEAR(CX3),((12-MONTH(CX3))+MONTH(DF3))/12,(MONTH(DF3)-MONTH(CX3))/12) -> 1 | DM1: =IF(YEAR(DN3)>YEAR(DF3),((12-MONTH(DF3))+MONTH(DN3))/12,(MONTH(DN3)-MONTH(DF3))/12) -> 1 | DU1: =IF(YEAR(DV3)>YEAR(DN3),((12-MONTH(DN3))+MONTH(DV3))/12,(MONTH(DV3)-MONTH(DN3))/12) -> 1 | EC1: =IF(YEAR(ED3)>YEAR(DV3),((12-MONTH(DV3))+MONTH(ED3))/12,(MONTH(ED3)-MONTH(DV3))/12) -> 1 | EK1: =IF(YEAR(EL3)>YEAR(ED3),((12-MONTH(ED3))+MONTH(EL3))/12,(MONTH(EL3)-MONTH(ED3))/12) -> 1 | ES1: =IF(YEAR(ET3)>YEAR(EL3),((12-MONTH(EL3))+MONTH(ET3))/12,(MONTH(ET3)-MONTH(EL3))/12) -> 0.6666666667 | FA1: =IF(YEAR(FB3)>YEAR(ET3),((12-MONTH(ET3))+MONTH(FB3))/12,(MONTH(FB3)-MONTH(ET3))/12) -> 0 | FI1: =IF(YEAR(FJ3)>YEAR(FB3),((12-MONTH(FB3))+MONTH(FJ3))/12,(MONTH(FJ3)-MONTH(FB3))/12) -> 0 | FQ1: =IF(YEAR(FR3)>YEAR(FJ3),((12-MONTH(FJ3))+MONTH(FR3))/12,(MONTH(FR3)-MONTH(FJ3))/12) -> 0 | FY1: =IF(YEAR(FZ3)>YEAR(FR3),((12-MONTH(FR3))+MONTH(FZ3))/12,(MONTH(FZ3)-MONTH(FR3))/12) -> 0 | GG1: =IF(YEAR(GH3)>YEAR(FZ3),((12-MONTH(FZ3))+MONTH(GH3))/12,(MONTH(GH3)-MONTH(FZ3))/12) -> 0 | GO1: =IF(YEAR(GP3)>YEAR(GH3),((12-MONTH(GH3))+MONTH(GP3))/12,(MONTH(GP3)-MONTH(GH3))/12) -> 0 | GW1: =IF(YEAR(GX3)>YEAR(GP3),((12-MONTH(GP3))+MONTH(GX3))/12,(MONTH(GX3)-MONTH(GP3))/12) -> 0
M2: 2 | Q2: ` | U2: 3 | AC2: 4 | AK2: 5 | AS2: 6 | BA2: 7 | BI2: 8 | BQ2: 9 | BY2: 10 | CG2: 11 | CO2: 12 | CW2: 13 | DE2: 14 | DM2: 15 | DU2: 16 | EC2: 17 | EK2: 18 | ES2: 19 | FA2: 20 | FI2: 21 | FQ2: 22 | FY2: 23 | GG2: 24 | GO2: 25 | GW2: 26
J3: Date | M3: =HLOOKUP(M$2,'OSS & PurPwr Forecast (2)'!$F$7:$AE$28,2,FALSE) -> 2024 | N3: =VLOOKUP($J3,EscTable_01,M2,FALSE) -> 2024-01-01 | U3: =HLOOKUP(U$2,'OSS & PurPwr Forecast (2)'!$F$7:$AE$28,2,FALSE) -> 2024 | V3: =VLOOKUP($J3,EscTable_01,U2,FALSE) -> 2024-04-01 | AC3: =HLOOKUP(AC$2,'OSS & PurPwr Forecast (2)'!$F$7:$AE$28,2,FALSE) -> 2025 | AD3: =VLOOKUP($J3,EscTable_01,AC2,FALSE) -> 2024-10-01 | AK3: =HLOOKUP(AK$2,'OSS & PurPwr Forecast (2)'!$F$7:$AE$28,2,FALSE) -> 2025 | AL3: =VLOOKUP($J3,EscTable_01,AK2,FALSE) -> 2025-04-01 | AS3: =HLOOKUP(AS$2,'OSS & PurPwr Forecast (2)'!$F$7:$AE$28,2,FALSE) -> 2026 | AT3: =VLOOKUP($J3,EscTable_01,AS2,FALSE) -> 2025-10-01 | BA3: =HLOOKUP(BA$2,'OSS & PurPwr Forecast (2)'!$F$7:$AE$28,2,FALSE) -> 2026 | BB3: =VLOOKUP($J3,EscTable_01,BA2,FALSE) -> 2026-04-01 | BI3: =HLOOKUP(BI$2,'OSS & PurPwr Forecast (2)'!$F$7:$AE$28,2,FALSE) -> 2027 | BJ3: =VLOOKUP($J3,EscTable_01,BI2,FALSE) -> 2027-04-01 | BQ3: =HLOOKUP(BQ$2,'OSS & PurPwr Forecast (2)'!$F$7:$AE$28,2,FALSE) -> 2028 | BR3: =VLOOKUP($J3,EscTable_01,BQ2,FALSE) -> 2028-04-01 | BY3: =HLOOKUP(BY$2,'OSS & PurPwr Forecast (2)'!$F$7:$AE$28,2,FALSE) -> 2028 | BZ3: =VLOOKUP($J3,EscTable_01,BY2,FALSE) -> 2028-10-01 | CG3: =HLOOKUP(CG$2,'OSS & PurPwr Forecast (2)'!$F$7:$AE$28,2,FALSE) -> 2029 | CH3: =VLOOKUP($J3,EscTable_01,CG2,FALSE) -> 2028-10-01 | CO3: =HLOOKUP(CO$2,'OSS & PurPwr Forecast (2)'!$F$7:$AE$28,2,FALSE) -> 2029 | CP3: =VLOOKUP($J3,EscTable_01,CO2,FALSE) -> 2029-04-01 | CW3: =HLOOKUP(CW$2,'OSS & PurPwr Forecast (2)'!$F$7:$AE$28,2,FALSE) -> 2030 | CX3: =VLOOKUP($J3,EscTable_01,CW2,FALSE) -> 2030-04-01 | DE3: =HLOOKUP(DE$2,'OSS & PurPwr Forecast (2)'!$F$7:$AE$28,2,FALSE) -> 2031 | DF3: =VLOOKUP($J3,EscTable_01,DE2,FALSE) -> 2031-04-01 | DM3: =HLOOKUP(DM$2,'OSS & PurPwr Forecast (2)'!$F$7:$AE$28,2,FALSE) -> 2032 | DN3: =VLOOKUP($J3,EscTable_01,DM2,FALSE) -> 2032-04-01 | DU3: =HLOOKUP(DU$2,'OSS & PurPwr Forecast (2)'!$F$7:$AE$28,2,FALSE) -> 2033 | DV3: =VLOOKUP($J3,EscTable_01,DU2,FALSE) -> 2033-04-01 | EC3: =HLOOKUP(EC$2,'OSS & PurPwr Forecast (2)'!$F$7:$AE$28,2,FALSE) -> 2034 | ED3: =VLOOKUP($J3,EscTable_01,EC2,FALSE) -> 2034-04-01 | EK3: =HLOOKUP(EK$2,'OSS & PurPwr Forecast (2)'!$F$7:$AE$28,2,FALSE) -> 2035 | EL3: =VLOOKUP($J3,EscTable_01,EK2,FALSE) -> 2035-04-01 | ES3: =HLOOKUP(ES$2,'OSS & PurPwr Forecast (2)'!$F$7:$AE$28,2,FALSE) -> 2036 | ET3: =VLOOKUP($J3,EscTable_01,ES2,FALSE) -> 2035-12-01 | FA3: =HLOOKUP(FA$2,'OSS & PurPwr Forecast (2)'!$F$7:$AE$28,2,FALSE) -> 2036 | FB3: =VLOOKUP($J3,EscTable_01,FA2,FALSE) -> 2035-12-01 | FI3: =HLOOKUP(FI$2,'OSS & PurPwr Forecast (2)'!$F$7:$AE$28,2,FALSE) -> 2036 | FJ3: =VLOOKUP($J3,EscTable_01,FI2,FALSE) -> 2035-12-01 | FQ3: =HLOOKUP(FQ$2,'OSS & PurPwr Forecast (2)'!$F$7:$AE$28,2,FALSE) -> 2036 | FR3: =VLOOKUP($J3,EscTable_01,FQ2,FALSE) -> 2035-12-01 | FY3: =HLOOKUP(FY$2,'OSS & PurPwr Forecast (2)'!$F$7:$AE$28,2,FALSE) -> 2036 | FZ3: =VLOOKUP($J3,EscTable_01,FY2,FALSE) -> 2035-12-01 | GG3: =HLOOKUP(GG$2,'OSS & PurPwr Forecast (2)'!$F$7:$AE$28,2,FALSE) -> 2036 | GH3: =VLOOKUP($J3,EscTable_01,GG2,FALSE) -> 2035-12-01 | GO3: =HLOOKUP(GO$2,'OSS & PurPwr Forecast (2)'!$F$7:$AE$28,2,FALSE) -> 2036 | GP3: =VLOOKUP($J3,EscTable_01,GO2,FALSE) -> 2035-12-01 | GW3: =HLOOKUP(GW$2,'OSS & PurPwr Forecast (2)'!$F$7:$AE$28,2,FALSE) -> 2036 | GX3: =VLOOKUP($J3,EscTable_01,GW2,FALSE) -> 2035-12-01
J4: RP | N4: =VLOOKUP($J4,EscTable_01,M$2,FALSE) -> No | V4: =VLOOKUP($J4,EscTable_01,U$2,FALSE) -> No | AD4: =VLOOKUP($J4,EscTable_01,AC$2,FALSE) -> No | AL4: =VLOOKUP($J4,EscTable_01,AK$2,FALSE) -> No | AT4: =VLOOKUP($J4,EscTable_01,AS$2,FALSE) -> RP_Start | BB4: =VLOOKUP($J4,EscTable_01,BA$2,FALSE) -> No | BJ4: =VLOOKUP($J4,EscTable_01,BI$2,FALSE) -> No | BR4: =VLOOKUP($J4,EscTable_01,BQ$2,FALSE) -> No | BZ4: =VLOOKUP($J4,EscTable_01,BY$2,FALSE) -> RP_End | CH4: =VLOOKUP($J4,EscTable_01,CG$2,FALSE) -> No | CP4: =VLOOKUP($J4,EscTable_01,CO$2,FALSE) -> No | CX4: =VLOOKUP($J4,EscTable_01,CW$2,FALSE) -> No | DF4: =VLOOKUP($J4,EscTable_01,DE$2,FALSE) -> No | DN4: =VLOOKUP($J4,EscTable_01,DM$2,FALSE) -> No | DV4: =VLOOKUP($J4,EscTable_01,DU$2,FALSE) -> No | ED4: =VLOOKUP($J4,EscTable_01,EC$2,FALSE) -> No | EL4: =VLOOKUP($J4,EscTable_01,EK$2,FALSE) -> No | ET4: =VLOOKUP($J4,EscTable_01,ES$2,FALSE) -> No | FB4: =VLOOKUP($J4,EscTable_01,FA$2,FALSE) -> No | FJ4: =VLOOKUP($J4,EscTable_01,FI$2,FALSE) -> No | FR4: =VLOOKUP($J4,EscTable_01,FQ$2,FALSE) -> No | FZ4: =VLOOKUP($J4,EscTable_01,FY$2,FALSE) -> No | GH4: =VLOOKUP($J4,EscTable_01,GG$2,FALSE) -> No | GP4: =VLOOKUP($J4,EscTable_01,GO$2,FALSE) -> No | GX4: =VLOOKUP($J4,EscTable_01,GW$2,FALSE) -> No
B5: 1 | C5: 2 | D5: 3 | E5: 4 | F5: 5 | J5: NRSW | M5: NR Switch | N5: =VLOOKUP($J5,EscTable_01,M$2,FALSE) -> 0 | U5: NR Switch | V5: =VLOOKUP($J5,EscTable_01,U$2,FALSE) -> 0 | AC5: NR Switch | AD5: =VLOOKUP($J5,EscTable_01,AC$2,FALSE) -> 0 | AK5: NR Switch | AL5: =VLOOKUP($J5,EscTable_01,AK$2,FALSE) -> 0 | AS5: NR Switch | AT5: =VLOOKUP($J5,EscTable_01,AS$2,FALSE) -> 0 | BA5: NR Switch | BB5: =VLOOKUP($J5,EscTable_01,BA$2,FALSE) -> 0 | BI5: NR Switch | BJ5: =VLOOKUP($J5,EscTable_01,BI$2,FALSE) -> 0 | BQ5: NR Switch | BR5: =VLOOKUP($J5,EscTable_01,BQ$2,FALSE) -> 0 | BY5: NR Switch | BZ5: =VLOOKUP($J5,EscTable_01,BY$2,FALSE) -> 0 | CG5: NR Switch | CH5: =VLOOKUP($J5,EscTable_01,CG$2,FALSE) -> 0 | CO5: NR Switch | CP5: =VLOOKUP($J5,EscTable_01,CO$2,FALSE) -> 0 | CW5: NR Switch | CX5: =VLOOKUP($J5,EscTable_01,CW$2,FALSE) -> 0 | DE5: NR Switch | DF5: =VLOOKUP($J5,EscTable_01,DE$2,FALSE) -> 0 | DM5: NR Switch | DN5: =VLOOKUP($J5,EscTable_01,DM$2,FALSE) -> 0 | DU5: NR Switch | DV5: =VLOOKUP($J5,EscTable_01,DU$2,FALSE) -> 0 | EC5: NR Switch | ED5: =VLOOKUP($J5,EscTable_01,EC$2,FALSE) -> 0 | EK5: NR Switch | EL5: =VLOOKUP($J5,EscTable_01,EK$2,FALSE) -> 0 | ES5: NR Switch | ET5: =VLOOKUP($J5,EscTable_01,ES$2,FALSE) -> 0 | FA5: NR Switch | FB5: =VLOOKUP($J5,EscTable_01,FA$2,FALSE) -> 0 | FI5: NR Switch | FJ5: =VLOOKUP($J5,EscTable_01,FI$2,FALSE) -> 0 | FQ5: NR Switch | FR5: =VLOOKUP($J5,EscTable_01,FQ$2,FALSE) -> 0 | FY5: NR Switch | FZ5: =VLOOKUP($J5,EscTable_01,FY$2,FALSE) -> 0 | GG5: NR Switch | GH5: =VLOOKUP($J5,EscTable_01,GG$2,FALSE) -> 0 | GO5: NR Switch | GP5: =VLOOKUP($J5,EscTable_01,GO$2,FALSE) -> 0 | GW5: NR Switch | GX5: =VLOOKUP($J5,EscTable_01,GW$2,FALSE) -> 0
B6: 2007 | E6: Long-Term | J6: NRCOL | M6: NR Column | N6: =VLOOKUP($J6,EscTable_01,M$2,FALSE) -> 5 | U6: NR Column | V6: =VLOOKUP($J6,EscTable_01,U$2,FALSE) -> 5 | AC6: NR Column | AD6: =VLOOKUP($J6,EscTable_01,AC$2,FALSE) -> 5 | AK6: NR Column | AL6: =VLOOKUP($J6,EscTable_01,AK$2,FALSE) -> 5 | AS6: NR Column | AT6: =VLOOKUP($J6,EscTable_01,AS$2,FALSE) -> 5 | BA6: NR Column | BB6: =VLOOKUP($J6,EscTable_01,BA$2,FALSE) -> 5 | BI6: NR Column | BJ6: =VLOOKUP($J6,EscTable_01,BI$2,FALSE) -> 5 | BQ6: NR Column | BR6: =VLOOKUP($J6,EscTable_01,BQ$2,FALSE) -> 5 | BY6: NR Column | BZ6: =VLOOKUP($J6,EscTable_01,BY$2,FALSE) -> 5 | CG6: NR Column | CH6: =VLOOKUP($J6,EscTable_01,CG$2,FALSE) -> 5 | CO6: NR Column | CP6: =VLOOKUP($J6,EscTable_01,CO$2,FALSE) -> 5 | CW6: NR Column | CX6: =VLOOKUP($J6,EscTable_01,CW$2,FALSE) -> 5 | DE6: NR Column | DF6: =VLOOKUP($J6,EscTable_01,DE$2,FALSE) -> 5 | DM6: NR Column | DN6: =VLOOKUP($J6,EscTable_01,DM$2,FALSE) -> 5 | DU6: NR Column | DV6: =VLOOKUP($J6,EscTable_01,DU$2,FALSE) -> 5 | EC6: NR Column | ED6: =VLOOKUP($J6,EscTable_01,EC$2,FALSE) -> 5 | EK6: NR Column | EL6: =VLOOKUP($J6,EscTable_01,EK$2,FALSE) -> 5 | ES6: NR Column | ET6: =VLOOKUP($J6,EscTable_01,ES$2,FALSE) -> 5 | FA6: NR Column | FB6: =VLOOKUP($J6,EscTable_01,FA$2,FALSE) -> 5 | FI6: NR Column | FJ6: =VLOOKUP($J6,EscTable_01,FI$2,FALSE) -> 5 | FQ6: NR Column | FR6: =VLOOKUP($J6,EscTable_01,FQ$2,FALSE) -> 5 | FY6: NR Column | FZ6: =VLOOKUP($J6,EscTable_01,FY$2,FALSE) -> 5 | GG6: NR Column | GH6: =VLOOKUP($J6,EscTable_01,GG$2,FALSE) -> 5 | GO6: NR Column | GP6: =VLOOKUP($J6,EscTable_01,GO$2,FALSE) -> 5 | GW6: NR Column | GX6: =VLOOKUP($J6,EscTable_01,GW$2,FALSE) -> 5
E7: Purchased Power | M7: NLSL | P7: Non-NLSL | Q7: Total | U7: NLSL | X7: Non-NLSL | Y7: Total | AC7: NLSL | AF7: Non-NLSL | AG7: Total | AK7: NLSL | AN7: Non-NLSL | AO7: Total | AS7: NLSL | AV7: Non-NLSL | AW7: Total | BA7: NLSL | BD7: Non-NLSL | BE7: Total | BI7: NLSL | BL7: Non-NLSL | BM7: Total | BQ7: NLSL | BT7: Non-NLSL | BU7: Total | BY7: NLSL | CB7: Non-NLSL | CC7: Total | CG7: NLSL | CJ7: Non-NLSL | CK7: Total | CO7: NLSL | CR7: Non-NLSL | CS7: Total | CW7: NLSL | CZ7: Non-NLSL | DA7: Total | DE7: NLSL | DH7: Non-NLSL | DI7: Total | DM7: NLSL | DP7: Non-NLSL | DQ7: Total | DU7: NLSL | DX7: Non-NLSL | DY7: Total | EC7: NLSL | EF7: Non-NLSL | EG7: Total | EK7: NLSL | EN7: Non-NLSL | EO7: Total | ES7: NLSL | EV7: Non-NLSL | EW7: Total | FA7: NLSL | FD7: Non-NLSL | FE7: Total | FI7: NLSL | FL7: Non-NLSL | FM7: Total | FQ7: NLSL | FT7: Non-NLSL | FU7: Total | FY7: NLSL | GB7: Non-NLSL | GC7: Total | GG7: NLSL | GJ7: Non-NLSL | GK7: Total | GO7: NLSL | GR7: Non-NLSL | GS7: Total | GW7: NLSL | GZ7: Non-NLSL | HA7: Total
B8: Coal | C8: Hydro | D8: Other | E8: Form 1- LF | F8: Form 1- SF | G8: Total | M8: Base Value | N8: New Resource | O8: Total | P8: Production | Q8: Production | U8: Escalated Value | V8: New Resource | W8: Total | X8: Production | Y8: Production | AC8: Escalated Value | AD8: New Resource | AE8: Total | AF8: Production | AG8: Production | AK8: Escalated Value | AL8: New Resource | AM8: Total | AN8: Production | AO8: Production | AS8: Escalated Value | AT8: New Resource | AU8: Total | AV8: Production | AW8: Production | BA8: Escalated Value | BB8: New Resource | BC8: Total | BD8: Production | BE8: Production | BI8: Escalated Value | BJ8: New Resource | BK8: Total | BL8: Production | BM8: Production | BQ8: Escalated Value | BR8: New Resource | BS8: Total | BT8: Production | BU8: Production | BY8: Escalated Value | BZ8: New Resource | CA8: Total | CB8: Production | CC8: Production | CG8: Escalated Value | CH8: New Resource | CI8: Total | CJ8: Production | CK8: Production | CO8: Escalated Value | CP8: New Resource | CQ8: Total | CR8: Production | CS8: Production | CW8: Escalated Value | CX8: New Resource | CY8: Total | CZ8: Production | DA8: Production | DE8: Escalated Value | DF8: New Resource | DG8: Total | DH8: Production | DI8: Production | DM8: Escalated Value | DN8: New Resource | DO8: Total | DP8: Production | DQ8: Production | DU8: Escalated Value | DV8: New Resource | DW8: Total | DX8: Production | DY8: Production | EC8: Escalated Value | ED8: New Resource | EE8: Total | EF8: Production | EG8: Production | EK8: Escalated Value | EL8: New Resource | EM8: Total | EN8: Production | EO8: Production | ES8: Escalated Value | ET8: New Resource | EU8: Total | EV8: Production | EW8: Production | FA8: Escalated Value | FB8: New Resource | FC8: Total | FD8: Production | FE8: Production | FI8: Escalated Value | FJ8: New Resource | FK8: Total | FL8: Production | FM8: Production | FQ8: Escalated Value | FR8: New Resource | FS8: Total | FT8: Production | FU8: Production | FY8: Escalated Value | FZ8: New Resource | GA8: Total | GB8: Production | GC8: Production | GG8: Escalated Value | GH8: New Resource | GI8: Total | GJ8: Production | GK8: Production | GO8: Escalated Value | GP8: New Resource | GQ8: Total | GR8: Production | GS8: Production | GW8: Escalated Value | GX8: New Resource | GY8: Total | GZ8: Production | HA8: Production
A9: Energy (kWh) | B9: =SUMIF('Above-RHWM_Base_Calc'!$B$11:$Z$11,B$5,'Above-RHWM_Base_Calc'!$B15:$Z15) -> 0 | C9: =SUMIF('Above-RHWM_Base_Calc'!$B$11:$Z$11,C$5,'Above-RHWM_Base_Calc'!$B15:$Z15) -> 0 | D9: =SUMIF('Above-RHWM_Base_Calc'!$B$11:$Z$11,D$5,'Above-RHWM_Base_Calc'!$B15:$Z15) -> 525311808 | E9: =SUMIF('Above-RHWM_Base_Calc'!$B$11:$Z$11,E$5,'Above-RHWM_Base_Calc'!$B15:$Z15) -> 0 | F9: =SUMIF('Above-RHWM_Base_Calc'!$B$11:$Z$11,F$5,'Above-RHWM_Base_Calc'!$B15:$Z15) -> 0 | G9: =SUM(B9:F9) -> 525311808 | I9: 230 | J9: =B8 -> Coal | K9: Energy (kWh) | M9: =B9 -> 0 | N9: =VLOOKUP($I9,'New Resources'!$A$4:$Y$133,N$6,FALSE)*1000*N$5 -> 0 | O9: =M9+N9 -> 0 | U9: =O9 -> 0 | V9: =VLOOKUP($I9,'New Resources'!$A$4:$Y$133,V$6,FALSE)*1000*V$5 -> 0 | W9: =U9+V9 -> 0 | AC9: =W9 -> 0 | AD9: =VLOOKUP($I9,'New Resources'!$A$4:$Y$133,AD$6,FALSE)*1000*AD$5 -> 0 | AE9: =AC9+AD9 -> 0 | AK9: =AE9 -> 0 | AL9: =VLOOKUP($I9,'New Resources'!$A$4:$Y$133,AL$6,FALSE)*1000*AL$5 -> 0 | AM9: =AK9+AL9 -> 0 | AS9: =AM9 -> 0 | AT9: =VLOOKUP($I9,'New Resources'!$A$4:$Y$133,AT$6,FALSE)*1000*AT$5 -> 0 | AU9: =AS9+AT9 -> 0 | BA9: =AU9 -> 0 | BB9: =VLOOKUP($I9,'New Resources'!$A$4:$Y$133,BB$6,FALSE)*1000*BB$5 -> 0 | BC9: =BA9+BB9 -> 0 | BI9: =BC9 -> 0 | BJ9: =VLOOKUP($I9,'New Resources'!$A$4:$Y$133,BJ$6,FALSE)*1000*BJ$5 -> 0 | BK9: =BI9+BJ9 -> 0 | BQ9: =BK9 -> 0 | BR9: =VLOOKUP($I9,'New Resources'!$A$4:$Y$133,BR$6,FALSE)*1000*BR$5 -> 0 | BS9: =BQ9+BR9 -> 0 | BY9: =BS9 -> 0 | BZ9: =VLOOKUP($I9,'New Resources'!$A$4:$Y$133,BZ$6,FALSE)*1000*BZ$5 -> 0 | CA9: =BY9+BZ9 -> 0 | CG9: =CA9 -> 0 | CH9: =VLOOKUP($I9,'New Resources'!$A$4:$Y$133,CH$6,FALSE)*1000*CH$5 -> 0 | CI9: =CG9+CH9 -> 0 | CO9: =CI9 -> 0 | CP9: =VLOOKUP($I9,'New Resources'!$A$4:$Y$133,CP$6,FALSE)*1000*CP$5 -> 0 | CQ9: =CO9+CP9 -> 0 | CW9: =CQ9 -> 0 | CX9: =VLOOKUP($I9,'New Resources'!$A$4:$Y$133,CX$6,FALSE)*1000*CX$5 -> 0 | CY9: =CW9+CX9 -> 0 | DE9: =CY9 -> 0 | DF9: =VLOOKUP($I9,'New Resources'!$A$4:$Y$133,DF$6,FALSE)*1000*DF$5 -> 0 | DG9: =DE9+DF9 -> 0 | DM9: =DG9 -> 0 | DN9: =VLOOKUP($I9,'New Resources'!$A$4:$Y$133,DN$6,FALSE)*1000*DN$5 -> 0 | DO9: =DM9+DN9 -> 0 | DU9: =DO9 -> 0 | DV9: =VLOOKUP($I9,'New Resources'!$A$4:$Y$133,DV$6,FALSE)*1000*DV$5 -> 0 | DW9: =DU9+DV9 -> 0 | EC9: =DW9 -> 0 | ED9: =VLOOKUP($I9,'New Resources'!$A$4:$Y$133,ED$6,FALSE)*1000*ED$5 -> 0 | EE9: =EC9+ED9 -> 0 | EK9: =EE9 -> 0 | EL9: =VLOOKUP($I9,'New Resources'!$A$4:$Y$133,EL$6,FALSE)*1000*EL$5 -> 0 | EM9: =EK9+EL9 -> 0 | ES9: =EM9 -> 0 | ET9: =VLOOKUP($I9,'New Resources'!$A$4:$Y$133,ET$6,FALSE)*1000*ET$5 -> 0 | EU9: =ES9+ET9 -> 0 | FA9: =EU9 -> 0 | FB9: =VLOOKUP($I9,'New Resources'!$A$4:$Y$133,FB$6,FALSE)*1000*FB$5 -> 0 | FC9: =FA9+FB9 -> 0 | FI9: =FC9 -> 0 | FJ9: =VLOOKUP($I9,'New Resources'!$A$4:$Y$133,FJ$6,FALSE)*1000*FJ$5 -> 0 | FK9: =FI9+FJ9 -> 0 | FQ9: =FK9 -> 0 | FR9: =VLOOKUP($I9,'New Resources'!$A$4:$Y$133,FR$6,FALSE)*1000*FR$5 -> 0 | FS9: =FQ9+FR9 -> 0 | FY9: =FS9 -> 0 | FZ9: =VLOOKUP($I9,'New Resources'!$A$4:$Y$133,FZ$6,FALSE)*1000*FZ$5 -> 0 | GA9: =FY9+FZ9 -> 0 | GG9: =GA9 -> 0 | GH9: =VLOOKUP($I9,'New Resources'!$A$4:$Y$133,GH$6,FALSE)*1000*GH$5 -> 0 | GI9: =GG9+GH9 -> 0 | GO9: =GI9 -> 0 | GP9: =VLOOKUP($I9,'New Resources'!$A$4:$Y$133,GP$6,FALSE)*1000*GP$5 -> 0 | GQ9: =GO9+GP9 -> 0 | GW9: =GQ9 -> 0 | GX9: =VLOOKUP($I9,'New Resources'!$A$4:$Y$133,GX$6,FALSE)*1000*GX$5 -> 0 | GY9: =GW9+GX9 -> 0
A11: Gross Plant in Service | B11: =SUMIF('Above-RHWM_Base_Calc'!$B$11:$Z$11,B$5,'Above-RHWM_Base_Calc'!$B17:$Z17) -> 0 | C11: =SUMIF('Above-RHWM_Base_Calc'!$B$11:$Z$11,C$5,'Above-RHWM_Base_Calc'!$B17:$Z17) -> 0 | D11: =SUMIF('Above-RHWM_Base_Calc'!$B$11:$Z$11,D$5,'Above-RHWM_Base_Calc'!$B17:$Z17) -> 454201098 | E11: =SUMIF('Above-RHWM_Base_Calc'!$B$11:$Z$11,E$5,'Above-RHWM_Base_Calc'!$B17:$Z17) -> 0 | F11: =SUMIF('Above-RHWM_Base_Calc'!$B$11:$Z$11,F$5,'Above-RHWM_Base_Calc'!$B17:$Z17) -> 0 | G11: =SUM(B11:F11) -> 454201098 | I11: 110 | K11: Gross Plant in Service | M11: =B11 -> 0 | N11: =VLOOKUP($I11,'New Resources'!$A$4:$Y$133,N$6,FALSE)*N$5 -> 0 | O11: =M11+N11 -> 0 | P11: =Q11-O11 -> 1034308926 | Q11: ='Total & Functionalization'!M22 -> 1034308926 | U11: =O11 -> 0 | V11: =VLOOKUP($I11,'New Resources'!$A$4:$Y$133,V$6,FALSE)*V$5 -> 0 | W11: =U11+V11 -> 0 | X11: =Y11-W11 -> 1034308926 | Y11: ='Total & Functionalization'!U22 -> 1034308926 | AC11: =W11 -> 0 | AD11: =VLOOKUP($I11,'New Resources'!$A$4:$Y$133,AD$6,FALSE)*AD$5 -> 0 | AE11: =AC11+AD11 -> 0 | AF11: =AG11-AE11 -> 1034308926 | AG11: ='Total & Functionalization'!AC22 -> 1034308926 | AK11: =AE11 -> 0 | AL11: =VLOOKUP($I11,'New Resources'!$A$4:$Y$133,AL$6,FALSE)*AL$5 -> 0 | AM11: =AK11+AL11 -> 0 | AN11: =AO11-AM11 -> 1034308926 | AO11: ='Total & Functionalization'!AK22 -> 1034308926 | AS11: =AM11 -> 0 | AT11: =VLOOKUP($I11,'New Resources'!$A$4:$Y$133,AT$6,FALSE)*AT$5 -> 0 | AU11: =AS11+AT11 -> 0 | AV11: =AW11-AU11 -> 1034308926 | AW11: ='Total & Functionalization'!AS22 -> 1034308926 | BA11: =AU11 -> 0 | BB11: =VLOOKUP($I11,'New Resources'!$A$4:$Y$133,BB$6,FALSE)*BB$5 -> 0 | BC11: =BA11+BB11 -> 0 | BD11: =BE11-BC11 -> 1034308926 | BE11: ='Total & Functionalization'!BA22 -> 1034308926 | BI11: =BC11 -> 0 | BJ11: =VLOOKUP($I11,'New Resources'!$A$4:$Y$133,BJ$6,FALSE)*BJ$5 -> 0 | BK11: =BI11+BJ11 -> 0 | BL11: =BM11-BK11 -> 1034308926 | BM11: ='Total & Functionalization'!BI22 -> 1034308926 | BQ11: =BK11 -> 0 | BR11: =VLOOKUP($I11,'New Resources'!$A$4:$Y$133,BR$6,FALSE)*BR$5 -> 0 | BS11: =BQ11+BR11 -> 0 | BT11: =BU11-BS11 -> 1034308926 | BU11: ='Total & Functionalization'!BQ22 -> 1034308926 | BY11: =BS11 -> 0 | BZ11: =VLOOKUP($I11,'New Resources'!$A$4:$Y$133,BZ$6,FALSE)*BZ$5 -> 0 | CA11: =BY11+BZ11 -> 0 | CB11: =CC11-CA11 -> 1034308926 | CC11: ='Total & Functionalization'!BY22 -> 1034308926 | CG11: =CA11 -> 0 | CH11: =VLOOKUP($I11,'New Resources'!$A$4:$Y$133,CH$6,FALSE)*CH$5 -> 0 | CI11: =CG11+CH11 -> 0 | CJ11: =CK11-CI11 -> 1034308926 | CK11: ='Total & Functionalization'!CG22 -> 1034308926 | CO11: =CI11 -> 0 | CP11: =VLOOKUP($I11,'New Resources'!$A$4:$Y$133,CP$6,FALSE)*CP$5 -> 0 | CQ11: =CO11+CP11 -> 0 | CR11: =CS11-CQ11 -> 1034308926 | CS11: ='Total & Functionalization'!CO22 -> 1034308926 | CW11: =CQ11 -> 0 | CX11: =VLOOKUP($I11,'New Resources'!$A$4:$Y$133,CX$6,FALSE)*CX$5 -> 0 | CY11: =CW11+CX11 -> 0 | CZ11: =DA11-CY11 -> 1034308926 | DA11: ='Total & Functionalization'!CW22 -> 1034308926 | DE11: =CY11 -> 0 | DF11: =VLOOKUP($I11,'New Resources'!$A$4:$Y$133,DF$6,FALSE)*DF$5 -> 0 | DG11: =DE11+DF11 -> 0 | DH11: =DI11-DG11 -> 1034308926 | DI11: ='Total & Functionalization'!DE22 -> 1034308926 | DM11: =DG11 -> 0 | DN11: =VLOOKUP($I11,'New Resources'!$A$4:$Y$133,DN$6,FALSE)*DN$5 -> 0 | DO11: =DM11+DN11 -> 0 | DP11: =DQ11-DO11 -> 1034308926 | DQ11: ='Total & Functionalization'!DM22 -> 1034308926 | DU11: =DO11 -> 0 | DV11: =VLOOKUP($I11,'New Resources'!$A$4:$Y$133,DV$6,FALSE)*DV$5 -> 0 | DW11: =DU11+DV11 -> 0 | DX11: =DY11-DW11 -> 1034308926 | DY11: ='Total & Functionalization'!DU22 -> 1034308926 | EC11: =DW11 -> 0 | ED11: =VLOOKUP($I11,'New Resources'!$A$4:$Y$133,ED$6,FALSE)*ED$5 -> 0 | EE11: =EC11+ED11 -> 0 | EF11: =EG11-EE11 -> 1034308926 | EG11: ='Total & Functionalization'!EC22 -> 1034308926 | EK11: =EE11 -> 0 | EL11: =VLOOKUP($I11,'New Resources'!$A$4:$Y$133,EL$6,FALSE)*EL$5 -> 0 | EM11: =EK11+EL11 -> 0 | EN11: =EO11-EM11 -> 1034308926 | EO11: ='Total & Functionalization'!EK22 -> 1034308926 | ES11: =EM11 -> 0 | ET11: =VLOOKUP($I11,'New Resources'!$A$4:$Y$133,ET$6,FALSE)*ET$5 -> 0 | EU11: =ES11+ET11 -> 0 | EV11: =EW11-EU11 -> 1034308926 | EW11: ='Total & Functionalization'!ES22 -> 1034308926 | FA11: =EU11 -> 0 | FB11: =VLOOKUP($I11,'New Resources'!$A$4:$Y$133,FB$6,FALSE)*FB$5 -> 0 | FC11: =FA11+FB11 -> 0 | FD11: =FE11-FC11 -> 1034308926 | FE11: ='Total & Functionalization'!FA22 -> 1034308926 | FI11: =FC11 -> 0 | FJ11: =VLOOKUP($I11,'New Resources'!$A$4:$Y$133,FJ$6,FALSE)*FJ$5 -> 0 | FK11: =FI11+FJ11 -> 0 | FL11: =FM11-FK11 -> 1034308926 | FM11: ='Total & Functionalization'!FI22 -> 1034308926 | FQ11: =FK11 -> 0 | FR11: =VLOOKUP($I11,'New Resources'!$A$4:$Y$133,FR$6,FALSE)*FR$5 -> 0 | FS11: =FQ11+FR11 -> 0 | FT11: =FU11-FS11 -> 1034308926 | FU11: ='Total & Functionalization'!FQ22 -> 1034308926 | FY11: =FS11 -> 0 | FZ11: =VLOOKUP($I11,'New Resources'!$A$4:$Y$133,FZ$6,FALSE)*FZ$5 -> 0 | GA11: =FY11+FZ11 -> 0 | GB11: =GC11-GA11 -> 1034308926 | GC11: ='Total & Functionalization'!FY22 -> 1034308926 | GG11: =GA11 -> 0 | GH11: =VLOOKUP($I11,'New Resources'!$A$4:$Y$133,GH$6,FALSE)*GH$5 -> 0 | GI11: =GG11+GH11 -> 0 | GJ11: =GK11-GI11 -> 1034308926 | GK11: ='Total & Functionalization'!GG22 -> 1034308926 | GO11: =GI11 -> 0 | GP11: =VLOOKUP($I11,'New Resources'!$A$4:$Y$133,GP$6,FALSE)*GP$5 -> 0 | GQ11: =GO11+GP11 -> 0 | GR11: =GS11-GQ11 -> 1034308926 | GS11: ='Total & Functionalization'!GO22 -> 1034308926 | GW11: =GQ11 -> 0 | GX11: =VLOOKUP($I11,'New Resources'!$A$4:$Y$133,GX$6,FALSE)*GX$5 -> 0 | GY11: =GW11+GX11 -> 0 | GZ11: =HA11-GY11 -> 1034308926 | HA11: ='Total & Functionalization'!GW22 -> 1034308926
A12: Accumulated Depreciation | B12: =SUMIF('Above-RHWM_Base_Calc'!$B$11:$Z$11,B$5,'Above-RHWM_Base_Calc'!$B18:$Z18) -> 0 | C12: =SUMIF('Above-RHWM_Base_Calc'!$B$11:$Z$11,C$5,'Above-RHWM_Base_Calc'!$B18:$Z18) -> 0 | D12: =SUMIF('Above-RHWM_Base_Calc'!$B$11:$Z$11,D$5,'Above-RHWM_Base_Calc'!$B18:$Z18) -> -265563357.6 | E12: =SUMIF('Above-RHWM_Base_Calc'!$B$11:$Z$11,E$5,'Above-RHWM_Base_Calc'!$B18:$Z18) -> 0 | F12: =SUMIF('Above-RHWM_Base_Calc'!$B$11:$Z$11,F$5,'Above-RHWM_Base_Calc'!$B18:$Z18) -> 0 | G12: =SUM(B12:F12) -> -265563357.6 | K12: Accumulated Depreciation | L12: check | M12: =B12 -> 0 | O12: =M12 -> 0 | P12: =MIN(Q12-O12,0) -> -953504602 | Q12: =-1*'Total & Functionalization'!M57 -> -953504602 | U12: =O12 -> 0 | W12: =U12-(U1*U57) -> 0 | X12: =MIN(Y12-W12,0) -> -963431263.2 | Y12: =-1*'Total & Functionalization'!U57 -> -963431263.2 | AC12: =W12 -> 0 | AE12: =AC12-(AC1*AC57) -> 0 | AF12: =MIN(AG12-AE12,0) -> -983284585.8 | AG12: =-1*'Total & Functionalization'!AC57 -> -983284585.8 | AK12: =AE12 -> 0 | AM12: =AK12-(AK1*AK57) -> 0 | AN12: =MIN(AO12-AM12,0) -> -1003137908 | AO12: =-1*'Total & Functionalization'!AK57 -> -1003137908 | AS12: =AM12 -> 0 | AU12: =AS12-(AS1*AS57) -> 0 | AV12: =MIN(AW12-AU12,0) -> -1022991231 | AW12: =-1*'Total & Functionalization'!AS57 -> -1022991231 | BA12: =AU12 -> 0 | BC12: =BA12-(BA1*BA57) -> 0 | BD12: =MIN(BE12-BC12,0) -> -1042844553 | BE12: =-1*'Total & Functionalization'!BA57 -> -1042844553 | BI12: =BC12 -> 0 | BK12: =BI12-(BI1*BI57) -> 0 | BL12: =MIN(BM12-BK12,0) -> -1082551198 | BM12: =-1*'Total & Functionalization'!BI57 -> -1082551198 | BQ12: =BK12 -> 0 | BS12: =BQ12-(BQ1*BQ57) -> 0 | BT12: =MIN(BU12-BS12,0) -> -1122257843 | BU12: =-1*'Total & Functionalization'!BQ57 -> -1122257843 | BY12: =BS12 -> 0 | CA12: =BY12-(BY1*BY57) -> 0 | CB12: =MIN(CC12-CA12,0) -> -1142111166 | CC12: =-1*'Total & Functionalization'!BY57 -> -1142111166 | CG12: =CA12 -> 0 | CI12: =CG12-(CG1*CG57) -> 0 | CJ12: =MIN(CK12-CI12,0) -> -1142111166 | CK12: =-1*'Total & Functionalization'!CG57 -> -1142111166 | CO12: =CI12 -> 0 | CQ12: =CO12-(CO1*CO57) -> 0 | CR12: =MIN(CS12-CQ12,0) -> -1161964488 | CS12: =-1*'Total & Functionalization'!CO57 -> -1161964488 | CW12: =CQ12 -> 0 | CY12: =CW12-(CW1*CW57) -> 0 | CZ12: =MIN(DA12-CY12,0) -> -1201671133 | DA12: =-1*'Total & Functionalization'!CW57 -> -1201671133 | DE12: =CY12 -> 0 | DG12: =DE12-(DE1*DE57) -> 0 | DH12: =MIN(DI12-DG12,0) -> -1241377778 | DI12: =-1*'Total & Functionalization'!DE57 -> -1241377778 | DM12: =DG12 -> 0 | DO12: =DM12-(DM1*DM57) -> 0 | DP12: =MIN(DQ12-DO12,0) -> -1281084423 | DQ12: =-1*'Total & Functionalization'!DM57 -> -1281084423 | DU12: =DO12 -> 0 | DW12: =DU12-(DU1*DU57) -> 0 | DX12: =MIN(DY12-DW12,0) -> -1320791068 | DY12: =-1*'Total & Functionalization'!DU57 -> -1320791068 | EC12: =DW12 -> 0 | EE12: =EC12-(EC1*EC57) -> 0 | EF12: =MIN(EG12-EE12,0) -> -1360497713 | EG12: =-1*'Total & Functionalization'!EC57 -> -1360497713 | EK12: =EE12 -> 0 | EM12: =EK12-(EK1*EK57) -> 0 | EN12: =MIN(EO12-EM12,0) -> -1400204358 | EO12: =-1*'Total & Functionalization'!EK57 -> -1400204358 | ES12: =EM12 -> 0 | EU12: =ES12-(ES1*ES57) -> 0 | EV12: =MIN(EW12-EU12,0) -> -1426675455 | EW12: =-1*'Total & Functionalization'!ES57 -> -1426675455 | FA12: =EU12 -> 0 | FC12: =FA12-(FA1*FA57) -> 0 | FD12: =MIN(FE12-FC12,0) -> -1426675455 | FE12: =-1*'Total & Functionalization'!FA57 -> -1426675455 | FI12: =FC12 -> 0 | FK12: =FI12-(FI1*FI57) -> 0 | FL12: =MIN(FM12-FK12,0) -> -1426675455 | FM12: =-1*'Total & Functionalization'!FI57 -> -1426675455 | FQ12: =FK12 -> 0 | FS12: =FQ12-(FQ1*FQ57) -> 0 | FT12: =MIN(FU12-FS12,0) -> -1426675455 | FU12: =-1*'Total & Functionalization'!FQ57 -> -1426675455 | FY12: =FS12 -> 0 | GA12: =FY12-(FY1*FY57) -> 0 | GB12: =MIN(GC12-GA12,0) -> -1426675455 | GC12: =-1*'Total & Functionalization'!FY57 -> -1426675455 | GG12: =GA12 -> 0 | GI12: =GG12-(GG1*GG57) -> 0 | GJ12: =MIN(GK12-GI12,0) -> -1426675455 | GK12: =-1*'Total & Functionalization'!GG57 -> -1426675455 | GO12: =GI12 -> 0 | GQ12: =GO12-(GO1*GO57) -> 0 | GR12: =MIN(GS12-GQ12,0) -> -1426675455 | GS12: =-1*'Total & Functionalization'!GO57 -> -1426675455 | GW12: =GQ12 -> 0 | GY12: =GW12-(GW1*GW57) -> 0 | GZ12: =MIN(HA12-GY12,0) -> -1426675455 | HA12: =-1*'Total & Functionalization'!GW57 -> -1426675455
K13: Net Plant In Service | M13: =M11+M12 -> 0 | O13: =O11+O12 -> 0 | P13: =P11+P12 -> 80804324 | Q13: =Q11+Q12 -> 80804324 | U13: =U11+U12 -> 0 | W13: =W11+W12 -> 0 | X13: =X11+X12 -> 70877662.75 | Y13: =Y11+Y12 -> 70877662.75 | AC13: =AC11+AC12 -> 0 | AE13: =AE11+AE12 -> 0 | AF13: =AF11+AF12 -> 51024340.25 | AG13: =AG11+AG12 -> 51024340.25 | AK13: =AK11+AK12 -> 0 | AM13: =AM11+AM12 -> 0 | AN13: =AN11+AN12 -> 31171017.75 | AO13: =AO11+AO12 -> 31171017.75 | AS13: =AS11+AS12 -> 0 | AU13: =AU11+AU12 -> 0 | AV13: =AV11+AV12 -> 11317695.25 | AW13: =AW11+AW12 -> 11317695.25 | BA13: =BA11+BA12 -> 0 | BC13: =BC11+BC12 -> 0 | BD13: =BD11+BD12 -> -8535627.25 | BE13: =BE11+BE12 -> -8535627.25 | BI13: =BI11+BI12 -> 0 | BK13: =BK11+BK12 -> 0 | BL13: =BL11+BL12 -> -48242272.25 | BM13: =BM11+BM12 -> -48242272.25 | BQ13: =BQ11+BQ12 -> 0 | BS13: =BS11+BS12 -> 0 | BT13: =BT11+BT12 -> -87948917.25 | BU13: =BU11+BU12 -> -87948917.25 | BY13: =BY11+BY12 -> 0 | CA13: =CA11+CA12 -> 0 | CB13: =CB11+CB12 -> -107802239.8 | CC13: =CC11+CC12 -> -107802239.8 | CG13: =CG11+CG12 -> 0 | CI13: =CI11+CI12 -> 0 | CJ13: =CJ11+CJ12 -> -107802239.8 | CK13: =CK11+CK12 -> -107802239.8 | CO13: =CO11+CO12 -> 0 | CQ13: =CQ11+CQ12 -> 0 | CR13: =CR11+CR12 -> -127655562.2 | CS13: =CS11+CS12 -> -127655562.2 | CW13: =CW11+CW12 -> 0 | CY13: =CY11+CY12 -> 0 | CZ13: =CZ11+CZ12 -> -167362207.2 | DA13: =DA11+DA12 -> -167362207.2 | DE13: =DE11+DE12 -> 0 | DG13: =DG11+DG12 -> 0 | DH13: =DH11+DH12 -> -207068852.2 | DI13: =DI11+DI12 -> -207068852.2 | DM13: =DM11+DM12 -> 0 | DO13: =DO11+DO12 -> 0 | DP13: =DP11+DP12 -> -246775497.2 | DQ13: =DQ11+DQ12 -> -246775497.2 | DU13: =DU11+DU12 -> 0 | DW13: =DW11+DW12 -> 0 | DX13: =DX11+DX12 -> -286482142.2 | DY13: =DY11+DY12 -> -286482142.2 | EC13: =EC11+EC12 -> 0 | EE13: =EE11+EE12 -> 0 | EF13: =EF11+EF12 -> -326188787.2 | EG13: =EG11+EG12 -> -326188787.2 | EK13: =EK11+EK12 -> 0 | EM13: =EM11+EM12 -> 0 | EN13: =EN11+EN12 -> -365895432.2 | EO13: =EO11+EO12 -> -365895432.2 | ES13: =ES11+ES12 -> 0 | EU13: =EU11+EU12 -> 0 | EV13: =EV11+EV12 -> -392366528.9 | EW13: =EW11+EW12 -> -392366528.9 | FA13: =FA11+FA12 -> 0 | FC13: =FC11+FC12 -> 0 | FD13: =FD11+FD12 -> -392366528.9 | FE13: =FE11+FE12 -> -392366528.9 | FI13: =FI11+FI12 -> 0 | FK13: =FK11+FK12 -> 0 | FL13: =FL11+FL12 -> -392366528.9 | FM13: =FM11+FM12 -> -392366528.9 | FQ13: =FQ11+FQ12 -> 0 | FS13: =FS11+FS12 -> 0 | FT13: =FT11+FT12 -> -392366528.9 | FU13: =FU11+FU12 -> -392366528.9 | FY13: =FY11+FY12 -> 0 | GA13: =GA11+GA12 -> 0 | GB13: =GB11+GB12 -> -392366528.9 | GC13: =GC11+GC12 -> -392366528.9 | GG13: =GG11+GG12 -> 0 | GI13: =GI11+GI12 -> 0 | GJ13: =GJ11+GJ12 -> -392366528.9 | GK13: =GK11+GK12 -> -392366528.9 | GO13: =GO11+GO12 -> 0 | GQ13: =GQ11+GQ12 -> 0 | GR13: =GR11+GR12 -> -392366528.9 | GS13: =GS11+GS12 -> -392366528.9 | GW13: =GW11+GW12 -> 0 | GY13: =GY11+GY12 -> 0 | GZ13: =GZ11+GZ12 -> -392366528.9 | HA13: =HA11+HA12 -> -392366528.9
A14: Net Plant In Service | B14: =B11+B12 -> 0 | C14: =C11+C12 -> 0 | D14: =D11+D12 -> 188637740.4 | E14: =E11+E12 -> 0 | F14: =F11+F12 -> 0 | G14: =SUM(B14:F14) -> 188637740.4 | L14: `
A15: Fuel Stock | B15: =SUMIF('Above-RHWM_Base_Calc'!$B$11:$Z$11,B$5,'Above-RHWM_Base_Calc'!$B21:$Z21) -> 0 | C15: =SUMIF('Above-RHWM_Base_Calc'!$B$11:$Z$11,C$5,'Above-RHWM_Base_Calc'!$B21:$Z21) -> 0 | D15: =SUMIF('Above-RHWM_Base_Calc'!$B$11:$Z$11,D$5,'Above-RHWM_Base_Calc'!$B21:$Z21) -> 0 | E15: =SUMIF('Above-RHWM_Base_Calc'!$B$11:$Z$11,E$5,'Above-RHWM_Base_Calc'!$B21:$Z21) -> 0 | F15: =SUMIF('Above-RHWM_Base_Calc'!$B$11:$Z$11,F$5,'Above-RHWM_Base_Calc'!$B21:$Z21) -> 0 | G15: =SUM(B15:F15) -> 0 | I15: 630 | J15: =D8 -> Other | K15: Energy (kWh) | M15: =D9 -> 525311808 | N15: =VLOOKUP($I15,'New Resources'!$A$4:$Y$133,N$6,FALSE)*1000*N$5 -> 0 | O15: =M15+N15 -> 525311808 | U15: =O15 -> 525311808 | V15: =VLOOKUP($I15,'New Resources'!$A$4:$Y$133,V$6,FALSE)*1000*V$5 -> 0 | W15: =U15+V15 -> 525311808 | AC15: =W15 -> 525311808 | AD15: =VLOOKUP($I15,'New Resources'!$A$4:$Y$133,AD$6,FALSE)*1000*AD$5 -> 0 | AE15: =AC15+AD15 -> 525311808 | AK15: =AE15 -> 525311808 | AL15: =VLOOKUP($I15,'New Resources'!$A$4:$Y$133,AL$6,FALSE)*1000*AL$5 -> 0 | AM15: =AK15+AL15 -> 525311808 | AS15: =AM15 -> 525311808 | AT15: =VLOOKUP($I15,'New Resources'!$A$4:$Y$133,AT$6,FALSE)*1000*AT$5 -> 0 | AU15: =AS15+AT15 -> 525311808 | BA15: =AU15 -> 525311808 | BB15: =VLOOKUP($I15,'New Resources'!$A$4:$Y$133,BB$6,FALSE)*1000*BB$5 -> 0 | BC15: =BA15+BB15 -> 525311808 | BI15: =BC15 -> 525311808 | BJ15: =VLOOKUP($I15,'New Resources'!$A$4:$Y$133,BJ$6,FALSE)*1000*BJ$5 -> 0 | BK15: =BI15+BJ15 -> 525311808 | BQ15: =BK15 -> 525311808 | BR15: =VLOOKUP($I15,'New Resources'!$A$4:$Y$133,BR$6,FALSE)*1000*BR$5 -> 0 | BS15: =BQ15+BR15 -> 525311808 | BY15: =BS15 -> 525311808 | BZ15: =VLOOKUP($I15,'New Resources'!$A$4:$Y$133,BZ$6,FALSE)*1000*BZ$5 -> 0 | CA15: =BY15+BZ15 -> 525311808 | CG15: =CA15 -> 525311808 | CH15: =VLOOKUP($I15,'New Resources'!$A$4:$Y$133,CH$6,FALSE)*1000*CH$5 -> 0 | CI15: =CG15+CH15 -> 525311808 | CO15: =CI15 -> 525311808 | CP15: =VLOOKUP($I15,'New Resources'!$A$4:$Y$133,CP$6,FALSE)*1000*CP$5 -> 0 | CQ15: =CO15+CP15 -> 525311808 | CW15: =CQ15 -> 525311808 | CX15: =VLOOKUP($I15,'New Resources'!$A$4:$Y$133,CX$6,FALSE)*1000*CX$5 -> 0 | CY15: =CW15+CX15 -> 525311808 | DE15: =CY15 -> 525311808 | DF15: =VLOOKUP($I15,'New Resources'!$A$4:$Y$133,DF$6,FALSE)*1000*DF$5 -> 0 | DG15: =DE15+DF15 -> 525311808 | DM15: =DG15 -> 525311808 | DN15: =VLOOKUP($I15,'New Resources'!$A$4:$Y$133,DN$6,FALSE)*1000*DN$5 -> 0 | DO15: =DM15+DN15 -> 525311808 | DU15: =DO15 -> 525311808 | DV15: =VLOOKUP($I15,'New Resources'!$A$4:$Y$133,DV$6,FALSE)*1000*DV$5 -> 0 | DW15: =DU15+DV15 -> 525311808 | EC15: =DW15 -> 525311808 | ED15: =VLOOKUP($I15,'New Resources'!$A$4:$Y$133,ED$6,FALSE)*1000*ED$5 -> 0 | EE15: =EC15+ED15 -> 525311808 | EK15: =EE15 -> 525311808 | EL15: =VLOOKUP($I15,'New Resources'!$A$4:$Y$133,EL$6,FALSE)*1000*EL$5 -> 0 | EM15: =EK15+EL15 -> 525311808 | ES15: =EM15 -> 525311808 | ET15: =VLOOKUP($I15,'New Resources'!$A$4:$Y$133,ET$6,FALSE)*1000*ET$5 -> 0 | EU15: =ES15+ET15 -> 525311808 | FA15: =EU15 -> 525311808 | FB15: =VLOOKUP($I15,'New Resources'!$A$4:$Y$133,FB$6,FALSE)*1000*FB$5 -> 0 | FC15: =FA15+FB15 -> 525311808 | FI15: =FC15 -> 525311808 | FJ15: =VLOOKUP($I15,'New Resources'!$A$4:$Y$133,FJ$6,FALSE)*1000*FJ$5 -> 0 | FK15: =FI15+FJ15 -> 525311808 | FQ15: =FK15 -> 525311808 | FR15: =VLOOKUP($I15,'New Resources'!$A$4:$Y$133,FR$6,FALSE)*1000*FR$5 -> 0 | FS15: =FQ15+FR15 -> 525311808 | FY15: =FS15 -> 525311808 | FZ15: =VLOOKUP($I15,'New Resources'!$A$4:$Y$133,FZ$6,FALSE)*1000*FZ$5 -> 0 | GA15: =FY15+FZ15 -> 525311808 | GG15: =GA15 -> 525311808 | GH15: =VLOOKUP($I15,'New Resources'!$A$4:$Y$133,GH$6,FALSE)*1000*GH$5 -> 0 | GI15: =GG15+GH15 -> 525311808 | GO15: =GI15 -> 525311808 | GP15: =VLOOKUP($I15,'New Resources'!$A$4:$Y$133,GP$6,FALSE)*1000*GP$5 -> 0 | GQ15: =GO15+GP15 -> 525311808 | GW15: =GQ15 -> 525311808 | GX15: =VLOOKUP($I15,'New Resources'!$A$4:$Y$133,GX$6,FALSE)*1000*GX$5 -> 0 | GY15: =GW15+GX15 -> 525311808
A16: Plant Materials & Supplies | G16: ='Above-RHWM_Base_Calc'!AA22 -> 6003764.381
A17: General Plant | G17: ='Above-RHWM_Base_Calc'!AA23 -> 4598281.089 | I17: 480 | K17: Gross Plant in Service | M17: =D11 -> 454201098 | N17: =VLOOKUP($I17,'New Resources'!$A$4:$Y$133,N$6,FALSE)*N$5 -> 0 | O17: =M17+N17 -> 454201098 | P17: =Q17-O17 -> 1624933045 | Q17: ='Total & Functionalization'!M25 -> 2079134143 | U17: =O17 -> 454201098 | V17: =VLOOKUP($I17,'New Resources'!$A$4:$Y$133,V$6,FALSE)*V$5 -> 0 | W17: =U17+V17 -> 454201098 | X17: =Y17-W17 -> 1624933045 | Y17: ='Total & Functionalization'!U25 -> 2079134143 | AC17: =W17 -> 454201098 | AD17: =VLOOKUP($I17,'New Resources'!$A$4:$Y$133,AD$6,FALSE)*AD$5 -> 0 | AE17: =AC17+AD17 -> 454201098 | AF17: =AG17-AE17 -> 1624933045 | AG17: ='Total & Functionalization'!AC25 -> 2079134143 | AK17: =AE17 -> 454201098 | AL17: =VLOOKUP($I17,'New Resources'!$A$4:$Y$133,AL$6,FALSE)*AL$5 -> 0 | AM17: =AK17+AL17 -> 454201098 | AN17: =AO17-AM17 -> 1624933045 | AO17: ='Total & Functionalization'!AK25 -> 2079134143 | AS17: =AM17 -> 454201098 | AT17: =VLOOKUP($I17,'New Resources'!$A$4:$Y$133,AT$6,FALSE)*AT$5 -> 0 | AU17: =AS17+AT17 -> 454201098 | AV17: =AW17-AU17 -> 1624933045 | AW17: ='Total & Functionalization'!AS25 -> 2079134143 | BA17: =AU17 -> 454201098 | BB17: =VLOOKUP($I17,'New Resources'!$A$4:$Y$133,BB$6,FALSE)*BB$5 -> 0 | BC17: =BA17+BB17 -> 454201098 | BD17: =BE17-BC17 -> 1624933045 | BE17: ='Total & Functionalization'!BA25 -> 2079134143 | BI17: =BC17 -> 454201098 | BJ17: =VLOOKUP($I17,'New Resources'!$A$4:$Y$133,BJ$6,FALSE)*BJ$5 -> 0 | BK17: =BI17+BJ17 -> 454201098 | BL17: =BM17-BK17 -> 1624933045 | BM17: ='Total & Functionalization'!BI25 -> 2079134143 | BQ17: =BK17 -> 454201098 | BR17: =VLOOKUP($I17,'New Resources'!$A$4:$Y$133,BR$6,FALSE)*BR$5 -> 0 | BS17: =BQ17+BR17 -> 454201098 | BT17: =BU17-BS17 -> 1624933045 | BU17: ='Total & Functionalization'!BQ25 -> 2079134143 | BY17: =BS17 -> 454201098 | BZ17: =VLOOKUP($I17,'New Resources'!$A$4:$Y$133,BZ$6,FALSE)*BZ$5 -> 0 | CA17: =BY17+BZ17 -> 454201098 | CB17: =CC17-CA17 -> 1624933045 | CC17: ='Total & Functionalization'!BY25 -> 2079134143 | CG17: =CA17 -> 454201098 | CH17: =VLOOKUP($I17,'New Resources'!$A$4:$Y$133,CH$6,FALSE)*CH$5 -> 0 | CI17: =CG17+CH17 -> 454201098 | CJ17: =CK17-CI17 -> 1624933045 | CK17: ='Total & Functionalization'!CG25 -> 2079134143 | CO17: =CI17 -> 454201098 | CP17: =VLOOKUP($I17,'New Resources'!$A$4:$Y$133,CP$6,FALSE)*CP$5 -> 0 | CQ17: =CO17+CP17 -> 454201098 | CR17: =CS17-CQ17 -> 1624933045 | CS17: ='Total & Functionalization'!CO25 -> 2079134143 | CW17: =CQ17 -> 454201098 | CX17: =VLOOKUP($I17,'New Resources'!$A$4:$Y$133,CX$6,FALSE)*CX$5 -> 0 | CY17: =CW17+CX17 -> 454201098 | CZ17: =DA17-CY17 -> 1624933045 | DA17: ='Total & Functionalization'!CW25 -> 2079134143 | DE17: =CY17 -> 454201098 | DF17: =VLOOKUP($I17,'New Resources'!$A$4:$Y$133,DF$6,FALSE)*DF$5 -> 0 | DG17: =DE17+DF17 -> 454201098 | DH17: =DI17-DG17 -> 1624933045 | DI17: ='Total & Functionalization'!DE25 -> 2079134143 | DM17: =DG17 -> 454201098 | DN17: =VLOOKUP($I17,'New Resources'!$A$4:$Y$133,DN$6,FALSE)*DN$5 -> 0 | DO17: =DM17+DN17 -> 454201098 | DP17: =DQ17-DO17 -> 1624933045 | DQ17: ='Total & Functionalization'!DM25 -> 2079134143 | DU17: =DO17 -> 454201098 | DV17: =VLOOKUP($I17,'New Resources'!$A$4:$Y$133,DV$6,FALSE)*DV$5 -> 0 | DW17: =DU17+DV17 -> 454201098 | DX17: =DY17-DW17 -> 1624933045 | DY17: ='Total & Functionalization'!DU25 -> 2079134143 | EC17: =DW17 -> 454201098 | ED17: =VLOOKUP($I17,'New Resources'!$A$4:$Y$133,ED$6,FALSE)*ED$5 -> 0 | EE17: =EC17+ED17 -> 454201098 | EF17: =EG17-EE17 -> 1624933045 | EG17: ='Total & Functionalization'!EC25 -> 2079134143 | EK17: =EE17 -> 454201098 | EL17: =VLOOKUP($I17,'New Resources'!$A$4:$Y$133,EL$6,FALSE)*EL$5 -> 0 | EM17: =EK17+EL17 -> 454201098 | EN17: =EO17-EM17 -> 1624933045 | EO17: ='Total & Functionalization'!EK25 -> 2079134143 | ES17: =EM17 -> 454201098 | ET17: =VLOOKUP($I17,'New Resources'!$A$4:$Y$133,ET$6,FALSE)*ET$5 -> 0 | EU17: =ES17+ET17 -> 454201098 | EV17: =EW17-EU17 -> 1624933045 | EW17: ='Total & Functionalization'!ES25 -> 2079134143 | FA17: =EU17 -> 454201098 | FB17: =VLOOKUP($I17,'New Resources'!$A$4:$Y$133,FB$6,FALSE)*FB$5 -> 0 | FC17: =FA17+FB17 -> 454201098 | FD17: =FE17-FC17 -> 1624933045 | FE17: ='Total & Functionalization'!FA25 -> 2079134143 | FI17: =FC17 -> 454201098 | FJ17: =VLOOKUP($I17,'New Resources'!$A$4:$Y$133,FJ$6,FALSE)*FJ$5 -> 0 | FK17: =FI17+FJ17 -> 454201098 | FL17: =FM17-FK17 -> 1624933045 | FM17: ='Total & Functionalization'!FI25 -> 2079134143 | FQ17: =FK17 -> 454201098 | FR17: =VLOOKUP($I17,'New Resources'!$A$4:$Y$133,FR$6,FALSE)*FR$5 -> 0 | FS17: =FQ17+FR17 -> 454201098 | FT17: =FU17-FS17 -> 1624933045 | FU17: ='Total & Functionalization'!FQ25 -> 2079134143 | FY17: =FS17 -> 454201098 | FZ17: =VLOOKUP($I17,'New Resources'!$A$4:$Y$133,FZ$6,FALSE)*FZ$5 -> 0 | GA17: =FY17+FZ17 -> 454201098 | GB17: =GC17-GA17 -> 1624933045 | GC17: ='Total & Functionalization'!FY25 -> 2079134143 | GG17: =GA17 -> 454201098 | GH17: =VLOOKUP($I17,'New Resources'!$A$4:$Y$133,GH$6,FALSE)*GH$5 -> 0 | GI17: =GG17+GH17 -> 454201098 | GJ17: =GK17-GI17 -> 1624933045 | GK17: ='Total & Functionalization'!GG25 -> 2079134143 | GO17: =GI17 -> 454201098 | GP17: =VLOOKUP($I17,'New Resources'!$A$4:$Y$133,GP$6,FALSE)*GP$5 -> 0 | GQ17: =GO17+GP17 -> 454201098 | GR17: =GS17-GQ17 -> 1624933045 | GS17: ='Total & Functionalization'!GO25 -> 2079134143 | GW17: =GQ17 -> 454201098 | GX17: =VLOOKUP($I17,'New Resources'!$A$4:$Y$133,GX$6,FALSE)*GX$5 -> 0 | GY17: =GW17+GX17 -> 454201098 | GZ17: =HA17-GY17 -> 1624933045 | HA17: ='Total & Functionalization'!GW25 -> 2079134143
A18: Total "Rate Base" | G18: =SUM(G14:G17) -> 199239785.9 | K18: Accumulated Depreciation | M18: =D12 -> -265563357.6 | O18: =M18 -> -265563357.6 | P18: =Q18-O18 -> -818885913.4 | Q18: =-1*'Total & Functionalization'!M60 -> -1084449271 | U18: =O18 -> -265563357.6 | W18: =U18-(U1*U72) -> -270884061.7 | X18: =Y18-W18 -> -836399073.1 | Y18: =-1*'Total & Functionalization'!U60 -> -1107283135 | AC18: =W18 -> -270884061.7 | AE18: =AC18-(AC1*AC72) -> -281525469.9 | AF18: =AG18-AE18 -> -871425392.4 | AG18: =-1*'Total & Functionalization'!AC60 -> -1152950862 | AK18: =AE18 -> -281525469.9 | AM18: =AK18-(AK1*AK72) -> -292166878.1 | AN18: =AO18-AM18 -> -906451711.7 | AO18: =-1*'Total & Functionalization'!AK60 -> -1198618590 | AS18: =AM18 -> -292166878.1 | AU18: =AS18-(AS1*AS72) -> -302808286.2 | AV18: =AW18-AU18 -> -941478031 | AW18: =-1*'Total & Functionalization'!AS60 -> -1244286317 | BA18: =AU18 -> -302808286.2 | BC18: =BA18-(BA1*BA72) -> -313449694.4 | BD18: =BE18-BC18 -> -976504350.3 | BE18: =-1*'Total & Functionalization'!BA60 -> -1289954045 | BI18: =BC18 -> -313449694.4 | BK18: =BI18-(BI1*BI72) -> -334732510.8 | BL18: =BM18-BK18 -> -1046556989 | BM18: =-1*'Total & Functionalization'!BI60 -> -1381289500 | BQ18: =BK18 -> -334732510.8 | BS18: =BQ18-(BQ1*BQ72) -> -356015327.2 | BT18: =BU18-BS18 -> -1116609628 | BU18: =-1*'Total & Functionalization'!BQ60 -> -1472624955 | BY18: =BS18 -> -356015327.2 | CA18: =BY18-(BY1*BY72) -> -366656735.3 | CB18: =CC18-CA18 -> -1151635947 | CC18: =-1*'Total & Functionalization'!BY60 -> -1518292682 | CG18: =CA18 -> -366656735.3 | CI18: =CG18-(CG1*CG72) -> -366656735.3 | CJ18: =CK18-CI18 -> -1151635947 | CK18: =-1*'Total & Functionalization'!CG60 -> -1518292682 | CO18: =CI18 -> -366656735.3 | CQ18: =CO18-(CO1*CO72) -> -377298143.5 | CR18: =CS18-CQ18 -> -1186662266 | CS18: =-1*'Total & Functionalization'!CO60 -> -1563960410 | CW18: =CQ18 -> -377298143.5 | CY18: =CW18-(CW1*CW72) -> -398580959.9 | CZ18: =DA18-CY18 -> -1256714905 | DA18: =-1*'Total & Functionalization'!CW60 -> -1655295865 | DE18: =CY18 -> -398580959.9 | DG18: =DE18-(DE1*DE72) -> -419863776.3 | DH18: =DI18-DG18 -> -1326767543 | DI18: =-1*'Total & Functionalization'!DE60 -> -1746631320 | DM18: =DG18 -> -419863776.3 | DO18: =DM18-(DM1*DM72) -> -441146592.6 | DP18: =DQ18-DO18 -> -1396820182 | DQ18: =-1*'Total & Functionalization'!DM60 -> -1837966775 | DU18: =DO18 -> -441146592.6 | DW18: =DU18-(DU1*DU72) -> -462429409 | DX18: =DY18-DW18 -> -1466872821 | DY18: =-1*'Total & Functionalization'!DU60 -> -1929302230 | EC18: =DW18 -> -462429409 | EE18: =EC18-(EC1*EC72) -> -483712225.4 | EF18: =EG18-EE18 -> -1536925459 | EG18: =-1*'Total & Functionalization'!EC60 -> -2020637685 | EK18: =EE18 -> -483712225.4 | EM18: =EK18-(EK1*EK72) -> -504995041.8 | EN18: =EO18-EM18 -> -1606978098 | EO18: =-1*'Total & Functionalization'!EK60 -> -2111973140 | ES18: =EM18 -> -504995041.8 | EU18: =ES18-(ES1*ES72) -> -519183586 | EV18: =EW18-EU18 -> -1653679857 | EW18: =-1*'Total & Functionalization'!ES60 -> -2172863443 | FA18: =EU18 -> -519183586 | FC18: =FA18-(FA1*FA72) -> -519183586 | FD18: =FE18-FC18 -> -1653679857 | FE18: =-1*'Total & Functionalization'!FA60 -> -2172863443 | FI18: =FC18 -> -519183586 | FK18: =FI18-(FI1*FI72) -> -519183586 | FL18: =FM18-FK18 -> -1653679857 | FM18: =-1*'Total & Functionalization'!FI60 -> -2172863443 | FQ18: =FK18 -> -519183586 | FS18: =FQ18-(FQ1*FQ72) -> -519183586 | FT18: =FU18-FS18 -> -1653679857 | FU18: =-1*'Total & Functionalization'!FQ60 -> -2172863443 | FY18: =FS18 -> -519183586 | GA18: =FY18-(FY1*FY72) -> -519183586 | GB18: =GC18-GA18 -> -1653679857 | GC18: =-1*'Total & Functionalization'!FY60 -> -2172863443 | GG18: =GA18 -> -519183586 | GI18: =GG18-(GG1*GG72) -> -519183586 | GJ18: =GK18-GI18 -> -1653679857 | GK18: =-1*'Total & Functionalization'!GG60 -> -2172863443 | GO18: =GI18 -> -519183586 | GQ18: =GO18-(GO1*GO72) -> -519183586 | GR18: =GS18-GQ18 -> -1653679857 | GS18: =-1*'Total & Functionalization'!GO60 -> -2172863443 | GW18: =GQ18 -> -519183586 | GY18: =GW18-(GW1*GW72) -> -519183586 | GZ18: =HA18-GY18 -> -1653679857 | HA18: =-1*'Total & Functionalization'!GW60 -> -2172863443
A19: Weighted cost of Debt | G19: ='Above-RHWM_Base_Calc'!B10 -> 0.08380379747 | K19: Net Plant In Service | M19: =M17+M18 -> 188637740.4 | O19: =O17+O18 -> 188637740.4 | P19: =P17+P18 -> 806047131.6 | Q19: =Q17+Q18 -> 994684872 | U19: =U17+U18 -> 188637740.4 | W19: =W17+W18 -> 183317036.3 | AC19: =AC17+AC18 -> 183317036.3 | AE19: =AE17+AE18 -> 172675628.1 | AK19: =AK17+AK18 -> 172675628.1 | AM19: =AM17+AM18 -> 162034219.9 | AS19: =AS17+AS18 -> 162034219.9 | AU19: =AU17+AU18 -> 151392811.8 | BA19: =BA17+BA18 -> 151392811.8 | BC19: =BC17+BC18 -> 140751403.6 | BI19: =BI17+BI18 -> 140751403.6 | BK19: =BK17+BK18 -> 119468587.2 | BQ19: =BQ17+BQ18 -> 119468587.2 | BS19: =BS17+BS18 -> 98185770.84 | BY19: =BY17+BY18 -> 98185770.84 | CA19: =CA17+CA18 -> 87544362.65 | CG19: =CG17+CG18 -> 87544362.65 | CI19: =CI17+CI18 -> 87544362.65 | CO19: =CO17+CO18 -> 87544362.65 | CQ19: =CQ17+CQ18 -> 76902954.47 | CW19: =CW17+CW18 -> 76902954.47 | CY19: =CY17+CY18 -> 55620138.1 | DE19: =DE17+DE18 -> 55620138.1 | DG19: =DG17+DG18 -> 34337321.73 | DM19: =DM17+DM18 -> 34337321.73 | DO19: =DO17+DO18 -> 13054505.36 | DU19: =DU17+DU18 -> 13054505.36 | DW19: =DW17+DW18 -> -8228311.013 | EC19: =EC17+EC18 -> -8228311.013 | EE19: =EE17+EE18 -> -29511127.38 | EK19: =EK17+EK18 -> -29511127.38 | EM19: =EM17+EM18 -> -50793943.75 | ES19: =ES17+ES18 -> -50793943.75 | EU19: =EU17+EU18 -> -64982488 | FA19: =FA17+FA18 -> -64982488 | FC19: =FC17+FC18 -> -64982488 | FI19: =FI17+FI18 -> -64982488 | FK19: =FK17+FK18 -> -64982488 | FQ19: =FQ17+FQ18 -> -64982488 | FS19: =FS17+FS18 -> -64982488 | FY19: =FY17+FY18 -> -64982488 | GA19: =GA17+GA18 -> -64982488 | GG19: =GG17+GG18 -> -64982488 | GI19: =GI17+GI18 -> -64982488 | GO19: =GO17+GO18 -> -64982488 | GQ19: =GQ17+GQ18 -> -64982488 | GW19: =GW17+GW18 -> -64982488 | GY19: =GY17+GY18 -> -64982488
A20: Return on Capital | G20: =G18*G19 -> 16697050.66
A22: Annual Depreciation
A23: Production Plant | B23: =SUMIF('Above-RHWM_Base_Calc'!$B$11:$Z$11,B$5,'Above-RHWM_Base_Calc'!$B29:$Z29) -> 0 | C23: =SUMIF('Above-RHWM_Base_Calc'!$B$11:$Z$11,C$5,'Above-RHWM_Base_Calc'!$B29:$Z29) -> 0 | D23: =SUMIF('Above-RHWM_Base_Calc'!$B$11:$Z$11,D$5,'Above-RHWM_Base_Calc'!$B29:$Z29) -> 21282816.37 | E23: =SUMIF('Above-RHWM_Base_Calc'!$B$11:$Z$11,E$5,'Above-RHWM_Base_Calc'!$B29:$Z29) -> 0 | F23: =SUMIF('Above-RHWM_Base_Calc'!$B$11:$Z$11,F$5,'Above-RHWM_Base_Calc'!$B29:$Z29) -> 0 | G23: ='Above-RHWM_Base_Calc'!AA29 -> 21282816.37
A24: General plant | G24: ='Above-RHWM_Base_Calc'!AA30 -> 611165.6981
A25: Total Annual Depreciation Expense | G25: =G23+G24 -> 21893982.07
A27: Operations Expense Less Fuel | B27: =SUMIF('Above-RHWM_Base_Calc'!$B$11:$Z$11,B$5,'Above-RHWM_Base_Calc'!$B33:$Z33) -> 0 | C27: =SUMIF('Above-RHWM_Base_Calc'!$B$11:$Z$11,C$5,'Above-RHWM_Base_Calc'!$B33:$Z33) -> 0 | D27: =SUMIF('Above-RHWM_Base_Calc'!$B$11:$Z$11,D$5,'Above-RHWM_Base_Calc'!$B33:$Z33) -> 3484224.62 | E27: =SUMIF('Above-RHWM_Base_Calc'!$B$11:$Z$11,E$5,'Above-RHWM_Base_Calc'!$B33:$Z33) -> 0 | F27: =SUMIF('Above-RHWM_Base_Calc'!$B$11:$Z$11,F$5,'Above-RHWM_Base_Calc'!$B33:$Z33) -> 0 | G27: ='Above-RHWM_Base_Calc'!AA33 -> 3484224.62 | I27: 540 | J27: =C8 -> Hydro | K27: Energy (kWh) | M27: =C9 -> 0 | N27: =VLOOKUP($I27,'New Resources'!$A$4:$Y$133,N$6,FALSE)*1000*N$5 -> 0 | O27: =M27+N27 -> 0 | U27: =O27 -> 0 | V27: =VLOOKUP($I27,'New Resources'!$A$4:$Y$133,V$6,FALSE)*1000*V$5 -> 0 | W27: =U27+V27 -> 0 | AC27: =W27 -> 0 | AD27: =VLOOKUP($I27,'New Resources'!$A$4:$Y$133,AD$6,FALSE)*1000*AD$5 -> 0 | AE27: =AC27+AD27 -> 0 | AK27: =AE27 -> 0 | AL27: =VLOOKUP($I27,'New Resources'!$A$4:$Y$133,AL$6,FALSE)*1000*AL$5 -> 0 | AM27: =AK27+AL27 -> 0 | AS27: =AM27 -> 0 | AT27: =VLOOKUP($I27,'New Resources'!$A$4:$Y$133,AT$6,FALSE)*1000*AT$5 -> 0 | AU27: =AS27+AT27 -> 0 | BA27: =AU27 -> 0 | BB27: =VLOOKUP($I27,'New Resources'!$A$4:$Y$133,BB$6,FALSE)*1000*BB$5 -> 0 | BC27: =BA27+BB27 -> 0 | BI27: =BC27 -> 0 | BJ27: =VLOOKUP($I27,'New Resources'!$A$4:$Y$133,BJ$6,FALSE)*1000*BJ$5 -> 0 | BK27: =BI27+BJ27 -> 0 | BQ27: =BK27 -> 0 | BR27: =VLOOKUP($I27,'New Resources'!$A$4:$Y$133,BR$6,FALSE)*1000*BR$5 -> 0 | BS27: =BQ27+BR27 -> 0 | BY27: =BS27 -> 0 | BZ27: =VLOOKUP($I27,'New Resources'!$A$4:$Y$133,BZ$6,FALSE)*1000*BZ$5 -> 0 | CA27: =BY27+BZ27 -> 0 | CG27: =CA27 -> 0 | CH27: =VLOOKUP($I27,'New Resources'!$A$4:$Y$133,CH$6,FALSE)*1000*CH$5 -> 0 | CI27: =CG27+CH27 -> 0 | CO27: =CI27 -> 0 | CP27: =VLOOKUP($I27,'New Resources'!$A$4:$Y$133,CP$6,FALSE)*1000*CP$5 -> 0 | CQ27: =CO27+CP27 -> 0 | CW27: =CQ27 -> 0 | CX27: =VLOOKUP($I27,'New Resources'!$A$4:$Y$133,CX$6,FALSE)*1000*CX$5 -> 0 | CY27: =CW27+CX27 -> 0 | DE27: =CY27 -> 0 | DF27: =VLOOKUP($I27,'New Resources'!$A$4:$Y$133,DF$6,FALSE)*1000*DF$5 -> 0 | DG27: =DE27+DF27 -> 0 | DM27: =DG27 -> 0 | DN27: =VLOOKUP($I27,'New Resources'!$A$4:$Y$133,DN$6,FALSE)*1000*DN$5 -> 0 | DO27: =DM27+DN27 -> 0 | DU27: =DO27 -> 0 | DV27: =VLOOKUP($I27,'New Resources'!$A$4:$Y$133,DV$6,FALSE)*1000*DV$5 -> 0 | DW27: =DU27+DV27 -> 0 | EC27: =DW27 -> 0 | ED27: =VLOOKUP($I27,'New Resources'!$A$4:$Y$133,ED$6,FALSE)*1000*ED$5 -> 0 | EE27: =EC27+ED27 -> 0 | EK27: =EE27 -> 0 | EL27: =VLOOKUP($I27,'New Resources'!$A$4:$Y$133,EL$6,FALSE)*1000*EL$5 -> 0 | EM27: =EK27+EL27 -> 0 | ES27: =EM27 -> 0 | ET27: =VLOOKUP($I27,'New Resources'!$A$4:$Y$133,ET$6,FALSE)*1000*ET$5 -> 0 | EU27: =ES27+ET27 -> 0 | FA27: =EU27 -> 0 | FB27: =VLOOKUP($I27,'New Resources'!$A$4:$Y$133,FB$6,FALSE)*1000*FB$5 -> 0 | FC27: =FA27+FB27 -> 0 | FI27: =FC27 -> 0 | FJ27: =VLOOKUP($I27,'New Resources'!$A$4:$Y$133,FJ$6,FALSE)*1000*FJ$5 -> 0 | FK27: =FI27+FJ27 -> 0 | FQ27: =FK27 -> 0 | FR27: =VLOOKUP($I27,'New Resources'!$A$4:$Y$133,FR$6,FALSE)*1000*FR$5 -> 0 | FS27: =FQ27+FR27 -> 0 | FY27: =FS27 -> 0 | FZ27: =VLOOKUP($I27,'New Resources'!$A$4:$Y$133,FZ$6,FALSE)*1000*FZ$5 -> 0 | GA27: =FY27+FZ27 -> 0 | GG27: =GA27 -> 0 | GH27: =VLOOKUP($I27,'New Resources'!$A$4:$Y$133,GH$6,FALSE)*1000*GH$5 -> 0 | GI27: =GG27+GH27 -> 0 | GO27: =GI27 -> 0 | GP27: =VLOOKUP($I27,'New Resources'!$A$4:$Y$133,GP$6,FALSE)*1000*GP$5 -> 0 | GQ27: =GO27+GP27 -> 0 | GW27: =GQ27 -> 0 | GX27: =VLOOKUP($I27,'New Resources'!$A$4:$Y$133,GX$6,FALSE)*1000*GX$5 -> 0 | GY27: =GW27+GX27 -> 0
A28: Maintenance Expense | B28: =SUMIF('Above-RHWM_Base_Calc'!$B$11:$Z$11,B$5,'Above-RHWM_Base_Calc'!$B34:$Z34) -> 0 | C28: =SUMIF('Above-RHWM_Base_Calc'!$B$11:$Z$11,C$5,'Above-RHWM_Base_Calc'!$B34:$Z34) -> 0 | D28: =SUMIF('Above-RHWM_Base_Calc'!$B$11:$Z$11,D$5,'Above-RHWM_Base_Calc'!$B34:$Z34) -> 7593964 | E28: =SUMIF('Above-RHWM_Base_Calc'!$B$11:$Z$11,E$5,'Above-RHWM_Base_Calc'!$B34:$Z34) -> 0 | F28: =SUMIF('Above-RHWM_Base_Calc'!$B$11:$Z$11,F$5,'Above-RHWM_Base_Calc'!$B34:$Z34) -> 0 | G28: ='Above-RHWM_Base_Calc'!AA34 -> 7593964
A29: Fuel | B29: =SUMIF('Above-RHWM_Base_Calc'!$B$11:$Z$11,B$5,'Above-RHWM_Base_Calc'!$B35:$Z35) -> 0 | C29: =SUMIF('Above-RHWM_Base_Calc'!$B$11:$Z$11,C$5,'Above-RHWM_Base_Calc'!$B35:$Z35) -> 0 | D29: =SUMIF('Above-RHWM_Base_Calc'!$B$11:$Z$11,D$5,'Above-RHWM_Base_Calc'!$B35:$Z35) -> 0 | E29: =SUMIF('Above-RHWM_Base_Calc'!$B$11:$Z$11,E$5,'Above-RHWM_Base_Calc'!$B35:$Z35) -> 0 | F29: =SUMIF('Above-RHWM_Base_Calc'!$B$11:$Z$11,F$5,'Above-RHWM_Base_Calc'!$B35:$Z35) -> 0 | G29: ='Above-RHWM_Base_Calc'!AA35 -> 0 | I29: 380 | K29: Gross Plant in Service | M29: =C11 -> 0 | N29: =VLOOKUP($I29,'New Resources'!$A$4:$Y$133,N$6,FALSE)*N$5 -> 0 | O29: =M29+N29 -> 0 | P29: =Q29-O29 -> 788941762 | Q29: ='Total & Functionalization'!M24 -> 788941762 | U29: =O29 -> 0 | V29: =VLOOKUP($I29,'New Resources'!$A$4:$Y$133,V$6,FALSE)*V$5 -> 0 | W29: =U29+V29 -> 0 | X29: =Y29-W29 -> 788941762 | Y29: ='Total & Functionalization'!U24 -> 788941762 | AC29: =W29 -> 0 | AD29: =VLOOKUP($I29,'New Resources'!$A$4:$Y$133,AD$6,FALSE)*AD$5 -> 0 | AE29: =AC29+AD29 -> 0 | AF29: =AG29-AE29 -> 788941762 | AG29: ='Total & Functionalization'!AC24 -> 788941762 | AK29: =AE29 -> 0 | AL29: =VLOOKUP($I29,'New Resources'!$A$4:$Y$133,AL$6,FALSE)*AL$5 -> 0 | AM29: =AK29+AL29 -> 0 | AN29: =AO29-AM29 -> 788941762 | AO29: ='Total & Functionalization'!AK24 -> 788941762 | AS29: =AM29 -> 0 | AT29: =VLOOKUP($I29,'New Resources'!$A$4:$Y$133,AT$6,FALSE)*AT$5 -> 0 | AU29: =AS29+AT29 -> 0 | AV29: =AW29-AU29 -> 788941762 | AW29: ='Total & Functionalization'!AS24 -> 788941762 | BA29: =AU29 -> 0 | BB29: =VLOOKUP($I29,'New Resources'!$A$4:$Y$133,BB$6,FALSE)*BB$5 -> 0 | BC29: =BA29+BB29 -> 0 | BD29: =BE29-BC29 -> 788941762 | BE29: ='Total & Functionalization'!BA24 -> 788941762 | BI29: =BC29 -> 0 | BJ29: =VLOOKUP($I29,'New Resources'!$A$4:$Y$133,BJ$6,FALSE)*BJ$5 -> 0 | BK29: =BI29+BJ29 -> 0 | BL29: =BM29-BK29 -> 788941762 | BM29: ='Total & Functionalization'!BI24 -> 788941762 | BQ29: =BK29 -> 0 | BR29: =VLOOKUP($I29,'New Resources'!$A$4:$Y$133,BR$6,FALSE)*BR$5 -> 0 | BS29: =BQ29+BR29 -> 0 | BT29: =BU29-BS29 -> 788941762 | BU29: ='Total & Functionalization'!BQ24 -> 788941762 | BY29: =BS29 -> 0 | BZ29: =VLOOKUP($I29,'New Resources'!$A$4:$Y$133,BZ$6,FALSE)*BZ$5 -> 0 | CA29: =BY29+BZ29 -> 0 | CB29: =CC29-CA29 -> 788941762 | CC29: ='Total & Functionalization'!BY24 -> 788941762 | CG29: =CA29 -> 0 | CH29: =VLOOKUP($I29,'New Resources'!$A$4:$Y$133,CH$6,FALSE)*CH$5 -> 0 | CI29: =CG29+CH29 -> 0 | CJ29: =CK29-CI29 -> 788941762 | CK29: ='Total & Functionalization'!CG24 -> 788941762 | CO29: =CI29 -> 0 | CP29: =VLOOKUP($I29,'New Resources'!$A$4:$Y$133,CP$6,FALSE)*CP$5 -> 0 | CQ29: =CO29+CP29 -> 0 | CR29: =CS29-CQ29 -> 788941762 | CS29: ='Total & Functionalization'!CO24 -> 788941762 | CW29: =CQ29 -> 0 | CX29: =VLOOKUP($I29,'New Resources'!$A$4:$Y$133,CX$6,FALSE)*CX$5 -> 0 | CY29: =CW29+CX29 -> 0 | CZ29: =DA29-CY29 -> 788941762 | DA29: ='Total & Functionalization'!CW24 -> 788941762 | DE29: =CY29 -> 0 | DF29: =VLOOKUP($I29,'New Resources'!$A$4:$Y$133,DF$6,FALSE)*DF$5 -> 0 | DG29: =DE29+DF29 -> 0 | DH29: =DI29-DG29 -> 788941762 | DI29: ='Total & Functionalization'!DE24 -> 788941762 | DM29: =DG29 -> 0 | DN29: =VLOOKUP($I29,'New Resources'!$A$4:$Y$133,DN$6,FALSE)*DN$5 -> 0 | DO29: =DM29+DN29 -> 0 | DP29: =DQ29-DO29 -> 788941762 | DQ29: ='Total & Functionalization'!DM24 -> 788941762 | DU29: =DO29 -> 0 | DV29: =VLOOKUP($I29,'New Resources'!$A$4:$Y$133,DV$6,FALSE)*DV$5 -> 0 | DW29: =DU29+DV29 -> 0 | DX29: =DY29-DW29 -> 788941762 | DY29: ='Total & Functionalization'!DU24 -> 788941762 | EC29: =DW29 -> 0 | ED29: =VLOOKUP($I29,'New Resources'!$A$4:$Y$133,ED$6,FALSE)*ED$5 -> 0 | EE29: =EC29+ED29 -> 0 | EF29: =EG29-EE29 -> 788941762 | EG29: ='Total & Functionalization'!EC24 -> 788941762 | EK29: =EE29 -> 0 | EL29: =VLOOKUP($I29,'New Resources'!$A$4:$Y$133,EL$6,FALSE)*EL$5 -> 0 | EM29: =EK29+EL29 -> 0 | EN29: =EO29-EM29 -> 788941762 | EO29: ='Total & Functionalization'!EK24 -> 788941762 | ES29: =EM29 -> 0 | ET29: =VLOOKUP($I29,'New Resources'!$A$4:$Y$133,ET$6,FALSE)*ET$5 -> 0 | EU29: =ES29+ET29 -> 0 | EV29: =EW29-EU29 -> 788941762 | EW29: ='Total & Functionalization'!ES24 -> 788941762 | FA29: =EU29 -> 0 | FB29: =VLOOKUP($I29,'New Resources'!$A$4:$Y$133,FB$6,FALSE)*FB$5 -> 0 | FC29: =FA29+FB29 -> 0 | FD29: =FE29-FC29 -> 788941762 | FE29: ='Total & Functionalization'!FA24 -> 788941762 | FI29: =FC29 -> 0 | FJ29: =VLOOKUP($I29,'New Resources'!$A$4:$Y$133,FJ$6,FALSE)*FJ$5 -> 0 | FK29: =FI29+FJ29 -> 0 | FL29: =FM29-FK29 -> 788941762 | FM29: ='Total & Functionalization'!FI24 -> 788941762 | FQ29: =FK29 -> 0 | FR29: =VLOOKUP($I29,'New Resources'!$A$4:$Y$133,FR$6,FALSE)*FR$5 -> 0 | FS29: =FQ29+FR29 -> 0 | FT29: =FU29-FS29 -> 788941762 | FU29: ='Total & Functionalization'!FQ24 -> 788941762 | FY29: =FS29 -> 0 | FZ29: =VLOOKUP($I29,'New Resources'!$A$4:$Y$133,FZ$6,FALSE)*FZ$5 -> 0 | GA29: =FY29+FZ29 -> 0 | GB29: =GC29-GA29 -> 788941762 | GC29: ='Total & Functionalization'!FY24 -> 788941762 | GG29: =GA29 -> 0 | GH29: =VLOOKUP($I29,'New Resources'!$A$4:$Y$133,GH$6,FALSE)*GH$5 -> 0 | GI29: =GG29+GH29 -> 0 | GJ29: =GK29-GI29 -> 788941762 | GK29: ='Total & Functionalization'!GG24 -> 788941762 | GO29: =GI29 -> 0 | GP29: =VLOOKUP($I29,'New Resources'!$A$4:$Y$133,GP$6,FALSE)*GP$5 -> 0 | GQ29: =GO29+GP29 -> 0 | GR29: =GS29-GQ29 -> 788941762 | GS29: ='Total & Functionalization'!GO24 -> 788941762 | GW29: =GQ29 -> 0 | GX29: =VLOOKUP($I29,'New Resources'!$A$4:$Y$133,GX$6,FALSE)*GX$5 -> 0 | GY29: =GW29+GX29 -> 0 | GZ29: =HA29-GY29 -> 788941762 | HA29: ='Total & Functionalization'!GW24 -> 788941762
A30: Allocated A&G | G30: ='Above-RHWM_Base_Calc'!AA36 -> 4814268.731 | K30: Accumulated Depreciation | M30: =C12 -> 0 | O30: =M30 -> 0 | P30: =Q30-O30 -> -270525277 | Q30: =-1*'Total & Functionalization'!M59 -> -270525277 | U30: =O30 -> 0 | W30: =U30-(U1*U65) -> 0 | X30: =Y30-W30 -> -275620336.8 | Y30: =-1*'Total & Functionalization'!U59 -> -275620336.8 | AC30: =W30 -> 0 | AE30: =AC30-(AC1*AC65) -> 0 | AF30: =AG30-AE30 -> -285810456.2 | AG30: =-1*'Total & Functionalization'!AC59 -> -285810456.2 | AK30: =AE30 -> 0 | AM30: =AK30-(AK1*AK65) -> 0 | AN30: =AO30-AM30 -> -296000575.8 | AO30: =-1*'Total & Functionalization'!AK59 -> -296000575.8 | AS30: =AM30 -> 0 | AU30: =AS30-(AS1*AS65) -> 0 | AV30: =AW30-AU30 -> -306190695.2 | AW30: =-1*'Total & Functionalization'!AS59 -> -306190695.2 | BA30: =AU30 -> 0 | BC30: =BA30-(BA1*BA65) -> 0 | BD30: =BE30-BC30 -> -316380814.8 | BE30: =-1*'Total & Functionalization'!BA59 -> -316380814.8 | BI30: =BC30 -> 0 | BK30: =BI30-(BI1*BI65) -> 0 | BL30: =BM30-BK30 -> -336761053.8 | BM30: =-1*'Total & Functionalization'!BI59 -> -336761053.8 | BQ30: =BK30 -> 0 | BS30: =BQ30-(BQ1*BQ65) -> 0 | BT30: =BU30-BS30 -> -357141292.8 | BU30: =-1*'Total & Functionalization'!BQ59 -> -357141292.8 | BY30: =BS30 -> 0 | CA30: =BY30-(BY1*BY65) -> 0 | CB30: =CC30-CA30 -> -367331412.2 | CC30: =-1*'Total & Functionalization'!BY59 -> -367331412.2 | CG30: =CA30 -> 0 | CI30: =CG30-(CG1*CG65) -> 0 | CJ30: =CK30-CI30 -> -367331412.2 | CK30: =-1*'Total & Functionalization'!CG59 -> -367331412.2 | CO30: =CI30 -> 0 | CQ30: =CO30-(CO1*CO65) -> 0 | CR30: =CS30-CQ30 -> -377521531.8 | CS30: =-1*'Total & Functionalization'!CO59 -> -377521531.8 | CW30: =CQ30 -> 0 | CY30: =CW30-(CW1*CW65) -> 0 | CZ30: =DA30-CY30 -> -397901770.8 | DA30: =-1*'Total & Functionalization'!CW59 -> -397901770.8 | DE30: =CY30 -> 0 | DG30: =DE30-(DE1*DE65) -> 0 | DH30: =DI30-DG30 -> -418282009.8 | DI30: =-1*'Total & Functionalization'!DE59 -> -418282009.8 | DM30: =DG30 -> 0 | DO30: =DM30-(DM1*DM65) -> 0 | DP30: =DQ30-DO30 -> -438662248.8 | DQ30: =-1*'Total & Functionalization'!DM59 -> -438662248.8 | DU30: =DO30 -> 0 | DW30: =DU30-(DU1*DU65) -> 0 | DX30: =DY30-DW30 -> -459042487.8 | DY30: =-1*'Total & Functionalization'!DU59 -> -459042487.8 | EC30: =DW30 -> 0 | EE30: =EC30-(EC1*EC65) -> 0 | EF30: =EG30-EE30 -> -479422726.8 | EG30: =-1*'Total & Functionalization'!EC59 -> -479422726.8 | EK30: =EE30 -> 0 | EM30: =EK30-(EK1*EK65) -> 0 | EN30: =EO30-EM30 -> -499802965.8 | EO30: =-1*'Total & Functionalization'!EK59 -> -499802965.8 | ES30: =EM30 -> 0 | EU30: =ES30-(ES1*ES65) -> 0 | EV30: =EW30-EU30 -> -513389791.8 | EW30: =-1*'Total & Functionalization'!ES59 -> -513389791.8 | FA30: =EU30 -> 0 | FC30: =FA30-(FA1*FA65) -> 0 | FD30: =FE30-FC30 -> -513389791.8 | FE30: =-1*'Total & Functionalization'!FA59 -> -513389791.8 | FI30: =FC30 -> 0 | FK30: =FI30-(FI1*FI65) -> 0 | FL30: =FM30-FK30 -> -513389791.8 | FM30: =-1*'Total & Functionalization'!FI59 -> -513389791.8 | FQ30: =FK30 -> 0 | FS30: =FQ30-(FQ1*FQ65) -> 0 | FT30: =FU30-FS30 -> -513389791.8 | FU30: =-1*'Total & Functionalization'!FQ59 -> -513389791.8 | FY30: =FS30 -> 0 | GA30: =FY30-(FY1*FY65) -> 0 | GB30: =GC30-GA30 -> -513389791.8 | GC30: =-1*'Total & Functionalization'!FY59 -> -513389791.8 | GG30: =GA30 -> 0 | GI30: =GG30-(GG1*GG65) -> 0 | GJ30: =GK30-GI30 -> -513389791.8 | GK30: =-1*'Total & Functionalization'!GG59 -> -513389791.8 | GO30: =GI30 -> 0 | GQ30: =GO30-(GO1*GO65) -> 0 | GR30: =GS30-GQ30 -> -513389791.8 | GS30: =-1*'Total & Functionalization'!GO59 -> -513389791.8 | GW30: =GQ30 -> 0 | GY30: =GW30-(GW1*GW65) -> 0 | GZ30: =HA30-GY30 -> -513389791.8 | HA30: =-1*'Total & Functionalization'!GW59 -> -513389791.8
A31: Purchased Power Expense | B31: =SUMIF('Above-RHWM_Base_Calc'!$B$11:$Z$11,B$5,'Above-RHWM_Base_Calc'!$B37:$Z37) -> 0 | C31: =SUMIF('Above-RHWM_Base_Calc'!$B$11:$Z$11,C$5,'Above-RHWM_Base_Calc'!$B37:$Z37) -> 0 | D31: =SUMIF('Above-RHWM_Base_Calc'!$B$11:$Z$11,D$5,'Above-RHWM_Base_Calc'!$B37:$Z37) -> 0 | E31: =SUMIF('Above-RHWM_Base_Calc'!$B$11:$Z$11,E$5,'Above-RHWM_Base_Calc'!$B37:$Z37) -> 0 | F31: =SUMIF('Above-RHWM_Base_Calc'!$B$11:$Z$11,F$5,'Above-RHWM_Base_Calc'!$B37:$Z37) -> 0 | G31: ='Above-RHWM_Base_Calc'!AA37 -> 0 | K31: Net Plant In Service | M31: =M29+M30 -> 0 | O31: =O29+O30 -> 0 | P31: 518416485 | Q31: 518416485 | U31: 0 | W31: =W29+W30 -> 0 | X31: =X29+X30 -> 513321425.2 | Y31: =Y29+Y30 -> 513321425.2 | AE31: =AE29+AE30 -> 0 | AF31: =AF29+AF30 -> 503131305.8 | AG31: =AG29+AG30 -> 503131305.8 | AK31: =AK29+AK30 -> 0 | AL31: =AL29+AL30 -> 0 | AM31: =AM29+AM30 -> 0 | AN31: =AN29+AN30 -> 492941186.2 | AO31: =AO29+AO30 -> 492941186.2 | AU31: =AU29+AU30 -> 0 | AV31: =AV29+AV30 -> 482751066.8 | AW31: =AW29+AW30 -> 482751066.8 | BC31: =BC29+BC30 -> 0 | BD31: =BD29+BD30 -> 472560947.2 | BE31: =BE29+BE30 -> 472560947.2 | BK31: =BK29+BK30 -> 0 | BL31: =BL29+BL30 -> 452180708.2 | BM31: =BM29+BM30 -> 452180708.2 | BS31: =BS29+BS30 -> 0 | BT31: =BT29+BT30 -> 431800469.2 | BU31: =BU29+BU30 -> 431800469.2 | CA31: =CA29+CA30 -> 0 | CB31: =CB29+CB30 -> 421610349.8 | CC31: =CC29+CC30 -> 421610349.8 | CI31: =CI29+CI30 -> 0 | CJ31: =CJ29+CJ30 -> 421610349.8 | CK31: =CK29+CK30 -> 421610349.8 | CQ31: =CQ29+CQ30 -> 0 | CR31: =CR29+CR30 -> 411420230.2 | CS31: =CS29+CS30 -> 411420230.2 | CY31: =CY29+CY30 -> 0 | CZ31: =CZ29+CZ30 -> 391039991.2 | DA31: =DA29+DA30 -> 391039991.2 | DG31: =DG29+DG30 -> 0 | DH31: =DH29+DH30 -> 370659752.2 | DI31: =DI29+DI30 -> 370659752.2 | DO31: =DO29+DO30 -> 0 | DP31: =DP29+DP30 -> 350279513.2 | DQ31: =DQ29+DQ30 -> 350279513.2 | DW31: =DW29+DW30 -> 0 | DX31: =DX29+DX30 -> 329899274.2 | DY31: =DY29+DY30 -> 329899274.2 | EE31: =EE29+EE30 -> 0 | EF31: =EF29+EF30 -> 309519035.2 | EG31: =EG29+EG30 -> 309519035.2 | EM31: =EM29+EM30 -> 0 | EN31: =EN29+EN30 -> 289138796.2 | EO31: =EO29+EO30 -> 289138796.2 | EU31: =EU29+EU30 -> 0 | EV31: =EV29+EV30 -> 275551970.2 | EW31: =EW29+EW30 -> 275551970.2 | FC31: =FC29+FC30 -> 0 | FD31: =FD29+FD30 -> 275551970.2 | FE31: =FE29+FE30 -> 275551970.2 | FK31: =FK29+FK30 -> 0 | FL31: =FL29+FL30 -> 275551970.2 | FM31: =FM29+FM30 -> 275551970.2 | FS31: =FS29+FS30 -> 0 | FT31: =FT29+FT30 -> 275551970.2 | FU31: =FU29+FU30 -> 275551970.2 | GA31: =GA29+GA30 -> 0 | GB31: =GB29+GB30 -> 275551970.2 | GC31: =GC29+GC30 -> 275551970.2 | GI31: =GI29+GI30 -> 0 | GJ31: =GJ29+GJ30 -> 275551970.2 | GK31: =GK29+GK30 -> 275551970.2 | GQ31: =GQ29+GQ30 -> 0 | GR31: =GR29+GR30 -> 275551970.2 | GS31: =GS29+GS30 -> 275551970.2 | GY31: =GY29+GY30 -> 0 | GZ31: =GZ29+GZ30 -> 275551970.2 | HA31: =HA29+HA30 -> 275551970.2
A32: Federal Employment Taxes | G32: ='Above-RHWM_Base_Calc'!AA38 -> 375259.4381
A33: State Employment Taxes | G33: ='Above-RHWM_Base_Calc'!AA39 -> 0
A34: Property Taxes | G34: ='Above-RHWM_Base_Calc'!AA40 -> 1916999.34 | J34: TOTAL | K34: Energy (kWH) | M34: =M9+M27+M15 -> 525311808 | O34: =O9+O27+O15 -> 525311808 | W34: =W9+W27+W15 -> 525311808 | AE34: =AE9+AE27+AE15 -> 525311808 | AM34: =AM9+AM27+AM15 -> 525311808 | AU34: =AU9+AU27+AU15 -> 525311808 | BC34: =BC9+BC27+BC15 -> 525311808 | BK34: =BK9+BK27+BK15 -> 525311808 | BS34: =BS9+BS27+BS15 -> 525311808 | CA34: =CA9+CA27+CA15 -> 525311808 | CI34: =CI9+CI27+CI15 -> 525311808 | CQ34: =CQ9+CQ27+CQ15 -> 525311808 | CY34: =CY9+CY27+CY15 -> 525311808 | DG34: =DG9+DG27+DG15 -> 525311808 | DO34: =DO9+DO27+DO15 -> 525311808 | DW34: =DW9+DW27+DW15 -> 525311808 | EE34: =EE9+EE27+EE15 -> 525311808 | EM34: =EM9+EM27+EM15 -> 525311808 | EU34: =EU9+EU27+EU15 -> 525311808 | FC34: =FC9+FC27+FC15 -> 525311808 | FK34: =FK9+FK27+FK15 -> 525311808 | FS34: =FS9+FS27+FS15 -> 525311808 | GA34: =GA9+GA27+GA15 -> 525311808 | GI34: =GI9+GI27+GI15 -> 525311808 | GQ34: =GQ9+GQ27+GQ15 -> 525311808 | GY34: =GY9+GY27+GY15 -> 525311808
A36: Fully Allocated Cost ($) | G36: =SUM(G20,G25,G27:G34) -> 56775748.86 | K36: Gross Plant in Service | M36: =M11+M17+M29 -> 454201098
A37: Fully Allocated Cost ($/MWh) | G37: =IF(G9=0,0,G36/G9*1000) -> 108.0800926 | K37: Accumulated Depreciation | M37: =M12+M18+M30 -> -265563357.6
K38: Net Plant In Service | M38: =M13+M19+M31 -> 188637740.4 | O38: =O13+O19+O31 -> 188637740.4 | P38: =P13+P19+P31 -> 1405267941 | Q38: =Q13+Q19+Q31 -> 1593905681 | U38: =U13+U19+U31 -> 188637740.4 | W38: =W13+W19+W31 -> 183317036.3 | X38: =X13+X19+X31 -> 584199088 | Y38: =Y13+Y19+Y31 -> 584199088 | AC38: =AC13+AC19+AC31 -> 183317036.3 | AE38: =AE13+AE19+AE31 -> 172675628.1 | AF38: =AF13+AF19+AF31 -> 554155646 | AG38: =AG13+AG19+AG31 -> 554155646 | AK38: =AK13+AK19+AK31 -> 172675628.1 | AM38: =AM13+AM19+AM31 -> 162034219.9 | AN38: =AN13+AN19+AN31 -> 524112204 | AO38: =AO13+AO19+AO31 -> 524112204 | AS38: =AS13+AS19+AS31 -> 162034219.9 | AU38: =AU13+AU19+AU31 -> 151392811.8 | AV38: =AV13+AV19+AV31 -> 494068762 | AW38: =AW13+AW19+AW31 -> 494068762 | BA38: =BA13+BA19+BA31 -> 151392811.8 | BC38: =BC13+BC19+BC31 -> 140751403.6 | BD38: =BD13+BD19+BD31 -> 464025320 | BE38: =BE13+BE19+BE31 -> 464025320 | BI38: =BI13+BI19+BI31 -> 140751403.6 | BK38: =BK13+BK19+BK31 -> 119468587.2 | BL38: =BL13+BL19+BL31 -> 403938436 | BM38: =BM13+BM19+BM31 -> 403938436 | BQ38: =BQ13+BQ19+BQ31 -> 119468587.2 | BS38: =BS13+BS19+BS31 -> 98185770.84 | BT38: =BT13+BT19+BT31 -> 343851552 | BU38: =BU13+BU19+BU31 -> 343851552 | BY38: =BY13+BY19+BY31 -> 98185770.84 | CA38: =CA13+CA19+CA31 -> 87544362.65 | CB38: =CB13+CB19+CB31 -> 313808110 | CC38: =CC13+CC19+CC31 -> 313808110 | CG38: =CG13+CG19+CG31 -> 87544362.65 | CI38: =CI13+CI19+CI31 -> 87544362.65 | CJ38: =CJ13+CJ19+CJ31 -> 313808110 | CK38: =CK13+CK19+CK31 -> 313808110 | CO38: =CO13+CO19+CO31 -> 87544362.65 | CQ38: =CQ13+CQ19+CQ31 -> 76902954.47 | CR38: =CR13+CR19+CR31 -> 283764668 | CS38: =CS13+CS19+CS31 -> 283764668 | CW38: =CW13+CW19+CW31 -> 76902954.47 | CY38: =CY13+CY19+CY31 -> 55620138.1 | CZ38: =CZ13+CZ19+CZ31 -> 223677784 | DA38: =DA13+DA19+DA31 -> 223677784 | DE38: =DE13+DE19+DE31 -> 55620138.1 | DG38: =DG13+DG19+DG31 -> 34337321.73 | DH38: =DH13+DH19+DH31 -> 163590900 | DI38: =DI13+DI19+DI31 -> 163590900 | DM38: =DM13+DM19+DM31 -> 34337321.73 | DO38: =DO13+DO19+DO31 -> 13054505.36 | DP38: =DP13+DP19+DP31 -> 103504016 | DQ38: =DQ13+DQ19+DQ31 -> 103504016 | DU38: =DU13+DU19+DU31 -> 13054505.36 | DW38: =DW13+DW19+DW31 -> -8228311.013 | DX38: =DX13+DX19+DX31 -> 43417132 | DY38: =DY13+DY19+DY31 -> 43417132 | EC38: =EC13+EC19+EC31 -> -8228311.013 | EE38: =EE13+EE19+EE31 -> -29511127.38 | EF38: =EF13+EF19+EF31 -> -16669752 | EG38: =EG13+EG19+EG31 -> -16669752 | EK38: =EK13+EK19+EK31 -> -29511127.38 | EM38: =EM13+EM19+EM31 -> -50793943.75 | EN38: =EN13+EN19+EN31 -> -76756636 | EO38: =EO13+EO19+EO31 -> -76756636 | ES38: =ES13+ES19+ES31 -> -50793943.75 | EU38: =EU13+EU19+EU31 -> -64982488 | EV38: =EV13+EV19+EV31 -> -116814558.7 | EW38: =EW13+EW19+EW31 -> -116814558.7 | FA38: =FA13+FA19+FA31 -> -64982488 | FC38: =FC13+FC19+FC31 -> -64982488 | FD38: =FD13+FD19+FD31 -> -116814558.7 | FE38: =FE13+FE19+FE31 -> -116814558.7 | FI38: =FI13+FI19+FI31 -> -64982488 | FK38: =FK13+FK19+FK31 -> -64982488 | FL38: =FL13+FL19+FL31 -> -116814558.7 | FM38: =FM13+FM19+FM31 -> -116814558.7 | FQ38: =FQ13+FQ19+FQ31 -> -64982488 | FS38: =FS13+FS19+FS31 -> -64982488 | FT38: =FT13+FT19+FT31 -> -116814558.7 | FU38: =FU13+FU19+FU31 -> -116814558.7 | FY38: =FY13+FY19+FY31 -> -64982488 | GA38: =GA13+GA19+GA31 -> -64982488 | GB38: =GB13+GB19+GB31 -> -116814558.7 | GC38: =GC13+GC19+GC31 -> -116814558.7 | GG38: =GG13+GG19+GG31 -> -64982488 | GI38: =GI13+GI19+GI31 -> -64982488 | GJ38: =GJ13+GJ19+GJ31 -> -116814558.7 | GK38: =GK13+GK19+GK31 -> -116814558.7 | GO38: =GO13+GO19+GO31 -> -64982488 | GQ38: =GQ13+GQ19+GQ31 -> -64982488 | GR38: =GR13+GR19+GR31 -> -116814558.7 | GS38: =GS13+GS19+GS31 -> -116814558.7 | GW38: =GW13+GW19+GW31 -> -64982488 | GY38: =GY13+GY19+GY31 -> -64982488 | GZ38: =GZ13+GZ19+GZ31 -> -116814558.7 | HA38: =HA13+HA19+HA31 -> -116814558.7
I39: 91000 | J39: COAL | K39: Fuel Stock | M39: =B15+D15 -> 0 | N39: =VLOOKUP($I39,'New Resources'!$A$4:$Y$133,N$6,FALSE)*N$5 -> 0 | O39: =M39+N39 -> 0 | P39: =Q39-O39 -> 32051446.33 | Q39: ='Total & Functionalization'!M103 -> 32051446.33 | U39: =O39*(VLOOKUP($J39,EscTable_01,U$2,FALSE)/VLOOKUP($J39,EscTable_01,U$2-1,FALSE)) -> 0 | V39: =VLOOKUP($I39,'New Resources'!$A$4:$Y$133,V$6,FALSE)*V$5 -> 0 | W39: =U39+V39 -> 0 | X39: =Y39-W39 -> 31487874.57 | Y39: ='Total & Functionalization'!U103 -> 31487874.57 | AC39: =W39*(VLOOKUP($J39,EscTable_01,AC$2,FALSE)/VLOOKUP($J39,EscTable_01,AC$2-1,FALSE)) -> 0 | AD39: =VLOOKUP($I39,'New Resources'!$A$4:$Y$133,AD$6,FALSE)*AD$5 -> 0 | AE39: =AC39+AD39 -> 0 | AF39: =AG39-AE39 -> 30390285.24 | AG39: ='Total & Functionalization'!AC103 -> 30390285.24 | AK39: =AE39*(VLOOKUP($J39,EscTable_01,AK$2,FALSE)/VLOOKUP($J39,EscTable_01,AK$2-1,FALSE)) -> 0 | AL39: =VLOOKUP($I39,'New Resources'!$A$4:$Y$133,AL$6,FALSE)*AL$5 -> 0 | AM39: =AK39+AL39 -> 0 | AN39: =AO39-AM39 -> 30442962.64 | AO39: ='Total & Functionalization'!AK103 -> 30442962.64 | AS39: =AM39*(VLOOKUP($J39,EscTable_01,AS$2,FALSE)/VLOOKUP($J39,EscTable_01,AS$2-1,FALSE)) -> 0 | AT39: =VLOOKUP($I39,'New Resources'!$A$4:$Y$133,AT$6,FALSE)*AT$5 -> 0 | AU39: =AS39+AT39 -> 0 | AV39: =AW39-AU39 -> 31651898.3 | AW39: ='Total & Functionalization'!AS103 -> 31651898.3 | BA39: =AU39*(VLOOKUP($J39,EscTable_01,BA$2,FALSE)/VLOOKUP($J39,EscTable_01,BA$2-1,FALSE)) -> 0 | BB39: =VLOOKUP($I39,'New Resources'!$A$4:$Y$133,BB$6,FALSE)*BB$5 -> 0 | BC39: =BA39+BB39 -> 0 | BD39: =BE39-BC39 -> 33216540.55 | BE39: ='Total & Functionalization'!BA103 -> 33216540.55 | BI39: =BC39*(VLOOKUP($J39,EscTable_01,BI$2,FALSE)/VLOOKUP($J39,EscTable_01,BI$2-1,FALSE)) -> 0 | BJ39: =VLOOKUP($I39,'New Resources'!$A$4:$Y$133,BJ$6,FALSE)*BJ$5 -> 0 | BK39: =BI39+BJ39 -> 0 | BL39: =BM39-BK39 -> 35876657.27 | BM39: ='Total & Functionalization'!BI103 -> 35876657.27 | BQ39: =BK39*(VLOOKUP($J39,EscTable_01,BQ$2,FALSE)/VLOOKUP($J39,EscTable_01,BQ$2-1,FALSE)) -> 0 | BR39: =VLOOKUP($I39,'New Resources'!$A$4:$Y$133,BR$6,FALSE)*BR$5 -> 0 | BS39: =BQ39+BR39 -> 0 | BT39: =BU39-BS39 -> 35164110.97 | BU39: ='Total & Functionalization'!BQ103 -> 35164110.97 | BY39: =BS39*(VLOOKUP($J39,EscTable_01,BY$2,FALSE)/VLOOKUP($J39,EscTable_01,BY$2-1,FALSE)) -> 0 | BZ39: =VLOOKUP($I39,'New Resources'!$A$4:$Y$133,BZ$6,FALSE)*BZ$5 -> 0 | CA39: =BY39+BZ39 -> 0 | CB39: =CC39-CA39 -> 35718844.72 | CC39: ='Total & Functionalization'!BY103 -> 35718844.72 | CG39: =CA39*(VLOOKUP($J39,EscTable_01,CG$2,FALSE)/VLOOKUP($J39,EscTable_01,CG$2-1,FALSE)) -> 0 | CH39: =VLOOKUP($I39,'New Resources'!$A$4:$Y$133,CH$6,FALSE)*CH$5 -> 0 | CI39: =CG39+CH39 -> 0 | CJ39: =CK39-CI39 -> 35718844.72 | CK39: ='Total & Functionalization'!CG103 -> 35718844.72 | CO39: =CI39*(VLOOKUP($J39,EscTable_01,CO$2,FALSE)/VLOOKUP($J39,EscTable_01,CO$2-1,FALSE)) -> 0 | CP39: =VLOOKUP($I39,'New Resources'!$A$4:$Y$133,CP$6,FALSE)*CP$5 -> 0 | CQ39: =CO39+CP39 -> 0 | CR39: =CS39-CQ39 -> 35999484.73 | CS39: ='Total & Functionalization'!CO103 -> 35999484.73 | CW39: =CQ39*(VLOOKUP($J39,EscTable_01,CW$2,FALSE)/VLOOKUP($J39,EscTable_01,CW$2-1,FALSE)) -> 0 | CX39: =VLOOKUP($I39,'New Resources'!$A$4:$Y$133,CX$6,FALSE)*CX$5 -> 0 | CY39: =CW39+CX39 -> 0 | CZ39: =DA39-CY39 -> 35999484.73 | DA39: ='Total & Functionalization'!CW103 -> 35999484.73 | DE39: =CY39*(VLOOKUP($J39,EscTable_01,DE$2,FALSE)/VLOOKUP($J39,EscTable_01,DE$2-1,FALSE)) -> 0 | DF39: =VLOOKUP($I39,'New Resources'!$A$4:$Y$133,DF$6,FALSE)*DF$5 -> 0 | DG39: =DE39+DF39 -> 0 | DH39: =DI39-DG39 -> 35999484.73 | DI39: ='Total & Functionalization'!DE103 -> 35999484.73 | DM39: =DG39*(VLOOKUP($J39,EscTable_01,DM$2,FALSE)/VLOOKUP($J39,EscTable_01,DM$2-1,FALSE)) -> 0 | DN39: =VLOOKUP($I39,'New Resources'!$A$4:$Y$133,DN$6,FALSE)*DN$5 -> 0 | DO39: =DM39+DN39 -> 0 | DP39: =DQ39-DO39 -> 35999484.73 | DQ39: ='Total & Functionalization'!DM103 -> 35999484.73 | DU39: =DO39*(VLOOKUP($J39,EscTable_01,DU$2,FALSE)/VLOOKUP($J39,EscTable_01,DU$2-1,FALSE)) -> 0 | DV39: =VLOOKUP($I39,'New Resources'!$A$4:$Y$133,DV$6,FALSE)*DV$5 -> 0 | DW39: =DU39+DV39 -> 0 | DX39: =DY39-DW39 -> 35999484.73 | DY39: ='Total & Functionalization'!DU103 -> 35999484.73 | EC39: =DW39*(VLOOKUP($J39,EscTable_01,EC$2,FALSE)/VLOOKUP($J39,EscTable_01,EC$2-1,FALSE)) -> 0 | ED39: =VLOOKUP($I39,'New Resources'!$A$4:$Y$133,ED$6,FALSE)*ED$5 -> 0 | EE39: =EC39+ED39 -> 0 | EF39: =EG39-EE39 -> 36219751.69 | EG39: ='Total & Functionalization'!EC103 -> 36219751.69 | EK39: =EE39*(VLOOKUP($J39,EscTable_01,EK$2,FALSE)/VLOOKUP($J39,EscTable_01,EK$2-1,FALSE)) -> 0 | EL39: =VLOOKUP($I39,'New Resources'!$A$4:$Y$133,EL$6,FALSE)*EL$5 -> 0 | EM39: =EK39+EL39 -> 0 | EN39: =EO39-EM39 -> 36888672 | EO39: ='Total & Functionalization'!EK103 -> 36888672 | ES39: =EM39*(VLOOKUP($J39,EscTable_01,ES$2,FALSE)/VLOOKUP($J39,EscTable_01,ES$2-1,FALSE)) -> 0 | ET39: =VLOOKUP($I39,'New Resources'!$A$4:$Y$133,ET$6,FALSE)*ET$5 -> 0 | EU39: =ES39+ET39 -> 0 | EV39: =EW39-EU39 -> 36888672 | EW39: ='Total & Functionalization'!ES103 -> 36888672 | FA39: =EU39*(VLOOKUP($J39,EscTable_01,FA$2,FALSE)/VLOOKUP($J39,EscTable_01,FA$2-1,FALSE)) -> 0 | FB39: =VLOOKUP($I39,'New Resources'!$A$4:$Y$133,FB$6,FALSE)*FB$5 -> 0 | FC39: =FA39+FB39 -> 0 | FD39: =FE39-FC39 -> 36888672 | FE39: ='Total & Functionalization'!FA103 -> 36888672 | FI39: =FC39*(VLOOKUP($J39,EscTable_01,FI$2,FALSE)/VLOOKUP($J39,EscTable_01,FI$2-1,FALSE)) -> 0 | FJ39: =VLOOKUP($I39,'New Resources'!$A$4:$Y$133,FJ$6,FALSE)*FJ$5 -> 0 | FK39: =FI39+FJ39 -> 0 | FL39: =FM39-FK39 -> 36888672 | FM39: ='Total & Functionalization'!FI103 -> 36888672 | FQ39: =FK39*(VLOOKUP($J39,EscTable_01,FQ$2,FALSE)/VLOOKUP($J39,EscTable_01,FQ$2-1,FALSE)) -> 0 | FR39: =VLOOKUP($I39,'New Resources'!$A$4:$Y$133,FR$6,FALSE)*FR$5 -> 0 | FS39: =FQ39+FR39 -> 0 | FT39: =FU39-FS39 -> 36888672 | FU39: ='Total & Functionalization'!FQ103 -> 36888672 | FY39: =FS39*(VLOOKUP($J39,EscTable_01,FY$2,FALSE)/VLOOKUP($J39,EscTable_01,FY$2-1,FALSE)) -> 0 | FZ39: =VLOOKUP($I39,'New Resources'!$A$4:$Y$133,FZ$6,FALSE)*FZ$5 -> 0 | GA39: =FY39+FZ39 -> 0 | GB39: =GC39-GA39 -> 36888672 | GC39: ='Total & Functionalization'!FY103 -> 36888672 | GG39: =GA39*(VLOOKUP($J39,EscTable_01,GG$2,FALSE)/VLOOKUP($J39,EscTable_01,GG$2-1,FALSE)) -> 0 | GH39: =VLOOKUP($I39,'New Resources'!$A$4:$Y$133,GH$6,FALSE)*GH$5 -> 0 | GI39: =GG39+GH39 -> 0 | GJ39: =GK39-GI39 -> 36888672 | GK39: ='Total & Functionalization'!GG103 -> 36888672 | GO39: =GI39*(VLOOKUP($J39,EscTable_01,GO$2,FALSE)/VLOOKUP($J39,EscTable_01,GO$2-1,FALSE)) -> 0 | GP39: =VLOOKUP($I39,'New Resources'!$A$4:$Y$133,GP$6,FALSE)*GP$5 -> 0 | GQ39: =GO39+GP39 -> 0 | GR39: =GS39-GQ39 -> 36888672 | GS39: ='Total & Functionalization'!GO103 -> 36888672 | GW39: =GQ39*(VLOOKUP($J39,EscTable_01,GW$2,FALSE)/VLOOKUP($J39,EscTable_01,GW$2-1,FALSE)) -> 0 | GX39: =VLOOKUP($I39,'New Resources'!$A$4:$Y$133,GX$6,FALSE)*GX$5 -> 0 | GY39: =GW39+GX39 -> 0 | GZ39: =HA39-GY39 -> 36888672 | HA39: ='Total & Functionalization'!GW103 -> 36888672
A40: ='Base Data'!E5 -> PUGET SOUND ENERGY
A41: FranK | B41: =IF(ISERROR(SEARCH(A41,$A$40)),0,SEARCH(A41,$A$40)) -> 0 | K41: Plant Materials & Supplies | O41: =O224 -> 6003764.381 | P41: =P224 -> 45579111.91 | Q41: =Q224 -> 51582876.29 | W41: =W224 -> 6045503.539 | X41: =X224 -> 45895985.4 | Y41: =Y224 -> 51941488.94
A42: Sno | B42: =IF(ISERROR(SEARCH(A42,$A$40)),0,SEARCH(A42,$A$40)) -> 0 | K42: Plant Mat'ls & Supp. Base Data | M42: =G16 -> 6003764.381
A43: Clark | B43: 0
A44: ZZ | B44: 0 | K44: General Plant | O44: =O208 -> 12390905.23 | P44: =P208 -> 95516660.57 | Q44: =Q208 -> 107907565.8 | W44: =W208 -> 12390948.49 | X44: =X208 -> 95516617.3 | Y44: =Y208 -> 107907565.8 | AE44: =AE208 -> 12392039.44 | AF44: =AF208 -> 95526265.54 | AG44: =AG208 -> 107918305 | AM44: =AM208 -> 12391783.11 | AN44: =AN208 -> 95526521.87 | AO44: =AO208 -> 107918305 | AU44: =AU208 -> 12394190.38 | AV44: =AV208 -> 95556415.48 | AW44: =AW208 -> 107950605.9 | BC44: =BC208 -> 12393339.79 | BD44: =BD208 -> 95557266.07 | BE44: =BE208 -> 107950605.9 | BK44: =BK208 -> 12393947.23 | BL44: =BL208 -> 95587077.48 | BM44: =BM208 -> 107981024.7 | BS44: =BS208 -> 12396832.5 | BT44: =BT208 -> 95642107.48 | BU44: =BU208 -> 108038940 | CA44: =CA208 -> 12395476.11 | CB44: =CB208 -> 95643463.86 | CC44: =CC208 -> 108038940 | CI44: =CI208 ->  | CJ44: =CJ208 ->  | CK44: =CK208 ->  | CQ44: =CQ208 ->  | CR44: =CR208 ->  | CS44: =CS208 ->  | CY44: =CY208 ->  | CZ44: =CZ208 ->  | DA44: =DA208 ->  | DG44: =DG208 ->  | DH44: =DH208 ->  | DI44: =DI208 ->  | DO44: =DO208 ->  | DP44: =DP208 ->  | DQ44: =DQ208 ->  | DW44: =DW208 ->  | DX44: =DX208 ->  | DY44: =DY208 ->  | EE44: =EE208 ->  | EF44: =EF208 ->  | EG44: =EG208 ->  | EM44: =EM208 ->  | EN44: =EN208 ->  | EO44: =EO208 ->  | EU44: =EU208 ->  | EV44: =EV208 ->  | EW44: =EW208 ->  | FC44: =FC208 ->  | FD44: =FD208 ->  | FE44: =FE208 ->  | FK44: =FK208 ->  | FL44: =FL208 ->  | FM44: =FM208 ->  | FS44: =FS208 ->  | FT44: =FT208 ->  | FU44: =FU208 ->  | GA44: =GA208 ->  | GB44: =GB208 ->  | GC44: =GC208 ->  | GI44: =GI208 ->  | GJ44: =GJ208 ->  | GK44: =GK208 ->  | GQ44: =GQ208 ->  | GR44: =GR208 ->  | GS44: =GS208 ->  | GY44: =GY208 ->  | GZ44: =GZ208 ->  | HA44: =HA208 -> 
A45: ZZ | B45: 0 | K45: General Plant - Accum. Depreciation | O45: =-1*O214 -> -7792624.139 | P45: =-1*P214 -> -60070303.27 | Q45: =-1*Q214 -> -67862927.41 | W45: =-1*W214 -> -7945443.307 | X45: =-1*X214 -> -61248085.08 | Y45: =-1*Y214 -> -69193528.39 | AE45: =-1*AE214 -> -8239762.38 | AF45: =-1*AF214 -> -63517690.76 | AG45: =-1*AG214 -> -71757453.14 | AM45: =-1*AM214 -> -8545196.438 | AN45: =-1*AN214 -> -65873723.52 | AO45: =-1*AO214 -> -74418919.96 | AU45: =-1*AU214 -> -8813995.955 | AV45: =-1*AV214 -> -67953923.08 | AW45: =-1*AW214 -> -76767919.04 | BC45: =-1*BC214 -> -9119033.959 | BD45: =-1*BD214 -> -70311148.5 | BE45: =-1*BE214 -> -79430182.45 | BK45: =-1*BK214 -> -9691080.303 | BL45: =-1*BL214 -> -74741486.82 | BM45: =-1*BM214 -> -84432567.12 | BS45: =-1*BS214 -> -10225334.39 | BT45: =-1*BT214 -> -78888904.17 | BU45: =-1*BU214 -> -89114238.56 | CA45: =-1*CA214 -> -10529911.17 | CB45: =-1*CB214 -> -81248769.28 | CC45: =-1*CC214 -> -91778680.46 | CI45: =-1*CI214 ->  | CJ45: =-1*CJ214 ->  | CK45: =-1*CK214 ->  | CQ45: =-1*CQ214 ->  | CR45: =-1*CR214 ->  | CS45: =-1*CS214 ->  | CY45: =-1*CY214 ->  | CZ45: =-1*CZ214 ->  | DA45: =-1*DA214 ->  | DG45: =-1*DG214 ->  | DH45: =-1*DH214 ->  | DI45: =-1*DI214 ->  | DO45: =-1*DO214 ->  | DP45: =-1*DP214 ->  | DQ45: =-1*DQ214 ->  | DW45: =-1*DW214 ->  | DX45: =-1*DX214 ->  | DY45: =-1*DY214 ->  | EE45: =-1*EE214 ->  | EF45: =-1*EF214 ->  | EG45: =-1*EG214 ->  | EM45: =-1*EM214 ->  | EN45: =-1*EN214 ->  | EO45: =-1*EO214 ->  | EU45: =-1*EU214 ->  | EV45: =-1*EV214 ->  | EW45: =-1*EW214 ->  | FC45: =-1*FC214 ->  | FD45: =-1*FD214 ->  | FE45: =-1*FE214 ->  | FK45: =-1*FK214 ->  | FL45: =-1*FL214 ->  | FM45: =-1*FM214 ->  | FS45: =-1*FS214 ->  | FT45: =-1*FT214 ->  | FU45: =-1*FU214 ->  | GA45: =-1*GA214 ->  | GB45: =-1*GB214 ->  | GC45: =-1*GC214 ->  | GI45: =-1*GI214 ->  | GJ45: =-1*GJ214 ->  | GK45: =-1*GK214 ->  | GQ45: =-1*GQ214 ->  | GR45: =-1*GR214 ->  | GS45: =-1*GS214 ->  | GY45: =-1*GY214 ->  | GZ45: =-1*GZ214 ->  | HA45: =-1*HA214 -> 
A46: ZZ | B46: 0 | K46: Net General Plant | O46: =O44+O45 -> 4598281.089 | P46: =P44+P45 -> 35446357.3 | Q46: =Q44+Q45 -> 40044638.39 | W46: =W44+W45 -> 4445505.187 | X46: =X44+X45 -> 34268532.22 | Y46: =Y44+Y45 -> 38714037.4 | AE46: =AE44+AE45 -> 4152277.061 | AF46: =AF44+AF45 -> 32008574.78 | AG46: =AG44+AG45 -> 36160851.84 | AM46: =AM44+AM45 -> 3846586.671 | AN46: =AN44+AN45 -> 29652798.35 | AO46: =AO44+AO45 -> 33499385.02 | AU46: =AU44+AU45 -> 3580194.421 | AV46: =AV44+AV45 -> 27602492.4 | AW46: =AW44+AW45 -> 31182686.82 | BC46: =BC44+BC45 -> 3274305.83 | BD46: =BD44+BD45 -> 25246117.57 | BE46: =BE44+BE45 -> 28520423.4 | BK46: =BK44+BK45 -> 2702866.931 | BL46: =BL44+BL45 -> 20845590.66 | BM46: =BM44+BM45 -> 23548457.59 | BS46: =BS44+BS45 -> 2171498.106 | BT46: =BT44+BT45 -> 16753203.31 | BU46: =BU44+BU45 -> 18924701.41 | CA46: =CA44+CA45 -> 1865564.938 | CB46: =CB44+CB45 -> 14394694.58 | CC46: =CC44+CC45 -> 16260259.51 | CI46: =CI44+CI45 ->  | CJ46: =CJ44+CJ45 ->  | CK46: =CK44+CK45 ->  | CQ46: =CQ44+CQ45 ->  | CR46: =CR44+CR45 ->  | CS46: =CS44+CS45 ->  | CY46: =CY44+CY45 ->  | CZ46: =CZ44+CZ45 ->  | DA46: =DA44+DA45 ->  | DG46: =DG44+DG45 ->  | DH46: =DH44+DH45 ->  | DI46: =DI44+DI45 ->  | DO46: =DO44+DO45 ->  | DP46: =DP44+DP45 ->  | DQ46: =DQ44+DQ45 ->  | DW46: =DW44+DW45 ->  | DX46: =DX44+DX45 ->  | DY46: =DY44+DY45 ->  | EE46: =EE44+EE45 ->  | EF46: =EF44+EF45 ->  | EG46: =EG44+EG45 ->  | EM46: =EM44+EM45 ->  | EN46: =EN44+EN45 ->  | EO46: =EO44+EO45 ->  | EU46: =EU44+EU45 ->  | EV46: =EV44+EV45 ->  | EW46: =EW44+EW45 ->  | FC46: =FC44+FC45 ->  | FD46: =FD44+FD45 ->  | FE46: =FE44+FE45 ->  | FK46: =FK44+FK45 ->  | FL46: =FL44+FL45 ->  | FM46: =FM44+FM45 ->  | FS46: =FS44+FS45 ->  | FT46: =FT44+FT45 ->  | FU46: =FU44+FU45 ->  | GA46: =GA44+GA45 ->  | GB46: =GB44+GB45 ->  | GC46: =GC44+GC45 ->  | GI46: =GI44+GI45 ->  | GJ46: =GJ44+GJ45 ->  | GK46: =GK44+GK45 ->  | GQ46: =GQ44+GQ45 ->  | GR46: =GR44+GR45 ->  | GS46: =GS44+GS45 ->  | GY46: =GY44+GY45 ->  | GZ46: =GZ44+GZ45 ->  | HA46: =HA44+HA45 -> 
A47: ZZ | B47: 0 | K47: Net General Plant | M47: =G17 -> 4598281.089
A48: COU (1=Yes) | B48: =IF(SUM(B41:B47)>0,1,0) -> 0
K49: TOTAL RATE BASE | M49: =SUM(M38:M47) -> 199239785.9 | O49: =O38+O39+O41+O46 -> 199239785.9 | P49: =P38+P39+P41+P46 -> 1518344856 | Q49: =Q38+Q39+Q41+Q46 -> 1717584642 | W49: =W38+W39+W41+W46 -> 193808045 | X49: =X38+X39+X41+X46 -> 695851480.2 | Y49: =Y38+Y39+Y41+Y46 -> 706342488.9 | AE49: =AE38+AE39+AE41+AE46 -> 176827905.2 | AF49: =AF38+AF39+AF41+AF46 -> 616554506 | AG49: =AG38+AG39+AG41+AG46 -> 620706783.1 | AM49: =AM38+AM39+AM41+AM46 -> 165880806.6 | AN49: =AN38+AN39+AN41+AN46 -> 584207965 | AO49: =AO38+AO39+AO41+AO46 -> 588054551.7 | AU49: =AU38+AU39+AU41+AU46 -> 154973006.2 | AV49: =AV38+AV39+AV41+AV46 -> 553323152.7 | AW49: =AW38+AW39+AW41+AW46 -> 556903347.1 | BC49: =BC38+BC39+BC41+BC46 -> 144025709.4 | BD49: =BD38+BD39+BD41+BD46 -> 522487978.1 | BE49: =BE38+BE39+BE41+BE46 -> 525762283.9 | BK49: =BK38+BK39+BK41+BK46 -> 122171454.1 | BL49: =BL38+BL39+BL41+BL46 -> 460660683.9 | BM49: =BM38+BM39+BM41+BM46 -> 463363550.9 | BS49: =BS38+BS39+BS41+BS46 -> 100357268.9 | BT49: =BT38+BT39+BT41+BT46 -> 395768866.3 | BU49: =BU38+BU39+BU41+BU46 -> 397940364.4 | CA49: =CA38+CA39+CA41+CA46 -> 89409927.59 | CB49: =CB38+CB39+CB41+CB46 -> 363921649.3 | CC49: =CC38+CC39+CC41+CC46 -> 365787214.2 | CI49: =CI38+CI39+CI41+CI46 ->  | CJ49: =CJ38+CJ39+CJ41+CJ46 ->  | CK49: =CK38+CK39+CK41+CK46 ->  | CQ49: =CQ38+CQ39+CQ41+CQ46 ->  | CR49: =CR38+CR39+CR41+CR46 ->  | CS49: =CS38+CS39+CS41+CS46 ->  | CY49: =CY38+CY39+CY41+CY46 ->  | CZ49: =CZ38+CZ39+CZ41+CZ46 ->  | DA49: =DA38+DA39+DA41+DA46 ->  | DG49: =DG38+DG39+DG41+DG46 ->  | DH49: =DH38+DH39+DH41+DH46 ->  | DI49: =DI38+DI39+DI41+DI46 ->  | DO49: =DO38+DO39+DO41+DO46 ->  | DP49: =DP38+DP39+DP41+DP46 ->  | DQ49: =DQ38+DQ39+DQ41+DQ46 ->  | DW49: =DW38+DW39+DW41+DW46 ->  | DX49: =DX38+DX39+DX41+DX46 ->  | DY49: =DY38+DY39+DY41+DY46 ->  | EE49: =EE38+EE39+EE41+EE46 ->  | EF49: =EF38+EF39+EF41+EF46 ->  | EG49: =EG38+EG39+EG41+EG46 ->  | EM49: =EM38+EM39+EM41+EM46 ->  | EN49: =EN38+EN39+EN41+EN46 ->  | EO49: =EO38+EO39+EO41+EO46 ->  | EU49: =EU38+EU39+EU41+EU46 ->  | EV49: =EV38+EV39+EV41+EV46 ->  | EW49: =EW38+EW39+EW41+EW46 ->  | FC49: =FC38+FC39+FC41+FC46 ->  | FD49: =FD38+FD39+FD41+FD46 ->  | FE49: =FE38+FE39+FE41+FE46 ->  | FK49: =FK38+FK39+FK41+FK46 ->  | FL49: =FL38+FL39+FL41+FL46 ->  | FM49: =FM38+FM39+FM41+FM46 ->  | FS49: =FS38+FS39+FS41+FS46 ->  | FT49: =FT38+FT39+FT41+FT46 ->  | FU49: =FU38+FU39+FU41+FU46 ->  | GA49: =GA38+GA39+GA41+GA46 ->  | GB49: =GB38+GB39+GB41+GB46 ->  | GC49: =GC38+GC39+GC41+GC46 ->  | GI49: =GI38+GI39+GI41+GI46 ->  | GJ49: =GJ38+GJ39+GJ41+GJ46 ->  | GK49: =GK38+GK39+GK41+GK46 ->  | GQ49: =GQ38+GQ39+GQ41+GQ46 ->  | GR49: =GR38+GR39+GR41+GR46 ->  | GS49: =GS38+GS39+GS41+GS46 ->  | GY49: =GY38+GY39+GY41+GY46 ->  | GZ49: =GZ38+GZ39+GZ41+GZ46 ->  | HA49: =HA38+HA39+HA41+HA46 -> 
